Workbook

Sheet Introduction
A1: NCHRP Project 03-110: Estimating the Life-Cycle Cost of Intersection Designs
A2: Life-Cycle Cost Estimating Tool
A3: Introduction | B3: Overview of Tool
A4: The Life-Cycle Cost Estimating Tool (LCCET) was deveoped as part of NCHRP Project 03-110. The objective of this project was to develop a spreadsheet-based tool that can be used to compare the life-cycle costs of alternative designs for new and existing intersections. The tool will be applicable to the following types of intersections: stop-controlled, traffic signal, roundabout, and innovative designs. | B4: This spreadsheet tool provides life cycle cost comparisons between different intersection or influence area treatments. The tool incoporates the following costs: safety, vehicular delay, multimodal delay, operations, maintenance, initial capital costs and emissions. Any of these elements can be excluded from the analysis by unselecting them in the "Outputs" worksheet.
A5: Maintenance | B5: Tool Guidance
A6: Version: LCCET 1.0 | B6: Additional user guidance can be found in Chapter [XX] of the NCHRP 3-110 Final Report, which is located a the following link: [add link when available]
A7: Maintained By: TBD
A8: Contact Information: TBD
A9: Disclaimers | B9: Legend
A10: This is draft material as submitted by the research agency. The opinions and conclusions expressed or implied in the material are those of the research agency. They are not necessarily those of the Transportation Research Board, the National Academies, or the program sponsors. No warranty is made by the developers or their employer as to the accuracy, completeness, or reliability of this software and its associated equations and documentation. No responsibility is assumed by the developers for incorrect results or damages resulting from the use of this software. | C10: Required data entry field
C11: Optional data entry field
C12: Data entry field not used
B13: [Value] | C13: Automated input
B14: Abc | C14: Comment/Guidance text
B15: Abc | C15: Warning/Error text
C16: Purple tabs are for reference values only; no inputs required on these sheets.
A17: How to Use the Life-Cycle Cost Estimating Tool
A18: 1. On the "Organization Information" sheet, provide basic project information. This is used for project context and attribution only.
A19: 2. The sheet "CostParameters" summarizes the values consistently applied across all project alternatives. The user should review these costs to ensure they are realistic for the location and also select the appropriate input type based on available data or applicable policies.
A20: 3. The "DemandParameters" sheet details the flow profiles applied to all alternatives by mode. The purpose of this sheet is to calibrate peak hour data to annual data so that various inputs are in a consistent format.
A21: 4. The sheet "Alternatives_MasterList" is used to manage alternatives. This allows the analyst to add or remove alternatives and sets up the basic sheet titles. It also establishes the base alternative that will be used as a basis for comparison for all alternatives.
A22: 5. The sheet "BaseCase" provides cost inputs for the base case analysis. All other alternatives are compared to this alternative.
A23: 6. The worksheet "Outputs" is used to compile the summary information within the Net Present Value Table within each alternative. This sheet provides a plot of the results and a comparison.
A24: 7. Purple worksheet tabs are for calculations and formula references. These sheets do not include any user inputs.

Sheet OrganizationInformation
A1: Organization Information | B1: This sheet provides general project information for reference purposes only.
A4: Organization Information
A5: Agency: | B5: ACHD
A6: Project Name: | B6: Eagle/State Intersection Concept Study
A7: Project Reference:
A8: Location: | B8: State Street Corridor
A9: City: | B9: Boise
A10: State: | B10: Idaho
A11: Performing Department or Organization: | B11: Kittelson & Associates
A12: Date: | B12: 2014-10-01
A13: Analyst: | B13: MJK

Sheet CostParameters
A1: Cost Parameters | C1: This sheet defines the basic cost parameters used in the benefit-cost analysis. You may either use the default values or override the defaults with your own values. Note that all costs must be in the same year dollars, preferably in base year dollars. Consult the Bureau of Labor Statistics web site for latest information on the consumer price index to adjust values to current year: http://www.bls.gov/cpi/
A3: Type | B3: Category group (select) | C3: Category | D3: Unit valuation | E3: Default value | F3: Override value | G3: Use value | H3: Override date | I3: Notes/References
A4: Base year for discounting | B4: N/A | C4: N/A | D4: N/A | E4: N/A | F4: 2014 | G4: =F4 -> 2014 | I4: All costs will be discounted to the Base Year for Discounting. Enter the year in the "Override Value" column.
A5: Discount rate | B5: N/A | C5: N/A | D5: Percent | E5: 0.03 | F5: 0.03 | G5: =IF(ISBLANK(F5),E5,F5) -> 0.03 | I5: OMB Circular A-4 recommends using both 3% and 7% real rates.
A6: Value of time | B6: N/A | C6: Person (weekday) | D6: $ per person hour | E6: 12.98 | G6: =IF(ISBLANK(F6),E6,F6) -> 12.98 | I6: USDOT Revised Departmental Guidance on Valuation of Travel Time in Economic Analysis (Revision 2 – corrected) April 2013
C7: Person (weekend) | D7: $ per person hour | E7: 12.98 | G7: =IF(ISBLANK(F7),E7,F7) -> 12.98
C8: Trucks | D8: $ per truck hour | E8: 25.75 | G8: =IF(ISBLANK(F8),E8,F8) -> 25.75
A9: Crashes | B9: TRUE | C9: =CrashTypeLabel_K_Fatality -> K - Fatality crashes | D9: $ per crash | E9: 9200000 | G9: =IF(IsChecked_CrashCategories_KABCO,IF(ISBLANK(F9),E9,F9),"") ->  | I9: National Highway Traffic Safety Administration, July 2011.
C10: =CrashTypeLabel_A_SevereInjury -> A - Severe injury crashes | D10: $ per crash | E10: 440125 | G10: =IF(IsChecked_CrashCategories_KABCO,IF(ISBLANK(F10),E10,F10),"") -> 
C11: =CrashTypeLabel_B_ModerateInjury -> B - Moderate injury crashes | D11: $ per crash | E11: 120167 | G11: =IF(IsChecked_CrashCategories_KABCO,IF(ISBLANK(F11),E11,F11),"") -> 
C12: =CrashTypeLabel_C_MinorInjury -> C - Minor injury crashes | D12: $ per crash | E12: 62114 | G12: =IF(IsChecked_CrashCategories_KABCO,IF(ISBLANK(F12),E12,F12),"") -> 
C13: =CrashTypeLabel_O_NoInjury -> O - No injury crashes | D13: $ per crash | E13: 6734 | G13: =IF(IsChecked_CrashCategories_KABCO,IF(ISBLANK(F13),E13,F13),"") -> 
B14: FALSE | C14: =CrashTypeLabel_Fatality -> Fatality crashes | D14: $ per crash | E14: 9200000 | G14: =IF(IsChecked_CrashCategories_FatalityInjuryPDO,IF(ISBLANK(F14),E14,F14),"") -> 9200000
C15: =CrashTypeLabel_Injury -> Injury crashes | D15: $ per crash | E15: 167264 | G15: =IF(IsChecked_CrashCategories_FatalityInjuryPDO,IF(ISBLANK(F15),E15,F15),"") -> 167264
C16: =CrashTypeLabel_PDO -> Property damage only crashes | D16: $ per crash | E16: 6734 | G16: =IF(IsChecked_CrashCategories_FatalityInjuryPDO,IF(ISBLANK(F16),E16,F16),"") -> 6734
B17: FALSE | C17: =CrashTypeLabel_TotalCrashes -> Total crashes | D17: $ per crash | E17: N/A | G17: =IF(IsChecked_CrashCategories_TotalCrashes,IF(ISBLANK(F17),"",F17),"") -> 
B18: FALSE | C18: =Prompt_CrashType_UserDefined -> (Enter user defined categories) | D18: =IF(ISBLANK(C18),"",$D$9) -> $ per crash | E18: =IF(ISBLANK(C18),"","N/A") -> N/A | G18: =IF(IsChecked_CrashCategories_UserDefined,IF(ISBLANK(F18),"",F18),"") -> 
D19: =IF(ISBLANK(C19),"",$D$9) ->  | E19: =IF(ISBLANK(C19),"","N/A") ->  | G19: =IF(IsChecked_CrashCategories_UserDefined,IF(ISBLANK(F19),"",F19),"") -> 
D20: =IF(ISBLANK(C20),"",$D$9) ->  | E20: =IF(ISBLANK(C20),"","N/A") ->  | G20: =IF(IsChecked_CrashCategories_UserDefined,IF(ISBLANK(F20),"",F20),"") -> 
D21: =IF(ISBLANK(C21),"",$D$9) ->  | E21: =IF(ISBLANK(C21),"","N/A") ->  | G21: =IF(IsChecked_CrashCategories_UserDefined,IF(ISBLANK(F21),"",F21),"") -> 
D22: =IF(ISBLANK(C22),"",$D$9) ->  | E22: =IF(ISBLANK(C22),"","N/A") ->  | G22: =IF(IsChecked_CrashCategories_UserDefined,IF(ISBLANK(F22),"",F22),"") -> 
A23: Greenhouse gases | C23: CO2 equivalent | D23: $ per metric ton | E23: Values vary annually, see table in GHG.Costs | G23: See table in GHG.Costs sheet | I23: Technical Support Document: Technical Update of the Social Cost of Carbon for Regulatory Impact Analysis Under Executive Order 12866 (May 2013; revised November 2013)
B24: TRUE | C24: CO2 equivalent | D24: $ per metric ton | E24: N/A | G24: See table in GHG.Costs sheet | J24: =IF(AND(IsChecked_GHG_Values_UserDefined,MAX(GHG.Costs!G19:G155)<=0),"Warning: You have selected User defined but there are no corresponding cost entries in the GHG.Costs sheet","") -> 
A25: Criteria pollutants | B25: FALSE | C25: =CriteriaPollutantType_CO -> CO | D25: $ per metric ton | E25: 39600 | G25: =IF(IsChecked_CriteriaPollutantCategories_ByType,IF(ISBLANK(F25),E25,F25),"") -> 39600 | I25: Corporate Average Fuel Economy for MY2017- MY2025 Passenger Cars and Light Trucks (August 2012), page 922, Table VIII-16, "Economic Values Used for Benefits Computations (2010 dollars)"
C26: =CriteriaPollutantType_NOx -> NOx | D26: $ per metric ton | E26: 7887 | G26: 7887
C27: =CriteriaPollutantType_HC -> HC | D27: $ per metric ton | E27: 1700 | G27: 1700
C28: =CriteriaPollutantType_PM2_5 -> PM 2.5 | D28: $ per metric ton | E28: 306500 | G28: 306500
B29: FALSE | C29: (Enter user defined categories) | D29: $ per metric ton | E29: =IF(ISBLANK(C29),"","N/A") -> N/A | G29: =IF(AND(IsChecked_CriteriaPollutantCategories_UserDefined,NOT(ISBLANK(F29))),F29,"") -> 
D30: =IF(C30="","","$ / metric ton") ->  | G30: =IF(AND(IsChecked_CriteriaPollutantCategories_UserDefined,NOT(ISBLANK(F30))),F30,"") -> 
D31: =IF(C31="","","$ / metric ton") -> 
D32: =IF(C32="","","$ / metric ton") -> 

Sheet DemandParameters
A1: Demand Volume Profile | B1: This sheet creates demand profiles for specified years based on the major facility type and total entering AADT. You may either use the default hourly and daily factors or provide your own. These profiles are applied to all alternatives to convert peak hour information to annual delay estimates.
A4: Peak Hours and Facility Profile
B6: Peak Weekday Time Period | C6: From | D6: To
A7: Enter peak period begin and end times: | B7: AM peak | C7: 07:00:00 | D7: 08:00:00 | E7: =IF(OR(ISERR(Time_AM_Peak_Begin),ISERR(Time_AM_Peak_End),NOT(ISNUMBER(HOUR(Time_AM_Peak_Begin))),NOT(ISNUMBER(HOUR(Time_AM_Peak_End)))),"Please enter peak begin and end times in a recognizable time format: e.g., 6:00 am",IF(OR(MINUTE(Time_AM_Peak_Begin)<>0,MINUTE(Time_AM_Peak_End)<>0),"Warning: The LCCET only recognizes peak times defined on hour boundaries. Any minute specifications are ignored.",IF(HOUR(Time_AM_Peak_Begin)>=HOUR(Time_AM_Peak_End),"Warning: AM peak end hour must be one or more hours after AM peak begin hour",IF(OR(HOUR(Time_AM_Peak_Begin)>=12,HOUR(Time_AM_Peak_End)>=12),"Warning: Begin or end time of AM peak is specified outside morning period","")))) ->  | Q7: Rural Interstate | R7: Average Annual Volume | S7: 00:00:00
B8: PM peak | C8: 17:00:00 | D8: 18:00:00 | E8: =IF(OR(ISERR(Time_PM_Peak_Begin),ISERR(Time_PM_Peak_End),NOT(ISNUMBER(HOUR(Time_PM_Peak_Begin))),NOT(ISNUMBER(HOUR(Time_PM_Peak_End)))),"Please enter peak begin and end times in a recognizable time format: e.g., 5:00 pm",IF(OR(MINUTE(Time_PM_Peak_Begin)<>0,MINUTE(Time_PM_Peak_End)<>0),"Warning: The LCCET only recognizes peak times defined on hour boundaries. Any minute specifications are ignored.",IF(HOUR(Time_PM_Peak_Begin)>=HOUR(Time_PM_Peak_End),"Warning: PM peak end hour must be one or more hours after PM peak begin hour",IF(OR(HOUR(Time_PM_Peak_Begin)<12,HOUR(Time_PM_Peak_End)<12),"Warning: Begin or end time of PM peak is specified outside afternoon/evening period","")))) ->  | Q8: Rural Principal Arterial | R8: Specific Day/Month | S8: 01:00:00
B9: Weekend peak | C9: 11:00:00 | D9: 12:00:00 | E9: =IF(OR(ISERR(Time_PM_Peak_Begin),ISERR(Time_PM_Peak_End),NOT(ISNUMBER(HOUR(Time_PM_Peak_Begin))),NOT(ISNUMBER(HOUR(Time_PM_Peak_End)))),"Please enter peak begin and end times in a recognizable time format: e.g., 5:00 pm",IF(OR(MINUTE(Time_PM_Peak_Begin)<>0,MINUTE(Time_PM_Peak_End)<>0),"Warning: The LCCET only recognizes peak times defined on hour boundaries. Any minute specifications are ignored.",IF(HOUR(Time_PM_Peak_Begin)>=HOUR(Time_PM_Peak_End),"Warning: PM peak end hour must be one or more hours after PM peak begin hour",IF(OR(HOUR(Time_PM_Peak_Begin)<12,HOUR(Time_PM_Peak_End)<12),"Warning: Begin or end time of PM peak is specified outside afternoon/evening period","")))) ->  | Q9: =E60 -> Rural Minor Arterial | S9: 02:00:00
Q10: =F60 -> Rural Major Collector | S10: 03:00:00
A11: Select Analysis Basis: | B11: 1 | F11: Weekday Count: | G11: 2014-05-14 | J11: Enter dates as "mm/dd/yyyy" | Q11: =G60 -> Rural Minor Collector | S11: 04:00:00
F12: Weekend Count: | G12: 2014-05-17 | J12: Enter dates as "mm/dd/yyyy" | Q12: =H60 -> Urban Interstate | S12: 05:00:00
A13: Select facility type: | B13: 9 | E13: At intersections of varying facilities select the roadway that will be more representative of the volume, or interpolate between values. | Q13: =I60 -> Urban Other Frwy & Expwy | S13: 06:00:00
Q14: =J60 -> Urban Principal Arterial | S14: 07:00:00
A15: Volume Adjustment Factor: | B15: Automated Adj. Factor | C15: Override Value | D15: Value Applied | Q15: =K60 -> Urban Minor Arterial | S15: 08:00:00
A16: Weekday Adjustment: | B16: =IF($B$11=1,1,IF($B$11=2,(1/INDEX(B47:G53,WEEKDAY(G11,2),6))*(1/INDEX(B61:N72,MONTH(G11),13)))) -> 1 | D16: =IF(C16="",B16,C16) -> 1 | E16: This adjustment factor is used to align the input delay values within the alternatives sheets with the specific volume factor. | S16: 09:00:00
A17: Weekend Adjustment: | B17: =IF(OR($B$11=1,G12=""),1,(1/(INDEX(B47:G53,WEEKDAY(G12,2),6))*(1/INDEX(B61:N72,MONTH(G12),13)))) -> 1 | D17: =IF(C17="",B17,C17) -> 1 | E17: This adjustment factor is used to align the input delay values within the alternatives sheets with the specific volume factor. | S17: 10:00:00
S18: 11:00:00
B19: Base Analysis Volumes | C19: Adjusted Average Annual Volume | D19: Override Value | E19: Year 1 Value Applied | S19: 12:00:00
A20: AM peak hour: | B20: 1553 | C20: =IF(B20<>"",B20*D16,"") -> 1553 | E20: =IF(D20="",C20,D20) -> 1553 | F20: Volume entries are used to calibrate the volume-delay curve for a given alternative, and AADT values are used to develop demand profiles for each hour of each year. A minimum of one hourly volume must be entered within this table. If data is not available for a time period(s) please leave blank. Offpeak data is only used for calibrating the delay equation, not for AADT estimates. | S20: 13:00:00
A21: PM peak hour: | B21: 2117 | C21: =IF(B21<>"",B21*D16,"") -> 2117 | E21: =IF(D21="",C21,D21) -> 2117 | S21: 14:00:00
A22: Weekend peak hour: | B22: 2164 | C22: =IF(B22<>"",B22*D17,"") -> 2164 | E22: =IF(D22="",C22,D22) -> 2164 | S22: 15:00:00
A23: =IF(B11=1,"Average Annual Daily Traffic (AADT):","Specific Weekday Daily Traffic:") -> Average Annual Daily Traffic (AADT): | B23: 38000 | C23: =IF(AND(B23<>0,B11=1),B23,IF(B23<>0,B23*B16,IF(AND(B20<>0,B21<>0)=TRUE,(B20+B21)/(MAX(O76:O87)+MAX(O88:O99)),IF(AND(B20=0,B21<>0)=TRUE,B21/MAX(O88:O99),IF(AND(B20<>0,B21=0)=TRUE,B20/MAX(O76:O87),IF(B23<>0,B23,"Enter Volumes")))))) -> 38000 | E23: =IF(D23<>"",D23,IF(C23<>"",C23,"")) -> 38000 | S23: 16:00:00
S24: 17:00:00
A25: Adjust hourly volume profile to input peak hour volumes (Yes/No)? | B25: Yes | C25: If 'Yes' is selected the default hourly volume profiles will be adjusted to match the input peak hour volumes. Review plots of demand profiles to the right of Column "R" to assess the appropriateness of the profiles. | M25: Yes | S25: 18:00:00
M26: No | S26: 19:00:00
A27: Quantity (sum over all cordon approaches) | B27: Units | C27: Year | M27: Demand data must be entered for the opening year and end year for each alternative. Demand data must also be entered for any interim years specified for an alternative. | S27: 20:00:00
C28: Year 1 | D28: Year 2 | E28: Year 3 | F28: Year 4 | G28: Year 5 | H28: Year 6 | I28: Year 7 | J28: Year 8 | K28: Year 9 | L28: Year 10 | S28: 21:00:00
C29: 2014 | D29: 2035 | S29: 22:00:00
A30: Average annual daily traffic (AADT) | B30: Avg veh/day | C30: =IF(E23<>"",E23,"") -> 38000 | D30: 67000 | S30: 23:00:00
A31: AM peak hour volume | B31: veh/hr | C31: =IF(B20<>"",B20,"") -> 1553 | D31: 2671 | M31: Enter hourly volumes used to carry out travel time/delay calculations for intersection(s)
A32: PM peak hour volume | B32: veh/hr | C32: =IF(B21<>"",B21,"") -> 2117 | D32: 3535
A33: Weekend peak hour volume: | B33: veh/hr | C33: =IF(B22<>"",B22,"") -> 2164 | D33: 3484
A34: Average annual auto occupancy | B34: Passengers per vehicle | C34: 1.3 | D34: 2.6 | M34: Enter annual averages
A35: Average annual % trucks | B35: Average % | C35: 0.02 | D35: 0.04
A36: Annual transit passengers | B36: Transit passengers per year | C36: 0 | D36: 0 | M36: Enter annual totals
A37: Annual cyclists | B37: Cyclists per year | C37: 0 | D37: 0
A38: Annual pedestrians | B38: Pedestrians per year | C38: 0 | D38: 0
A39: Click button when years are entered to set up calculations tables: | E39: This button should be pressed any time changes are made to the values above. This button creates a "typical" annual profile in rows 167 and below for various user types.
A43: Passenger Vehicle Demand Profile Parameters
B45: Note: All charts illustrating volume profiles are shown to right of Column "R"
A46: Review Daily Profile or Override Values: | B46: Day of Week | C46: Urban | D46: Rural | E46: Default Profile Value | F46: Override Value | G46: Applied Value | H46: Notes
A47: Chart shown at right | B47: Monday | C47: 0.98 | D47: 0.951 | E47: =IF($B$13>5,C47,IF($B$13>0,D47,"")) -> 0.98 | G47: =IF(F47="",E47,F47) -> 0.98
B48: Tuesday | C48: 0.98 | D48: 0.912 | E48: 0.98 | G48: 0.98
B49: Wednesday | C49: 1 | D49: 0.932 | E49: 1 | G49: 1
B50: Thursday | C50: 1.03 | D50: 0.981 | E50: 1.03 | G50: 1.03
B51: Friday | C51: 1.15 | D51: 1.162 | E51: 1.15 | G51: 1.15
B52: Saturday | C52: 0.99 | D52: 1.051 | E52: 0.99 | G52: 0.99
B53: Sunday | C53: 0.87 | D53: 1.011 | E53: 0.87 | G53: 0.87
A59: Review Monthly Profile or Override Values: | B59: Month | C59: Functional Class | L59: Default Profile Value | M59: Override Value | N59: Applied Value | O59: Notes
C60: Rural Interstate | D60: Rural Principal Arterial | E60: Rural Minor Arterial | F60: Rural Major Collector | G60: Rural Minor Collector | H60: Urban Interstate | I60: Urban Other Frwy & Expwy | J60: Urban Principal Arterial | K60: Urban Minor Arterial
A61: Chart shown at right | B61: January | C61: 0.747 | D61: 0.813 | E61: 0.834 | F61: 0.812 | G61: 0.812 | H61: 0.836 | I61: 0.802 | J61: 0.831 | K61: 0.881 | L61: =IF($B$13=1,C61,IF($B$13=2,D61,IF($B$13=3,E61,IF($B$13=4,F61,IF($B$13=5,G61,IF($B$13=6,H61,IF($B$13=7,I61,IF($B$13=8,J61,IF($B$13=9,K61))))))))) -> 0.881 | N61: =IF(M61="",L61,M61) -> 0.881
B62: February | C62: 0.828 | D62: 0.855 | E62: 0.935 | F62: 0.935 | G62: 0.935 | H62: 0.863 | I62: 0.874 | J62: 1.021 | K62: 0.944 | L62: 0.944 | N62: 0.944
B63: March | C63: 0.926 | D63: 0.891 | E63: 0.973 | F63: 0.977 | G63: 0.977 | H63: 0.936 | I63: 0.936 | J63: 1.03 | K63: 1.016 | L63: 1.016 | N63: 1.016
B64: April | C64: 0.994 | D64: 0.958 | E64: 1.004 | F64: 1.044 | G64: 1.044 | H64: 0.992 | I64: 0.958 | J64: 0.987 | K64: 0.844 | L64: 0.844 | N64: 0.844
B65: May | C65: 1.087 | D65: 1.091 | E65: 1.091 | F65: 1.009 | G65: 1.009 | H65: 0.99 | I65: 1.026 | J65: 1.012 | K65: 1.025 | L65: 1.025 | N65: 1.025
B66: June | C66: 1.105 | D66: 1.087 | E66: 1.106 | F66: 1.041 | G66: 1.041 | H66: 1.039 | I66: 1.068 | J66: 1.05 | K66: 1.06 | L66: 1.06 | N66: 1.06
B67: July | C67: 1.243 | D67: 1.125 | E67: 1.016 | F67: 0.982 | G67: 0.982 | H67: 1.152 | I67: 1.107 | J67: 0.991 | K67: 1.15 | L67: 1.15 | N67: 1.15
B68: August | C68: 1.137 | D68: 1.13 | E68: 1.015 | F68: 1.056 | G68: 1.056 | H68: 1.05 | I68: 1.142 | J68: 1.054 | K68: 1.11 | L68: 1.11 | N68: 1.11
B69: September | C69: 1.087 | D69: 1.038 | E69: 1.062 | F69: 1.054 | G69: 1.054 | H69: 1.081 | I69: 1.088 | J69: 1.091 | K69: 1.081 | L69: 1.081 | N69: 1.081
B70: October | C70: 0.996 | D70: 1.041 | E70: 1.08 | F70: 1.028 | G70: 1.028 | H70: 1.012 | I70: 1.069 | J70: 0.952 | K70: 1.036 | L70: 1.036 | N70: 1.036
B71: November | C71: 0.974 | D71: 0.965 | E71: 0.983 | F71: 1.007 | G71: 1.007 | H71: 1.012 | I71: 0.962 | J71: 0.992 | K71: 0.989 | L71: 0.989 | N71: 0.989
B72: December | C72: 0.872 | D72: 0.91 | E72: 0.966 | F72: 0.998 | G72: 0.998 | H72: 0.995 | I72: 0.933 | J72: 0.938 | K72: 0.903 | L72: 0.903 | N72: 0.903
A74: Review Weekday Hourly Demand Profile or Override Values: | B74: Category | C74: Hour Starting | D74: Functional Class | M74: Calibrated Profile Value | N74: Override Value | O74: Applied Value | P74: Notes
A75: Chart shown at right | D75: Rural Interstate | E75: Rural Principal Arterial | F75: Rural Minor Arterial | G75: Rural Major Collector | H75: Rural Minor Collector | I75: Urban Interstate | J75: Urban Other Frwy & Expwy | K75: Urban Principal Arterial | L75: Urban Minor Arterial | R75: =IF($B$13=1,D75,IF($B$13=2,E75,IF($B$13=3,F75,IF($B$13=4,G75,IF($B$13=5,H75,IF($B$13=6,I75,IF($B$13=7,J75,IF($B$13=8,K75,IF($B$13=9,L75))))))))) -> Urban Minor Arterial
B76: Weekday | C76: 00:00:00 | D76: 0.011 | E76: 0.009 | F76: 0.012 | G76: 0.012 | H76: 0.008 | I76: 0.011 | J76: 0.01 | K76: 0.01 | L76: 0.01 | M76: =IF($B$13=1,D76,IF($B$13=2,E76,IF($B$13=3,F76,IF($B$13=4,G76,IF($B$13=5,H76,IF($B$13=6,I76,IF($B$13=7,J76,IF($B$13=8,K76,IF($B$13=9,L76))))))))) -> 0.01 | O76: =IF(N76="",M76,N76) -> 0.01 | R76: =IF($B$13=1,D76,IF($B$13=2,E76,IF($B$13=3,F76,IF($B$13=4,G76,IF($B$13=5,H76,IF($B$13=6,I76,IF($B$13=7,J76,IF($B$13=8,K76,IF($B$13=9,L76))))))))) -> 0.01
C77: 01:00:00 | D77: 0.008 | E77: 0.005 | F77: 0.006 | G77: 0.005 | H77: 0.004 | I77: 0.006 | J77: 0.006 | K77: 0.006 | L77: 0.006 | M77: 0.006 | O77: =IF(N77="",M77,N77) -> 0.006 | R77: 0.006
C78: 02:00:00 | D78: 0.006 | E78: 0.003 | F78: 0.003 | G78: 0.004 | H78: 0.001 | I78: 0.005 | J78: 0.004 | K78: 0.005 | L78: 0.004 | M78: 0.004 | O78: 0.004 | R78: 0.004
C79: 03:00:00 | D79: 0.006 | E79: 0.003 | F79: 0.003 | G79: 0.003 | H79: 0.001 | I79: 0.004 | J79: 0.004 | K79: 0.005 | L79: 0.002 | M79: 0.002 | O79: 0.002 | R79: 0.002
C80: 04:00:00 | D80: 0.008 | E80: 0.006 | F80: 0.005 | G80: 0.004 | H80: 0.001 | I80: 0.007 | J80: 0.007 | K80: 0.009 | L80: 0.002 | M80: 0.002 | O80: 0.002 | R80: 0.002
C81: 05:00:00 | D81: 0.015 | E81: 0.019 | F81: 0.018 | G81: 0.01 | H81: 0.006 | I81: 0.022 | J81: 0.025 | K81: 0.03 | L81: 0.007 | M81: 0.007 | O81: 0.007 | R81: 0.007
C82: 06:00:00 | D82: 0.034 | E82: 0.048 | F82: 0.045 | G82: 0.028 | H82: 0.02 | I82: 0.051 | J82: 0.058 | K82: 0.054 | L82: 0.023 | M82: 0.023 | O82: 0.023 | R82: 0.023
C83: 07:00:00 | D83: 0.056 | E83: 0.072 | F83: 0.072 | G83: 0.063 | H83: 0.034 | I83: 0.069 | J83: 0.077 | K83: 0.071 | L83: 0.067 | M83: 0.04086842105 | O83: 0.04086842105 | R83: 0.067
C84: 08:00:00 | D84: 0.054 | E84: 0.059 | F84: 0.06 | G84: 0.06 | H84: 0.035 | I84: 0.055 | J84: 0.053 | K84: 0.058 | L84: 0.066 | M84: 0.066 | O84: 0.066 | R84: 0.066
C85: 09:00:00 | D85: 0.053 | E85: 0.05 | F85: 0.044 | G85: 0.049 | H85: 0.037 | I85: 0.046 | J85: 0.037 | K85: 0.047 | L85: 0.054 | M85: 0.054 | O85: 0.054 | R85: 0.054
C86: 10:00:00 | D86: 0.056 | E86: 0.051 | F86: 0.044 | G86: 0.048 | H86: 0.047 | I86: 0.046 | J86: 0.037 | K86: 0.046 | L86: 0.051 | M86: 0.051 | O86: 0.051 | R86: 0.051
C87: 11:00:00 | D87: 0.058 | E87: 0.053 | F87: 0.046 | G87: 0.05 | H87: 0.056 | I87: 0.049 | J87: 0.042 | K87: 0.05 | L87: 0.056 | M87: 0.056 | O87: 0.056 | R87: 0.056
C88: 12:00:00 | D88: 0.06 | E88: 0.054 | F88: 0.049 | G88: 0.052 | H88: 0.055 | I88: 0.052 | J88: 0.045 | K88: 0.053 | L88: 0.071 | M88: 0.071 | O88: 0.071 | R88: 0.071
C89: 13:00:00 | D89: 0.062 | E89: 0.057 | F89: 0.05 | G89: 0.055 | H89: 0.056 | I89: 0.053 | J89: 0.045 | K89: 0.054 | L89: 0.066 | M89: 0.066 | O89: 0.066 | R89: 0.066
C90: 14:00:00 | D90: 0.067 | E90: 0.064 | F90: 0.056 | G90: 0.062 | H90: 0.061 | I90: 0.06 | J90: 0.057 | K90: 0.063 | L90: 0.06 | M90: 0.06 | O90: 0.06 | R90: 0.06
C91: 15:00:00 | D91: 0.074 | E91: 0.075 | F91: 0.08 | G91: 0.071 | H91: 0.071 | I91: 0.07 | J91: 0.073 | K91: 0.069 | L91: 0.062 | M91: 0.062 | O91: 0.062 | R91: 0.062
C92: 16:00:00 | D92: 0.08 | E92: 0.083 | F92: 0.088 | G92: 0.083 | H92: 0.08 | I92: 0.077 | J92: 0.087 | K92: 0.072 | L92: 0.063 | M92: 0.063 | O92: 0.063 | R92: 0.063
C93: 17:00:00 | D93: 0.077 | E93: 0.083 | F93: 0.089 | G93: 0.093 | H93: 0.107 | I93: 0.081 | J93: 0.09 | K93: 0.077 | L93: 0.075 | M93: 0.05571052632 | O93: 0.05571052632 | R93: 0.075
C94: 18:00:00 | D94: 0.06 | E94: 0.062 | F94: 0.059 | G94: 0.072 | H94: 0.085 | I94: 0.065 | J94: 0.068 | K94: 0.062 | L94: 0.07 | M94: 0.07 | O94: 0.07 | R94: 0.07
C95: 19:00:00 | D95: 0.045 | E95: 0.043 | F95: 0.048 | G95: 0.049 | H95: 0.066 | I95: 0.049 | J95: 0.049 | K95: 0.044 | L95: 0.053 | M95: 0.053 | O95: 0.053 | R95: 0.053
C96: 20:00:00 | D96: 0.036 | E96: 0.034 | F96: 0.036 | G96: 0.04 | H96: 0.06 | I96: 0.039 | J96: 0.04 | K96: 0.035 | L96: 0.044 | M96: 0.044 | O96: 0.044 | R96: 0.044
C97: 21:00:00 | D97: 0.031 | E97: 0.03 | F97: 0.031 | G97: 0.039 | H97: 0.049 | I97: 0.036 | J97: 0.037 | K97: 0.033 | L97: 0.035 | M97: 0.035 | O97: 0.035 | R97: 0.035
C98: 22:00:00 | D98: 0.024 | E98: 0.023 | F98: 0.026 | G98: 0.028 | H98: 0.038 | I98: 0.028 | J98: 0.029 | K98: 0.026 | L98: 0.033 | M98: 0.033 | O98: 0.033 | R98: 0.033
C99: 23:00:00 | D99: 0.018 | E99: 0.016 | F99: 0.02 | G99: 0.019 | H99: 0.02 | I99: 0.02 | J99: 0.019 | K99: 0.021 | L99: 0.019 | M99: 0.019 | O99: 0.019 | R99: 0.019
C100: Total | M100: =SUM(M76:M99) -> 0.9535789474 | N100: =SUM(N76:N99) -> 0 | O100: =SUM(O76:O99) -> 0.9535789474
A101: Review Weekend Hourly Demand Profile or Override Values: | B101: Weekend | C101: 00:00:00 | D101: 0.016 | E101: 0.016 | F101: 0.024 | G101: 0.022 | H101: 0.016 | I101: 0.021 | J101: 0.023 | K101: 0.023 | L101: 0.028 | M101: =IF($B$13=1,D101,IF($B$13=2,E101,IF($B$13=3,F101,IF($B$13=4,G101,IF($B$13=5,H101,IF($B$13=6,I101,IF($B$13=7,J101,IF($B$13=8,K101,IF($B$13=9,L101))))))))) -> 0.028 | O101: =IF(N101="",M101,N101) -> 0.028 | R101: 0.028
A102: Chart shown at right | C102: 01:00:00 | D102: 0.011 | E102: 0.01 | F102: 0.013 | G102: 0.012 | H102: 0.009 | I102: 0.014 | J102: 0.015 | K102: 0.014 | L102: 0.023 | M102: 0.023 | O102: 0.023 | R102: 0.023
C103: 02:00:00 | D103: 0.009 | E103: 0.006 | F103: 0.007 | G103: 0.007 | H103: 0.004 | I103: 0.01 | J103: 0.008 | K103: 0.01 | L103: 0.021 | M103: 0.021 | O103: 0.021 | R103: 0.021
C104: 03:00:00 | D104: 0.007 | E104: 0.005 | F104: 0.005 | G104: 0.005 | H104: 0.002 | I104: 0.006 | J104: 0.005 | K104: 0.006 | L104: 0.008 | M104: 0.008 | O104: 0.008 | R104: 0.008
C105: 04:00:00 | D105: 0.007 | E105: 0.005 | F105: 0.005 | G105: 0.004 | H105: 0.002 | I105: 0.006 | J105: 0.005 | K105: 0.006 | L105: 0.005 | M105: 0.005 | O105: 0.005 | R105: 0.005
C106: 05:00:00 | D106: 0.01 | E106: 0.009 | F106: 0.008 | G106: 0.006 | H106: 0.002 | I106: 0.01 | J106: 0.009 | K106: 0.01 | L106: 0.005 | M106: 0.005 | O106: 0.005 | R106: 0.005
C107: 06:00:00 | D107: 0.017 | E107: 0.016 | F107: 0.016 | G107: 0.01 | H107: 0.007 | I107: 0.017 | J107: 0.016 | K107: 0.017 | L107: 0.011 | M107: 0.011 | O107: 0.011 | R107: 0.011
C108: 07:00:00 | D108: 0.027 | E108: 0.025 | F108: 0.025 | G108: 0.018 | H108: 0.014 | I108: 0.025 | J108: 0.023 | K108: 0.024 | L108: 0.018 | M108: 0.018 | O108: 0.018 | R108: 0.018
C109: 08:00:00 | D109: 0.039 | E109: 0.036 | F109: 0.033 | G109: 0.028 | H109: 0.025 | I109: 0.035 | J109: 0.036 | K109: 0.035 | L109: 0.03 | M109: 0.03 | O109: 0.03 | R109: 0.03
C110: 09:00:00 | D110: 0.052 | E110: 0.05 | F110: 0.045 | G110: 0.039 | H110: 0.046 | I110: 0.047 | J110: 0.045 | K110: 0.046 | L110: 0.048 | M110: 0.048 | O110: 0.048 | R110: 0.048
C111: 10:00:00 | D111: 0.063 | E111: 0.062 | F111: 0.055 | G111: 0.049 | H111: 0.058 | I111: 0.057 | J111: 0.057 | K111: 0.056 | L111: 0.054 | M111: 0.054 | O111: 0.054 | R111: 0.054
C112: 11:00:00 | D112: 0.07 | E112: 0.07 | F112: 0.063 | G112: 0.06 | H112: 0.063 | I112: 0.065 | J112: 0.066 | K112: 0.054 | L112: 0.057 | M112: 0.057 | O112: 0.057 | R112: 0.057
C113: 12:00:00 | D113: 0.072 | E113: 0.075 | F113: 0.072 | G113: 0.068 | H113: 0.086 | I113: 0.072 | J113: 0.076 | K113: 0.071 | L113: 0.074 | M113: 0.074 | O113: 0.074 | R113: 0.074
C114: 13:00:00 | D114: 0.072 | E114: 0.075 | F114: 0.073 | G114: 0.071 | H114: 0.081 | I114: 0.072 | J114: 0.073 | K114: 0.071 | L114: 0.071 | M114: 0.071 | O114: 0.071 | R114: 0.071
C115: 14:00:00 | D115: 0.073 | E115: 0.075 | F115: 0.072 | G115: 0.073 | H115: 0.077 | I115: 0.071 | J115: 0.074 | K115: 0.072 | L115: 0.069 | M115: 0.069 | O115: 0.069 | R115: 0.069
C116: 15:00:00 | D116: 0.075 | E116: 0.077 | F116: 0.082 | G116: 0.074 | H116: 0.077 | I116: 0.073 | J116: 0.075 | K116: 0.073 | L116: 0.067 | M116: 0.05694736842 | O116: 0.05694736842 | R116: 0.067
C117: 16:00:00 | D117: 0.075 | E117: 0.078 | F117: 0.075 | G117: 0.079 | H117: 0.086 | I117: 0.073 | J117: 0.075 | K117: 0.073 | L117: 0.071 | M117: 0.071 | O117: 0.071 | R117: 0.071
C118: 17:00:00 | D118: 0.071 | E118: 0.075 | F118: 0.074 | G118: 0.08 | H118: 0.086 | I118: 0.072 | J118: 0.071 | K118: 0.073 | L118: 0.068 | M118: 0.068 | O118: 0.068 | R118: 0.068
C119: 18:00:00 | D119: 0.061 | E119: 0.065 | F119: 0.067 | G119: 0.075 | H119: 0.067 | I119: 0.064 | J119: 0.063 | K119: 0.063 | L119: 0.067 | M119: 0.067 | O119: 0.067 | R119: 0.067
C120: 19:00:00 | D120: 0.051 | E120: 0.051 | F120: 0.054 | G120: 0.063 | H120: 0.056 | I120: 0.052 | J120: 0.051 | K120: 0.052 | L120: 0.056 | M120: 0.056 | O120: 0.056 | R120: 0.056
C121: 20:00:00 | D121: 0.041 | E121: 0.041 | F121: 0.043 | G121: 0.052 | H121: 0.051 | I121: 0.043 | J121: 0.043 | K121: 0.044 | L121: 0.049 | M121: 0.049 | O121: 0.049 | R121: 0.049
C122: 21:00:00 | D122: 0.033 | E122: 0.033 | F122: 0.035 | G122: 0.045 | H122: 0.039 | I122: 0.038 | J122: 0.037 | K122: 0.038 | L122: 0.04 | M122: 0.04 | O122: 0.04 | R122: 0.04
C123: 22:00:00 | D123: 0.026 | E123: 0.026 | F123: 0.029 | G123: 0.034 | H123: 0.032 | I123: 0.032 | J123: 0.032 | K123: 0.033 | L123: 0.035 | M123: 0.035 | O123: 0.035 | R123: 0.035
C124: 23:00:00 | D124: 0.019 | E124: 0.019 | F124: 0.024 | G124: 0.025 | H124: 0.019 | I124: 0.025 | J124: 0.023 | K124: 0.026 | L124: 0.024 | M124: 0.024 | O124: 0.024 | R124: 0.024
C125: Total | M125: =SUM(M101:M124) -> 0.9889473684 | N125: =SUM(N101:N124) -> 0 | O125: =SUM(O101:O124) -> 0.9889473684
A126: Annual Transit Demand Profile
B128: Average Daily Transit Profile | F128: These inputs are used to convert annual transit ridership to daily values.
B129: Daily Transit Ratio | C129: Weekday | D129: Saturday | E129: Sunday
C130: 0.82 | D130: 0.14 | E130: 0.04 | F130: =IF(SUM(TransitSplit_DayType)<>1,"Error, values do not add to 100%","") -> 
B131: Hour Starting | C131: Average Hourly Transit Profile
C132: Weekday | D132: Saturday | E132: Sunday
B133: 00:00:00 | C133: 0.0025 | D133: 0 | E133: 0
B134: 01:00:00 | C134: 0.0005 | D134: 0 | E134: 0
B135: 02:00:00 | C135: 0.0002 | D135: 0 | E135: 0
B136: 03:00:00 | C136: 0.0002 | D136: 0 | E136: 0
B137: 04:00:00 | C137: 0.0005 | D137: 0 | E137: 0
B138: 05:00:00 | C138: 0.009 | D138: 0.007181328546 | E138: 0.007181328546
B139: 06:00:00 | C139: 0.0435 | D139: 0.007181328546 | E139: 0.007181328546
B140: 07:00:00 | C140: 0.1237 | D140: 0.02692998205 | E140: 0.02692998205
B141: 08:00:00 | C141: 0.0874 | D141: 0.03231597846 | E141: 0.03231597846
B142: 09:00:00 | C142: 0.052 | D142: 0.05206463196 | E142: 0.05206463196
B143: 10:00:00 | C143: 0.0448 | D143: 0.02872531418 | E143: 0.02872531418
B144: 11:00:00 | C144: 0.0442 | D144: 0.06463195691 | E144: 0.06463195691
B145: 12:00:00 | C145: 0.0497 | D145: 0.07181328546 | E145: 0.07181328546
B146: 13:00:00 | C146: 0.0464 | D146: 0.078994614 | E146: 0.078994614
B147: 14:00:00 | C147: 0.0628 | D147: 0.08976660682 | E147: 0.08976660682
B148: 15:00:00 | C148: 0.1323 | D148: 0.1005385996 | E148: 0.1005385996
B149: 16:00:00 | C149: 0.0914 | D149: 0.08976660682 | E149: 0.08976660682
B150: 17:00:00 | C150: 0.0741 | D150: 0.08617594255 | E150: 0.08617594255
B151: 18:00:00 | C151: 0.0474 | D151: 0.07360861759 | E151: 0.07360861759
B152: 19:00:00 | C152: 0.0284 | D152: 0.05206463196 | E152: 0.05206463196
B153: 20:00:00 | C153: 0.0218 | D153: 0.04488330341 | E153: 0.04488330341
B154: 21:00:00 | C154: 0.0193 | D154: 0.02872531418 | E154: 0.02872531418
B155: 22:00:00 | C155: 0.012 | D155: 0.04667863555 | E155: 0.04667863555
B156: 23:00:00 | C156: 0.0059 | D156: 0.01795332136 | E156: 0.01795332136
B157: Total | C157: =SUM(C133:C156) -> 1 | D157: =SUM(D133:D156) -> 1 | E157: =SUM(E133:E156) -> 1
A158: Calculations Section
B159: N hours/yr in time period
B160: N_AMpeak_Hours | C160: =SUM(D167:D8926) -> 261
B161: N_PMpeak_Hours | C161: =SUM(E167:E8926) -> 261
B162: N_Offpeak_Hours | C162: =SUM(F167:F8926) -> 8238
A165: Typical Annual Profile | B165: Weekday/ Holiday Code | C165: Time period (AM pk, PM pk, offpk) | D165: AM Peak | E165: PM Peak | F165: Off Peak | G165: =C29 -> 2014 | K165: =D29 -> 2035
G166: Total Entering Vehicles | H166: Auto Passengers | I166: Trucks | J166: Transit Passengers | K166: Total Entering Vehicles | L166: Auto Passengers | M166: Trucks | N166: Transit Passengers
A167: 2014-01-01 | B167: =IF(ISNUMBER(VLOOKUP(INT($A167),HolidayTable,2,FALSE)),VLOOKUP(INT($A167),HolidayTable,2,FALSE),WEEKDAY($A167,2)) -> 3 | C167: =IF($B167<=5,IF(AND(HOUR($A167)>=HOUR(Time_AM_Peak_Begin),HOUR($A167)<HOUR(Time_AM_Peak_End)),Code_AM_Peak,IF(AND(HOUR($A167)>=HOUR(Time_PM_Peak_Begin),HOUR($A167)<HOUR(Time_PM_Peak_End)),Code_PM_Peak,Code_Offpeak)),Code_Offpeak) -> 3 | D167: =IF(C167=Code_AM_Peak,1,0) -> 0 | E167: =IF(C167=Code_PM_Peak,1,0) -> 0 | F167: =IF(C167=Code_Offpeak,1,0) -> 1 | G167: =$C$30*INDEX($G$47:$G$53,$B167,1)*INDEX($N$61:$N$72,MONTH($A167),1)*IF($B167<=5,INDEX($O$76:$O$99,HOUR($A167)+1,1),INDEX($O$101:$O$124,HOUR($A167)+1,1)) -> 334.78 | H167: =G167*(1-$C$35)*$C$34 -> 426.50972 | I167: =G167*$C$35 -> 6.6956 | J167: =($C$36*7)/(5+($D$130/$C$130)+($E$130/$C$130))*IF($B$167<=5,INDEX($C$133:$E$156,HOUR($A167)+1,1),IF($B$167=6,INDEX($C$133:$E$156,HOUR($A167)+1,2),INDEX($C$133:$E$156,HOUR($A167)+1,3))) -> 0 | K167: =$D$30*INDEX($G$47:$G$53,$B167,1)*INDEX($N$61:$N$72,MONTH($A167),1)*IF($B167<=5,INDEX($O$76:$O$99,HOUR($A167)+1,1),INDEX($O$101:$O$124,HOUR($A167)+1,1)) -> 590.27 | L167: =K167*(1-$D$35)*$D$34 -> 1473.31392 | M167: =K167*$D$35 -> 23.6108 | N167: =($D$36*7)/(5+($D$130/$C$130)+($E$130/$C$130))*IF($B$167<=5,INDEX($C$133:$E$156,HOUR($A167)+1,1),IF($B$167=6,INDEX($C$133:$E$156,HOUR($A167)+1,2),INDEX($C$133:$E$156,HOUR($A167)+1,3))) -> 0
A168: 2014-01-01T01:00:00 | B168: 3 | C168: 3 | D168: 0 | E168: 0 | F168: 1 | G168: =$C$30*INDEX($G$47:$G$53,$B168,1)*INDEX($N$61:$N$72,MONTH($A168),1)*IF($B168<=5,INDEX($O$76:$O$99,HOUR($A168)+1,1),INDEX($O$101:$O$124,HOUR($A168)+1,1)) -> 200.868 | H168: =G168*(1-$C$35)*$C$34 -> 255.905832 | I168: =G168*$C$35 -> 4.01736 | J168: =($C$36*7)/(5+($D$130/$C$130)+($E$130/$C$130))*IF($B168<=5,INDEX($C$133:$E$156,HOUR($A168)+1,1),IF($B168=6,INDEX($C$133:$E$156,HOUR($A168)+1,2),INDEX($C$133:$E$156,HOUR($A168)+1,3))) -> 0 | K168: =$D$30*INDEX($G$47:$G$53,$B168,1)*INDEX($N$61:$N$72,MONTH($A168),1)*IF($B168<=5,INDEX($O$76:$O$99,HOUR($A168)+1,1),INDEX($O$101:$O$124,HOUR($A168)+1,1)) -> 354.162 | L168: =K168*(1-$D$35)*$D$34 -> 883.988352 | M168: =K168*$D$35 -> 14.16648 | N168: =($D$36*7)/(5+($D$130/$C$130)+($E$130/$C$130))*IF($B$167<=5,INDEX($C$133:$E$156,HOUR($A168)+1,1),IF($B$167=6,INDEX($C$133:$E$156,HOUR($A168)+1,2),INDEX($C$133:$E$156,HOUR($A168)+1,3))) -> 0
A169: 2014-01-01T02:00:00 | B169: 3 | C169: 3 | D169: 0 | E169: 0 | F169: 1 | G169: 133.912 | H169: 170.603888 | I169: 2.67824 | J169: =($C$36*7)/(5+($D$130/$C$130)+($E$130/$C$130))*IF($B$167<=5,INDEX($C$133:$E$156,HOUR($A169)+1,1),IF($B$167=6,INDEX($C$133:$E$156,HOUR($A169)+1,2),INDEX($C$133:$E$156,HOUR($A169)+1,3))) -> 0 | K169: 236.108 | L169: 589.325568 | M169: 9.44432 | N169: 0
A170: 2014-01-01T03:00:00 | B170: 3 | C170: 3 | D170: 0 | E170: 0 | F170: 1 | G170: 66.956 | H170: 85.301944 | I170: 1.33912 | J170: 0 | K170: 118.054 | L170: 294.662784 | M170: 4.72216 | N170: 0
A171: 2014-01-01T04:00:00 | B171: 3 | C171: 3 | D171: 0 | E171: 0 | F171: 1 | G171: 66.956 | H171: 85.301944 | I171: 1.33912 | J171: 0 | K171: 118.054 | L171: 294.662784 | M171: 4.72216 | N171: 0
A172: 2014-01-01T05:00:00 | B172: 3 | C172: 3 | D172: 0 | E172: 0 | F172: 1 | G172: 234.346 | H172: 298.556804 | I172: 4.68692 | J172: 0 | K172: 413.189 | L172: 1031.319744 | M172: 16.52756 | N172: 0
A173: 2014-01-01T06:00:00 | B173: 3 | C173: 3 | D173: 0 | E173: 0 | F173: 1 | G173: 769.994 | H173: 980.972356 | I173: 15.39988 | J173: 0 | K173: 1357.621 | L173: 3388.622016 | M173: 54.30484 | N173: 0
A174: 2014-01-01T07:00:00 | B174: 3 | C174: 1 | D174: 1 | E174: 0 | F174: 0 | G174: 1368.193 | H174: 1743.077882 | I174: 27.36386 | J174: 0 | K174: 2412.340289 | L174: 6021.201363 | M174: 96.49361158 | N174: 0
A175: 2014-01-01T08:00:00 | B175: 3 | C175: 3 | D175: 0 | E175: 0 | F175: 1 | G175: 2209.548 | H175: 2814.964152 | I175: 44.19096 | J175: 0 | K175: 3895.782 | L175: 9723.871872 | M175: 155.83128 | N175: 0
A176: 2014-01-01T09:00:00 | B176: 3 | C176: 3 | D176: 0 | E176: 0 | F176: 1 | G176: 1807.812 | H176: 2303.152488 | I176: 36.15624 | J176: 0 | K176: 3187.458 | L176: 7955.895168 | M176: 127.49832 | N176: 0
A177: 2014-01-01T10:00:00 | B177: 3 | C177: 3 | D177: 0 | E177: 0 | F177: 1 | G177: 1707.378 | H177: 2175.199572 | I177: 34.14756 | J177: 0 | K177: 3010.377 | L177: 7513.900992 | M177: 120.41508 | N177: 0
A178: 2014-01-01T11:00:00 | B178: 3 | C178: 3 | D178: 0 | E178: 0 | F178: 1 | G178: 1874.768 | H178: 2388.454432 | I178: 37.49536 | J178: 0 | K178: 3305.512 | L178: 8250.557952 | M178: 132.22048 | N178: 0
A179: 2014-01-01T12:00:00 | B179: 3 | C179: 3 | D179: 0 | E179: 0 | F179: 1 | G179: 2376.938 | H179: 3028.219012 | I179: 47.53876 | J179: 0 | K179: 4190.917 | L179: 10460.52883 | M179: 167.63668 | N179: 0
A180: 2014-01-01T13:00:00 | B180: 3 | C180: 3 | D180: 0 | E180: 0 | F180: 1 | G180: 2209.548 | H180: 2814.964152 | I180: 44.19096 | J180: 0 | K180: 3895.782 | L180: 9723.871872 | M180: 155.83128 | N180: 0
A181: 2014-01-01T14:00:00 | B181: 3 | C181: 3 | D181: 0 | E181: 0 | F181: 1 | G181: 2008.68 | H181: 2559.05832 | I181: 40.1736 | J181: 0 | K181: 3541.62 | L181: 8839.88352 | M181: 141.6648 | N181: 0
A182: 2014-01-01T15:00:00 | B182: 3 | C182: 3 | D182: 0 | E182: 0 | F182: 1 | G182: 2075.636 | H182: 2644.360264 | I182: 41.51272 | J182: 0 | K182: 3659.674 | L182: 9134.546304 | M182: 146.38696 | N182: 0
A183: 2014-01-01T16:00:00 | B183: 3 | C183: 3 | D183: 0 | E183: 0 | F183: 1 | G183: 2109.114 | H183: 2687.011236 | I183: 42.18228 | J183: 0 | K183: 3718.701 | L183: 9281.877696 | M183: 148.74804 | N183: 0
A184: 2014-01-01T17:00:00 | B184: 3 | C184: 2 | D184: 0 | E184: 1 | F184: 0 | G184: 1865.077 | H184: 2376.108098 | I184: 37.30154 | J184: 0 | K184: 3288.425237 | L184: 8207.909391 | M184: 131.5370095 | N184: 0
A185: 2014-01-01T18:00:00 | B185: 3 | C185: 3 | D185: 0 | E185: 0 | F185: 1 | G185: 2343.46 | H185: 2985.56804 | I185: 46.8692 | J185: 0 | K185: 4131.89 | L185: 10313.19744 | M185: 165.2756 | N185: 0
A186: 2014-01-01T19:00:00 | B186: 3 | C186: 3 | D186: 0 | E186: 0 | F186: 1 | G186: 1774.334 | H186: 2260.501516 | I186: 35.48668 | J186: 0 | K186: 3128.431 | L186: 7808.563776 | M186: 125.13724 | N186: 0
A187: 2014-01-01T20:00:00 | B187: 3 | C187: 3 | D187: 0 | E187: 0 | F187: 1 | G187: 1473.032 | H187: 1876.642768 | I187: 29.46064 | J187: 0 | K187: 2597.188 | L187: 6482.581248 | M187: 103.88752 | N187: 0
A188: 2014-01-01T21:00:00 | B188: 3 | C188: 3 | D188: 0 | E188: 0 | F188: 1 | G188: 1171.73 | H188: 1492.78402 | I188: 23.4346 | J188: 0 | K188: 2065.945 | L188: 5156.59872 | M188: 82.6378 | N188: 0
A189: 2014-01-01T22:00:00 | B189: 3 | C189: 3 | D189: 0 | E189: 0 | F189: 1 | G189: 1104.774 | H189: 1407.482076 | I189: 22.09548 | J189: 0 | K189: 1947.891 | L189: 4861.935936 | M189: 77.91564 | N189: 0
A190: 2014-01-01T23:00:00 | B190: 3 | C190: 3 | D190: 0 | E190: 0 | F190: 1 | G190: 636.082 | H190: 810.368468 | I190: 12.72164 | J190: 0 | K190: 1121.513 | L190: 2799.296448 | M190: 44.86052 | N190: 0
A191: 2014-01-02 | B191: 4 | C191: 3 | D191: 0 | E191: 0 | F191: 1 | G191: 344.8234 | H191: 439.3050116 | I191: 6.896468 | J191: 0 | K191: 607.9781 | L191: 1517.513338 | M191: 24.319124 | N191: 0
A192: 2014-01-02T01:00:00 | B192: 4 | C192: 3 | D192: 0 | E192: 0 | F192: 1 | G192: 206.89404 | H192: 263.583007 | I192: 4.1378808 | J192: 0 | K192: 364.78686 | L192: 910.5080026 | M192: 14.5914744 | N192: 0
A193: 2014-01-02T02:00:00 | B193: 4 | C193: 3 | D193: 0 | E193: 0 | F193: 1 | G193: 137.92936 | H193: 175.7220046 | I193: 2.7585872 | J193: 0 | K193: 243.19124 | L193: 607.005335 | M193: 9.7276496 | N193: 0
A194: 2014-01-02T03:00:00 | B194: 4 | C194: 3 | D194: 0 | E194: 0 | F194: 1 | G194: 68.96468 | H194: 87.86100232 | I194: 1.3792936 | J194: 0 | K194: 121.59562 | L194: 303.5026675 | M194: 4.8638248 | N194: 0
A195: 2014-01-02T04:00:00 | B195: 4 | C195: 3 | D195: 0 | E195: 0 | F195: 1 | G195: 68.96468 | H195: 87.86100232 | I195: 1.3792936 | J195: 0 | K195: 121.59562 | L195: 303.5026675 | M195: 4.8638248 | N195: 0
A196: 2014-01-02T05:00:00 | B196: 4 | C196: 3 | D196: 0 | E196: 0 | F196: 1 | G196: 241.37638 | H196: 307.5135081 | I196: 4.8275276 | J196: 0 | K196: 425.58467 | L196: 1062.259336 | M196: 17.0233868 | N196: 0
A197: 2014-01-02T06:00:00 | B197: 4 | C197: 3 | D197: 0 | E197: 0 | F197: 1 | G197: 793.09382 | H197: 1010.401527 | I197: 15.8618764 | J197: 0 | K197: 1398.34963 | L197: 3490.280676 | M197: 55.9339852 | N197: 0
A198: 2014-01-02T07:00:00 | B198: 4 | C198: 1 | D198: 1 | E198: 0 | F198: 0 | G198: 1409.23879 | H198: 1795.370218 | I198: 28.1847758 | J198: 0 | K198: 2484.710498 | L198: 6201.837403 | M198: 99.38841993 | N198: 0
A199: 2014-01-02T08:00:00 | B199: 4 | C199: 3 | D199: 0 | E199: 0 | F199: 1 | G199: 2275.83444 | H199: 2899.413077 | I199: 45.5166888 | J199: 0 | K199: 4012.65546 | L199: 10015.58803 | M199: 160.5062184 | N199: 0
A200: 2014-01-02T09:00:00 | B200: 4 | C200: 3 | D200: 0 | E200: 0 | F200: 1 | G200: 1862.04636 | H200: 2372.247063 | I200: 37.2409272 | J200: 0 | K200: 3283.08174 | L200: 8194.572023 | M200: 131.3232696 | N200: 0
A201: 2014-01-02T10:00:00 | B201: 4 | C201: 3 | D201: 0 | E201: 0 | F201: 1 | G201: 1758.59934 | H201: 2240.455559 | I201: 35.1719868 | J201: 0 | K201: 3100.68831 | L201: 7739.318022 | M201: 124.0275324 | N201: 0
A202: 2014-01-02T11:00:00 | B202: 4 | C202: 3 | D202: 0 | E202: 0 | F202: 1 | G202: 1931.01104 | H202: 2460.108065 | I202: 38.6202208 | J202: 0 | K202: 3404.67736 | L202: 8498.074691 | M202: 136.1870944 | N202: 0
A203: 2014-01-02T12:00:00 | B203: 4 | C203: 3 | D203: 0 | E203: 0 | F203: 1 | G203: 2448.24614 | H203: 3119.065582 | I203: 48.9649228 | J203: 0 | K203: 4316.64451 | L203: 10774.3447 | M203: 172.6657804 | N203: 0
A204: 2014-01-02T13:00:00 | B204: 4 | C204: 3 | D204: 0 | E204: 0 | F204: 1 | G204: 2275.83444 | H204: 2899.413077 | I204: 45.5166888 | J204: 0 | K204: 4012.65546 | L204: 10015.58803 | M204: 160.5062184 | N204: 0
A205: 2014-01-02T14:00:00 | B205: 4 | C205: 3 | D205: 0 | E205: 0 | F205: 1 | G205: 2068.9404 | H205: 2635.83007 | I205: 41.378808 | J205: 0 | K205: 3647.8686 | L205: 9105.080026 | M205: 145.914744 | N205: 0
A206: 2014-01-02T15:00:00 | B206: 4 | C206: 3 | D206: 0 | E206: 0 | F206: 1 | G206: 2137.90508 | H206: 2723.691072 | I206: 42.7581016 | J206: 0 | K206: 3769.46422 | L206: 9408.582693 | M206: 150.7785688 | N206: 0
A207: 2014-01-02T16:00:00 | B207: 4 | C207: 3 | D207: 0 | E207: 0 | F207: 1 | G207: 2172.38742 | H207: 2767.621573 | I207: 43.4477484 | J207: 0 | K207: 3830.26203 | L207: 9560.334027 | M207: 153.2104812 | N207: 0
A208: 2014-01-02T17:00:00 | B208: 4 | C208: 2 | D208: 0 | E208: 1 | F208: 0 | G208: 1921.02931 | H208: 2447.391341 | I208: 38.4205862 | J208: 0 | K208: 3387.077994 | L208: 8454.146673 | M208: 135.4831198 | N208: 0
A209: 2014-01-02T18:00:00 | B209: 4 | C209: 3 | D209: 0 | E209: 0 | F209: 1 | G209: 2413.7638 | H209: 3075.135081 | I209: 48.275276 | J209: 0 | K209: 4255.8467 | L209: 10622.59336 | M209: 170.233868 | N209: 0
A210: 2014-01-02T19:00:00 | B210: 4 | C210: 3 | D210: 0 | E210: 0 | F210: 1 | G210: 1827.56402 | H210: 2328.316561 | I210: 36.5512804 | J210: 0 | K210: 3222.28393 | L210: 8042.820689 | M210: 128.8913572 | N210: 0
A211: 2014-01-02T20:00:00 | B211: 4 | C211: 3 | D211: 0 | E211: 0 | F211: 1 | G211: 1517.22296 | H211: 1932.942051 | I211: 30.3444592 | J211: 0 | K211: 2675.10364 | L211: 6677.058685 | M211: 107.0041456 | N211: 0
A212: 2014-01-02T21:00:00 | B212: 4 | C212: 3 | D212: 0 | E212: 0 | F212: 1 | G212: 1206.8819 | H212: 1537.567541 | I212: 24.137638 | J212: 0 | K212: 2127.92335 | L212: 5311.296682 | M212: 85.116934 | N212: 0
A213: 2014-01-02T22:00:00 | B213: 4 | C213: 3 | D213: 0 | E213: 0 | F213: 1 | G213: 1137.91722 | H213: 1449.706538 | I213: 22.7583444 | J213: 0 | K213: 2006.32773 | L213: 5007.794014 | M213: 80.2531092 | N213: 0
A214: 2014-01-02T23:00:00 | B214: 4 | C214: 3 | D214: 0 | E214: 0 | F214: 1 | G214: 655.16446 | H214: 834.679522 | I214: 13.1032892 | J214: 0 | K214: 1155.15839 | L214: 2883.275341 | M214: 46.2063356 | N214: 0
A215: 2014-01-03 | B215: 5 | C215: 3 | D215: 0 | E215: 0 | F215: 1 | G215: 384.997 | H215: 490.486178 | I215: 7.69994 | J215: 0 | K215: 678.8105 | L215: 1694.311008 | M215: 27.15242 | N215: 0
A216: 2014-01-03T01:00:00 | B216: 5 | C216: 3 | D216: 0 | E216: 0 | F216: 1 | G216: 230.9982 | H216: 294.2917068 | I216: 4.619964 | J216: 0 | K216: 407.2863 | L216: 1016.586605 | M216: 16.291452 | N216: 0
... 4284 more rows

Sheet Alternatives_MasterList
A1: Alternatives Master List | C1: This sheet is used to manage the alternatives
A7: Alternatives
A8: Alternative # | B8: Short Name | C8: Description | D8: Notes
A9: Alternative 0 | B9: Existing Signalized Intersection | C9: Existing Lane Configuration
A10: Alternative 1 | B10: Roundabout | C10: Roundabout Alternative
A11: Alternative 2 | B11: Expanded Signalized Intersection | C11: Retain Signalized Intersection - Expand Intersction Size

Sheet BaseCase
A1: =AlternativeNumber_0&" - "&IF(OR(AlternativeShortName_0="",AlternativeShortName_0=Alternatives_DefaultAlternativeShortName),DefinedAlternative_Prompt_AlternativeShortName,AlternativeShortName_0) -> Alternative 0 - Existing Signalized Intersection
A3: Description: | B3: =IF(OR(AlternativeDescription_0="",AlternativeDescription_0=Alternatives_DefaultAlternativeDescription),DefinedAlternative_Prompt_AlternativeDescription,AlternativeDescription_0) -> Existing Lane Configuration
A4: A summary of the net present value for this alternative is shown to the right in Column "J"
A5: Planning & construction period | B5: Begin planning & construction | C5: 2014 | D5: First year of planning & construction
A6: Operating period | B6: Opening year | C6: 2014 | D6: Travel time/delay and demand forecasts for the opening year must be provided. | J6: Net Present Value Summary
B7: Interim year 1 | D7: Travel time/delay and demand forecasts for up to three years between the opening year and the end year may be provided. | H7: =IF(OR(AND(C7="",OR(ISNUMBER(C8),ISNUMBER(C9))),AND(C8="",ISNUMBER(C9))),"Please enter interim years in increasing order beginning with Interim year 1","") -> 
B8: Interim year 2 | J8: Planning & Construction Costs | K8: =B127 -> 0
B9: Interim year 3 | J9: Operating & Maintenance Costs | K9: =L146 -> 82075.12068
B10: End year | C10: 2035 | D10: Travel time/delay and demand forecasts for the end (horizon) year must be provided. | J10: Auto Passenger Time | K10: =IF(ISNUMBER(K162),IF(K162>0,K162,"--"),"--") -> 119471312.4 | L10: =IF(AND(ISNUMBER(K10),ISNUMBER(K11),ISNUMBER(K12),ISNUMBER(K13),ISNUMBER(K14),ISNUMBER(K15),ISNUMBER(K16),ISNUMBER(K17),ISNUMBER(K18),ISNUMBER(K19),ISNUMBER(K20)),"","Warning: A zero entry for a cost category indicates that the data needed to calculate that cost have either not been entered or have been entered incorrectly. If you believe this is an error please review your entries in this sheet.") -> Warning: A zero entry for a cost category indicates that the data needed to calculate that cost have either not been entered or have been entered incorrectly. If you believe this is an error please review your entries in this sheet.
A11: Worksheet setup | D11: Once you have entered begin planning & construction, opening, and end years, click this button to set up the worksheet. You may enter other inputs at any time. | J11: Auto Passenger Reliability | K11: =IF(ISNUMBER(K163),IF(K163>0,K163,"--"),"--") -> --
A12: Planning & construction costs | B12: Units | C12: Planning & construction year(s) | H12: Notes | J12: Truck Time | K12: 3770522.172
C13: =$C$5 -> 2014 | D13: =IF(ISNUMBER(C13),C13+1,"") -> 2015 | E13: =IF(ISNUMBER(D13),D13+1,"") -> 2016 | F13: =IF(ISNUMBER(E13),E13+1,"") -> 2017 | G13: =IF(ISNUMBER(F13),F13+1,"") -> 2018 | J13: Truck Reliability | K13: --
A14: Planning, design | B14: Dollars | C14: 0 | J14: Transit Passenger Time | K14: --
A15: Survey | B15: Dollars | C15: 0 | J15: Transit Passenger Reliability | K15: --
A16: Right of way | B16: Dollars | C16: 0 | J16: Bicyclist Time | K16: --
A17: Equipment, signs | B17: Dollars | C17: 0 | J17: Pedestrian Time | K17: --
A18: Utilities | B18: Dollars | C18: 0 | J18: Safety | K18: 8401022.758
A19: Construction | B19: Dollars | C19: 0 | J19: Greenhouse Gases | K19: --
A20: Landscaping | B20: Dollars | J20: Criteria Pollutants | K20: --
A21: =DefinedAlternative_OtherPlanningConstructionCosts_Prompt -> (Other planning & construction costs) | B21: Dollars | J21: Total Net Present Value | K21: =SUM(K8:K20) -> 131724932.4
A22: (Other planning & construction costs) | B22: Dollars
A23: (Other planning & construction costs) | B23: Dollars
A24: (Other planning & construction costs) | B24: Dollars | J24: =IF(NOT(ISNUMBER(K21)),"If the total NPV seems wrong some entries may be missing, inconsistent, or wrong","") -> 
A25: (Other planning & construction costs) | B25: Dollars
A26: (Other planning & construction costs) | B26: Dollars
A27: (Other planning & construction costs) | B27: Dollars
A28: (Other planning & construction costs) | B28: Dollars
A29: (Other planning & construction costs) | B29: Dollars
A30: (Other planning & construction costs) | B30: Dollars
A32: Operations & maintenance costs | B32: Units | C32: Begin year | D32: Period (years) | E32: Cost | F32: Notes
A33: Power | B33: Dollars | C33: 2014 | D33: 1 | E33: 5000 | I33: Calculations can be reviewed within table beginning in cell K133.
A34: Inspection | B34: Dollars
A35: Repaving | B35: Dollars
A36: Signing, striping | B36: Dollars
A37: =DefinedAlternative_OtherOMCosts_Prompt -> (Other O&M costs) | B37: Dollars
A38: (Other O&M costs) | B38: Dollars
A39: (Other O&M costs) | B39: Dollars
A40: (Other O&M costs) | B40: Dollars
A41: (Other O&M costs) | B41: Dollars
A42: (Other O&M costs) | B42: Dollars
A43: (Other O&M costs) | B43: Dollars
A44: (Other O&M costs) | B44: Dollars
A45: (Other O&M costs) | B45: Dollars
A46: (Other O&M costs) | B46: Dollars
A48: Demand & Travel Time (Delay) | B48: Average travel time / delay | D48: Opening year | E48: Interim year(s) | H48: End year | I48: Notes
B49: Time Period | C49: Units | D49: =$C$6 -> 2014 | E49: =IF($C$7="","",$C$7) ->  | F49: =IF($C$8="","",$C$8) ->  | G49: =IF($C$9="","",$C$9) ->  | H49: =$C$10 -> 2035
A50: Average vehicle travel time or delay | B50: AM peak | C50: seconds/veh | D50: 25 | H50: 43 | K50: =IF(OR(COUNT(D50:D52)=0,COUNT(H50:H52)=0,AND(E49<>"",COUNT(E50:E52)=0),AND(F49<>"",COUNT(F50:F52)=0),AND(G49<>"",COUNT(G50:G52)=0)),"NOTE: At least one travel time/delay value must be entered for each year specified",IF(COUNT(D50:H52)<>COUNT(D84:H86),"Number of travel time/delay entries is different from the number of peak/offpeak hourly volumes entered in the DemandParameters sheet. Please correct the discrepancy and re-run Setup for this sheet.","")) -> 
B51: PM peak | C51: seconds/veh | D51: 27 | H51: 93
B52: Weekend peak | C52: seconds/veh | D52: 26 | H52: 93
A53: Standard deviation of vehicle travel time or delay | B53: AM peak | C53: seconds/veh | D53: 0 | H53: 0 | K53: =IF(AND(COUNT(D53:H55)>0,OR(AND(D50<>"",D53=""),AND(D51<>"",D54=""),AND(E49<>"",OR(AND(E50<>"",E53=""),AND(E51<>"",E54=""))),AND(F49<>"",OR(AND(F50<>"",F53=""),AND(F51<>"",F54=""))),AND(G49<>"",OR(AND(G50<>"",G53=""),AND(G51<>"",G54=""))),AND(H50<>"",H53=""),AND(H51<>"",H54=""))),"NOTE: If reliability )standard deviations) are entered, there must be a corresponding standard deviation entry for each peak period travel time/delay entry","") -> 
B54: PM peak | C54: seconds/veh | D54: 0 | H54: 0
B55: Weekend peak | C55: seconds/veh | D55: 0 | H55: 0
A56: Average bicycle travel time or delay | B56: All time periods | C56: seconds/bike | D56: 0 | H56: 0
A57: Average pedestrian travel time or delay | B57: All time periods | C57: seconds/ped | D57: 0 | H57: 0
A59: Safety | B59: Crash type | C59: Units
A60: =IF(IsChecked_CrashCategories_KABCO,CrashCategoryLabel_KABCO,IF(IsChecked_CrashCategories_FatalityInjuryPDO,CrashCategoryLabel_FatalInjuryPDO,IF(IsChecked_CrashCategories_TotalCrashes,CrashCategoryLabel_TotalCrashes,CrashCategoryLabel_UserDefined))) -> Fatality, injury, PDO | B60: =IF(IsChecked_CrashCategories_KABCO,INDEX(CostParameters!$C$9:$C$13,CELL("row",J60)-CELL("row",$J$59)),IF(IsChecked_CrashCategories_FatalityInjuryPDO,IF(ISERROR(INDEX(CostParameters!$C$14:$C$16,CELL("row",J60)-CELL("row",$J$59))),"",INDEX(CostParameters!$C$14:$C$16,CELL("row",J60)-CELL("row",$J$59))),IF(IsChecked_CrashCategories_TotalCrashes,IF(ISERROR(INDEX(CostParameters!$C$17,CELL("row",J60)-CELL("row",$J$59))),"",INDEX(CostParameters!$C$17,CELL("row",J60)-CELL("row",$J$59))),IF(IsChecked_CrashCategories_UserDefined,IF(INDEX(CostParameters!$C$18:$C$22,CELL("row",J60)-CELL("row",$J$59))="","",INDEX(CostParameters!$C$18:$C$22,CELL("row",J60)-CELL("row",$J$59))),"Error!")))) -> Fatality crashes | C60: crashes/year | D60: 0 | H60: 0
B61: =IF(IsChecked_CrashCategories_KABCO,INDEX(CostParameters!$C$9:$C$13,CELL("row",J61)-CELL("row",$J$59)),IF(IsChecked_CrashCategories_FatalityInjuryPDO,IF(ISERROR(INDEX(CostParameters!$C$14:$C$16,CELL("row",J61)-CELL("row",$J$59))),"",INDEX(CostParameters!$C$14:$C$16,CELL("row",J61)-CELL("row",$J$59))),IF(IsChecked_CrashCategories_TotalCrashes,IF(ISERROR(INDEX(CostParameters!$C$17,CELL("row",J61)-CELL("row",$J$59))),"",INDEX(CostParameters!$C$17,CELL("row",J61)-CELL("row",$J$59))),IF(IsChecked_CrashCategories_UserDefined,IF(INDEX(CostParameters!$C$18:$C$22,CELL("row",J61)-CELL("row",$J$59))="","",INDEX(CostParameters!$C$18:$C$22,CELL("row",J61)-CELL("row",$J$59))),"Error!")))) -> Injury crashes | C61: =IF(LEN(TRIM(B61))>0,"crashes/year","") -> crashes/year | D61: 2 | H61: 4
B62: =IF(IsChecked_CrashCategories_KABCO,INDEX(CostParameters!$C$9:$C$13,CELL("row",J62)-CELL("row",$J$59)),IF(IsChecked_CrashCategories_FatalityInjuryPDO,IF(ISERROR(INDEX(CostParameters!$C$14:$C$16,CELL("row",J62)-CELL("row",$J$59))),"",INDEX(CostParameters!$C$14:$C$16,CELL("row",J62)-CELL("row",$J$59))),IF(IsChecked_CrashCategories_TotalCrashes,IF(ISERROR(INDEX(CostParameters!$C$17,CELL("row",J62)-CELL("row",$J$59))),"",INDEX(CostParameters!$C$17,CELL("row",J62)-CELL("row",$J$59))),IF(IsChecked_CrashCategories_UserDefined,IF(INDEX(CostParameters!$C$18:$C$22,CELL("row",J62)-CELL("row",$J$59))="","",INDEX(CostParameters!$C$18:$C$22,CELL("row",J62)-CELL("row",$J$59))),"Error!")))) -> Property damage only crashes | C62: =IF(LEN(TRIM(B62))>0,"crashes/year","") -> crashes/year | D62: 5 | H62: 10
B63: =IF(IsChecked_CrashCategories_KABCO,INDEX(CostParameters!$C$9:$C$13,CELL("row",J63)-CELL("row",$J$59)),IF(IsChecked_CrashCategories_FatalityInjuryPDO,IF(ISERROR(INDEX(CostParameters!$C$14:$C$16,CELL("row",J63)-CELL("row",$J$59))),"",INDEX(CostParameters!$C$14:$C$16,CELL("row",J63)-CELL("row",$J$59))),IF(IsChecked_CrashCategories_TotalCrashes,IF(ISERROR(INDEX(CostParameters!$C$17,CELL("row",J63)-CELL("row",$J$59))),"",INDEX(CostParameters!$C$17,CELL("row",J63)-CELL("row",$J$59))),IF(IsChecked_CrashCategories_UserDefined,IF(INDEX(CostParameters!$C$18:$C$22,CELL("row",J63)-CELL("row",$J$59))="","",INDEX(CostParameters!$C$18:$C$22,CELL("row",J63)-CELL("row",$J$59))),"Error!")))) ->  | C63: =IF(LEN(TRIM(B63))>0,"crashes/year","") -> 
B64: =IF(IsChecked_CrashCategories_KABCO,INDEX(CostParameters!$C$9:$C$13,CELL("row",J64)-CELL("row",$J$59)),IF(IsChecked_CrashCategories_FatalityInjuryPDO,IF(ISERROR(INDEX(CostParameters!$C$14:$C$16,CELL("row",J64)-CELL("row",$J$59))),"",INDEX(CostParameters!$C$14:$C$16,CELL("row",J64)-CELL("row",$J$59))),IF(IsChecked_CrashCategories_TotalCrashes,IF(ISERROR(INDEX(CostParameters!$C$17,CELL("row",J64)-CELL("row",$J$59))),"",INDEX(CostParameters!$C$17,CELL("row",J64)-CELL("row",$J$59))),IF(IsChecked_CrashCategories_UserDefined,IF(INDEX(CostParameters!$C$18:$C$22,CELL("row",J64)-CELL("row",$J$59))="","",INDEX(CostParameters!$C$18:$C$22,CELL("row",J64)-CELL("row",$J$59))),"Error!")))) ->  | C64: =IF(LEN(TRIM(B64))>0,"crashes/year","") -> 
A66: Emissions | B66: Type | C66: Units
A67: ="Greenhouse gases -- "&IF(IsChecked_GHG_Values_FederalMethod,"Federal method (Exec. Order 12866)","user defined costs") -> Greenhouse gases -- Federal method (Exec. Order 12866) | B67: CO2 equivalent | C67: =IF(LEN(TRIM(B67))>0,"metric tons/year","") -> metric tons/year | D67: 0 | H67: 0
A68: ="Criteria pollutants -- " & IF(IsChecked_CriteriaPollutantCategories_ByType,"by type","user defined categories") -> Criteria pollutants -- by type | B68: =IF(IsChecked_CriteriaPollutantCategories_ByType,CostParameters!C25,IF(CostParameters!C29="","",CostParameters!C29)) -> CO | C68: metric tons/year | D68: 0 | H68: 0
B69: =IF(IsChecked_CriteriaPollutantCategories_ByType,CostParameters!C26,IF(CostParameters!C30="","",CostParameters!C30)) -> NOx | C69: metric tons/year | D69: 0 | H69: 0
B70: =IF(IsChecked_CriteriaPollutantCategories_ByType,CostParameters!C27,IF(CostParameters!C31="","",CostParameters!C31)) -> HC | C70: metric tons/year | D70: 0 | H70: 0
B71: =IF(IsChecked_CriteriaPollutantCategories_ByType,CostParameters!C28,IF(CostParameters!C32="","",CostParameters!C32)) -> PM 2.5 | C71: metric tons/year | D71: 0 | H71: 0
A74: Calculations
A77: This section contains the formulas that carry out the detailed cost calculations. Modifications to this section will affect the program code.
A80: Delay model
D81: logs of vehicle volumes and travel times/delays
A82: Travel time/delay | B82: Average travel time/delay | D82: Opening Year | E82: Interim Year(s) | H82: End year
B83: Time period | C83: Units | D83: =$C$6 -> 2014 | E83: =IF($C$7="","",$C$7) ->  | F83: =IF($C$8="","",$C$8) ->  | G83: =IF($C$9="","",$C$9) ->  | H83: =$C$10 -> 2035
A84: Log total entering vehicles | B84: AM peak hour | C84: log(vehicles/hr) | D84: 7.347943823 | H84: 7.890208213
B85: PM peak hour | C85: log(vehicles/hr) | D85: 7.657755271 | H85: 8.170468578
B86: Average offpeak hourly | C86: log(vehicles/hr) | D86: 7.67971364 | H86: 8.155936338
A87: Log average vehicle travel time / delay | B87: =B84 -> AM peak hour | C87: log(seconds/veh) | D87: =IF(D50="","",IF(ISNUMBER(D50),IF(D50>0,LN(D50),""),"")) -> 3.218875825 | E87: =IF(E50="","",IF(ISNUMBER(E50),IF(E50>0,LN(E50),""),"")) ->  | H87: 3.761200116
B88: =B85 -> PM peak hour | C88: log(seconds/veh) | D88: =IF(D51="","",IF(ISNUMBER(D51),IF(D51>0,LN(D51),""),"")) -> 3.295836866 | H88: 4.532599493
B89: Average offpeak hourly | C89: log(seconds/veh) | D89: =IF(D52="","",IF(ISNUMBER(D52),IF(D52>0,LN(D52),""),"")) -> 3.258096538 | H89: 4.532599493
A91: Travel time / delay mode; | G91: predicted delay
A92: X'X | C92: (X'X)^-1 | E92: Delay model coeff | G92: =$C$6 -> 2014 | H92: =IF($C$7="","",$C$7) ->  | I92: =IF($C$8="","",$C$8) ->  | J92: =IF($C$9="","",$C$9) ->  | K92: =$C$10 -> 2035
A93: =COUNT(D84:H86) -> 6 | B93: =A94 -> 46.90202586 | C93: =MINVERSE(A93:B94) -> 120.1232095 | D93: -15.34558995 | E93: const | F93: =MMULT(C93:D94,B95:B96) -> -10.53059918 | G93: =IF(D84="","",EXP($F$93+$F$94*D84)) -> 18.33172398 | K93: 49.4233555
A94: =SUM(D84:H86) -> 46.90202586 | B94: =SUMSQ(D84:H86) -> 367.1427358 | C94: -15.34558995 | D94: 1.963103683 | E94: exp | F94: 1.828978639 | G94: 32.3066028 | K94: 82.51774137
A95: X'y | B95: =SUM(D87:H89) -> 22.59920833 | C95: std err estimate | D95: =IF(COUNT(D84:H86)<2,"NA",SQRT(SUMXMY2(G93:K95,D50:H52)/(COUNT(D84:H86)-2))) -> 10.5110003 | E95: seconds | G95: 33.63048737 | K95: 80.35338022
B96: =SUMPRODUCT(D84:H86,D87:H89) -> 177.589786
B99: Base year | C99: Planning and construction years
C100: Year 1 | D100: Year 2 | E100: Year 3 | F100: Year 4 | G100: Year 5
B101: =IF(BaseYear="",DefaultYearPrompt,BaseYear) -> 2014 | C101: =IF(ISNUMBER($C$5),$C$5,"") -> 2014 | D101: =IF(ISNUMBER(C101),C101+1,"") -> 2015 | E101: =IF(ISNUMBER(D101),D101+1,"") -> 2016 | F101: =IF(ISNUMBER(E101),E101+1,"") -> 2017 | G101: =IF(ISNUMBER(F101),F101+1,"") -> 2018
A104: Discount factor | B104: =1/((1+Discount_Rate)^(B$101-BaseYear)) -> 1 | C104: =IF(ISNUMBER(C101),1/((1+Discount_Rate)^(C$101-BaseYear)),0) -> 1 | D104: =IF(ISNUMBER(D101),1/((1+Discount_Rate)^(D$101-BaseYear)),0) -> 0.9708737864 | E104: =IF(ISNUMBER(E101),1/((1+Discount_Rate)^(E$101-BaseYear)),0) -> 0.9425959091 | F104: =IF(ISNUMBER(F101),1/((1+Discount_Rate)^(F$101-BaseYear)),0) -> 0.9151416594 | G104: =IF(ISNUMBER(G101),1/((1+Discount_Rate)^(G$101-BaseYear)),0) -> 0.8884870479
A106: Planning & Construction Costs
A109: =A14 -> Planning, design | C109: =C14 -> 0 | D109: 0 | E109: 0 | F109: 0 | G109: 0
A110: Survey | C110: 0 | D110: 0 | E110: 0 | F110: 0 | G110: 0
A111: Right of way | C111: 0 | D111: 0 | E111: 0 | F111: 0 | G111: 0
A112: Equipment, signs | C112: 0 | D112: 0 | E112: 0 | F112: 0 | G112: 0
A113: Utilities | C113: 0 | D113: 0 | E113: 0 | F113: 0 | G113: 0
A114: Construction | C114: 0 | D114: 0 | E114: 0 | F114: 0 | G114: 0
A115: Landscaping | C115: 0 | D115: 0 | E115: 0 | F115: 0 | G115: 0
A116: (Other planning & construction costs) | C116: 0 | D116: 0 | E116: 0 | F116: 0 | G116: 0
A117: (Other planning & construction costs) | C117: 0 | D117: 0 | E117: 0 | F117: 0 | G117: 0
A118: (Other planning & construction costs) | C118: 0 | D118: 0 | E118: 0 | F118: 0 | G118: 0
A119: (Other planning & construction costs) | C119: =C24 -> 0 | D119: 0 | E119: 0 | F119: 0 | G119: 0
A120: (Other planning & construction costs) | C120: 0 | D120: 0 | E120: 0 | F120: 0 | G120: 0
A121: (Other planning & construction costs) | C121: 0 | D121: 0 | E121: 0 | F121: 0 | G121: 0
A122: (Other planning & construction costs) | C122: 0 | D122: 0 | E122: 0 | F122: 0 | G122: 0
A123: (Other planning & construction costs) | C123: 0 | D123: 0 | E123: 0 | F123: 0 | G123: 0
A124: (Other planning & construction costs) | C124: 0 | D124: 0 | E124: 0 | F124: 0 | G124: 0
A125: (Other planning & construction costs) | C125: 0 | D125: 0 | E125: 0 | F125: 0 | G125: 0
A126: Sum - planning & construction | C126: =SUM(C109:C125) -> 0 | D126: =SUM(D109:D125) -> 0 | E126: =SUM(E109:E125) -> 0 | F126: =SUM(F109:F125) -> 0 | G126: =SUM(G109:G125) -> 0
A127: NPV - planning & construction | B127: =SUMPRODUCT($C$104:$G$104,C126:G126) -> 0
K128: Year ---> | L128: =$C$6 -> 2014 | M128: =IF(AND(L128+1<=$C$10,L128+1>$C$6),L128+1,0) -> 2015 | N128: =IF(AND(M128+1<=$C$10,M128+1>$C$6),M128+1,0) -> 2016 | O128: 2017 | P128: 2018 | Q128: 2019 | R128: 2020 | S128: 2021 | T128: 2022 | U128: 2023 | V128: 2024 | W128: 2025 | X128: 2026 | Y128: 2027 | Z128: 2028 | AA128: 2029 | AB128: 2030 | AC128: 2031 | AD128: 2032 | AE128: 2033 | AF128: 2034 | AG128: 2035 | AH128: 0 | AI128: 0 | AJ128: 0 | AK128: 0 | AL128: 0 | AM128: 0 | AN128: 0 | AO128: 0 | AP128: 0 | AQ128: 0 | AR128: 0 | AS128: 0 | AT128: 0 | AU128: 0 | AV128: 0 | AW128: 0 | AX128: 0 | AY128: 0 | AZ128: 0 | BA128: 0 | BB128: 0 | BC128: 0 | BD128: 0 | BE128: 0 | BF128: 0 | BG128: 0 | BH128: 0 | BI128: 0 | BJ128: 0 | BK128: 0 | BL128: 0 | BM128: 0 | BN128: 0 | BO128: 0 | BP128: 0 | BQ128: 0 | BR128: 0 | BS128: 0 | BT128: 0 | BU128: 0 | BV128: 0 | BW128: 0 | BX128: 0 | BY128: 0 | BZ128: =IF(AND(BY128+1<=$C$10,BY128+1>$C$6),BY128+1,0) -> 0 | CA128: 0 | CB128: 0 | CC128: 0 | CD128: 0 | CE128: 0 | CF128: 0 | CG128: 0 | CH128: 0 | CI128: 0 | CJ128: 0 | CK128: 0 | CL128: 0 | CM128: 0 | CN128: 0 | CO128: 0 | CP128: 0 | CQ128: 0 | CR128: 0 | CS128: 0 | CT128: 0 | CU128: 0 | CV128: 0 | CW128: 0 | CX128: 0 | CY128: 0 | CZ128: 0 | DA128: 0 | DB128: 0 | DC128: 0 | DD128: 0 | DE128: 0 | DF128: 0 | DG128: 0
K129: Discount factor ---> | L129: =IF(L$128>0,(1+Discount_Rate)^(-(L$128-BaseYear)),0) -> 1 | M129: 0.9708737864 | N129: 0.9425959091 | O129: 0.9151416594 | P129: 0.8884870479 | Q129: 0.8626087844 | R129: 0.8374842567 | S129: 0.8130915113 | T129: 0.7894092343 | U129: 0.7664167323 | V129: 0.7440939149 | W129: 0.7224212766 | X129: 0.7013798802 | Y129: 0.68095134 | Z129: 0.6611178058 | AA129: 0.6418619474 | AB129: 0.6231669392 | AC129: 0.6050164458 | AD129: 0.5873946076 | AE129: 0.5702860268 | AF129: 0.5536757542 | AG129: 0.5375492759 | AH129: 0 | AI129: 0 | AJ129: 0 | AK129: 0 | AL129: 0 | AM129: 0 | AN129: 0 | AO129: 0 | AP129: 0 | AQ129: 0 | AR129: =IF(AR$128>0,(1+Discount_Rate)^(-(AR$128-BaseYear)),0) -> 0 | AS129: 0 | AT129: 0 | AU129: 0 | AV129: 0 | AW129: 0 | AX129: 0 | AY129: 0 | AZ129: 0 | BA129: 0 | BB129: 0 | BC129: 0 | BD129: 0 | BE129: 0 | BF129: 0 | BG129: 0 | BH129: 0 | BI129: 0 | BJ129: 0 | BK129: 0 | BL129: 0 | BM129: 0 | BN129: 0 | BO129: 0 | BP129: 0 | BQ129: 0 | BR129: 0 | BS129: 0 | BT129: 0 | BU129: 0 | BV129: 0 | BW129: 0 | BX129: =IF(BX$128>0,(1+Discount_Rate)^(-(BX$128-BaseYear)),0) -> 0 | BY129: 0 | BZ129: 0 | CA129: 0 | CB129: 0 | CC129: 0 | CD129: 0 | CE129: 0 | CF129: 0 | CG129: 0 | CH129: 0 | CI129: 0 | CJ129: 0 | CK129: 0 | CL129: 0 | CM129: 0 | CN129: 0 | CO129: 0 | CP129: 0 | CQ129: 0 | CR129: 0 | CS129: 0 | CT129: 0 | CU129: 0 | CV129: 0 | CW129: 0 | CX129: 0 | CY129: 0 | CZ129: 0 | DA129: 0 | DB129: 0 | DC129: 0 | DD129: 0 | DE129: 0 | DF129: 0 | DG129: 0
A130: Post-Opening Costs | B130: Units | C130: Begin year | D130: Period (years) | E130: Cost | K130: Post-opening O&M
A131: Power | B131: Dollars | C131: =IF(C33="","",C33) -> 2014 | D131: 1 | E131: 5000 | K131: =A131 -> Power | L131: =IF(OR($C131="",$E131="",$C131<$C$6,L$128<$C131),0,IF(MOD(L$128-$C131,IF(OR($D131="",$D131=0),1000,$D131))=0,$E131,0)) -> 5000 | M131: 5000 | N131: 5000 | O131: 5000 | P131: 5000 | Q131: 5000 | R131: 5000 | S131: 5000 | T131: 5000 | U131: 5000 | V131: =IF(OR($C131="",$E131="",$C131<$C$6,V$128<$C131),0,IF(MOD(V$128-$C131,IF(OR($D131="",$D131=0),1000,$D131))=0,$E131,0)) -> 5000 | W131: 5000 | X131: 5000 | Y131: 5000 | Z131: 5000 | AA131: 5000 | AB131: 5000 | AC131: 5000 | AD131: 5000 | AE131: 5000 | AF131: =IF(OR($C131="",$E131="",$C131<$C$6,AF$128<$C131),0,IF(MOD(AF$128-$C131,IF(OR($D131="",$D131=0),1000,$D131))=0,$E131,0)) -> 5000 | AG131: 5000 | AH131: 0 | AI131: 0 | AJ131: 0 | AK131: 0 | AL131: 0 | AM131: 0 | AN131: 0 | AO131: 0 | AP131: =IF(OR($C131="",$E131="",$C131<$C$6,AP$128<$C131),0,IF(MOD(AP$128-$C131,IF(OR($D131="",$D131=0),1000,$D131))=0,$E131,0)) -> 0 | AQ131: 0 | AR131: 0 | AS131: 0 | AT131: 0 | AU131: 0 | AV131: 0 | AW131: 0 | AX131: 0 | AY131: 0 | AZ131: =IF(OR($C131="",$E131="",$C131<$C$6,AZ$128<$C131),0,IF(MOD(AZ$128-$C131,IF(OR($D131="",$D131=0),1000,$D131))=0,$E131,0)) -> 0 | BA131: 0 | BB131: 0 | BC131: 0 | BD131: 0 | BE131: 0 | BF131: 0 | BG131: 0 | BH131: 0 | BI131: 0 | BJ131: =IF(OR($C131="",$E131="",$C131<$C$6,BJ$128<$C131),0,IF(MOD(BJ$128-$C131,IF(OR($D131="",$D131=0),1000,$D131))=0,$E131,0)) -> 0 | BK131: 0 | BL131: 0 | BM131: 0 | BN131: 0 | BO131: 0 | BP131: 0 | BQ131: 0 | BR131: 0 | BS131: 0 | BT131: =IF(OR($C131="",$E131="",$C131<$C$6,BT$128<$C131),0,IF(MOD(BT$128-$C131,IF(OR($D131="",$D131=0),1000,$D131))=0,$E131,0)) -> 0 | BU131: 0 | BV131: 0 | BW131: 0 | BX131: 0 | BY131: 0 | BZ131: 0 | CA131: 0 | CB131: 0 | CC131: 0 | CD131: =IF(OR($C131="",$E131="",$C131<$C$6,CD$128<$C131),0,IF(MOD(CD$128-$C131,IF(OR($D131="",$D131=0),1000,$D131))=0,$E131,0)) -> 0 | CE131: 0 | CF131: 0 | CG131: 0 | CH131: 0 | CI131: 0 | CJ131: 0 | CK131: 0 | CL131: 0 | CM131: 0 | CN131: =IF(OR($C131="",$E131="",$C131<$C$6,CN$128<$C131),0,IF(MOD(CN$128-$C131,IF(OR($D131="",$D131=0),1000,$D131))=0,$E131,0)) -> 0 | CO131: 0 | CP131: 0 | CQ131: 0 | CR131: 0 | CS131: 0 | CT131: 0 | CU131: 0 | CV131: 0 | CW131: 0 | CX131: =IF(OR($C131="",$E131="",$C131<$C$6,CX$128<$C131),0,IF(MOD(CX$128-$C131,IF(OR($D131="",$D131=0),1000,$D131))=0,$E131,0)) -> 0 | CY131: 0 | CZ131: 0 | DA131: 0 | DB131: 0 | DC131: 0 | DD131: 0 | DE131: 0 | DF131: 0 | DG131: 0
A132: Inspection | B132: Dollars | K132: Inspection | L132: 0 | M132: 0 | N132: 0 | O132: 0 | P132: 0 | Q132: 0 | R132: 0 | S132: 0 | T132: 0 | U132: 0 | V132: 0 | W132: 0 | X132: 0 | Y132: 0 | Z132: 0 | AA132: 0 | AB132: 0 | AC132: 0 | AD132: 0 | AE132: 0 | AF132: 0 | AG132: 0 | AH132: 0 | AI132: 0 | AJ132: 0 | AK132: 0 | AL132: 0 | AM132: 0 | AN132: 0 | AO132: 0 | AP132: 0 | AQ132: 0 | AR132: 0 | AS132: 0 | AT132: 0 | AU132: 0 | AV132: 0 | AW132: 0 | AX132: 0 | AY132: 0 | AZ132: 0 | BA132: 0 | BB132: 0 | BC132: 0 | BD132: 0 | BE132: 0 | BF132: 0 | BG132: 0 | BH132: 0 | BI132: 0 | BJ132: 0 | BK132: 0 | BL132: 0 | BM132: 0 | BN132: 0 | BO132: 0 | BP132: 0 | BQ132: 0 | BR132: 0 | BS132: 0 | BT132: 0 | BU132: 0 | BV132: 0 | BW132: 0 | BX132: 0 | BY132: 0 | BZ132: 0 | CA132: 0 | CB132: 0 | CC132: 0 | CD132: 0 | CE132: 0 | CF132: 0 | CG132: 0 | CH132: 0 | CI132: 0 | CJ132: 0 | CK132: 0 | CL132: 0 | CM132: 0 | CN132: 0 | CO132: 0 | CP132: 0 | CQ132: 0 | CR132: 0 | CS132: 0 | CT132: 0 | CU132: 0 | CV132: 0 | CW132: 0 | CX132: 0 | CY132: 0 | CZ132: 0 | DA132: 0 | DB132: 0 | DC132: 0 | DD132: 0 | DE132: 0 | DF132: 0 | DG132: 0
A133: Repaving | B133: Dollars | K133: Repaving | L133: 0 | M133: 0 | N133: 0 | O133: 0 | P133: 0 | Q133: 0 | R133: 0 | S133: 0 | T133: 0 | U133: 0 | V133: 0 | W133: 0 | X133: 0 | Y133: 0 | Z133: 0 | AA133: 0 | AB133: 0 | AC133: 0 | AD133: 0 | AE133: 0 | AF133: 0 | AG133: 0 | AH133: 0 | AI133: 0 | AJ133: 0 | AK133: 0 | AL133: 0 | AM133: 0 | AN133: 0 | AO133: 0 | AP133: 0 | AQ133: 0 | AR133: 0 | AS133: 0 | AT133: 0 | AU133: 0 | AV133: 0 | AW133: 0 | AX133: 0 | AY133: 0 | AZ133: 0 | BA133: 0 | BB133: 0 | BC133: 0 | BD133: 0 | BE133: 0 | BF133: 0 | BG133: 0 | BH133: 0 | BI133: 0 | BJ133: 0 | BK133: 0 | BL133: 0 | BM133: 0 | BN133: 0 | BO133: 0 | BP133: 0 | BQ133: 0 | BR133: 0 | BS133: 0 | BT133: 0 | BU133: 0 | BV133: 0 | BW133: 0 | BX133: 0 | BY133: 0 | BZ133: 0 | CA133: 0 | CB133: 0 | CC133: 0 | CD133: 0 | CE133: 0 | CF133: 0 | CG133: 0 | CH133: 0 | CI133: 0 | CJ133: 0 | CK133: 0 | CL133: 0 | CM133: 0 | CN133: 0 | CO133: 0 | CP133: 0 | CQ133: 0 | CR133: 0 | CS133: 0 | CT133: 0 | CU133: 0 | CV133: 0 | CW133: 0 | CX133: 0 | CY133: 0 | CZ133: 0 | DA133: 0 | DB133: 0 | DC133: 0 | DD133: 0 | DE133: 0 | DF133: 0 | DG133: 0
A134: Signing, striping | B134: Dollars | K134: Signing, striping | L134: 0 | M134: 0 | N134: 0 | O134: 0 | P134: 0 | Q134: 0 | R134: 0 | S134: 0 | T134: 0 | U134: 0 | V134: 0 | W134: 0 | X134: 0 | Y134: 0 | Z134: 0 | AA134: 0 | AB134: 0 | AC134: 0 | AD134: 0 | AE134: 0 | AF134: 0 | AG134: 0 | AH134: 0 | AI134: 0 | AJ134: 0 | AK134: 0 | AL134: 0 | AM134: 0 | AN134: 0 | AO134: 0 | AP134: 0 | AQ134: 0 | AR134: 0 | AS134: 0 | AT134: 0 | AU134: 0 | AV134: 0 | AW134: 0 | AX134: 0 | AY134: 0 | AZ134: 0 | BA134: 0 | BB134: 0 | BC134: 0 | BD134: 0 | BE134: 0 | BF134: 0 | BG134: 0 | BH134: 0 | BI134: 0 | BJ134: 0 | BK134: 0 | BL134: 0 | BM134: 0 | BN134: 0 | BO134: 0 | BP134: 0 | BQ134: 0 | BR134: 0 | BS134: 0 | BT134: 0 | BU134: 0 | BV134: 0 | BW134: 0 | BX134: 0 | BY134: 0 | BZ134: 0 | CA134: 0 | CB134: 0 | CC134: 0 | CD134: 0 | CE134: 0 | CF134: 0 | CG134: 0 | CH134: 0 | CI134: 0 | CJ134: 0 | CK134: 0 | CL134: 0 | CM134: 0 | CN134: 0 | CO134: 0 | CP134: 0 | CQ134: 0 | CR134: 0 | CS134: 0 | CT134: 0 | CU134: 0 | CV134: 0 | CW134: 0 | CX134: 0 | CY134: 0 | CZ134: 0 | DA134: 0 | DB134: 0 | DC134: 0 | DD134: 0 | DE134: 0 | DF134: 0 | DG134: 0
A135: [Other O&M costs] | B135: Dollars | K135: [Other O&M costs] | L135: 0 | M135: 0 | N135: 0 | O135: 0 | P135: 0 | Q135: 0 | R135: 0 | S135: 0 | T135: 0 | U135: 0 | V135: 0 | W135: 0 | X135: 0 | Y135: 0 | Z135: 0 | AA135: 0 | AB135: 0 | AC135: 0 | AD135: 0 | AE135: 0 | AF135: 0 | AG135: 0 | AH135: 0 | AI135: 0 | AJ135: 0 | AK135: 0 | AL135: 0 | AM135: 0 | AN135: 0 | AO135: 0 | AP135: 0 | AQ135: 0 | AR135: 0 | AS135: 0 | AT135: 0 | AU135: 0 | AV135: 0 | AW135: 0 | AX135: 0 | AY135: 0 | AZ135: 0 | BA135: 0 | BB135: 0 | BC135: 0 | BD135: 0 | BE135: 0 | BF135: 0 | BG135: 0 | BH135: 0 | BI135: 0 | BJ135: 0 | BK135: 0 | BL135: 0 | BM135: 0 | BN135: 0 | BO135: 0 | BP135: 0 | BQ135: 0 | BR135: 0 | BS135: 0 | BT135: 0 | BU135: 0 | BV135: 0 | BW135: 0 | BX135: 0 | BY135: 0 | BZ135: 0 | CA135: 0 | CB135: 0 | CC135: 0 | CD135: 0 | CE135: 0 | CF135: 0 | CG135: 0 | CH135: 0 | CI135: 0 | CJ135: 0 | CK135: 0 | CL135: 0 | CM135: 0 | CN135: 0 | CO135: 0 | CP135: 0 | CQ135: 0 | CR135: 0 | CS135: 0 | CT135: 0 | CU135: 0 | CV135: 0 | CW135: 0 | CX135: 0 | CY135: 0 | CZ135: 0 | DA135: 0 | DB135: 0 | DC135: 0 | DD135: 0 | DE135: 0 | DF135: 0 | DG135: 0
A136: [Other O&M costs] | B136: Dollars | K136: [Other O&M costs] | L136: 0 | M136: 0 | N136: 0 | O136: 0 | P136: 0 | Q136: 0 | R136: 0 | S136: 0 | T136: 0 | U136: 0 | V136: 0 | W136: 0 | X136: 0 | Y136: 0 | Z136: 0 | AA136: 0 | AB136: 0 | AC136: 0 | AD136: 0 | AE136: 0 | AF136: 0 | AG136: 0 | AH136: 0 | AI136: 0 | AJ136: 0 | AK136: 0 | AL136: 0 | AM136: 0 | AN136: 0 | AO136: 0 | AP136: 0 | AQ136: 0 | AR136: 0 | AS136: 0 | AT136: 0 | AU136: 0 | AV136: 0 | AW136: 0 | AX136: 0 | AY136: 0 | AZ136: 0 | BA136: 0 | BB136: 0 | BC136: 0 | BD136: 0 | BE136: 0 | BF136: 0 | BG136: 0 | BH136: 0 | BI136: 0 | BJ136: 0 | BK136: 0 | BL136: 0 | BM136: 0 | BN136: 0 | BO136: 0 | BP136: 0 | BQ136: 0 | BR136: 0 | BS136: 0 | BT136: 0 | BU136: 0 | BV136: 0 | BW136: 0 | BX136: 0 | BY136: 0 | BZ136: 0 | CA136: 0 | CB136: 0 | CC136: 0 | CD136: 0 | CE136: 0 | CF136: 0 | CG136: 0 | CH136: 0 | CI136: 0 | CJ136: 0 | CK136: 0 | CL136: 0 | CM136: 0 | CN136: 0 | CO136: 0 | CP136: 0 | CQ136: 0 | CR136: 0 | CS136: 0 | CT136: 0 | CU136: 0 | CV136: 0 | CW136: 0 | CX136: 0 | CY136: 0 | CZ136: 0 | DA136: 0 | DB136: 0 | DC136: 0 | DD136: 0 | DE136: 0 | DF136: 0 | DG136: 0
A137: [Other O&M costs] | B137: Dollars | K137: [Other O&M costs] | L137: 0 | M137: 0 | N137: 0 | O137: 0 | P137: 0 | Q137: 0 | R137: 0 | S137: 0 | T137: 0 | U137: 0 | V137: 0 | W137: 0 | X137: 0 | Y137: 0 | Z137: 0 | AA137: 0 | AB137: 0 | AC137: 0 | AD137: 0 | AE137: 0 | AF137: 0 | AG137: 0 | AH137: 0 | AI137: 0 | AJ137: 0 | AK137: 0 | AL137: 0 | AM137: 0 | AN137: 0 | AO137: 0 | AP137: 0 | AQ137: 0 | AR137: 0 | AS137: 0 | AT137: 0 | AU137: 0 | AV137: 0 | AW137: 0 | AX137: 0 | AY137: 0 | AZ137: 0 | BA137: 0 | BB137: 0 | BC137: 0 | BD137: 0 | BE137: 0 | BF137: 0 | BG137: 0 | BH137: 0 | BI137: 0 | BJ137: 0 | BK137: 0 | BL137: 0 | BM137: 0 | BN137: 0 | BO137: 0 | BP137: 0 | BQ137: 0 | BR137: 0 | BS137: 0 | BT137: 0 | BU137: 0 | BV137: 0 | BW137: 0 | BX137: 0 | BY137: 0 | BZ137: 0 | CA137: 0 | CB137: 0 | CC137: 0 | CD137: 0 | CE137: 0 | CF137: 0 | CG137: 0 | CH137: 0 | CI137: 0 | CJ137: 0 | CK137: 0 | CL137: 0 | CM137: 0 | CN137: 0 | CO137: 0 | CP137: 0 | CQ137: 0 | CR137: 0 | CS137: 0 | CT137: 0 | CU137: 0 | CV137: 0 | CW137: 0 | CX137: 0 | CY137: 0 | CZ137: 0 | DA137: 0 | DB137: 0 | DC137: 0 | DD137: 0 | DE137: 0 | DF137: 0 | DG137: 0
A138: [Other O&M costs] | B138: Dollars | K138: [Other O&M costs] | L138: 0 | M138: 0 | N138: 0 | O138: 0 | P138: 0 | Q138: 0 | R138: 0 | S138: 0 | T138: 0 | U138: 0 | V138: 0 | W138: 0 | X138: 0 | Y138: 0 | Z138: 0 | AA138: 0 | AB138: 0 | AC138: 0 | AD138: 0 | AE138: 0 | AF138: 0 | AG138: 0 | AH138: 0 | AI138: 0 | AJ138: 0 | AK138: 0 | AL138: 0 | AM138: 0 | AN138: 0 | AO138: 0 | AP138: 0 | AQ138: 0 | AR138: 0 | AS138: 0 | AT138: 0 | AU138: 0 | AV138: 0 | AW138: 0 | AX138: 0 | AY138: 0 | AZ138: 0 | BA138: 0 | BB138: 0 | BC138: 0 | BD138: 0 | BE138: 0 | BF138: 0 | BG138: 0 | BH138: 0 | BI138: 0 | BJ138: 0 | BK138: 0 | BL138: 0 | BM138: 0 | BN138: 0 | BO138: 0 | BP138: 0 | BQ138: 0 | BR138: 0 | BS138: 0 | BT138: 0 | BU138: 0 | BV138: 0 | BW138: 0 | BX138: 0 | BY138: 0 | BZ138: 0 | CA138: 0 | CB138: 0 | CC138: 0 | CD138: 0 | CE138: 0 | CF138: 0 | CG138: 0 | CH138: 0 | CI138: 0 | CJ138: 0 | CK138: 0 | CL138: 0 | CM138: 0 | CN138: 0 | CO138: 0 | CP138: 0 | CQ138: 0 | CR138: 0 | CS138: 0 | CT138: 0 | CU138: 0 | CV138: 0 | CW138: 0 | CX138: 0 | CY138: 0 | CZ138: 0 | DA138: 0 | DB138: 0 | DC138: 0 | DD138: 0 | DE138: 0 | DF138: 0 | DG138: 0
A139: [Other O&M costs] | B139: Dollars | K139: [Other O&M costs] | L139: 0 | M139: 0 | N139: 0 | O139: 0 | P139: 0 | Q139: 0 | R139: 0 | S139: 0 | T139: 0 | U139: 0 | V139: 0 | W139: 0 | X139: 0 | Y139: 0 | Z139: 0 | AA139: 0 | AB139: 0 | AC139: 0 | AD139: 0 | AE139: 0 | AF139: 0 | AG139: 0 | AH139: 0 | AI139: 0 | AJ139: 0 | AK139: 0 | AL139: 0 | AM139: 0 | AN139: 0 | AO139: 0 | AP139: 0 | AQ139: 0 | AR139: 0 | AS139: 0 | AT139: 0 | AU139: 0 | AV139: 0 | AW139: 0 | AX139: 0 | AY139: 0 | AZ139: 0 | BA139: 0 | BB139: 0 | BC139: 0 | BD139: 0 | BE139: 0 | BF139: 0 | BG139: 0 | BH139: 0 | BI139: 0 | BJ139: 0 | BK139: 0 | BL139: 0 | BM139: 0 | BN139: 0 | BO139: 0 | BP139: 0 | BQ139: 0 | BR139: 0 | BS139: 0 | BT139: 0 | BU139: 0 | BV139: 0 | BW139: 0 | BX139: 0 | BY139: 0 | BZ139: 0 | CA139: 0 | CB139: 0 | CC139: 0 | CD139: 0 | CE139: 0 | CF139: 0 | CG139: 0 | CH139: 0 | CI139: 0 | CJ139: 0 | CK139: 0 | CL139: 0 | CM139: 0 | CN139: 0 | CO139: 0 | CP139: 0 | CQ139: 0 | CR139: 0 | CS139: 0 | CT139: 0 | CU139: 0 | CV139: 0 | CW139: 0 | CX139: 0 | CY139: 0 | CZ139: 0 | DA139: 0 | DB139: 0 | DC139: 0 | DD139: 0 | DE139: 0 | DF139: 0 | DG139: 0
A140: [Other O&M costs] | B140: Dollars | K140: [Other O&M costs] | L140: 0 | M140: 0 | N140: 0 | O140: 0 | P140: 0 | Q140: 0 | R140: 0 | S140: 0 | T140: 0 | U140: 0 | V140: 0 | W140: 0 | X140: 0 | Y140: 0 | Z140: 0 | AA140: 0 | AB140: 0 | AC140: 0 | AD140: 0 | AE140: 0 | AF140: 0 | AG140: 0 | AH140: 0 | AI140: 0 | AJ140: 0 | AK140: 0 | AL140: 0 | AM140: 0 | AN140: 0 | AO140: 0 | AP140: 0 | AQ140: 0 | AR140: 0 | AS140: 0 | AT140: 0 | AU140: 0 | AV140: 0 | AW140: 0 | AX140: 0 | AY140: 0 | AZ140: 0 | BA140: 0 | BB140: 0 | BC140: 0 | BD140: 0 | BE140: 0 | BF140: 0 | BG140: 0 | BH140: 0 | BI140: 0 | BJ140: 0 | BK140: 0 | BL140: 0 | BM140: 0 | BN140: 0 | BO140: 0 | BP140: 0 | BQ140: 0 | BR140: 0 | BS140: 0 | BT140: 0 | BU140: 0 | BV140: 0 | BW140: 0 | BX140: 0 | BY140: 0 | BZ140: 0 | CA140: 0 | CB140: 0 | CC140: 0 | CD140: 0 | CE140: 0 | CF140: 0 | CG140: 0 | CH140: 0 | CI140: 0 | CJ140: 0 | CK140: 0 | CL140: 0 | CM140: 0 | CN140: 0 | CO140: 0 | CP140: 0 | CQ140: 0 | CR140: 0 | CS140: 0 | CT140: 0 | CU140: 0 | CV140: 0 | CW140: 0 | CX140: 0 | CY140: 0 | CZ140: 0 | DA140: 0 | DB140: 0 | DC140: 0 | DD140: 0 | DE140: 0 | DF140: 0 | DG140: 0
A141: [Other O&M costs] | B141: Dollars | K141: [Other O&M costs] | L141: 0 | M141: 0 | N141: 0 | O141: 0 | P141: 0 | Q141: 0 | R141: 0 | S141: 0 | T141: 0 | U141: 0 | V141: 0 | W141: 0 | X141: 0 | Y141: 0 | Z141: 0 | AA141: 0 | AB141: 0 | AC141: 0 | AD141: 0 | AE141: 0 | AF141: 0 | AG141: 0 | AH141: 0 | AI141: 0 | AJ141: 0 | AK141: 0 | AL141: 0 | AM141: 0 | AN141: 0 | AO141: 0 | AP141: 0 | AQ141: 0 | AR141: 0 | AS141: 0 | AT141: 0 | AU141: 0 | AV141: 0 | AW141: 0 | AX141: 0 | AY141: 0 | AZ141: 0 | BA141: 0 | BB141: 0 | BC141: 0 | BD141: 0 | BE141: 0 | BF141: 0 | BG141: 0 | BH141: 0 | BI141: 0 | BJ141: 0 | BK141: 0 | BL141: 0 | BM141: 0 | BN141: 0 | BO141: 0 | BP141: 0 | BQ141: 0 | BR141: 0 | BS141: 0 | BT141: 0 | BU141: 0 | BV141: 0 | BW141: 0 | BX141: 0 | BY141: 0 | BZ141: 0 | CA141: 0 | CB141: 0 | CC141: 0 | CD141: 0 | CE141: 0 | CF141: 0 | CG141: 0 | CH141: 0 | CI141: 0 | CJ141: 0 | CK141: 0 | CL141: 0 | CM141: 0 | CN141: 0 | CO141: 0 | CP141: 0 | CQ141: 0 | CR141: 0 | CS141: 0 | CT141: 0 | CU141: 0 | CV141: 0 | CW141: 0 | CX141: 0 | CY141: 0 | CZ141: 0 | DA141: 0 | DB141: 0 | DC141: 0 | DD141: 0 | DE141: 0 | DF141: 0 | DG141: 0
A142: [Other O&M costs] | B142: Dollars | K142: [Other O&M costs] | L142: 0 | M142: 0 | N142: 0 | O142: 0 | P142: 0 | Q142: 0 | R142: 0 | S142: 0 | T142: 0 | U142: 0 | V142: 0 | W142: 0 | X142: 0 | Y142: 0 | Z142: 0 | AA142: 0 | AB142: 0 | AC142: 0 | AD142: 0 | AE142: 0 | AF142: 0 | AG142: 0 | AH142: 0 | AI142: 0 | AJ142: 0 | AK142: 0 | AL142: 0 | AM142: 0 | AN142: 0 | AO142: 0 | AP142: 0 | AQ142: 0 | AR142: 0 | AS142: 0 | AT142: 0 | AU142: 0 | AV142: 0 | AW142: 0 | AX142: 0 | AY142: 0 | AZ142: 0 | BA142: 0 | BB142: 0 | BC142: 0 | BD142: 0 | BE142: 0 | BF142: 0 | BG142: 0 | BH142: 0 | BI142: 0 | BJ142: 0 | BK142: 0 | BL142: 0 | BM142: 0 | BN142: 0 | BO142: 0 | BP142: 0 | BQ142: 0 | BR142: 0 | BS142: 0 | BT142: 0 | BU142: 0 | BV142: 0 | BW142: 0 | BX142: 0 | BY142: 0 | BZ142: 0 | CA142: 0 | CB142: 0 | CC142: 0 | CD142: 0 | CE142: 0 | CF142: 0 | CG142: 0 | CH142: 0 | CI142: 0 | CJ142: 0 | CK142: 0 | CL142: 0 | CM142: 0 | CN142: 0 | CO142: 0 | CP142: 0 | CQ142: 0 | CR142: 0 | CS142: 0 | CT142: 0 | CU142: 0 | CV142: 0 | CW142: 0 | CX142: 0 | CY142: 0 | CZ142: 0 | DA142: 0 | DB142: 0 | DC142: 0 | DD142: 0 | DE142: 0 | DF142: 0 | DG142: 0
A143: [Other O&M costs] | B143: Dollars | K143: [Other O&M costs] | L143: 0 | M143: 0 | N143: 0 | O143: 0 | P143: 0 | Q143: 0 | R143: 0 | S143: 0 | T143: 0 | U143: 0 | V143: 0 | W143: 0 | X143: 0 | Y143: 0 | Z143: 0 | AA143: 0 | AB143: 0 | AC143: 0 | AD143: 0 | AE143: 0 | AF143: 0 | AG143: 0 | AH143: 0 | AI143: 0 | AJ143: 0 | AK143: 0 | AL143: 0 | AM143: 0 | AN143: 0 | AO143: 0 | AP143: 0 | AQ143: 0 | AR143: 0 | AS143: 0 | AT143: 0 | AU143: 0 | AV143: 0 | AW143: 0 | AX143: 0 | AY143: 0 | AZ143: 0 | BA143: 0 | BB143: 0 | BC143: 0 | BD143: 0 | BE143: 0 | BF143: 0 | BG143: 0 | BH143: 0 | BI143: 0 | BJ143: 0 | BK143: 0 | BL143: 0 | BM143: 0 | BN143: 0 | BO143: 0 | BP143: 0 | BQ143: 0 | BR143: 0 | BS143: 0 | BT143: 0 | BU143: 0 | BV143: 0 | BW143: 0 | BX143: 0 | BY143: 0 | BZ143: 0 | CA143: 0 | CB143: 0 | CC143: 0 | CD143: 0 | CE143: 0 | CF143: 0 | CG143: 0 | CH143: 0 | CI143: 0 | CJ143: 0 | CK143: 0 | CL143: 0 | CM143: 0 | CN143: 0 | CO143: 0 | CP143: 0 | CQ143: 0 | CR143: 0 | CS143: 0 | CT143: 0 | CU143: 0 | CV143: 0 | CW143: 0 | CX143: 0 | CY143: 0 | CZ143: 0 | DA143: 0 | DB143: 0 | DC143: 0 | DD143: 0 | DE143: 0 | DF143: 0 | DG143: 0
A144: [Other O&M costs] | B144: Dollars | K144: [Other O&M costs] | L144: 0 | M144: 0 | N144: 0 | O144: 0 | P144: 0 | Q144: 0 | R144: 0 | S144: 0 | T144: 0 | U144: 0 | V144: 0 | W144: 0 | X144: 0 | Y144: 0 | Z144: 0 | AA144: 0 | AB144: 0 | AC144: 0 | AD144: 0 | AE144: 0 | AF144: 0 | AG144: 0 | AH144: 0 | AI144: 0 | AJ144: 0 | AK144: 0 | AL144: 0 | AM144: 0 | AN144: 0 | AO144: 0 | AP144: 0 | AQ144: 0 | AR144: 0 | AS144: 0 | AT144: 0 | AU144: 0 | AV144: 0 | AW144: 0 | AX144: 0 | AY144: 0 | AZ144: 0 | BA144: 0 | BB144: 0 | BC144: 0 | BD144: 0 | BE144: 0 | BF144: 0 | BG144: 0 | BH144: 0 | BI144: 0 | BJ144: 0 | BK144: 0 | BL144: 0 | BM144: 0 | BN144: 0 | BO144: 0 | BP144: 0 | BQ144: 0 | BR144: 0 | BS144: 0 | BT144: 0 | BU144: 0 | BV144: 0 | BW144: 0 | BX144: 0 | BY144: 0 | BZ144: 0 | CA144: 0 | CB144: 0 | CC144: 0 | CD144: 0 | CE144: 0 | CF144: 0 | CG144: 0 | CH144: 0 | CI144: 0 | CJ144: 0 | CK144: 0 | CL144: 0 | CM144: 0 | CN144: 0 | CO144: 0 | CP144: 0 | CQ144: 0 | CR144: 0 | CS144: 0 | CT144: 0 | CU144: 0 | CV144: 0 | CW144: 0 | CX144: 0 | CY144: 0 | CZ144: 0 | DA144: 0 | DB144: 0 | DC144: 0 | DD144: 0 | DE144: 0 | DF144: 0 | DG144: 0
K145: Sum O&M (year) | L145: =SUM(L131:L144) -> 5000 | M145: =SUM(M131:M144) -> 5000 | N145: 5000 | O145: 5000 | P145: 5000 | Q145: 5000 | R145: 5000 | S145: 5000 | T145: 5000 | U145: 5000 | V145: 5000 | W145: 5000 | X145: 5000 | Y145: 5000 | Z145: 5000 | AA145: 5000 | AB145: 5000 | AC145: 5000 | AD145: 5000 | AE145: 5000 | AF145: 5000 | AG145: 5000 | AH145: 0 | AI145: 0 | AJ145: 0 | AK145: 0 | AL145: 0 | AM145: 0 | AN145: 0 | AO145: 0 | AP145: 0 | AQ145: 0 | AR145: 0 | AS145: 0 | AT145: 0 | AU145: 0 | AV145: 0 | AW145: 0 | AX145: 0 | AY145: 0 | AZ145: 0 | BA145: 0 | BB145: 0 | BC145: 0 | BD145: 0 | BE145: 0 | BF145: 0 | BG145: 0 | BH145: 0 | BI145: 0 | BJ145: 0 | BK145: 0 | BL145: 0 | BM145: 0 | BN145: 0 | BO145: 0 | BP145: 0 | BQ145: 0 | BR145: 0 | BS145: 0 | BT145: 0 | BU145: 0 | BV145: 0 | BW145: 0 | BX145: 0 | BY145: =SUM(BY131:BY144) -> 0 | BZ145: 0 | CA145: 0 | CB145: 0 | CC145: 0 | CD145: 0 | CE145: 0 | CF145: 0 | CG145: 0 | CH145: 0 | CI145: 0 | CJ145: 0 | CK145: 0 | CL145: 0 | CM145: 0 | CN145: 0 | CO145: 0 | CP145: 0 | CQ145: 0 | CR145: 0 | CS145: 0 | CT145: 0 | CU145: 0 | CV145: 0 | CW145: 0 | CX145: 0 | CY145: 0 | CZ145: 0 | DA145: 0 | DB145: 0 | DC145: 0 | DD145: 0 | DE145: 0 | DF145: 0 | DG145: 0
K146: NPV O&M | L146: =SUMPRODUCT($L$129:$DG$129,L145:DG145) -> 82075.12068
A149: Demand & travel time/delay | B149: Average travel time/delay | D149: Opening Year | E149: Interim Year(s) | H149: End year
B150: Time period | C150: Units | D150: =$C$6 -> 2014 | E150: =IF($C$7="","",$C$7) ->  | F150: =IF($C$8="","",$C$8) ->  | G150: =IF($C$9="","",$C$9) ->  | H150: =$C$10 -> 2035
A151: Standard deviation of vehicle travel time / delay | B151: AM peak | C151: seconds/veh | D151: =IF(ISNUMBER(D53),D53/SecondsPerHour,IF(ISNUMBER(D54),D54/SecondsPerHour,IF(ISNUMBER(D55),D55/SecondsPerHour,0))) -> 0 | E151: =IF(ISNUMBER(E53),E53/SecondsPerHour,IF(ISNUMBER(E54),E54/SecondsPerHour,IF(ISNUMBER(E55),E55/SecondsPerHour,0))) -> 0 | F151: =IF(ISNUMBER(F53),F53/SecondsPerHour,IF(ISNUMBER(F54),F54/SecondsPerHour,IF(ISNUMBER(F55),F55/SecondsPerHour,0))) -> 0 | G151: =IF(ISNUMBER(G53),G53/SecondsPerHour,IF(ISNUMBER(G54),G54/SecondsPerHour,IF(ISNUMBER(G55),G55/SecondsPerHour,0))) -> 0 | H151: =IF(ISNUMBER(H53),H53/SecondsPerHour,IF(ISNUMBER(H54),H54/SecondsPerHour,IF(ISNUMBER(H55),H55/SecondsPerHour,0))) -> 0
B152: PM peak | C152: seconds/veh | D152: =IF(ISNUMBER(D54),D54/SecondsPerHour,IF(ISNUMBER(D53/SecondsPerHour),D53,IF(ISNUMBER(D55),D55/SecondsPerHour,0))) -> 0 | E152: =IF(ISNUMBER(E54),E54/SecondsPerHour,IF(ISNUMBER(E53/SecondsPerHour),E53,IF(ISNUMBER(E55),E55/SecondsPerHour,0))) -> 0 | F152: =IF(ISNUMBER(F54),F54/SecondsPerHour,IF(ISNUMBER(F53/SecondsPerHour),F53,IF(ISNUMBER(F55),F55/SecondsPerHour,0))) -> 0 | G152: =IF(ISNUMBER(G54),G54/SecondsPerHour,IF(ISNUMBER(G53/SecondsPerHour),G53,IF(ISNUMBER(G55),G55/SecondsPerHour,0))) -> 0 | H152: =IF(ISNUMBER(H54),H54/SecondsPerHour,IF(ISNUMBER(H53/SecondsPerHour),H53,IF(ISNUMBER(H55),H55/SecondsPerHour,0))) -> 0
B153: Offpeak | C153: seconds/veh | D153: =IF(ISNUMBER(D55),D55/SecondsPerHour,0) -> 0 | E153: =IF(ISNUMBER(E55),E55/SecondsPerHour,0) -> 0 | F153: =IF(ISNUMBER(F55),F55/SecondsPerHour,0) -> 0 | G153: =IF(ISNUMBER(G55),G55/SecondsPerHour,0) -> 0 | H153: =IF(ISNUMBER(H55),H55/SecondsPerHour,0) -> 0
A154: Average bike travel time / delay | B154: All | C154: seconds/bike | D154: =D56 -> 0 | E154: 0 | F154: 0 | G154: 0 | H154: 0
A155: Average ped travel time / delay | B155: All | C155: seconds/ped | D155: 0 | E155: 0 | F155: 0 | G155: 0 | H155: 0
A157: User & nonuser costs | J157: DefinedAlternative_InterpolationFormulaTemplate | K157: =IF(NOT(AND(ISNUMBER(DummyCellReference_1),ISNUMBER(DummyCellReference_2))),0,IF(AND(DummyCellReference_1>0,DummyCellReference_2>0),DummyCellReference_1*(DummyCellReference_2/DummyCellReference_1)^((DummyCellReference_4-DummyCellReference_3)/(DummyCellReference_5-DummyCellReference_3)),0)) -> 0
D159: Summary costs for user specified years
A160: Cost category | D160: Opening Year | E160: Interim Year(s) | H160: End year | J160: NPV calculations | K160: Total NPV | L160: Spot values
D161: =$C$6 -> 2014 | E161: =IF($C$7="","",$C$7) ->  | F161: =IF($C$8="","",$C$8) ->  | G161: =IF($C$9="","",$C$9) ->  | H161: =$C$10 -> 2035
A162: Auto passenger time cost | D162: =IF(ISNUMBER(D$150),SUM(D$203:D$8962),"") -> 2099732.562 | E162: =IF(ISNUMBER(E$150),SUM(L$203:L$8962),0) -> 0 | F162: =IF(ISNUMBER(F$150),SUM(T$203:T$8962),0) -> 0 | G162: =IF(ISNUMBER(G$150),SUM(AB$203:AB$8962),"") ->  | H162: =IF(ISNUMBER(H$150),SUM(AJ$203:AJ$8962),"") -> 20464055.14 | J162: =A162 -> Auto passenger time cost | K162: =SUMPRODUCT(L162:DG162,$L$129:$DG$129) -> 119471312.4 | L162: =D162 -> 2099732.562 | M162: =IF(NOT(AND(ISNUMBER(L162),ISNUMBER(AG162))),0,IF(AND(L162>0,AG162>0),L162*(AG162/L162)^((M$128-L$128)/(AG$128-L$128)),0)) -> 2340189.45 | N162: =IF(NOT(AND(ISNUMBER(L162),ISNUMBER(AG162))),0,IF(AND(L162>0,AG162>0),L162*(AG162/L162)^((N$128-L$128)/(AG$128-L$128)),0)) -> 2608182.948 | O162: =IF(NOT(AND(ISNUMBER(L162),ISNUMBER(AG162))),0,IF(AND(L162>0,AG162>0),L162*(AG162/L162)^((O$128-L$128)/(AG$128-L$128)),0)) -> 2906866.489 | P162: =IF(NOT(AND(ISNUMBER(L162),ISNUMBER(AG162))),0,IF(AND(L162>0,AG162>0),L162*(AG162/L162)^((P$128-L$128)/(AG$128-L$128)),0)) -> 3239754.63 | Q162: =IF(NOT(AND(ISNUMBER(L162),ISNUMBER(AG162))),0,IF(AND(L162>0,AG162>0),L162*(AG162/L162)^((Q$128-L$128)/(AG$128-L$128)),0)) -> 3610764.411 | R162: =IF(NOT(AND(ISNUMBER(L162),ISNUMBER(AG162))),0,IF(AND(L162>0,AG162>0),L162*(AG162/L162)^((R$128-L$128)/(AG$128-L$128)),0)) -> 4024261.439 | S162: =IF(NOT(AND(ISNUMBER(L162),ISNUMBER(AG162))),0,IF(AND(L162>0,AG162>0),L162*(AG162/L162)^((S$128-L$128)/(AG$128-L$128)),0)) -> 4485111.264 | T162: =IF(NOT(AND(ISNUMBER(L162),ISNUMBER(AG162))),0,IF(AND(L162>0,AG162>0),L162*(AG162/L162)^((T$128-L$128)/(AG$128-L$128)),0)) -> 4998736.626 | U162: =IF(NOT(AND(ISNUMBER(L162),ISNUMBER(AG162))),0,IF(AND(L162>0,AG162>0),L162*(AG162/L162)^((U$128-L$128)/(AG$128-L$128)),0)) -> 5571181.268 | V162: =IF(NOT(AND(ISNUMBER(L162),ISNUMBER(AG162))),0,IF(AND(L162>0,AG162>0),L162*(AG162/L162)^((V$128-L$128)/(AG$128-L$128)),0)) -> 6209181.048 | W162: =IF(NOT(AND(ISNUMBER(L162),ISNUMBER(AG162))),0,IF(AND(L162>0,AG162>0),L162*(AG162/L162)^((W$128-L$128)/(AG$128-L$128)),0)) -> 6920243.2 | X162: =IF(NOT(AND(ISNUMBER(L162),ISNUMBER(AG162))),0,IF(AND(L162>0,AG162>0),L162*(AG162/L162)^((X$128-L$128)/(AG$128-L$128)),0)) -> 7712734.67 | Y162: =IF(NOT(AND(ISNUMBER(L162),ISNUMBER(AG162))),0,IF(AND(L162>0,AG162>0),L162*(AG162/L162)^((Y$128-L$128)/(AG$128-L$128)),0)) -> 8595980.571 | Z162: =IF(NOT(AND(ISNUMBER(L162),ISNUMBER(AG162))),0,IF(AND(L162>0,AG162>0),L162*(AG162/L162)^((Z$128-L$128)/(AG$128-L$128)),0)) -> 9580373.907 | AA162: =IF(NOT(AND(ISNUMBER(L162),ISNUMBER(AG162))),0,IF(AND(L162>0,AG162>0),L162*(AG162/L162)^((AA$128-L$128)/(AG$128-L$128)),0)) -> 10677497.86 | AB162: =IF(NOT(AND(ISNUMBER(L162),ISNUMBER(AG162))),0,IF(AND(L162>0,AG162>0),L162*(AG162/L162)^((AB$128-L$128)/(AG$128-L$128)),0)) -> 11900262.11 | AC162: =IF(NOT(AND(ISNUMBER(L162),ISNUMBER(AG162))),0,IF(AND(L162>0,AG162>0),L162*(AG162/L162)^((AC$128-L$128)/(AG$128-L$128)),0)) -> 13263054.71 | AD162: =IF(NOT(AND(ISNUMBER(L162),ISNUMBER(AG162))),0,IF(AND(L162>0,AG162>0),L162*(AG162/L162)^((AD$128-L$128)/(AG$128-L$128)),0)) -> 14781911.41 | AE162: =IF(NOT(AND(ISNUMBER(L162),ISNUMBER(AG162))),0,IF(AND(L162>0,AG162>0),L162*(AG162/L162)^((AE$128-L$128)/(AG$128-L$128)),0)) -> 16474704.34 | AF162: =IF(NOT(AND(ISNUMBER(L162),ISNUMBER(AG162))),0,IF(AND(L162>0,AG162>0),L162*(AG162/L162)^((AF$128-L$128)/(AG$128-L$128)),0)) -> 18361352.29 | AG162: =H162 -> 20464055.14
A163: Auto passenger reliability cost | D163: =IF(ISNUMBER(D$150),SUM(E$203:E$8962),"") -> 0 | E163: =IF(ISNUMBER(E$150),SUM(M$203:M$8962),"") ->  | F163: =IF(ISNUMBER(F$150),SUM(U$203:U$8962),0) -> 0 | G163: =IF(ISNUMBER(G$150),SUM(AC$203:AC$8962),"") ->  | H163: =IF(ISNUMBER(H$150),SUM(AK$203:AK$8962),"") -> 0 | J163: =A163 -> Auto passenger reliability cost | K163: =SUMPRODUCT(L163:DG163,$L$129:$DG$129) -> 0 | L163: =D163 -> 0 | M163: =IF(NOT(AND(ISNUMBER(L163),ISNUMBER(AG163))),0,IF(AND(L163>0,AG163>0),L163*(AG163/L163)^((M$128-L$128)/(AG$128-L$128)),0)) -> 0 | N163: =IF(NOT(AND(ISNUMBER(L163),ISNUMBER(AG163))),0,IF(AND(L163>0,AG163>0),L163*(AG163/L163)^((N$128-L$128)/(AG$128-L$128)),0)) -> 0 | O163: =IF(NOT(AND(ISNUMBER(L163),ISNUMBER(AG163))),0,IF(AND(L163>0,AG163>0),L163*(AG163/L163)^((O$128-L$128)/(AG$128-L$128)),0)) -> 0 | P163: =IF(NOT(AND(ISNUMBER(L163),ISNUMBER(AG163))),0,IF(AND(L163>0,AG163>0),L163*(AG163/L163)^((P$128-L$128)/(AG$128-L$128)),0)) -> 0 | Q163: =IF(NOT(AND(ISNUMBER(L163),ISNUMBER(AG163))),0,IF(AND(L163>0,AG163>0),L163*(AG163/L163)^((Q$128-L$128)/(AG$128-L$128)),0)) -> 0 | R163: =IF(NOT(AND(ISNUMBER(L163),ISNUMBER(AG163))),0,IF(AND(L163>0,AG163>0),L163*(AG163/L163)^((R$128-L$128)/(AG$128-L$128)),0)) -> 0 | S163: =IF(NOT(AND(ISNUMBER(L163),ISNUMBER(AG163))),0,IF(AND(L163>0,AG163>0),L163*(AG163/L163)^((S$128-L$128)/(AG$128-L$128)),0)) -> 0 | T163: =IF(NOT(AND(ISNUMBER(L163),ISNUMBER(AG163))),0,IF(AND(L163>0,AG163>0),L163*(AG163/L163)^((T$128-L$128)/(AG$128-L$128)),0)) -> 0 | U163: =IF(NOT(AND(ISNUMBER(L163),ISNUMBER(AG163))),0,IF(AND(L163>0,AG163>0),L163*(AG163/L163)^((U$128-L$128)/(AG$128-L$128)),0)) -> 0 | V163: =IF(NOT(AND(ISNUMBER(L163),ISNUMBER(AG163))),0,IF(AND(L163>0,AG163>0),L163*(AG163/L163)^((V$128-L$128)/(AG$128-L$128)),0)) -> 0 | W163: =IF(NOT(AND(ISNUMBER(L163),ISNUMBER(AG163))),0,IF(AND(L163>0,AG163>0),L163*(AG163/L163)^((W$128-L$128)/(AG$128-L$128)),0)) -> 0 | X163: =IF(NOT(AND(ISNUMBER(L163),ISNUMBER(AG163))),0,IF(AND(L163>0,AG163>0),L163*(AG163/L163)^((X$128-L$128)/(AG$128-L$128)),0)) -> 0 | Y163: =IF(NOT(AND(ISNUMBER(L163),ISNUMBER(AG163))),0,IF(AND(L163>0,AG163>0),L163*(AG163/L163)^((Y$128-L$128)/(AG$128-L$128)),0)) -> 0 | Z163: =IF(NOT(AND(ISNUMBER(L163),ISNUMBER(AG163))),0,IF(AND(L163>0,AG163>0),L163*(AG163/L163)^((Z$128-L$128)/(AG$128-L$128)),0)) -> 0 | AA163: =IF(NOT(AND(ISNUMBER(L163),ISNUMBER(AG163))),0,IF(AND(L163>0,AG163>0),L163*(AG163/L163)^((AA$128-L$128)/(AG$128-L$128)),0)) -> 0 | AB163: =IF(NOT(AND(ISNUMBER(L163),ISNUMBER(AG163))),0,IF(AND(L163>0,AG163>0),L163*(AG163/L163)^((AB$128-L$128)/(AG$128-L$128)),0)) -> 0 | AC163: =IF(NOT(AND(ISNUMBER(L163),ISNUMBER(AG163))),0,IF(AND(L163>0,AG163>0),L163*(AG163/L163)^((AC$128-L$128)/(AG$128-L$128)),0)) -> 0 | AD163: =IF(NOT(AND(ISNUMBER(L163),ISNUMBER(AG163))),0,IF(AND(L163>0,AG163>0),L163*(AG163/L163)^((AD$128-L$128)/(AG$128-L$128)),0)) -> 0 | AE163: =IF(NOT(AND(ISNUMBER(L163),ISNUMBER(AG163))),0,IF(AND(L163>0,AG163>0),L163*(AG163/L163)^((AE$128-L$128)/(AG$128-L$128)),0)) -> 0 | AF163: =IF(NOT(AND(ISNUMBER(L163),ISNUMBER(AG163))),0,IF(AND(L163>0,AG163>0),L163*(AG163/L163)^((AF$128-L$128)/(AG$128-L$128)),0)) -> 0 | AG163: =H163 -> 0
A164: Truck time cost | D164: =IF(ISNUMBER(D$150),SUM(F$203:F$8962),"") -> 65392.37213 | E164: =IF(ISNUMBER(E$150),SUM(N$203:N$8962),"") ->  | F164: =IF(ISNUMBER(F$150),SUM(V$203:V$8962),0) -> 0 | G164: =IF(ISNUMBER(G$150),SUM(AD$203:AD$8962),"") ->  | H164: =IF(ISNUMBER(H$150),SUM(AL$203:AL$8962),"") -> 650593.3929 | J164: Truck time cost | K164: 3770522.172 | L164: 65392.37213 | M164: 72952.56175 | N164: 81386.80542 | O164: 90796.15489 | P164: 101293.3448 | Q164: 113004.1433 | R164: 126068.859 | S164: 140644.022 | T164: 156904.2591 | U164: 175044.3863 | V164: 195281.7429 | W164: 217858.7952 | X164: 243046.0419 | Y164: 271145.2544 | Z164: 302493.0932 | AA164: 337465.1407 | AB164: 376480.4016 | AC164: 420006.3226 | AD164: 468564.3935 | AE164: 522736.3948 | AF164: 583171.3682 | AG164: 650593.3929
A165: Truck reliability cost | D165: =IF(ISNUMBER(D$150),SUM(G$203:G$8962),"") -> 0 | E165: =IF(ISNUMBER(E$150),SUM(O$203:O$8962),"") ->  | F165: =IF(ISNUMBER(F$150),SUM(W$203:W$8962),0) -> 0 | G165: =IF(ISNUMBER(G$150),SUM(AE$203:AE$8962),"") ->  | H165: =IF(ISNUMBER(H$150),SUM(AM$203:AM$8962),"") -> 0 | J165: Truck reliability cost | K165: 0 | L165: 0 | M165: 0 | N165: 0 | O165: 0 | P165: 0 | Q165: 0 | R165: 0 | S165: 0 | T165: 0 | U165: 0 | V165: 0 | W165: 0 | X165: 0 | Y165: 0 | Z165: 0 | AA165: 0 | AB165: 0 | AC165: 0 | AD165: 0 | AE165: 0 | AF165: 0 | AG165: 0
A166: Transit passenger time cost | D166: =IF(ISNUMBER(D$150),SUM(H$203:H$8962),"") -> 0 | E166: =IF(ISNUMBER(E$150),SUM(P$203:P$8962),"") ->  | F166: =IF(ISNUMBER(F$150),SUM(X$203:X$8962),0) -> 0 | G166: =IF(ISNUMBER(G$150),SUM(AF$203:AF$8962),"") ->  | H166: =IF(ISNUMBER(H$150),SUM(AN$203:AN$8962),"") -> 0 | J166: Transit passenger time cost | K166: 0 | L166: 0 | M166: 0 | N166: 0 | O166: 0 | P166: 0 | Q166: 0 | R166: 0 | S166: 0 | T166: 0 | U166: 0 | V166: 0 | W166: 0 | X166: 0 | Y166: 0 | Z166: 0 | AA166: 0 | AB166: 0 | AC166: 0 | AD166: 0 | AE166: 0 | AF166: 0 | AG166: 0
A167: Transit passenger reliability cost | D167: =IF(ISNUMBER(D$150),SUM(I$203:I$8962),"") -> 0 | E167: =IF(ISNUMBER(E$150),SUM(Q$203:Q$8962),"") ->  | F167: =IF(ISNUMBER(F$150),SUM(Y$203:Y$8962),0) -> 0 | G167: =IF(ISNUMBER(G$150),SUM(AG$203:AG$8962),"") ->  | H167: =IF(ISNUMBER(H$150),SUM(AO$203:AO$8962),"") -> 0 | J167: Transit passenger reliability cost | K167: 0 | L167: 0 | M167: 0 | N167: 0 | O167: 0 | P167: 0 | Q167: 0 | R167: 0 | S167: 0 | T167: 0 | U167: 0 | V167: 0 | W167: 0 | X167: 0 | Y167: 0 | Z167: 0 | AA167: 0 | AB167: 0 | AC167: 0 | AD167: 0 | AE167: 0 | AF167: 0 | AG167: 0
A168: Bicycle time cost | D168: =DemandParameters!C37*(D56/SecondsPerHour)*DaysPerYear*TimeValue_Person_Offpeak -> 0 | F168: =DemandParameters!C37*F56*DaysPerYear*TimeValue_Person_Offpeak -> 0 | H168: =DemandParameters!D37*(H56/SecondsPerHour)*DaysPerYear*TimeValue_Person_Offpeak -> 0 | J168: Bicycle time cost | K168: 0 | L168: 0 | M168: 0 | N168: 0 | O168: 0 | P168: 0 | Q168: 0 | R168: 0 | S168: 0 | T168: 0 | U168: 0 | V168: 0 | W168: 0 | X168: 0 | Y168: 0 | Z168: 0 | AA168: 0 | AB168: 0 | AC168: 0 | AD168: 0 | AE168: 0 | AF168: 0 | AG168: 0
A169: Pedestrian time cost | D169: =DemandParameters!C38*(D57/SecondsPerHour)*DaysPerYear*TimeValue_Person_Offpeak -> 0 | F169: =DemandParameters!C38*F57*DaysPerYear*TimeValue_Person_Offpeak -> 0 | H169: =DemandParameters!D38*(H57/SecondsPerHour)*DaysPerYear*TimeValue_Person_Offpeak -> 0 | J169: =A169 -> Pedestrian time cost | K169: 0 | L169: 0 | M169: 0 | N169: 0 | O169: 0 | P169: 0 | Q169: 0 | R169: 0 | S169: 0 | T169: 0 | U169: 0 | V169: 0 | W169: 0 | X169: 0 | Y169: 0 | Z169: 0 | AA169: 0 | AB169: 0 | AC169: 0 | AD169: 0 | AE169: 0 | AF169: 0 | AG169: 0
A170: Crash cost | D170: =IF(OR(NOT(ISNUMBER($C$177)),NOT(ISNUMBER(D$60))),0,SUMPRODUCT($C$177:$C$181,D$60:D$64)) -> 368198 | E170: =IF(OR(NOT(ISNUMBER($C$177)),NOT(ISNUMBER(E$60))),0,SUMPRODUCT($C$177:$C$181,E$60:E$64)) -> 0 | F170: =IF(OR(NOT(ISNUMBER($C$177)),NOT(ISNUMBER(F$60))),0,SUMPRODUCT($C$177:$C$181,F$60:F$64)) -> 0 | G170: =IF(OR(NOT(ISNUMBER($C$177)),NOT(ISNUMBER(G$60))),0,SUMPRODUCT($C$177:$C$181,G$60:G$64)) -> 0 | H170: =IF(OR(NOT(ISNUMBER($C$177)),NOT(ISNUMBER(H$60))),0,SUMPRODUCT($C$177:$C$181,H$60:H$64)) -> 736396 | J170: Crash cost | K170: =SUMPRODUCT(L170:DG170,$L$129:$DG$129) -> 8401022.758 | L170: 368198 | M170: 380553.9086 | N170: 393324.4541 | O170: 406523.5508 | P170: 420165.5799 | Q170: 434265.4052 | R170: 448838.3895 | S170: 463900.4107 | T170: 479467.88 | U170: 495557.7591 | V170: 512187.5789 | W170: 529375.4585 | X170: 547140.1253 | Y170: 565500.9349 | Z170: 584477.8925 | AA170: 604091.6748 | AB170: 624363.6522 | AC170: 645315.9121 | AD170: 666971.2835 | AE170: 689353.3611 | AF170: 712486.5316 | AG170: 736396
A171: GHG cost | D171: =IF(D67="","",D67*IF(IsChecked_GHG_Values_FederalMethod,VLOOKUP(D49,GHG.Costs!$A$19:$G$155,6,7))) -> 0 | E171: =IF(E67="","",E67*IF(IsChecked_GHG_Values_FederalMethod,VLOOKUP(E49,GHG.Costs!$A$19:$G$155,6,7))) ->  | F171: =IF(F67="","",F67*IF(IsChecked_GHG_Values_FederalMethod,VLOOKUP(F49,GHG.Costs!$A$19:$G$155,6,7))) ->  | G171: =IF(G67="","",G67*IF(IsChecked_GHG_Values_FederalMethod,VLOOKUP(G49,GHG.Costs!$A$19:$G$155,6,7))) ->  | H171: =IF(H67="","",H67*IF(IsChecked_GHG_Values_FederalMethod,VLOOKUP(H49,GHG.Costs!$A$19:$G$155,6,7))) -> 0 | J171: GHG cost | K171: =SUM(L171:DG171) -> 0 | L171: 0 | M171: 0 | N171: 0 | O171: 0 | P171: 0 | Q171: 0 | R171: 0 | S171: 0 | T171: 0 | U171: 0 | V171: 0 | W171: 0 | X171: 0 | Y171: 0 | Z171: 0 | AA171: 0 | AB171: 0 | AC171: 0 | AD171: 0 | AE171: 0 | AF171: 0 | AG171: 0
A172: Criteria pollutant cost | D172: =IF(IsChecked_CriteriaPollutantCategories_ByType,SUMPRODUCT(D68:D71,CostParameters!$G$25:$G$28),SUMPRODUCT(D68:D71,CostParameters!$G$29:$G$32)) -> 0 | E172: =IF(IsChecked_CriteriaPollutantCategories_ByType,SUMPRODUCT(E68:E71,CostParameters!$G$25:$G$28),SUMPRODUCT(E68:E71,CostParameters!$G$29:$G$32)) -> 0 | F172: =IF(IsChecked_CriteriaPollutantCategories_ByType,SUMPRODUCT(F68:F71,CostParameters!$G$25:$G$28),SUMPRODUCT(F68:F71,CostParameters!$G$29:$G$32)) -> 0 | G172: =IF(IsChecked_CriteriaPollutantCategories_ByType,SUMPRODUCT(G68:G71,CostParameters!$G$25:$G$28),SUMPRODUCT(G68:G71,CostParameters!$G$29:$G$32)) -> 0 | H172: =IF(IsChecked_CriteriaPollutantCategories_ByType,SUMPRODUCT(H68:H71,CostParameters!$G$25:$G$28),SUMPRODUCT(H68:H71,CostParameters!$G$29:$G$32)) -> 0 | J172: Criteria pollutant cost | K172: =SUMPRODUCT(L172:DG172,$L$129:$DG$129) -> 0 | L172: 0 | M172: 0 | N172: 0 | O172: 0 | P172: 0 | Q172: 0 | R172: 0 | S172: 0 | T172: 0 | U172: 0 | V172: 0 | W172: 0 | X172: 0 | Y172: 0 | Z172: 0 | AA172: 0 | AB172: 0 | AC172: 0 | AD172: 0 | AE172: 0 | AF172: 0 | AG172: 0
I174: index
A175: Safety | B175: Crash type | C175: Valuation | D175: Opening Year | E175: Interim Year(s) | H175: End year
D176: =$C$6 -> 2014 | E176: =IF($C$7="","",$C$7) ->  | F176: =IF($C$8="","",$C$8) ->  | G176: =IF($C$9="","",$C$9) ->  | H176: =$C$10 -> 2035
A177: =IF(IsChecked_CrashCategories_KABCO,CrashCategoryLabel_KABCO,IF(IsChecked_CrashCategories_FatalityInjuryPDO,CrashCategoryLabel_FatalInjuryPDO,IF(IsChecked_CrashCategories_TotalCrashes,CrashCategoryLabel_TotalCrashes,CrashCategoryLabel_UserDefined))) -> Fatality, injury, PDO | B177: =IF(B60="","",B60) -> Fatality crashes | C177: =IF(IsChecked_CrashCategories_KABCO,IF(ISERROR(INDEX(CrashValuations_KABCO,$I177)),"",INDEX(CrashValuations_KABCO,$I177)),IF(IsChecked_CrashCategories_FatalityInjuryPDO,IF(ISERROR(INDEX(CrashValuations_FatalityInjuryPDO,$I177)),"",INDEX(CrashValuations_FatalityInjuryPDO,$I177)),IF(IsChecked_CrashCategories_TotalCrashes,IF(ISERROR(INDEX(CrashValuations_TotalCrashes,$I177)),"",INDEX(CrashValuations_TotalCrashes,$I177)),IF(IsChecked_CrashCategories_UserDefined,IF(ISERROR(INDEX(CrashValuations_UserDefined,$I177)),"",IF(INDEX(CrashValuations_UserDefined,$I177)="","",INDEX(CrashValuations_UserDefined,$I177))),#N/A)))) -> 9200000 | I177: 1
B178: =IF(B61="","",B61) -> Injury crashes | C178: =IF(IsChecked_CrashCategories_KABCO,IF(ISERROR(INDEX(CrashValuations_KABCO,$I178)),"",INDEX(CrashValuations_KABCO,$I178)),IF(IsChecked_CrashCategories_FatalityInjuryPDO,IF(ISERROR(INDEX(CrashValuations_FatalityInjuryPDO,$I178)),"",INDEX(CrashValuations_FatalityInjuryPDO,$I178)),IF(IsChecked_CrashCategories_TotalCrashes,IF(ISERROR(INDEX(CrashValuations_TotalCrashes,$I178)),"",INDEX(CrashValuations_TotalCrashes,$I178)),IF(IsChecked_CrashCategories_UserDefined,IF(ISERROR(INDEX(CrashValuations_UserDefined,$I178)),"",IF(INDEX(CrashValuations_UserDefined,$I178)="","",INDEX(CrashValuations_UserDefined,$I178))),#N/A)))) -> 167264 | I178: 2
B179: =IF(B62="","",B62) -> Property damage only crashes | C179: =IF(IsChecked_CrashCategories_KABCO,IF(ISERROR(INDEX(CrashValuations_KABCO,$I179)),"",INDEX(CrashValuations_KABCO,$I179)),IF(IsChecked_CrashCategories_FatalityInjuryPDO,IF(ISERROR(INDEX(CrashValuations_FatalityInjuryPDO,$I179)),"",INDEX(CrashValuations_FatalityInjuryPDO,$I179)),IF(IsChecked_CrashCategories_TotalCrashes,IF(ISERROR(INDEX(CrashValuations_TotalCrashes,$I179)),"",INDEX(CrashValuations_TotalCrashes,$I179)),IF(IsChecked_CrashCategories_UserDefined,IF(ISERROR(INDEX(CrashValuations_UserDefined,$I179)),"",IF(INDEX(CrashValuations_UserDefined,$I179)="","",INDEX(CrashValuations_UserDefined,$I179))),#N/A)))) -> 6734 | I179: 3
B180: =IF(B63="","",B63) ->  | C180: =IF(IsChecked_CrashCategories_KABCO,IF(ISERROR(INDEX(CrashValuations_KABCO,$I180)),"",INDEX(CrashValuations_KABCO,$I180)),IF(IsChecked_CrashCategories_FatalityInjuryPDO,IF(ISERROR(INDEX(CrashValuations_FatalityInjuryPDO,$I180)),"",INDEX(CrashValuations_FatalityInjuryPDO,$I180)),IF(IsChecked_CrashCategories_TotalCrashes,IF(ISERROR(INDEX(CrashValuations_TotalCrashes,$I180)),"",INDEX(CrashValuations_TotalCrashes,$I180)),IF(IsChecked_CrashCategories_UserDefined,IF(ISERROR(INDEX(CrashValuations_UserDefined,$I180)),"",IF(INDEX(CrashValuations_UserDefined,$I180)="","",INDEX(CrashValuations_UserDefined,$I180))),#N/A)))) ->  | I180: 4
B181: =IF(B64="","",B64) ->  | C181: =IF(IsChecked_CrashCategories_KABCO,IF(ISERROR(INDEX(CrashValuations_KABCO,$I181)),"",INDEX(CrashValuations_KABCO,$I181)),IF(IsChecked_CrashCategories_FatalityInjuryPDO,IF(ISERROR(INDEX(CrashValuations_FatalityInjuryPDO,$I181)),"",INDEX(CrashValuations_FatalityInjuryPDO,$I181)),IF(IsChecked_CrashCategories_TotalCrashes,IF(ISERROR(INDEX(CrashValuations_TotalCrashes,$I181)),"",INDEX(CrashValuations_TotalCrashes,$I181)),IF(IsChecked_CrashCategories_UserDefined,IF(ISERROR(INDEX(CrashValuations_UserDefined,$I181)),"",IF(INDEX(CrashValuations_UserDefined,$I181)="","",INDEX(CrashValuations_UserDefined,$I181))),#N/A)))) ->  | I181: 5
A184: Emissions | B184: Type
A186: =A67 -> Greenhouse gases -- Federal method (Exec. Order 12866) | B186: =IF(B67="","",B67) -> CO2 equivalent | C186: (see next row)
A190: =A68 -> Criteria pollutants -- by type | B190: =IF(B68="","",B68) -> CO | C190: =IF(IsChecked_CriteriaPollutantCategories_ByType,CostParameters!G25,CostParameters!G29) -> 39600 | I190: 1
B191: =IF(B69="","",B69) -> NOx | C191: =IF(IsChecked_CriteriaPollutantCategories_ByType,CostParameters!G26,CostParameters!G30) -> 7887 | I191: 2
B192: HC | C192: =IF(IsChecked_CriteriaPollutantCategories_ByType,CostParameters!G27,CostParameters!G31) -> 1700 | I192: 3
B193: PM 2.5 | C193: =IF(IsChecked_CriteriaPollutantCategories_ByType,CostParameters!G28,CostParameters!G32) -> 306500 | I193: 6
A196: Year | C196: time per | D196: std dev | K196: time per | L196: std dev | S196: time per | T196: std dev | AA196: time per | AB196: std dev | AI196: time per | AJ196: std dev
A197: Year type ---> | B197: Opening year | C197: AM | D197: =D151 -> 0 | J197: Int yr 1 | K197: AM | L197: =E151 -> 0 | R197: Int yr 2 | S197: AM | T197: =F151 -> 0 | Z197: Int yr 3 | AA197: AM | AB197: =G151 -> 0 | AH197: End year | AI197: AM | AJ197: =H151 -> 0
A198: Year ------> | B198: =$C$6 -> 2014 | C198: PM | D198: =D152 -> 0 | J198: =IF($C$7="","",$C$7) ->  | K198: PM | L198: =E152 -> 0 | R198: =IF($C$8="","",$C$8) ->  | S198: PM | T198: =F152 -> 0 | Z198: =IF($C$9="","",$C$9) ->  | AA198: PM | AB198: =G152 -> 0 | AH198: =IF($C$10="","",$C$10) -> 2035 | AI198: PM | AJ198: =H152 -> 0
A199: Year col in demand sheet ---> | B199: 0 | C199: Offpk | D199: =D153 -> 0 | J199: 0 | K199: Offpk | L199: =E153 -> 0 | R199: 0 | S199: Offpk | T199: =F153 -> 0 | Z199: 0 | AA199: Offpk | AB199: =G153 -> 0 | AH199: 0 | AI199: Offpk | AJ199: =H153 -> 0
A200: Year number (1 = opening, 5 = end, etc) | B200: 1 | C200: 1 | D200: 1 | E200: 1 | F200: 1 | G200: 1 | H200: 1 | I200: 1 | J200: 2 | K200: 2 | L200: 2 | M200: 2 | N200: 2 | O200: 2 | P200: 2 | Q200: 2 | R200: 3 | S200: 3 | T200: 3 | U200: 3 | V200: 3 | W200: 3 | X200: 3 | Y200: 3 | Z200: 4 | AA200: 4 | AB200: 4 | AC200: 4 | AD200: 4 | AE200: 4 | AF200: 4 | AG200: 4 | AH200: 5 | AI200: 5 | AJ200: 5 | AK200: 5 | AL200: 5 | AM200: 5 | AN200: 5
A202: Date/time | B202: average travel time or delay per vehicle (hr) | C202: reliability "insurance" time | D202: auto passenger time cost | E202: auto passenger reliability cost | F202: truck time cost | G202: truck reliability cost | H202: transit passenger time cost | I202: transit passenger reliability cost | J202: average travel time or delay per vehicle (hr) | K202: reliability "insurance" time | L202: auto passenger time cost | M202: auto passenger reliability cost | N202: truck time cost | O202: truck reliability cost | P202: transit passenger time cost | Q202: transit passenger reliability cost | R202: average travel time or delay per vehicle (hr) | S202: reliability "insurance" time | T202: auto passenger time cost | U202: auto passenger reliability cost | V202: truck time cost | W202: truck reliability cost | X202: transit passenger time cost | Y202: transit passenger reliability cost | Z202: average travel time or delay per vehicle (hr) | AA202: reliability "insurance" time | AB202: auto passenger time cost | AC202: auto passenger reliability cost | AD202: truck time cost | AE202: truck reliability cost | AF202: transit passenger time cost | AG202: transit passenger reliability cost | AH202: average travel time or delay per vehicle (hr) | AI202: reliability "insurance" time | AJ202: auto passenger time cost | AK202: auto passenger reliability cost | AL202: truck time cost | AM202: truck reliability cost | AN202: transit passenger time cost | AO202: transit passenger reliability cost
A203: 2014-01-01 | B203: =IF(DemandParameters!G167>0,EXP(AverageTravelTimeModel_Constant+AverageTravelTimeModel_LogVolumeParameter*LN(DemandParameters!G167))/SecondsPerHour,0) -> 0.0003076433884 | C203: =IF(INDEX(StandardDeviationTable,DemandParameters!C167,1)=0,0,ReliabilityInsuranceTime(0.99, B203, INDEX(StandardDeviationTable,DemandParameters!C167,1), Discount_Rate)) -> 0 | D203: =B203*DemandParameters!H167*IF(DemandParameters!C167=Code_Offpeak,TimeValue_Person_Offpeak,TimeValue_Person_Peak) -> 1.703143383 | E203: =C203*DemandParameters!H167*IF(DemandParameters!C167=Code_Offpeak,TimeValue_Person_Offpeak,TimeValue_Person_Peak) -> 0 | F203: =B203*DemandParameters!I167*TimeValue_Truck -> 0.05304131959 | G203: =C203*DemandParameters!I167*TimeValue_Truck -> 0 | H203: =B203*DemandParameters!J167*IF(DemandParameters!C167=Code_Offpeak,TimeValue_Person_Offpeak,TimeValue_Person_Peak) -> 0 | I203: =C203*DemandParameters!J167*IF(DemandParameters!C167=Code_Offpeak,TimeValue_Person_Offpeak,TimeValue_Person_Peak) -> 0 | AH203: =IF(DemandParameters!K167>0,EXP(AverageTravelTimeModel_Constant+AverageTravelTimeModel_LogVolumeParameter*LN(DemandParameters!K167))/SecondsPerHour,0) -> 0.0008679784465 | AI203: =IF(INDEX(StandardDeviationTable,DemandParameters!C167,5)=0,0,ReliabilityInsuranceTime(0.99, AH203, INDEX(StandardDeviationTable,DemandParameters!C167,5), Discount_Rate)) -> 0 | AJ203: =AH203*DemandParameters!L167*IF(DemandParameters!C167=Code_Offpeak,TimeValue_Person_Offpeak,TimeValue_Person_Peak) -> 16.59888536 | AK203: =AI203*DemandParameters!L167*IF(DemandParameters!C167=Code_Offpeak,TimeValue_Person_Offpeak,TimeValue_Person_Peak) -> 0 | AL203: =AH203*DemandParameters!M167*TimeValue_Truck -> 0.5277118868 | AM203: =AI203*DemandParameters!M167*TimeValue_Truck -> 0 | AN203: =AH203*DemandParameters!N167*IF(DemandParameters!C167=Code_Offpeak,TimeValue_Person_Offpeak,TimeValue_Person_Peak) -> 0 | AO203: =AI203*DemandParameters!N167*IF(DemandParameters!C167=Code_Offpeak,TimeValue_Person_Offpeak,TimeValue_Person_Peak) -> 0
A204: 2014-01-01T01:00:00 | B204: =IF(DemandParameters!G168>0,EXP(AverageTravelTimeModel_Constant+AverageTravelTimeModel_LogVolumeParameter*LN(DemandParameters!G168))/SecondsPerHour,0) -> 0.0001208623299 | C204: =IF(INDEX(StandardDeviationTable,DemandParameters!C168,1)=0,0,ReliabilityInsuranceTime(0.99, B204, INDEX(StandardDeviationTable,DemandParameters!C168,1), Discount_Rate)) -> 0 | D204: =B204*DemandParameters!H168*IF(DemandParameters!C168=Code_Offpeak,TimeValue_Person_Offpeak,TimeValue_Person_Peak) -> 0.4014632886 | E204: =C204*DemandParameters!H168*IF(DemandParameters!C168=Code_Offpeak,TimeValue_Person_Offpeak,TimeValue_Person_Peak) -> 0 | F204: =B204*DemandParameters!I168*TimeValue_Truck -> 0.01250284786 | G204: =C204*DemandParameters!I168*TimeValue_Truck -> 0 | H204: =B204*DemandParameters!J168*IF(DemandParameters!C168=Code_Offpeak,TimeValue_Person_Offpeak,TimeValue_Person_Peak) -> 0 | I204: =C204*DemandParameters!J168*IF(DemandParameters!C168=Code_Offpeak,TimeValue_Person_Offpeak,TimeValue_Person_Peak) -> 0 | AH204: =IF(DemandParameters!K168>0,EXP(AverageTravelTimeModel_Constant+AverageTravelTimeModel_LogVolumeParameter*LN(DemandParameters!K168))/SecondsPerHour,0) -> 0.0003409983808 | AI204: =IF(INDEX(StandardDeviationTable,DemandParameters!C168,5)=0,0,ReliabilityInsuranceTime(0.99, AH204, INDEX(StandardDeviationTable,DemandParameters!C168,5), Discount_Rate)) -> 0 | AJ204: =AH204*DemandParameters!L168*IF(DemandParameters!C168=Code_Offpeak,TimeValue_Person_Offpeak,TimeValue_Person_Peak) -> 3.912672985 | AK204: =AI204*DemandParameters!L168*IF(DemandParameters!C168=Code_Offpeak,TimeValue_Person_Offpeak,TimeValue_Person_Peak) -> 0 | AL204: =AH204*DemandParameters!M168*TimeValue_Truck -> 0.1243917286 | AM204: =AI204*DemandParameters!M168*TimeValue_Truck -> 0 | AN204: =AH204*DemandParameters!N168*IF(DemandParameters!C168=Code_Offpeak,TimeValue_Person_Offpeak,TimeValue_Person_Peak) -> 0 | AO204: =AI204*DemandParameters!N168*IF(DemandParameters!C168=Code_Offpeak,TimeValue_Person_Offpeak,TimeValue_Person_Peak) -> 0
A205: 2014-01-01T02:00:00 | B205: =IF(DemandParameters!G169>0,EXP(AverageTravelTimeModel_Constant+AverageTravelTimeModel_LogVolumeParameter*LN(DemandParameters!G169))/SecondsPerHour,0) -> 5.757365627e-05 | C205: =IF(INDEX(StandardDeviationTable,DemandParameters!C169,1)=0,0,ReliabilityInsuranceTime(0.99, B205, INDEX(StandardDeviationTable,DemandParameters!C169,1), Discount_Rate)) -> 0 | D205: =B205*DemandParameters!H169*IF(DemandParameters!C169=Code_Offpeak,TimeValue_Person_Offpeak,TimeValue_Person_Peak) -> 0.1274933191 | E205: =C205*DemandParameters!H169*IF(DemandParameters!C169=Code_Offpeak,TimeValue_Person_Offpeak,TimeValue_Person_Peak) -> 0 | F205: =B205*DemandParameters!I169*TimeValue_Truck -> 0.003970548781 | G205: =C205*DemandParameters!I169*TimeValue_Truck -> 0 | H205: =B205*DemandParameters!J169*IF(DemandParameters!C169=Code_Offpeak,TimeValue_Person_Offpeak,TimeValue_Person_Peak) -> 0 | I205: =C205*DemandParameters!J169*IF(DemandParameters!C169=Code_Offpeak,TimeValue_Person_Offpeak,TimeValue_Person_Peak) -> 0 | AH205: =IF(DemandParameters!K169>0,EXP(AverageTravelTimeModel_Constant+AverageTravelTimeModel_LogVolumeParameter*LN(DemandParameters!K169))/SecondsPerHour,0) -> 0.0001624370768 | AI205: =IF(INDEX(StandardDeviationTable,DemandParameters!C169,5)=0,0,ReliabilityInsuranceTime(0.99, AH205, INDEX(StandardDeviationTable,DemandParameters!C169,5), Discount_Rate)) -> 0 | AJ205: =AH205*DemandParameters!L169*IF(DemandParameters!C169=Code_Offpeak,TimeValue_Person_Offpeak,TimeValue_Person_Peak) -> 1.242553627 | AK205: =AI205*DemandParameters!L169*IF(DemandParameters!C169=Code_Offpeak,TimeValue_Person_Offpeak,TimeValue_Person_Peak) -> 0 | AL205: =AH205*DemandParameters!M169*TimeValue_Truck -> 0.03950327414 | AM205: =AI205*DemandParameters!M169*TimeValue_Truck -> 0 | AN205: =AH205*DemandParameters!N169*IF(DemandParameters!C169=Code_Offpeak,TimeValue_Person_Offpeak,TimeValue_Person_Peak) -> 0 | AO205: =AI205*DemandParameters!N169*IF(DemandParameters!C169=Code_Offpeak,TimeValue_Person_Offpeak,TimeValue_Person_Peak) -> 0
A206: 2014-01-01T03:00:00 | B206: =IF(DemandParameters!G170>0,EXP(AverageTravelTimeModel_Constant+AverageTravelTimeModel_LogVolumeParameter*LN(DemandParameters!G170))/SecondsPerHour,0) -> 1.620490087e-05 | C206: =IF(INDEX(StandardDeviationTable,DemandParameters!C170,1)=0,0,ReliabilityInsuranceTime(0.99, B206, INDEX(StandardDeviationTable,DemandParameters!C170,1), Discount_Rate)) -> 0 | D206: =B206*DemandParameters!H170*IF(DemandParameters!C170=Code_Offpeak,TimeValue_Person_Offpeak,TimeValue_Person_Peak) -> 0.01794237792 | E206: =C206*DemandParameters!H170*IF(DemandParameters!C170=Code_Offpeak,TimeValue_Person_Offpeak,TimeValue_Person_Peak) -> 0 | F206: =B206*DemandParameters!I170*TimeValue_Truck -> 0.0005587829016 | G206: =C206*DemandParameters!I170*TimeValue_Truck -> 0 | H206: =B206*DemandParameters!J170*IF(DemandParameters!C170=Code_Offpeak,TimeValue_Person_Offpeak,TimeValue_Person_Peak) -> 0 | I206: =C206*DemandParameters!J170*IF(DemandParameters!C170=Code_Offpeak,TimeValue_Person_Offpeak,TimeValue_Person_Peak) -> 0 | AH206: =IF(DemandParameters!K170>0,EXP(AverageTravelTimeModel_Constant+AverageTravelTimeModel_LogVolumeParameter*LN(DemandParameters!K170))/SecondsPerHour,0) -> 4.572015917e-05 | AI206: =IF(INDEX(StandardDeviationTable,DemandParameters!C170,5)=0,0,ReliabilityInsuranceTime(0.99, AH206, INDEX(StandardDeviationTable,DemandParameters!C170,5), Discount_Rate)) -> 0 | AJ206: =AH206*DemandParameters!L170*IF(DemandParameters!C170=Code_Offpeak,TimeValue_Person_Offpeak,TimeValue_Person_Peak) -> 0.1748669414 | AK206: =AI206*DemandParameters!L170*IF(DemandParameters!C170=Code_Offpeak,TimeValue_Person_Offpeak,TimeValue_Person_Peak) -> 0 | AL206: =AH206*DemandParameters!M170*TimeValue_Truck -> 0.005559371101 | AM206: =AI206*DemandParameters!M170*TimeValue_Truck -> 0 | AN206: =AH206*DemandParameters!N170*IF(DemandParameters!C170=Code_Offpeak,TimeValue_Person_Offpeak,TimeValue_Person_Peak) -> 0 | AO206: =AI206*DemandParameters!N170*IF(DemandParameters!C170=Code_Offpeak,TimeValue_Person_Offpeak,TimeValue_Person_Peak) -> 0
A207: 2014-01-01T04:00:00 | B207: =IF(DemandParameters!G171>0,EXP(AverageTravelTimeModel_Constant+AverageTravelTimeModel_LogVolumeParameter*LN(DemandParameters!G171))/SecondsPerHour,0) -> 1.620490087e-05 | C207: =IF(INDEX(StandardDeviationTable,DemandParameters!C171,1)=0,0,ReliabilityInsuranceTime(0.99, B207, INDEX(StandardDeviationTable,DemandParameters!C171,1), Discount_Rate)) -> 0 | D207: =B207*DemandParameters!H171*IF(DemandParameters!C171=Code_Offpeak,TimeValue_Person_Offpeak,TimeValue_Person_Peak) -> 0.01794237792 | E207: =C207*DemandParameters!H171*IF(DemandParameters!C171=Code_Offpeak,TimeValue_Person_Offpeak,TimeValue_Person_Peak) -> 0 | F207: =B207*DemandParameters!I171*TimeValue_Truck -> 0.0005587829016 | G207: =C207*DemandParameters!I171*TimeValue_Truck -> 0 | H207: =B207*DemandParameters!J171*IF(DemandParameters!C171=Code_Offpeak,TimeValue_Person_Offpeak,TimeValue_Person_Peak) -> 0 | I207: =C207*DemandParameters!J171*IF(DemandParameters!C171=Code_Offpeak,TimeValue_Person_Offpeak,TimeValue_Person_Peak) -> 0 | AH207: =IF(DemandParameters!K171>0,EXP(AverageTravelTimeModel_Constant+AverageTravelTimeModel_LogVolumeParameter*LN(DemandParameters!K171))/SecondsPerHour,0) -> 4.572015917e-05 | AI207: =IF(INDEX(StandardDeviationTable,DemandParameters!C171,5)=0,0,ReliabilityInsuranceTime(0.99, AH207, INDEX(StandardDeviationTable,DemandParameters!C171,5), Discount_Rate)) -> 0 | AJ207: =AH207*DemandParameters!L171*IF(DemandParameters!C171=Code_Offpeak,TimeValue_Person_Offpeak,TimeValue_Person_Peak) -> 0.1748669414 | AK207: =AI207*DemandParameters!L171*IF(DemandParameters!C171=Code_Offpeak,TimeValue_Person_Offpeak,TimeValue_Person_Peak) -> 0 | AL207: =AH207*DemandParameters!M171*TimeValue_Truck -> 0.005559371101 | AM207: =AI207*DemandParameters!M171*TimeValue_Truck -> 0 | AN207: =AH207*DemandParameters!N171*IF(DemandParameters!C171=Code_Offpeak,TimeValue_Person_Offpeak,TimeValue_Person_Peak) -> 0 | AO207: =AI207*DemandParameters!N171*IF(DemandParameters!C171=Code_Offpeak,TimeValue_Person_Offpeak,TimeValue_Person_Peak) -> 0
A208: 2014-01-01T05:00:00 | B208: =IF(DemandParameters!G172>0,EXP(AverageTravelTimeModel_Constant+AverageTravelTimeModel_LogVolumeParameter*LN(DemandParameters!G172))/SecondsPerHour,0) -> 0.0001602268188 | C208: =IF(INDEX(StandardDeviationTable,DemandParameters!C172,1)=0,0,ReliabilityInsuranceTime(0.99, B208, INDEX(StandardDeviationTable,DemandParameters!C172,1), Discount_Rate)) -> 0 | D208: =B208*DemandParameters!H172*IF(DemandParameters!C172=Code_Offpeak,TimeValue_Person_Offpeak,TimeValue_Person_Peak) -> 0.620921754 | E208: =C208*DemandParameters!H172*IF(DemandParameters!C172=Code_Offpeak,TimeValue_Person_Offpeak,TimeValue_Person_Peak) -> 0 | F208: =B208*DemandParameters!I172*TimeValue_Truck -> 0.01933748475 | G208: =C208*DemandParameters!I172*TimeValue_Truck -> 0 | H208: =B208*DemandParameters!J172*IF(DemandParameters!C172=Code_Offpeak,TimeValue_Person_Offpeak,TimeValue_Person_Peak) -> 0 | I208: =C208*DemandParameters!J172*IF(DemandParameters!C172=Code_Offpeak,TimeValue_Person_Offpeak,TimeValue_Person_Peak) -> 0 | AH208: =IF(DemandParameters!K172>0,EXP(AverageTravelTimeModel_Constant+AverageTravelTimeModel_LogVolumeParameter*LN(DemandParameters!K172))/SecondsPerHour,0) -> 0.0004520605041 | AI208: =IF(INDEX(StandardDeviationTable,DemandParameters!C172,5)=0,0,ReliabilityInsuranceTime(0.99, AH208, INDEX(StandardDeviationTable,DemandParameters!C172,5), Discount_Rate)) -> 0 | AJ208: =AH208*DemandParameters!L172*IF(DemandParameters!C172=Code_Offpeak,TimeValue_Person_Offpeak,TimeValue_Person_Peak) -> 6.051521626 | AK208: =AI208*DemandParameters!L172*IF(DemandParameters!C172=Code_Offpeak,TimeValue_Person_Offpeak,TimeValue_Person_Peak) -> 0 | AL208: =AH208*DemandParameters!M172*TimeValue_Truck -> 0.1923900205 | AM208: =AI208*DemandParameters!M172*TimeValue_Truck -> 0 | AN208: =AH208*DemandParameters!N172*IF(DemandParameters!C172=Code_Offpeak,TimeValue_Person_Offpeak,TimeValue_Person_Peak) -> 0 | AO208: =AI208*DemandParameters!N172*IF(DemandParameters!C172=Code_Offpeak,TimeValue_Person_Offpeak,TimeValue_Person_Peak) -> 0
A209: 2014-01-01T06:00:00 | B209: =IF(DemandParameters!G173>0,EXP(AverageTravelTimeModel_Constant+AverageTravelTimeModel_LogVolumeParameter*LN(DemandParameters!G173))/SecondsPerHour,0) -> 0.001411367366 | C209: =IF(INDEX(StandardDeviationTable,DemandParameters!C173,1)=0,0,ReliabilityInsuranceTime(0.99, B209, INDEX(StandardDeviationTable,DemandParameters!C173,1), Discount_Rate)) -> 0 | D209: =B209*DemandParameters!H173*IF(DemandParameters!C173=Code_Offpeak,TimeValue_Person_Offpeak,TimeValue_Person_Peak) -> 17.97097056 | E209: =C209*DemandParameters!H173*IF(DemandParameters!C173=Code_Offpeak,TimeValue_Person_Offpeak,TimeValue_Person_Peak) -> 0 | F209: =B209*DemandParameters!I173*TimeValue_Truck -> 0.5596733678 | G209: =C209*DemandParameters!I173*TimeValue_Truck -> 0 | H209: =B209*DemandParameters!J173*IF(DemandParameters!C173=Code_Offpeak,TimeValue_Person_Offpeak,TimeValue_Person_Peak) -> 0 | I209: =C209*DemandParameters!J173*IF(DemandParameters!C173=Code_Offpeak,TimeValue_Person_Offpeak,TimeValue_Person_Peak) -> 0 | AH209: =IF(DemandParameters!K173>0,EXP(AverageTravelTimeModel_Constant+AverageTravelTimeModel_LogVolumeParameter*LN(DemandParameters!K173))/SecondsPerHour,0) -> 0.003982001563 | AI209: =IF(INDEX(StandardDeviationTable,DemandParameters!C173,5)=0,0,ReliabilityInsuranceTime(0.99, AH209, INDEX(StandardDeviationTable,DemandParameters!C173,5), Discount_Rate)) -> 0 | AJ209: =AH209*DemandParameters!L173*IF(DemandParameters!C173=Code_Offpeak,TimeValue_Person_Offpeak,TimeValue_Person_Peak) -> 175.1456062 | AK209: =AI209*DemandParameters!L173*IF(DemandParameters!C173=Code_Offpeak,TimeValue_Person_Offpeak,TimeValue_Person_Peak) -> 0 | AL209: =AH209*DemandParameters!M173*TimeValue_Truck -> 5.568230413 | AM209: =AI209*DemandParameters!M173*TimeValue_Truck -> 0 | AN209: =AH209*DemandParameters!N173*IF(DemandParameters!C173=Code_Offpeak,TimeValue_Person_Offpeak,TimeValue_Person_Peak) -> 0 | AO209: =AI209*DemandParameters!N173*IF(DemandParameters!C173=Code_Offpeak,TimeValue_Person_Offpeak,TimeValue_Person_Peak) -> 0
A210: 2014-01-01T07:00:00 | B210: =IF(DemandParameters!G174>0,EXP(AverageTravelTimeModel_Constant+AverageTravelTimeModel_LogVolumeParameter*LN(DemandParameters!G174))/SecondsPerHour,0) -> 0.004038898326 | C210: =IF(INDEX(StandardDeviationTable,DemandParameters!C174,1)=0,0,ReliabilityInsuranceTime(0.99, B210, INDEX(StandardDeviationTable,DemandParameters!C174,1), Discount_Rate)) -> 0 | D210: =B210*DemandParameters!H174*IF(DemandParameters!C174=Code_Offpeak,TimeValue_Person_Offpeak,TimeValue_Person_Peak) -> 91.38068414 | E210: =C210*DemandParameters!H174*IF(DemandParameters!C174=Code_Offpeak,TimeValue_Person_Offpeak,TimeValue_Person_Peak) -> 0 | F210: =B210*DemandParameters!I174*TimeValue_Truck -> 2.845886095 | G210: =C210*DemandParameters!I174*TimeValue_Truck -> 0 | H210: =B210*DemandParameters!J174*IF(DemandParameters!C174=Code_Offpeak,TimeValue_Person_Offpeak,TimeValue_Person_Peak) -> 0 | I210: =C210*DemandParameters!J174*IF(DemandParameters!C174=Code_Offpeak,TimeValue_Person_Offpeak,TimeValue_Person_Peak) -> 0 | AH210: =IF(DemandParameters!K174>0,EXP(AverageTravelTimeModel_Constant+AverageTravelTimeModel_LogVolumeParameter*LN(DemandParameters!K174))/SecondsPerHour,0) -> 0.01139526096 | AI210: =IF(INDEX(StandardDeviationTable,DemandParameters!C174,5)=0,0,ReliabilityInsuranceTime(0.99, AH210, INDEX(StandardDeviationTable,DemandParameters!C174,5), Discount_Rate)) -> 0 | AJ210: =AH210*DemandParameters!L174*IF(DemandParameters!C174=Code_Offpeak,TimeValue_Person_Offpeak,TimeValue_Person_Peak) -> 890.5988278 | AK210: =AI210*DemandParameters!L174*IF(DemandParameters!C174=Code_Offpeak,TimeValue_Person_Offpeak,TimeValue_Person_Peak) -> 0 | AL210: =AH210*DemandParameters!M174*TimeValue_Truck -> 28.31392455 | AM210: =AI210*DemandParameters!M174*TimeValue_Truck -> 0 | AN210: =AH210*DemandParameters!N174*IF(DemandParameters!C174=Code_Offpeak,TimeValue_Person_Offpeak,TimeValue_Person_Peak) -> 0 | AO210: =AI210*DemandParameters!N174*IF(DemandParameters!C174=Code_Offpeak,TimeValue_Person_Offpeak,TimeValue_Person_Peak) -> 0
A211: 2014-01-01T08:00:00 | B211: =IF(DemandParameters!G175>0,EXP(AverageTravelTimeModel_Constant+AverageTravelTimeModel_LogVolumeParameter*LN(DemandParameters!G175))/SecondsPerHour,0) -> 0.009704561977 | C211: =IF(INDEX(StandardDeviationTable,DemandParameters!C175,1)=0,0,ReliabilityInsuranceTime(0.99, B211, INDEX(StandardDeviationTable,DemandParameters!C175,1), Discount_Rate)) -> 0 | D211: =B211*DemandParameters!H175*IF(DemandParameters!C175=Code_Offpeak,TimeValue_Person_Offpeak,TimeValue_Person_Peak) -> 354.5875631 | E211: =C211*DemandParameters!H175*IF(DemandParameters!C175=Code_Offpeak,TimeValue_Person_Offpeak,TimeValue_Person_Peak) -> 0 | F211: =B211*DemandParameters!I175*TimeValue_Truck -> 11.04298819 | G211: =C211*DemandParameters!I175*TimeValue_Truck -> 0 | H211: =B211*DemandParameters!J175*IF(DemandParameters!C175=Code_Offpeak,TimeValue_Person_Offpeak,TimeValue_Person_Peak) -> 0 | I211: =C211*DemandParameters!J175*IF(DemandParameters!C175=Code_Offpeak,TimeValue_Person_Offpeak,TimeValue_Person_Peak) -> 0 | AH211: =IF(DemandParameters!K175>0,EXP(AverageTravelTimeModel_Constant+AverageTravelTimeModel_LogVolumeParameter*LN(DemandParameters!K175))/SecondsPerHour,0) -> 0.02738024266 | AI211: =IF(INDEX(StandardDeviationTable,DemandParameters!C175,5)=0,0,ReliabilityInsuranceTime(0.99, AH211, INDEX(StandardDeviationTable,DemandParameters!C175,5), Discount_Rate)) -> 0 | AJ211: =AH211*DemandParameters!L175*IF(DemandParameters!C175=Code_Offpeak,TimeValue_Person_Offpeak,TimeValue_Person_Peak) -> 3455.82079 | AK211: =AI211*DemandParameters!L175*IF(DemandParameters!C175=Code_Offpeak,TimeValue_Person_Offpeak,TimeValue_Person_Peak) -> 0 | AL211: =AH211*DemandParameters!M175*TimeValue_Truck -> 109.8674802 | AM211: =AI211*DemandParameters!M175*TimeValue_Truck -> 0 | AN211: =AH211*DemandParameters!N175*IF(DemandParameters!C175=Code_Offpeak,TimeValue_Person_Offpeak,TimeValue_Person_Peak) -> 0 | AO211: =AI211*DemandParameters!N175*IF(DemandParameters!C175=Code_Offpeak,TimeValue_Person_Offpeak,TimeValue_Person_Peak) -> 0
A212: 2014-01-01T09:00:00 | B212: =IF(DemandParameters!G176>0,EXP(AverageTravelTimeModel_Constant+AverageTravelTimeModel_LogVolumeParameter*LN(DemandParameters!G176))/SecondsPerHour,0) -> 0.006723263432 | C212: =IF(INDEX(StandardDeviationTable,DemandParameters!C176,1)=0,0,ReliabilityInsuranceTime(0.99, B212, INDEX(StandardDeviationTable,DemandParameters!C176,1), Discount_Rate)) -> 0 | D212: =B212*DemandParameters!H176*IF(DemandParameters!C176=Code_Offpeak,TimeValue_Person_Offpeak,TimeValue_Person_Peak) -> 200.9914177 | E212: =C212*DemandParameters!H176*IF(DemandParameters!C176=Code_Offpeak,TimeValue_Person_Offpeak,TimeValue_Person_Peak) -> 0 | F212: =B212*DemandParameters!I176*TimeValue_Truck -> 6.2595141 | G212: =C212*DemandParameters!I176*TimeValue_Truck -> 0 | H212: =B212*DemandParameters!J176*IF(DemandParameters!C176=Code_Offpeak,TimeValue_Person_Offpeak,TimeValue_Person_Peak) -> 0 | I212: =C212*DemandParameters!J176*IF(DemandParameters!C176=Code_Offpeak,TimeValue_Person_Offpeak,TimeValue_Person_Peak) -> 0 | AH212: =IF(DemandParameters!K176>0,EXP(AverageTravelTimeModel_Constant+AverageTravelTimeModel_LogVolumeParameter*LN(DemandParameters!K176))/SecondsPerHour,0) -> 0.018968871 | AI212: =IF(INDEX(StandardDeviationTable,DemandParameters!C176,5)=0,0,ReliabilityInsuranceTime(0.99, AH212, INDEX(StandardDeviationTable,DemandParameters!C176,5), Discount_Rate)) -> 0 | AJ212: =AH212*DemandParameters!L176*IF(DemandParameters!C176=Code_Offpeak,TimeValue_Person_Offpeak,TimeValue_Person_Peak) -> 1958.868252 | AK212: =AI212*DemandParameters!L176*IF(DemandParameters!C176=Code_Offpeak,TimeValue_Person_Offpeak,TimeValue_Person_Peak) -> 0 | AL212: =AH212*DemandParameters!M176*TimeValue_Truck -> 62.27635401 | AM212: =AI212*DemandParameters!M176*TimeValue_Truck -> 0 | AN212: =AH212*DemandParameters!N176*IF(DemandParameters!C176=Code_Offpeak,TimeValue_Person_Offpeak,TimeValue_Person_Peak) -> 0 | AO212: =AI212*DemandParameters!N176*IF(DemandParameters!C176=Code_Offpeak,TimeValue_Person_Offpeak,TimeValue_Person_Peak) -> 0
A213: 2014-01-01T10:00:00 | B213: =IF(DemandParameters!G177>0,EXP(AverageTravelTimeModel_Constant+AverageTravelTimeModel_LogVolumeParameter*LN(DemandParameters!G177))/SecondsPerHour,0) -> 0.006055894822 | C213: =IF(INDEX(StandardDeviationTable,DemandParameters!C177,1)=0,0,ReliabilityInsuranceTime(0.99, B213, INDEX(StandardDeviationTable,DemandParameters!C177,1), Discount_Rate)) -> 0 | D213: =B213*DemandParameters!H177*IF(DemandParameters!C177=Code_Offpeak,TimeValue_Person_Offpeak,TimeValue_Person_Peak) -> 170.9826821 | E213: =C213*DemandParameters!H177*IF(DemandParameters!C177=Code_Offpeak,TimeValue_Person_Offpeak,TimeValue_Person_Peak) -> 0 | F213: =B213*DemandParameters!I177*TimeValue_Truck -> 5.324946319 | G213: =C213*DemandParameters!I177*TimeValue_Truck -> 0 | H213: =B213*DemandParameters!J177*IF(DemandParameters!C177=Code_Offpeak,TimeValue_Person_Offpeak,TimeValue_Person_Peak) -> 0 | I213: =C213*DemandParameters!J177*IF(DemandParameters!C177=Code_Offpeak,TimeValue_Person_Offpeak,TimeValue_Person_Peak) -> 0 | AH213: =IF(DemandParameters!K177>0,EXP(AverageTravelTimeModel_Constant+AverageTravelTimeModel_LogVolumeParameter*LN(DemandParameters!K177))/SecondsPerHour,0) -> 0.01708597154 | AI213: =IF(INDEX(StandardDeviationTable,DemandParameters!C177,5)=0,0,ReliabilityInsuranceTime(0.99, AH213, INDEX(StandardDeviationTable,DemandParameters!C177,5), Discount_Rate)) -> 0 | AJ213: =AH213*DemandParameters!L177*IF(DemandParameters!C177=Code_Offpeak,TimeValue_Person_Offpeak,TimeValue_Person_Peak) -> 1666.402235 | AK213: =AI213*DemandParameters!L177*IF(DemandParameters!C177=Code_Offpeak,TimeValue_Person_Offpeak,TimeValue_Person_Peak) -> 0 | AL213: =AH213*DemandParameters!M177*TimeValue_Truck -> 52.97827223 | AM213: =AI213*DemandParameters!M177*TimeValue_Truck -> 0 | AN213: =AH213*DemandParameters!N177*IF(DemandParameters!C177=Code_Offpeak,TimeValue_Person_Offpeak,TimeValue_Person_Peak) -> 0 | AO213: =AI213*DemandParameters!N177*IF(DemandParameters!C177=Code_Offpeak,TimeValue_Person_Offpeak,TimeValue_Person_Peak) -> 0
A214: 2014-01-01T11:00:00 | B214: =IF(DemandParameters!G178>0,EXP(AverageTravelTimeModel_Constant+AverageTravelTimeModel_LogVolumeParameter*LN(DemandParameters!G178))/SecondsPerHour,0) -> 0.007185673921 | C214: =IF(INDEX(StandardDeviationTable,DemandParameters!C178,1)=0,0,ReliabilityInsuranceTime(0.99, B214, INDEX(StandardDeviationTable,DemandParameters!C178,1), Discount_Rate)) -> 0 | D214: =B214*DemandParameters!H178*IF(DemandParameters!C178=Code_Offpeak,TimeValue_Person_Offpeak,TimeValue_Person_Peak) -> 222.7712583 | E214: =C214*DemandParameters!H178*IF(DemandParameters!C178=Code_Offpeak,TimeValue_Person_Offpeak,TimeValue_Person_Peak) -> 0 | F214: =B214*DemandParameters!I178*TimeValue_Truck -> 6.937807836 | G214: =C214*DemandParameters!I178*TimeValue_Truck -> 0 | H214: =B214*DemandParameters!J178*IF(DemandParameters!C178=Code_Offpeak,TimeValue_Person_Offpeak,TimeValue_Person_Peak) -> 0 | I214: =C214*DemandParameters!J178*IF(DemandParameters!C178=Code_Offpeak,TimeValue_Person_Offpeak,TimeValue_Person_Peak) -> 0 | AH214: =IF(DemandParameters!K178>0,EXP(AverageTravelTimeModel_Constant+AverageTravelTimeModel_LogVolumeParameter*LN(DemandParameters!K178))/SecondsPerHour,0) -> 0.02027350602 | AI214: =IF(INDEX(StandardDeviationTable,DemandParameters!C178,5)=0,0,ReliabilityInsuranceTime(0.99, AH214, INDEX(StandardDeviationTable,DemandParameters!C178,5), Discount_Rate)) -> 0 | AJ214: =AH214*DemandParameters!L178*IF(DemandParameters!C178=Code_Offpeak,TimeValue_Person_Offpeak,TimeValue_Person_Peak) -> 2171.135217 | AK214: =AI214*DemandParameters!L178*IF(DemandParameters!C178=Code_Offpeak,TimeValue_Person_Offpeak,TimeValue_Person_Peak) -> 0 | AL214: =AH214*DemandParameters!M178*TimeValue_Truck -> 69.02474696 | AM214: =AI214*DemandParameters!M178*TimeValue_Truck -> 0 | AN214: =AH214*DemandParameters!N178*IF(DemandParameters!C178=Code_Offpeak,TimeValue_Person_Offpeak,TimeValue_Person_Peak) -> 0 | AO214: =AI214*DemandParameters!N178*IF(DemandParameters!C178=Code_Offpeak,TimeValue_Person_Offpeak,TimeValue_Person_Peak) -> 0
A215: 2014-01-01T12:00:00 | B215: =IF(DemandParameters!G179>0,EXP(AverageTravelTimeModel_Constant+AverageTravelTimeModel_LogVolumeParameter*LN(DemandParameters!G179))/SecondsPerHour,0) -> 0.01109126092 | C215: =IF(INDEX(StandardDeviationTable,DemandParameters!C179,1)=0,0,ReliabilityInsuranceTime(0.99, B215, INDEX(StandardDeviationTable,DemandParameters!C179,1), Discount_Rate)) -> 0 | D215: =B215*DemandParameters!H179*IF(DemandParameters!C179=Code_Offpeak,TimeValue_Person_Offpeak,TimeValue_Person_Peak) -> 435.9562381 | E215: =C215*DemandParameters!H179*IF(DemandParameters!C179=Code_Offpeak,TimeValue_Person_Offpeak,TimeValue_Person_Peak) -> 0 | F215: =B215*DemandParameters!I179*TimeValue_Truck -> 13.57706837 | G215: =C215*DemandParameters!I179*TimeValue_Truck -> 0 | H215: =B215*DemandParameters!J179*IF(DemandParameters!C179=Code_Offpeak,TimeValue_Person_Offpeak,TimeValue_Person_Peak) -> 0 | I215: =C215*DemandParameters!J179*IF(DemandParameters!C179=Code_Offpeak,TimeValue_Person_Offpeak,TimeValue_Person_Peak) -> 0 | AH215: =IF(DemandParameters!K179>0,EXP(AverageTravelTimeModel_Constant+AverageTravelTimeModel_LogVolumeParameter*LN(DemandParameters!K179))/SecondsPerHour,0) -> 0.03129264528 | AI215: =IF(INDEX(StandardDeviationTable,DemandParameters!C179,5)=0,0,ReliabilityInsuranceTime(0.99, AH215, INDEX(StandardDeviationTable,DemandParameters!C179,5), Discount_Rate)) -> 0 | AJ215: =AH215*DemandParameters!L179*IF(DemandParameters!C179=Code_Offpeak,TimeValue_Person_Offpeak,TimeValue_Person_Peak) -> 4248.842283 | AK215: =AI215*DemandParameters!L179*IF(DemandParameters!C179=Code_Offpeak,TimeValue_Person_Offpeak,TimeValue_Person_Peak) -> 0 | AL215: =AH215*DemandParameters!M179*TimeValue_Truck -> 135.0792254 | AM215: =AI215*DemandParameters!M179*TimeValue_Truck -> 0 | AN215: =AH215*DemandParameters!N179*IF(DemandParameters!C179=Code_Offpeak,TimeValue_Person_Offpeak,TimeValue_Person_Peak) -> 0 | AO215: =AI215*DemandParameters!N179*IF(DemandParameters!C179=Code_Offpeak,TimeValue_Person_Offpeak,TimeValue_Person_Peak) -> 0
A216: 2014-01-01T13:00:00 | B216: =IF(DemandParameters!G180>0,EXP(AverageTravelTimeModel_Constant+AverageTravelTimeModel_LogVolumeParameter*LN(DemandParameters!G180))/SecondsPerHour,0) -> 0.009704561977 | C216: =IF(INDEX(StandardDeviationTable,DemandParameters!C180,1)=0,0,ReliabilityInsuranceTime(0.99, B216, INDEX(StandardDeviationTable,DemandParameters!C180,1), Discount_Rate)) -> 0 | D216: =B216*DemandParameters!H180*IF(DemandParameters!C180=Code_Offpeak,TimeValue_Person_Offpeak,TimeValue_Person_Peak) -> 354.5875631 | E216: =C216*DemandParameters!H180*IF(DemandParameters!C180=Code_Offpeak,TimeValue_Person_Offpeak,TimeValue_Person_Peak) -> 0 | F216: =B216*DemandParameters!I180*TimeValue_Truck -> 11.04298819 | G216: =C216*DemandParameters!I180*TimeValue_Truck -> 0 | H216: =B216*DemandParameters!J180*IF(DemandParameters!C180=Code_Offpeak,TimeValue_Person_Offpeak,TimeValue_Person_Peak) -> 0 | I216: =C216*DemandParameters!J180*IF(DemandParameters!C180=Code_Offpeak,TimeValue_Person_Offpeak,TimeValue_Person_Peak) -> 0 | AH216: =IF(DemandParameters!K180>0,EXP(AverageTravelTimeModel_Constant+AverageTravelTimeModel_LogVolumeParameter*LN(DemandParameters!K180))/SecondsPerHour,0) -> 0.02738024266 | AI216: =IF(INDEX(StandardDeviationTable,DemandParameters!C180,5)=0,0,ReliabilityInsuranceTime(0.99, AH216, INDEX(StandardDeviationTable,DemandParameters!C180,5), Discount_Rate)) -> 0 | AJ216: =AH216*DemandParameters!L180*IF(DemandParameters!C180=Code_Offpeak,TimeValue_Person_Offpeak,TimeValue_Person_Peak) -> 3455.82079 | AK216: =AI216*DemandParameters!L180*IF(DemandParameters!C180=Code_Offpeak,TimeValue_Person_Offpeak,TimeValue_Person_Peak) -> 0 | AL216: =AH216*DemandParameters!M180*TimeValue_Truck -> 109.8674802 | AM216: =AI216*DemandParameters!M180*TimeValue_Truck -> 0 | AN216: =AH216*DemandParameters!N180*IF(DemandParameters!C180=Code_Offpeak,TimeValue_Person_Offpeak,TimeValue_Person_Peak) -> 0 | AO216: =AI216*DemandParameters!N180*IF(DemandParameters!C180=Code_Offpeak,TimeValue_Person_Offpeak,TimeValue_Person_Peak) -> 0
A217: 2014-01-01T14:00:00 | B217: =IF(DemandParameters!G181>0,EXP(AverageTravelTimeModel_Constant+AverageTravelTimeModel_LogVolumeParameter*LN(DemandParameters!G181))/SecondsPerHour,0) -> 0.008152101925 | C217: =IF(INDEX(StandardDeviationTable,DemandParameters!C181,1)=0,0,ReliabilityInsuranceTime(0.99, B217, INDEX(StandardDeviationTable,DemandParameters!C181,1), Discount_Rate)) -> 0 | D217: =B217*DemandParameters!H181*IF(DemandParameters!C181=Code_Offpeak,TimeValue_Person_Offpeak,TimeValue_Person_Peak) -> 270.7849213 | E217: =C217*DemandParameters!H181*IF(DemandParameters!C181=Code_Offpeak,TimeValue_Person_Offpeak,TimeValue_Person_Peak) -> 0 | F217: =B217*DemandParameters!I181*TimeValue_Truck -> 8.433106509 | G217: =C217*DemandParameters!I181*TimeValue_Truck -> 0 | H217: =B217*DemandParameters!J181*IF(DemandParameters!C181=Code_Offpeak,TimeValue_Person_Offpeak,TimeValue_Person_Peak) -> 0 | I217: =C217*DemandParameters!J181*IF(DemandParameters!C181=Code_Offpeak,TimeValue_Person_Offpeak,TimeValue_Person_Peak) -> 0 | AH217: =IF(DemandParameters!K181>0,EXP(AverageTravelTimeModel_Constant+AverageTravelTimeModel_LogVolumeParameter*LN(DemandParameters!K181))/SecondsPerHour,0) -> 0.02300016523 | AI217: =IF(INDEX(StandardDeviationTable,DemandParameters!C181,5)=0,0,ReliabilityInsuranceTime(0.99, AH217, INDEX(StandardDeviationTable,DemandParameters!C181,5), Discount_Rate)) -> 0 | AJ217: =AH217*DemandParameters!L181*IF(DemandParameters!C181=Code_Offpeak,TimeValue_Person_Offpeak,TimeValue_Person_Peak) -> 2639.077785 | AK217: =AI217*DemandParameters!L181*IF(DemandParameters!C181=Code_Offpeak,TimeValue_Person_Offpeak,TimeValue_Person_Peak) -> 0 | AL217: =AH217*DemandParameters!M181*TimeValue_Truck -> 83.90158053 | AM217: =AI217*DemandParameters!M181*TimeValue_Truck -> 0 | AN217: =AH217*DemandParameters!N181*IF(DemandParameters!C181=Code_Offpeak,TimeValue_Person_Offpeak,TimeValue_Person_Peak) -> 0 | AO217: =AI217*DemandParameters!N181*IF(DemandParameters!C181=Code_Offpeak,TimeValue_Person_Offpeak,TimeValue_Person_Peak) -> 0
A218: 2014-01-01T15:00:00 | B218: =IF(DemandParameters!G182>0,EXP(AverageTravelTimeModel_Constant+AverageTravelTimeModel_LogVolumeParameter*LN(DemandParameters!G182))/SecondsPerHour,0) -> 0.008655956394 | C218: =IF(INDEX(StandardDeviationTable,DemandParameters!C182,1)=0,0,ReliabilityInsuranceTime(0.99, B218, INDEX(StandardDeviationTable,DemandParameters!C182,1), Discount_Rate)) -> 0 | D218: =B218*DemandParameters!H182*IF(DemandParameters!C182=Code_Offpeak,TimeValue_Person_Offpeak,TimeValue_Person_Peak) -> 297.1052834 | E218: =C218*DemandParameters!H182*IF(DemandParameters!C182=Code_Offpeak,TimeValue_Person_Offpeak,TimeValue_Person_Peak) -> 0 | F218: =B218*DemandParameters!I182*TimeValue_Truck -> 9.252806573 | G218: =C218*DemandParameters!I182*TimeValue_Truck -> 0 | H218: =B218*DemandParameters!J182*IF(DemandParameters!C182=Code_Offpeak,TimeValue_Person_Offpeak,TimeValue_Person_Peak) -> 0 | I218: =C218*DemandParameters!J182*IF(DemandParameters!C182=Code_Offpeak,TimeValue_Person_Offpeak,TimeValue_Person_Peak) -> 0 | AH218: =IF(DemandParameters!K182>0,EXP(AverageTravelTimeModel_Constant+AverageTravelTimeModel_LogVolumeParameter*LN(DemandParameters!K182))/SecondsPerHour,0) -> 0.0244217294 | AI218: =IF(INDEX(StandardDeviationTable,DemandParameters!C182,5)=0,0,ReliabilityInsuranceTime(0.99, AH218, INDEX(StandardDeviationTable,DemandParameters!C182,5), Discount_Rate)) -> 0 | AJ218: =AH218*DemandParameters!L182*IF(DemandParameters!C182=Code_Offpeak,TimeValue_Person_Offpeak,TimeValue_Person_Peak) -> 2895.596806 | AK218: =AI218*DemandParameters!L182*IF(DemandParameters!C182=Code_Offpeak,TimeValue_Person_Offpeak,TimeValue_Person_Peak) -> 0 | AL218: =AH218*DemandParameters!M182*TimeValue_Truck -> 92.05683517 | AM218: =AI218*DemandParameters!M182*TimeValue_Truck -> 0 | AN218: =AH218*DemandParameters!N182*IF(DemandParameters!C182=Code_Offpeak,TimeValue_Person_Offpeak,TimeValue_Person_Peak) -> 0 | AO218: =AI218*DemandParameters!N182*IF(DemandParameters!C182=Code_Offpeak,TimeValue_Person_Offpeak,TimeValue_Person_Peak) -> 0
A219: 2014-01-01T16:00:00 | B219: =IF(DemandParameters!G183>0,EXP(AverageTravelTimeModel_Constant+AverageTravelTimeModel_LogVolumeParameter*LN(DemandParameters!G183))/SecondsPerHour,0) -> 0.008913009642 | C219: =IF(INDEX(StandardDeviationTable,DemandParameters!C183,1)=0,0,ReliabilityInsuranceTime(0.99, B219, INDEX(StandardDeviationTable,DemandParameters!C183,1), Discount_Rate)) -> 0 | D219: =B219*DemandParameters!H183*IF(DemandParameters!C183=Code_Offpeak,TimeValue_Person_Offpeak,TimeValue_Person_Peak) -> 310.8626546 | E219: =C219*DemandParameters!H183*IF(DemandParameters!C183=Code_Offpeak,TimeValue_Person_Offpeak,TimeValue_Person_Peak) -> 0 | F219: =B219*DemandParameters!I183*TimeValue_Truck -> 9.681255011 | G219: =C219*DemandParameters!I183*TimeValue_Truck -> 0 | H219: =B219*DemandParameters!J183*IF(DemandParameters!C183=Code_Offpeak,TimeValue_Person_Offpeak,TimeValue_Person_Peak) -> 0 | I219: =C219*DemandParameters!J183*IF(DemandParameters!C183=Code_Offpeak,TimeValue_Person_Offpeak,TimeValue_Person_Peak) -> 0 | AH219: =IF(DemandParameters!K183>0,EXP(AverageTravelTimeModel_Constant+AverageTravelTimeModel_LogVolumeParameter*LN(DemandParameters!K183))/SecondsPerHour,0) -> 0.02514697391 | AI219: =IF(INDEX(StandardDeviationTable,DemandParameters!C183,5)=0,0,ReliabilityInsuranceTime(0.99, AH219, INDEX(StandardDeviationTable,DemandParameters!C183,5), Discount_Rate)) -> 0 | AJ219: =AH219*DemandParameters!L183*IF(DemandParameters!C183=Code_Offpeak,TimeValue_Person_Offpeak,TimeValue_Person_Peak) -> 3029.676549 | AK219: =AI219*DemandParameters!L183*IF(DemandParameters!C183=Code_Offpeak,TimeValue_Person_Offpeak,TimeValue_Person_Peak) -> 0 | AL219: =AH219*DemandParameters!M183*TimeValue_Truck -> 96.31949935 | AM219: =AI219*DemandParameters!M183*TimeValue_Truck -> 0 | AN219: =AH219*DemandParameters!N183*IF(DemandParameters!C183=Code_Offpeak,TimeValue_Person_Offpeak,TimeValue_Person_Peak) -> 0 | AO219: =AI219*DemandParameters!N183*IF(DemandParameters!C183=Code_Offpeak,TimeValue_Person_Offpeak,TimeValue_Person_Peak) -> 0
A220: 2014-01-01T17:00:00 | B220: =IF(DemandParameters!G184>0,EXP(AverageTravelTimeModel_Constant+AverageTravelTimeModel_LogVolumeParameter*LN(DemandParameters!G184))/SecondsPerHour,0) -> 0.007117883954 | C220: =IF(INDEX(StandardDeviationTable,DemandParameters!C184,1)=0,0,ReliabilityInsuranceTime(0.99, B220, INDEX(StandardDeviationTable,DemandParameters!C184,1), Discount_Rate)) -> 0 | D220: =B220*DemandParameters!H184*IF(DemandParameters!C184=Code_Offpeak,TimeValue_Person_Offpeak,TimeValue_Person_Peak) -> 219.5289449 | E220: =C220*DemandParameters!H184*IF(DemandParameters!C184=Code_Offpeak,TimeValue_Person_Offpeak,TimeValue_Person_Peak) -> 0 | F220: =B220*DemandParameters!I184*TimeValue_Truck -> 6.836831851 | G220: =C220*DemandParameters!I184*TimeValue_Truck -> 0 | H220: =B220*DemandParameters!J184*IF(DemandParameters!C184=Code_Offpeak,TimeValue_Person_Offpeak,TimeValue_Person_Peak) -> 0 | I220: =C220*DemandParameters!J184*IF(DemandParameters!C184=Code_Offpeak,TimeValue_Person_Offpeak,TimeValue_Person_Peak) -> 0 | AH220: =IF(DemandParameters!K184>0,EXP(AverageTravelTimeModel_Constant+AverageTravelTimeModel_LogVolumeParameter*LN(DemandParameters!K184))/SecondsPerHour,0) -> 0.02008224486 | AI220: =IF(INDEX(StandardDeviationTable,DemandParameters!C184,5)=0,0,ReliabilityInsuranceTime(0.99, AH220, INDEX(StandardDeviationTable,DemandParameters!C184,5), Discount_Rate)) -> 0 | AJ220: =AH220*DemandParameters!L184*IF(DemandParameters!C184=Code_Offpeak,TimeValue_Person_Offpeak,TimeValue_Person_Peak) -> 2139.535536 | AK220: =AI220*DemandParameters!L184*IF(DemandParameters!C184=Code_Offpeak,TimeValue_Person_Offpeak,TimeValue_Person_Peak) -> 0 | AL220: =AH220*DemandParameters!M184*TimeValue_Truck -> 68.02012965 | AM220: =AI220*DemandParameters!M184*TimeValue_Truck -> 0 | AN220: =AH220*DemandParameters!N184*IF(DemandParameters!C184=Code_Offpeak,TimeValue_Person_Offpeak,TimeValue_Person_Peak) -> 0 | AO220: =AI220*DemandParameters!N184*IF(DemandParameters!C184=Code_Offpeak,TimeValue_Person_Offpeak,TimeValue_Person_Peak) -> 0
A221: 2014-01-01T18:00:00 | B221: =IF(DemandParameters!G185>0,EXP(AverageTravelTimeModel_Constant+AverageTravelTimeModel_LogVolumeParameter*LN(DemandParameters!G185))/SecondsPerHour,0) -> 0.01080721644 | C221: =IF(INDEX(StandardDeviationTable,DemandParameters!C185,1)=0,0,ReliabilityInsuranceTime(0.99, B221, INDEX(StandardDeviationTable,DemandParameters!C185,1), Discount_Rate)) -> 0 | D221: =B221*DemandParameters!H185*IF(DemandParameters!C185=Code_Offpeak,TimeValue_Person_Offpeak,TimeValue_Person_Peak) -> 418.8085263 | E221: =C221*DemandParameters!H185*IF(DemandParameters!C185=Code_Offpeak,TimeValue_Person_Offpeak,TimeValue_Person_Peak) -> 0 | F221: =B221*DemandParameters!I185*TimeValue_Truck -> 13.04303391 | G221: =C221*DemandParameters!I185*TimeValue_Truck -> 0 | H221: =B221*DemandParameters!J185*IF(DemandParameters!C185=Code_Offpeak,TimeValue_Person_Offpeak,TimeValue_Person_Peak) -> 0 | I221: =C221*DemandParameters!J185*IF(DemandParameters!C185=Code_Offpeak,TimeValue_Person_Offpeak,TimeValue_Person_Peak) -> 0 | AH221: =IF(DemandParameters!K185>0,EXP(AverageTravelTimeModel_Constant+AverageTravelTimeModel_LogVolumeParameter*LN(DemandParameters!K185))/SecondsPerHour,0) -> 0.03049124826 | AI221: =IF(INDEX(StandardDeviationTable,DemandParameters!C185,5)=0,0,ReliabilityInsuranceTime(0.99, AH221, INDEX(StandardDeviationTable,DemandParameters!C185,5), Discount_Rate)) -> 0 | AJ221: =AH221*DemandParameters!L185*IF(DemandParameters!C185=Code_Offpeak,TimeValue_Person_Offpeak,TimeValue_Person_Peak) -> 4081.720181 | AK221: =AI221*DemandParameters!L185*IF(DemandParameters!C185=Code_Offpeak,TimeValue_Person_Offpeak,TimeValue_Person_Peak) -> 0 | AL221: =AH221*DemandParameters!M185*TimeValue_Truck -> 129.7660783 | AM221: =AI221*DemandParameters!M185*TimeValue_Truck -> 0 | AN221: =AH221*DemandParameters!N185*IF(DemandParameters!C185=Code_Offpeak,TimeValue_Person_Offpeak,TimeValue_Person_Peak) -> 0 | AO221: =AI221*DemandParameters!N185*IF(DemandParameters!C185=Code_Offpeak,TimeValue_Person_Offpeak,TimeValue_Person_Peak) -> 0
A222: 2014-01-01T19:00:00 | B222: =IF(DemandParameters!G186>0,EXP(AverageTravelTimeModel_Constant+AverageTravelTimeModel_LogVolumeParameter*LN(DemandParameters!G186))/SecondsPerHour,0) -> 0.006497296416 | C222: =IF(INDEX(StandardDeviationTable,DemandParameters!C186,1)=0,0,ReliabilityInsuranceTime(0.99, B222, INDEX(StandardDeviationTable,DemandParameters!C186,1), Discount_Rate)) -> 0 | D222: =B222*DemandParameters!H186*IF(DemandParameters!C186=Code_Offpeak,TimeValue_Person_Offpeak,TimeValue_Person_Peak) -> 190.6391862 | E222: =C222*DemandParameters!H186*IF(DemandParameters!C186=Code_Offpeak,TimeValue_Person_Offpeak,TimeValue_Person_Peak) -> 0 | F222: =B222*DemandParameters!I186*TimeValue_Truck -> 5.937112579 | G222: =C222*DemandParameters!I186*TimeValue_Truck -> 0 | H222: =B222*DemandParameters!J186*IF(DemandParameters!C186=Code_Offpeak,TimeValue_Person_Offpeak,TimeValue_Person_Peak) -> 0 | I222: =C222*DemandParameters!J186*IF(DemandParameters!C186=Code_Offpeak,TimeValue_Person_Offpeak,TimeValue_Person_Peak) -> 0 | AH222: =IF(DemandParameters!K186>0,EXP(AverageTravelTimeModel_Constant+AverageTravelTimeModel_LogVolumeParameter*LN(DemandParameters!K186))/SecondsPerHour,0) -> 0.01833133252 | AI222: =IF(INDEX(StandardDeviationTable,DemandParameters!C186,5)=0,0,ReliabilityInsuranceTime(0.99, AH222, INDEX(StandardDeviationTable,DemandParameters!C186,5), Discount_Rate)) -> 0 | AJ222: =AH222*DemandParameters!L186*IF(DemandParameters!C186=Code_Offpeak,TimeValue_Person_Offpeak,TimeValue_Person_Peak) -> 1857.9751 | AK222: =AI222*DemandParameters!L186*IF(DemandParameters!C186=Code_Offpeak,TimeValue_Person_Offpeak,TimeValue_Person_Peak) -> 0 | AL222: =AH222*DemandParameters!M186*TimeValue_Truck -> 59.06875818 | AM222: =AI222*DemandParameters!M186*TimeValue_Truck -> 0 | AN222: =AH222*DemandParameters!N186*IF(DemandParameters!C186=Code_Offpeak,TimeValue_Person_Offpeak,TimeValue_Person_Peak) -> 0 | AO222: =AI222*DemandParameters!N186*IF(DemandParameters!C186=Code_Offpeak,TimeValue_Person_Offpeak,TimeValue_Person_Peak) -> 0
A223: 2014-01-01T20:00:00 | B223: =IF(DemandParameters!G187>0,EXP(AverageTravelTimeModel_Constant+AverageTravelTimeModel_LogVolumeParameter*LN(DemandParameters!G187))/SecondsPerHour,0) -> 0.004622839193 | C223: =IF(INDEX(StandardDeviationTable,DemandParameters!C187,1)=0,0,ReliabilityInsuranceTime(0.99, B223, INDEX(StandardDeviationTable,DemandParameters!C187,1), Discount_Rate)) -> 0 | D223: =B223*DemandParameters!H187*IF(DemandParameters!C187=Code_Offpeak,TimeValue_Person_Offpeak,TimeValue_Person_Peak) -> 112.6069223 | E223: =C223*DemandParameters!H187*IF(DemandParameters!C187=Code_Offpeak,TimeValue_Person_Offpeak,TimeValue_Person_Peak) -> 0 | F223: =B223*DemandParameters!I187*TimeValue_Truck -> 3.506938882 | G223: =C223*DemandParameters!I187*TimeValue_Truck -> 0 | H223: =B223*DemandParameters!J187*IF(DemandParameters!C187=Code_Offpeak,TimeValue_Person_Offpeak,TimeValue_Person_Peak) -> 0 | I223: =C223*DemandParameters!J187*IF(DemandParameters!C187=Code_Offpeak,TimeValue_Person_Offpeak,TimeValue_Person_Peak) -> 0 | AH223: =IF(DemandParameters!K187>0,EXP(AverageTravelTimeModel_Constant+AverageTravelTimeModel_LogVolumeParameter*LN(DemandParameters!K187))/SecondsPerHour,0) -> 0.01304277918 | AI223: =IF(INDEX(StandardDeviationTable,DemandParameters!C187,5)=0,0,ReliabilityInsuranceTime(0.99, AH223, INDEX(StandardDeviationTable,DemandParameters!C187,5), Discount_Rate)) -> 0 | AJ223: =AH223*DemandParameters!L187*IF(DemandParameters!C187=Code_Offpeak,TimeValue_Person_Offpeak,TimeValue_Person_Peak) -> 1097.470367 | AK223: =AI223*DemandParameters!L187*IF(DemandParameters!C187=Code_Offpeak,TimeValue_Person_Offpeak,TimeValue_Person_Peak) -> 0 | AL223: =AH223*DemandParameters!M187*TimeValue_Truck -> 34.89078606 | AM223: =AI223*DemandParameters!M187*TimeValue_Truck -> 0 | AN223: =AH223*DemandParameters!N187*IF(DemandParameters!C187=Code_Offpeak,TimeValue_Person_Offpeak,TimeValue_Person_Peak) -> 0 | AO223: =AI223*DemandParameters!N187*IF(DemandParameters!C187=Code_Offpeak,TimeValue_Person_Offpeak,TimeValue_Person_Peak) -> 0
A224: 2014-01-01T21:00:00 | B224: =IF(DemandParameters!G188>0,EXP(AverageTravelTimeModel_Constant+AverageTravelTimeModel_LogVolumeParameter*LN(DemandParameters!G188))/SecondsPerHour,0) -> 0.003041840356 | C224: =IF(INDEX(StandardDeviationTable,DemandParameters!C188,1)=0,0,ReliabilityInsuranceTime(0.99, B224, INDEX(StandardDeviationTable,DemandParameters!C188,1), Discount_Rate)) -> 0 | D224: =B224*DemandParameters!H188*IF(DemandParameters!C188=Code_Offpeak,TimeValue_Person_Offpeak,TimeValue_Person_Peak) -> 58.93972256 | E224: =C224*DemandParameters!H188*IF(DemandParameters!C188=Code_Offpeak,TimeValue_Person_Offpeak,TimeValue_Person_Peak) -> 0 | F224: =B224*DemandParameters!I188*TimeValue_Truck -> 1.835571034 | G224: =C224*DemandParameters!I188*TimeValue_Truck -> 0 | H224: =B224*DemandParameters!J188*IF(DemandParameters!C188=Code_Offpeak,TimeValue_Person_Offpeak,TimeValue_Person_Peak) -> 0 | I224: =C224*DemandParameters!J188*IF(DemandParameters!C188=Code_Offpeak,TimeValue_Person_Offpeak,TimeValue_Person_Peak) -> 0 | AH224: =IF(DemandParameters!K188>0,EXP(AverageTravelTimeModel_Constant+AverageTravelTimeModel_LogVolumeParameter*LN(DemandParameters!K188))/SecondsPerHour,0) -> 0.008582183028 | AI224: =IF(INDEX(StandardDeviationTable,DemandParameters!C188,5)=0,0,ReliabilityInsuranceTime(0.99, AH224, INDEX(StandardDeviationTable,DemandParameters!C188,5), Discount_Rate)) -> 0 | AJ224: =AH224*DemandParameters!L188*IF(DemandParameters!C188=Code_Offpeak,TimeValue_Person_Offpeak,TimeValue_Person_Peak) -> 574.4282648 | AK224: =AI224*DemandParameters!L188*IF(DemandParameters!C188=Code_Offpeak,TimeValue_Person_Offpeak,TimeValue_Person_Peak) -> 0 | AL224: =AH224*DemandParameters!M188*TimeValue_Truck -> 18.26222766 | AM224: =AI224*DemandParameters!M188*TimeValue_Truck -> 0 | AN224: =AH224*DemandParameters!N188*IF(DemandParameters!C188=Code_Offpeak,TimeValue_Person_Offpeak,TimeValue_Person_Peak) -> 0 | AO224: =AI224*DemandParameters!N188*IF(DemandParameters!C188=Code_Offpeak,TimeValue_Person_Offpeak,TimeValue_Person_Peak) -> 0
A225: 2014-01-01T22:00:00 | B225: =IF(DemandParameters!G189>0,EXP(AverageTravelTimeModel_Constant+AverageTravelTimeModel_LogVolumeParameter*LN(DemandParameters!G189))/SecondsPerHour,0) -> 0.002731483027 | C225: =IF(INDEX(StandardDeviationTable,DemandParameters!C189,1)=0,0,ReliabilityInsuranceTime(0.99, B225, INDEX(StandardDeviationTable,DemandParameters!C189,1), Discount_Rate)) -> 0 | D225: =B225*DemandParameters!H189*IF(DemandParameters!C189=Code_Offpeak,TimeValue_Person_Offpeak,TimeValue_Person_Peak) -> 49.90178394 | E225: =C225*DemandParameters!H189*IF(DemandParameters!C189=Code_Offpeak,TimeValue_Person_Offpeak,TimeValue_Person_Peak) -> 0 | F225: =B225*DemandParameters!I189*TimeValue_Truck -> 1.554100786 | G225: =C225*DemandParameters!I189*TimeValue_Truck -> 0 | H225: =B225*DemandParameters!J189*IF(DemandParameters!C189=Code_Offpeak,TimeValue_Person_Offpeak,TimeValue_Person_Peak) -> 0 | I225: =C225*DemandParameters!J189*IF(DemandParameters!C189=Code_Offpeak,TimeValue_Person_Offpeak,TimeValue_Person_Peak) -> 0 | AH225: =IF(DemandParameters!K189>0,EXP(AverageTravelTimeModel_Constant+AverageTravelTimeModel_LogVolumeParameter*LN(DemandParameters!K189))/SecondsPerHour,0) -> 0.007706547527 | AI225: =IF(INDEX(StandardDeviationTable,DemandParameters!C189,5)=0,0,ReliabilityInsuranceTime(0.99, AH225, INDEX(StandardDeviationTable,DemandParameters!C189,5), Discount_Rate)) -> 0 | AJ225: =AH225*DemandParameters!L189*IF(DemandParameters!C189=Code_Offpeak,TimeValue_Person_Offpeak,TimeValue_Person_Peak) -> 486.3442499 | AK225: =AI225*DemandParameters!L189*IF(DemandParameters!C189=Code_Offpeak,TimeValue_Person_Offpeak,TimeValue_Person_Peak) -> 0 | AL225: =AH225*DemandParameters!M189*TimeValue_Truck -> 15.46186001 | AM225: =AI225*DemandParameters!M189*TimeValue_Truck -> 0 | AN225: =AH225*DemandParameters!N189*IF(DemandParameters!C189=Code_Offpeak,TimeValue_Person_Offpeak,TimeValue_Person_Peak) -> 0 | AO225: =AI225*DemandParameters!N189*IF(DemandParameters!C189=Code_Offpeak,TimeValue_Person_Offpeak,TimeValue_Person_Peak) -> 0
A226: 2014-01-01T23:00:00 | B226: =IF(DemandParameters!G190>0,EXP(AverageTravelTimeModel_Constant+AverageTravelTimeModel_LogVolumeParameter*LN(DemandParameters!G190))/SecondsPerHour,0) -> 0.0009951349236 | C226: =IF(INDEX(StandardDeviationTable,DemandParameters!C190,1)=0,0,ReliabilityInsuranceTime(0.99, B226, INDEX(StandardDeviationTable,DemandParameters!C190,1), Discount_Rate)) -> 0 | D226: =B226*DemandParameters!H190*IF(DemandParameters!C190=Code_Offpeak,TimeValue_Person_Offpeak,TimeValue_Person_Peak) -> 10.46740901 | E226: =C226*DemandParameters!H190*IF(DemandParameters!C190=Code_Offpeak,TimeValue_Person_Offpeak,TimeValue_Person_Peak) -> 0 | F226: =B226*DemandParameters!I190*TimeValue_Truck -> 0.3259885174 | G226: =C226*DemandParameters!I190*TimeValue_Truck -> 0 | H226: =B226*DemandParameters!J190*IF(DemandParameters!C190=Code_Offpeak,TimeValue_Person_Offpeak,TimeValue_Person_Peak) -> 0 | I226: =C226*DemandParameters!J190*IF(DemandParameters!C190=Code_Offpeak,TimeValue_Person_Offpeak,TimeValue_Person_Peak) -> 0 | AH226: =IF(DemandParameters!K190>0,EXP(AverageTravelTimeModel_Constant+AverageTravelTimeModel_LogVolumeParameter*LN(DemandParameters!K190))/SecondsPerHour,0) -> 0.002807652293 | AI226: =IF(INDEX(StandardDeviationTable,DemandParameters!C190,5)=0,0,ReliabilityInsuranceTime(0.99, AH226, INDEX(StandardDeviationTable,DemandParameters!C190,5), Discount_Rate)) -> 0 | AJ226: =AH226*DemandParameters!L190*IF(DemandParameters!C190=Code_Offpeak,TimeValue_Person_Offpeak,TimeValue_Person_Peak) -> 102.0156752 | AK226: =AI226*DemandParameters!L190*IF(DemandParameters!C190=Code_Offpeak,TimeValue_Person_Offpeak,TimeValue_Person_Peak) -> 0 | AL226: =AH226*DemandParameters!M190*TimeValue_Truck -> 3.243283103 | AM226: =AI226*DemandParameters!M190*TimeValue_Truck -> 0 | AN226: =AH226*DemandParameters!N190*IF(DemandParameters!C190=Code_Offpeak,TimeValue_Person_Offpeak,TimeValue_Person_Peak) -> 0 | AO226: =AI226*DemandParameters!N190*IF(DemandParameters!C190=Code_Offpeak,TimeValue_Person_Offpeak,TimeValue_Person_Peak) -> 0
A227: 2014-01-02 | B227: =IF(DemandParameters!G191>0,EXP(AverageTravelTimeModel_Constant+AverageTravelTimeModel_LogVolumeParameter*LN(DemandParameters!G191))/SecondsPerHour,0) -> 0.000324733128 | C227: =IF(INDEX(StandardDeviationTable,DemandParameters!C191,1)=0,0,ReliabilityInsuranceTime(0.99, B227, INDEX(StandardDeviationTable,DemandParameters!C191,1), Discount_Rate)) -> 0 | D227: =B227*DemandParameters!H191*IF(DemandParameters!C191=Code_Offpeak,TimeValue_Person_Offpeak,TimeValue_Person_Peak) -> 1.851686439 | E227: =C227*DemandParameters!H191*IF(DemandParameters!C191=Code_Offpeak,TimeValue_Person_Offpeak,TimeValue_Person_Peak) -> 0 | F227: =B227*DemandParameters!I191*TimeValue_Truck -> 0.05766742436 | G227: =C227*DemandParameters!I191*TimeValue_Truck -> 0 | H227: =B227*DemandParameters!J191*IF(DemandParameters!C191=Code_Offpeak,TimeValue_Person_Offpeak,TimeValue_Person_Peak) -> 0 | I227: =C227*DemandParameters!J191*IF(DemandParameters!C191=Code_Offpeak,TimeValue_Person_Offpeak,TimeValue_Person_Peak) -> 0 | AH227: =IF(DemandParameters!K191>0,EXP(AverageTravelTimeModel_Constant+AverageTravelTimeModel_LogVolumeParameter*LN(DemandParameters!K191))/SecondsPerHour,0) -> 0.0009161950705 | AI227: =IF(INDEX(StandardDeviationTable,DemandParameters!C191,5)=0,0,ReliabilityInsuranceTime(0.99, AH227, INDEX(StandardDeviationTable,DemandParameters!C191,5), Discount_Rate)) -> 0 | AJ227: =AH227*DemandParameters!L191*IF(DemandParameters!C191=Code_Offpeak,TimeValue_Person_Offpeak,TimeValue_Person_Peak) -> 18.04659035 | AK227: =AI227*DemandParameters!L191*IF(DemandParameters!C191=Code_Offpeak,TimeValue_Person_Offpeak,TimeValue_Person_Peak) -> 0 | AL227: =AH227*DemandParameters!M191*TimeValue_Truck -> 0.5737373343 | AM227: =AI227*DemandParameters!M191*TimeValue_Truck -> 0 | AN227: =AH227*DemandParameters!N191*IF(DemandParameters!C191=Code_Offpeak,TimeValue_Person_Offpeak,TimeValue_Person_Peak) -> 0 | AO227: =AI227*DemandParameters!N191*IF(DemandParameters!C191=Code_Offpeak,TimeValue_Person_Offpeak,TimeValue_Person_Peak) -> 0
A228: 2014-01-02T01:00:00 | B228: =IF(DemandParameters!G192>0,EXP(AverageTravelTimeModel_Constant+AverageTravelTimeModel_LogVolumeParameter*LN(DemandParameters!G192))/SecondsPerHour,0) -> 0.000127576291 | C228: =IF(INDEX(StandardDeviationTable,DemandParameters!C192,1)=0,0,ReliabilityInsuranceTime(0.99, B228, INDEX(StandardDeviationTable,DemandParameters!C192,1), Discount_Rate)) -> 0 | D228: =B228*DemandParameters!H192*IF(DemandParameters!C192=Code_Offpeak,TimeValue_Person_Offpeak,TimeValue_Person_Peak) -> 0.4364777122 | E228: =C228*DemandParameters!H192*IF(DemandParameters!C192=Code_Offpeak,TimeValue_Person_Offpeak,TimeValue_Person_Peak) -> 0 | F228: =B228*DemandParameters!I192*TimeValue_Truck -> 0.01359330874 | G228: =C228*DemandParameters!I192*TimeValue_Truck -> 0 | H228: =B228*DemandParameters!J192*IF(DemandParameters!C192=Code_Offpeak,TimeValue_Person_Offpeak,TimeValue_Person_Peak) -> 0 | I228: =C228*DemandParameters!J192*IF(DemandParameters!C192=Code_Offpeak,TimeValue_Person_Offpeak,TimeValue_Person_Peak) -> 0 | AH228: =IF(DemandParameters!K192>0,EXP(AverageTravelTimeModel_Constant+AverageTravelTimeModel_LogVolumeParameter*LN(DemandParameters!K192))/SecondsPerHour,0) -> 0.0003599410064 | AI228: =IF(INDEX(StandardDeviationTable,DemandParameters!C192,5)=0,0,ReliabilityInsuranceTime(0.99, AH228, INDEX(StandardDeviationTable,DemandParameters!C192,5), Discount_Rate)) -> 0 | AJ228: =AH228*DemandParameters!L192*IF(DemandParameters!C192=Code_Offpeak,TimeValue_Person_Offpeak,TimeValue_Person_Peak) -> 4.253924585 | AK228: =AI228*DemandParameters!L192*IF(DemandParameters!C192=Code_Offpeak,TimeValue_Person_Offpeak,TimeValue_Person_Peak) -> 0 | AL228: =AH228*DemandParameters!M192*TimeValue_Truck -> 0.135240802 | AM228: =AI228*DemandParameters!M192*TimeValue_Truck -> 0 | AN228: =AH228*DemandParameters!N192*IF(DemandParameters!C192=Code_Offpeak,TimeValue_Person_Offpeak,TimeValue_Person_Peak) -> 0 | AO228: =AI228*DemandParameters!N192*IF(DemandParameters!C192=Code_Offpeak,TimeValue_Person_Offpeak,TimeValue_Person_Peak) -> 0
A229: 2014-01-02T02:00:00 | B229: =IF(DemandParameters!G193>0,EXP(AverageTravelTimeModel_Constant+AverageTravelTimeModel_LogVolumeParameter*LN(DemandParameters!G193))/SecondsPerHour,0) -> 6.077190081e-05 | C229: =IF(INDEX(StandardDeviationTable,DemandParameters!C193,1)=0,0,ReliabilityInsuranceTime(0.99, B229, INDEX(StandardDeviationTable,DemandParameters!C193,1), Discount_Rate)) -> 0 | D229: =B229*DemandParameters!H193*IF(DemandParameters!C193=Code_Offpeak,TimeValue_Person_Offpeak,TimeValue_Person_Peak) -> 0.1386129039 | E229: =C229*DemandParameters!H193*IF(DemandParameters!C193=Code_Offpeak,TimeValue_Person_Offpeak,TimeValue_Person_Peak) -> 0 | F229: =B229*DemandParameters!I193*TimeValue_Truck -> 0.004316848133 | G229: =C229*DemandParameters!I193*TimeValue_Truck -> 0 | H229: =B229*DemandParameters!J193*IF(DemandParameters!C193=Code_Offpeak,TimeValue_Person_Offpeak,TimeValue_Person_Peak) -> 0 | I229: =C229*DemandParameters!J193*IF(DemandParameters!C193=Code_Offpeak,TimeValue_Person_Offpeak,TimeValue_Person_Peak) -> 0 | AH229: =IF(DemandParameters!K193>0,EXP(AverageTravelTimeModel_Constant+AverageTravelTimeModel_LogVolumeParameter*LN(DemandParameters!K193))/SecondsPerHour,0) -> 0.0001714605353 | AI229: =IF(INDEX(StandardDeviationTable,DemandParameters!C193,5)=0,0,ReliabilityInsuranceTime(0.99, AH229, INDEX(StandardDeviationTable,DemandParameters!C193,5), Discount_Rate)) -> 0 | AJ229: =AH229*DemandParameters!L193*IF(DemandParameters!C193=Code_Offpeak,TimeValue_Person_Offpeak,TimeValue_Person_Peak) -> 1.350925427 | AK229: =AI229*DemandParameters!L193*IF(DemandParameters!C193=Code_Offpeak,TimeValue_Person_Offpeak,TimeValue_Person_Peak) -> 0 | AL229: =AH229*DemandParameters!M193*TimeValue_Truck -> 0.0429486312 | AM229: =AI229*DemandParameters!M193*TimeValue_Truck -> 0 | AN229: =AH229*DemandParameters!N193*IF(DemandParameters!C193=Code_Offpeak,TimeValue_Person_Offpeak,TimeValue_Person_Peak) -> 0 | AO229: =AI229*DemandParameters!N193*IF(DemandParameters!C193=Code_Offpeak,TimeValue_Person_Offpeak,TimeValue_Person_Peak) -> 0
A230: 2014-01-02T03:00:00 | B230: =IF(DemandParameters!G194>0,EXP(AverageTravelTimeModel_Constant+AverageTravelTimeModel_LogVolumeParameter*LN(DemandParameters!G194))/SecondsPerHour,0) -> 1.710509098e-05 | C230: =IF(INDEX(StandardDeviationTable,DemandParameters!C194,1)=0,0,ReliabilityInsuranceTime(0.99, B230, INDEX(StandardDeviationTable,DemandParameters!C194,1), Discount_Rate)) -> 0 | D230: =B230*DemandParameters!H194*IF(DemandParameters!C194=Code_Offpeak,TimeValue_Person_Offpeak,TimeValue_Person_Peak) -> 0.01950725829 | E230: =C230*DemandParameters!H194*IF(DemandParameters!C194=Code_Offpeak,TimeValue_Person_Offpeak,TimeValue_Person_Peak) -> 0 | F230: =B230*DemandParameters!I194*TimeValue_Truck -> 0.0006075182699 | G230: =C230*DemandParameters!I194*TimeValue_Truck -> 0 | H230: =B230*DemandParameters!J194*IF(DemandParameters!C194=Code_Offpeak,TimeValue_Person_Offpeak,TimeValue_Person_Peak) -> 0 | I230: =C230*DemandParameters!J194*IF(DemandParameters!C194=Code_Offpeak,TimeValue_Person_Offpeak,TimeValue_Person_Peak) -> 0 | AH230: =IF(DemandParameters!K194>0,EXP(AverageTravelTimeModel_Constant+AverageTravelTimeModel_LogVolumeParameter*LN(DemandParameters!K194))/SecondsPerHour,0) -> 4.825993621e-05 | AI230: =IF(INDEX(StandardDeviationTable,DemandParameters!C194,5)=0,0,ReliabilityInsuranceTime(0.99, AH230, INDEX(StandardDeviationTable,DemandParameters!C194,5), Discount_Rate)) -> 0 | AJ230: =AH230*DemandParameters!L194*IF(DemandParameters!C194=Code_Offpeak,TimeValue_Person_Offpeak,TimeValue_Person_Peak) -> 0.1901183115 | AK230: =AI230*DemandParameters!L194*IF(DemandParameters!C194=Code_Offpeak,TimeValue_Person_Offpeak,TimeValue_Person_Peak) -> 0 | AL230: =AH230*DemandParameters!M194*TimeValue_Truck -> 0.00604424277 | AM230: =AI230*DemandParameters!M194*TimeValue_Truck -> 0 | AN230: =AH230*DemandParameters!N194*IF(DemandParameters!C194=Code_Offpeak,TimeValue_Person_Offpeak,TimeValue_Person_Peak) -> 0 | AO230: =AI230*DemandParameters!N194*IF(DemandParameters!C194=Code_Offpeak,TimeValue_Person_Offpeak,TimeValue_Person_Peak) -> 0
A231: 2014-01-02T04:00:00 | B231: =IF(DemandParameters!G195>0,EXP(AverageTravelTimeModel_Constant+AverageTravelTimeModel_LogVolumeParameter*LN(DemandParameters!G195))/SecondsPerHour,0) -> 1.710509098e-05 | C231: =IF(INDEX(StandardDeviationTable,DemandParameters!C195,1)=0,0,ReliabilityInsuranceTime(0.99, B231, INDEX(StandardDeviationTable,DemandParameters!C195,1), Discount_Rate)) -> 0 | D231: =B231*DemandParameters!H195*IF(DemandParameters!C195=Code_Offpeak,TimeValue_Person_Offpeak,TimeValue_Person_Peak) -> 0.01950725829 | E231: =C231*DemandParameters!H195*IF(DemandParameters!C195=Code_Offpeak,TimeValue_Person_Offpeak,TimeValue_Person_Peak) -> 0 | F231: =B231*DemandParameters!I195*TimeValue_Truck -> 0.0006075182699 | G231: =C231*DemandParameters!I195*TimeValue_Truck -> 0 | H231: =B231*DemandParameters!J195*IF(DemandParameters!C195=Code_Offpeak,TimeValue_Person_Offpeak,TimeValue_Person_Peak) -> 0 | I231: =C231*DemandParameters!J195*IF(DemandParameters!C195=Code_Offpeak,TimeValue_Person_Offpeak,TimeValue_Person_Peak) -> 0 | AH231: =IF(DemandParameters!K195>0,EXP(AverageTravelTimeModel_Constant+AverageTravelTimeModel_LogVolumeParameter*LN(DemandParameters!K195))/SecondsPerHour,0) -> 4.825993621e-05 | AI231: =IF(INDEX(StandardDeviationTable,DemandParameters!C195,5)=0,0,ReliabilityInsuranceTime(0.99, AH231, INDEX(StandardDeviationTable,DemandParameters!C195,5), Discount_Rate)) -> 0 | AJ231: =AH231*DemandParameters!L195*IF(DemandParameters!C195=Code_Offpeak,TimeValue_Person_Offpeak,TimeValue_Person_Peak) -> 0.1901183115 | AK231: =AI231*DemandParameters!L195*IF(DemandParameters!C195=Code_Offpeak,TimeValue_Person_Offpeak,TimeValue_Person_Peak) -> 0 | AL231: =AH231*DemandParameters!M195*TimeValue_Truck -> 0.00604424277 | AM231: =AI231*DemandParameters!M195*TimeValue_Truck -> 0 | AN231: =AH231*DemandParameters!N195*IF(DemandParameters!C195=Code_Offpeak,TimeValue_Person_Offpeak,TimeValue_Person_Peak) -> 0 | AO231: =AI231*DemandParameters!N195*IF(DemandParameters!C195=Code_Offpeak,TimeValue_Person_Offpeak,TimeValue_Person_Peak) -> 0
A232: 2014-01-02T05:00:00 | B232: =IF(DemandParameters!G196>0,EXP(AverageTravelTimeModel_Constant+AverageTravelTimeModel_LogVolumeParameter*LN(DemandParameters!G196))/SecondsPerHour,0) -> 0.0001691274963 | C232: =IF(INDEX(StandardDeviationTable,DemandParameters!C196,1)=0,0,ReliabilityInsuranceTime(0.99, B232, INDEX(StandardDeviationTable,DemandParameters!C196,1), Discount_Rate)) -> 0 | D232: =B232*DemandParameters!H196*IF(DemandParameters!C196=Code_Offpeak,TimeValue_Person_Offpeak,TimeValue_Person_Peak) -> 0.6750766865 | E232: =C232*DemandParameters!H196*IF(DemandParameters!C196=Code_Offpeak,TimeValue_Person_Offpeak,TimeValue_Person_Peak) -> 0 | F232: =B232*DemandParameters!I196*TimeValue_Truck -> 0.02102404215 | G232: =C232*DemandParameters!I196*TimeValue_Truck -> 0 | H232: =B232*DemandParameters!J196*IF(DemandParameters!C196=Code_Offpeak,TimeValue_Person_Offpeak,TimeValue_Person_Peak) -> 0 | I232: =C232*DemandParameters!J196*IF(DemandParameters!C196=Code_Offpeak,TimeValue_Person_Offpeak,TimeValue_Person_Peak) -> 0 | AH232: =IF(DemandParameters!K196>0,EXP(AverageTravelTimeModel_Constant+AverageTravelTimeModel_LogVolumeParameter*LN(DemandParameters!K196))/SecondsPerHour,0) -> 0.0004771726845 | AI232: =IF(INDEX(StandardDeviationTable,DemandParameters!C196,5)=0,0,ReliabilityInsuranceTime(0.99, AH232, INDEX(StandardDeviationTable,DemandParameters!C196,5), Discount_Rate)) -> 0 | AJ232: =AH232*DemandParameters!L196*IF(DemandParameters!C196=Code_Offpeak,TimeValue_Person_Offpeak,TimeValue_Person_Peak) -> 6.579317187 | AK232: =AI232*DemandParameters!L196*IF(DemandParameters!C196=Code_Offpeak,TimeValue_Person_Offpeak,TimeValue_Person_Peak) -> 0 | AL232: =AH232*DemandParameters!M196*TimeValue_Truck -> 0.2091697009 | AM232: =AI232*DemandParameters!M196*TimeValue_Truck -> 0 | AN232: =AH232*DemandParameters!N196*IF(DemandParameters!C196=Code_Offpeak,TimeValue_Person_Offpeak,TimeValue_Person_Peak) -> 0 | AO232: =AI232*DemandParameters!N196*IF(DemandParameters!C196=Code_Offpeak,TimeValue_Person_Offpeak,TimeValue_Person_Peak) -> 0
A233: 2014-01-02T06:00:00 | B233: =IF(DemandParameters!G197>0,EXP(AverageTravelTimeModel_Constant+AverageTravelTimeModel_LogVolumeParameter*LN(DemandParameters!G197))/SecondsPerHour,0) -> 0.001489769508 | C233: =IF(INDEX(StandardDeviationTable,DemandParameters!C197,1)=0,0,ReliabilityInsuranceTime(0.99, B233, INDEX(StandardDeviationTable,DemandParameters!C197,1), Discount_Rate)) -> 0 | D233: =B233*DemandParameters!H197*IF(DemandParameters!C197=Code_Offpeak,TimeValue_Person_Offpeak,TimeValue_Person_Peak) -> 19.5383447 | E233: =C233*DemandParameters!H197*IF(DemandParameters!C197=Code_Offpeak,TimeValue_Person_Offpeak,TimeValue_Person_Peak) -> 0 | F233: =B233*DemandParameters!I197*TimeValue_Truck -> 0.6084863999 | G233: =C233*DemandParameters!I197*TimeValue_Truck -> 0 | H233: =B233*DemandParameters!J197*IF(DemandParameters!C197=Code_Offpeak,TimeValue_Person_Offpeak,TimeValue_Person_Peak) -> 0 | I233: =C233*DemandParameters!J197*IF(DemandParameters!C197=Code_Offpeak,TimeValue_Person_Offpeak,TimeValue_Person_Peak) -> 0 | AH233: =IF(DemandParameters!K197>0,EXP(AverageTravelTimeModel_Constant+AverageTravelTimeModel_LogVolumeParameter*LN(DemandParameters!K197))/SecondsPerHour,0) -> 0.004203203683 | AI233: =IF(INDEX(StandardDeviationTable,DemandParameters!C197,5)=0,0,ReliabilityInsuranceTime(0.99, AH233, INDEX(StandardDeviationTable,DemandParameters!C197,5), Discount_Rate)) -> 0 | AJ233: =AH233*DemandParameters!L197*IF(DemandParameters!C197=Code_Offpeak,TimeValue_Person_Offpeak,TimeValue_Person_Peak) -> 190.4212805 | AK233: =AI233*DemandParameters!L197*IF(DemandParameters!C197=Code_Offpeak,TimeValue_Person_Offpeak,TimeValue_Person_Peak) -> 0 | AL233: =AH233*DemandParameters!M197*TimeValue_Truck -> 6.053874764 | AM233: =AI233*DemandParameters!M197*TimeValue_Truck -> 0 | AN233: =AH233*DemandParameters!N197*IF(DemandParameters!C197=Code_Offpeak,TimeValue_Person_Offpeak,TimeValue_Person_Peak) -> 0 | AO233: =AI233*DemandParameters!N197*IF(DemandParameters!C197=Code_Offpeak,TimeValue_Person_Offpeak,TimeValue_Person_Peak) -> 0
... 2017 more rows

Sheet Alternative_1
A1: =Alternatives_MasterList!A10&" - "&IF(OR(Alternatives_MasterList!B10="",Alternatives_MasterList!B10=Alternatives_DefaultAlternativeShortName),DefinedAlternative_Prompt_AlternativeShortName,Alternatives_MasterList!B10) -> Alternative 1 - Roundabout
A3: Description: | B3: =IF(OR(Alternatives_MasterList!C10="",Alternatives_MasterList!C10=Alternatives_DefaultAlternativeDescription),DefinedAlternative_Prompt_AlternativeDescription,Alternatives_MasterList!C10) -> Roundabout Alternative
A4: A summary of the net present value for this alternative is shown to the right in Column "J"
A5: Planning & construction period | B5: Begin planning & construction | C5: 2014 | D5: First year of planning & construction
A6: Operating period | B6: Opening year | C6: 2014 | D6: Travel time/delay and demand forecasts for the opening year must be provided. | J6: Net Present Value Summary
B7: Interim year 1 | D7: Travel time/delay and demand forecasts for up to three years between the opening year and the end year may be provided. | H7: =IF(OR(AND(C7="",OR(ISNUMBER(C8),ISNUMBER(C9))),AND(C8="",ISNUMBER(C9))),"Please enter interim years in increasing order beginning with Interim year 1","") -> 
B8: Interim year 2 | J8: Planning & Construction Costs | K8: =B127 -> 4614819
B9: Interim year 3 | J9: Operating & Maintenance Costs | K9: =L146 -> 65660.09655
B10: End year | C10: 2035 | D10: Travel time/delay and demand forecasts for the end (horizon) year must be provided. | J10: Auto Passenger Time | K10: =IF(ISNUMBER(K162),IF(K162>0,K162,"--"),"--") -> 65938605.01 | L10: =IF(AND(ISNUMBER(K10),ISNUMBER(K11),ISNUMBER(K12),ISNUMBER(K13),ISNUMBER(K14),ISNUMBER(K15),ISNUMBER(K16),ISNUMBER(K17),ISNUMBER(K18),ISNUMBER(K19),ISNUMBER(K20)),"","Warning: A zero entry for a cost category indicates that the data needed to calculate that cost have either not been entered or have been entered incorrectly. If you believe this is an error please review your entries in this sheet.") -> Warning: A zero entry for a cost category indicates that the data needed to calculate that cost have either not been entered or have been entered incorrectly. If you believe this is an error please review your entries in this sheet.
A11: Worksheet setup | D11: Once you have entered begin planning & construction, opening, and end years, click this button to set up the worksheet. You may enter other inputs at any time. | J11: Auto Passenger Reliability | K11: =IF(ISNUMBER(K163),IF(K163>0,K163,"--"),"--") -> --
A12: Planning & construction costs | B12: Units | C12: Planning & construction year(s) | H12: Notes | J12: Truck Time | K12: 2081604.2
C13: =$C$5 -> 2014 | D13: =IF(ISNUMBER(C13),C13+1,"") -> 2015 | E13: =IF(ISNUMBER(D13),D13+1,"") -> 2016 | F13: =IF(ISNUMBER(E13),E13+1,"") -> 2017 | G13: =IF(ISNUMBER(F13),F13+1,"") -> 2018 | J13: Truck Reliability | K13: --
A14: Planning, design | B14: Dollars | C14: 622819 | J14: Transit Passenger Time | K14: --
A15: Survey | B15: Dollars | J15: Transit Passenger Reliability | K15: --
A16: Right of way | B16: Dollars | C16: 881000 | J16: Bicyclist Time | K16: --
A17: Equipment, signs | B17: Dollars | J17: Pedestrian Time | K17: --
A18: Utilities | B18: Dollars | J18: Safety | K18: 3711502.732
A19: Construction | B19: Dollars | C19: 3111000 | J19: Greenhouse Gases | K19: --
A20: Landscaping | B20: Dollars | J20: Criteria Pollutants | K20: --
A21: (Other planning & construction costs) | B21: Dollars | J21: Total Net Present Value | K21: =SUM(K8:K20) -> 76412191.04
A22: (Other planning & construction costs) | B22: Dollars
A23: (Other planning & construction costs) | B23: Dollars
A24: (Other planning & construction costs) | B24: Dollars | J24: =IF(NOT(ISNUMBER(K21)),"If the total NPV seems wrong some entries may be missing, inconsistent, or wrong","") -> 
A25: (Other planning & construction costs) | B25: Dollars
A26: (Other planning & construction costs) | B26: Dollars
A27: (Other planning & construction costs) | B27: Dollars
A28: (Other planning & construction costs) | B28: Dollars
A29: (Other planning & construction costs) | B29: Dollars
A30: (Other planning & construction costs) | B30: Dollars
A32: Operations & maintenance costs | B32: Units | C32: Begin year | D32: Period (years) | E32: Cost | F32: Notes
A33: Power | B33: Dollars | C33: 2014 | D33: 1 | E33: 4000 | I33: Calculations can be reviewed within table beginning in cell K133.
A34: Inspection | B34: Dollars
A35: Repaving | B35: Dollars
A36: Signing, striping | B36: Dollars
A37: Signal timing | B37: Dollars
A38: Landscaping | B38: Dollars
A39: (Other O&M costs) | B39: Dollars
A40: (Other O&M costs) | B40: Dollars
A41: (Other O&M costs) | B41: Dollars
A42: (Other O&M costs) | B42: Dollars
A43: (Other O&M costs) | B43: Dollars
A44: (Other O&M costs) | B44: Dollars
A45: (Other O&M costs) | B45: Dollars
A46: (Other O&M costs) | B46: Dollars
A48: Demand & Travel Time (Delay) | B48: Average travel time / delay | D48: Opening year | E48: Interim year(s) | H48: End year | I48: Notes
B49: Time Period | C49: Units | D49: =$C$6 -> 2014 | E49: =IF($C$7="","",$C$7) ->  | F49: =IF($C$8="","",$C$8) ->  | G49: =IF($C$9="","",$C$9) ->  | H49: =$C$10 -> 2035
A50: Average vehicle travel time or delay | B50: AM peak | C50: seconds/veh | D50: 5 | H50: 11 | K50: =IF(OR(COUNT(D50:D52)=0,COUNT(H50:H52)=0,AND(E49<>"",COUNT(E50:E52)=0),AND(F49<>"",COUNT(F50:F52)=0),AND(G49<>"",COUNT(G50:G52)=0)),"NOTE: At least one travel time/delay value must be entered for each year specified",IF(COUNT(D50:H52)<>COUNT(D84:H86),"Number of travel time/delay entries is different from the number of peak/offpeak hourly volumes entered in the DemandParameters sheet. Please correct the discrepancy and re-run Setup for this sheet.","")) -> 
B51: PM peak | C51: seconds/veh | D51: 30 | H51: 49
B52: Weekend peak | C52: seconds/veh | D52: 28 | H52: 45
A53: Standard deviation of vehicle travel time or delay | B53: AM peak | C53: seconds/veh | D53: 0 | H53: 0 | K53: =IF(AND(COUNT(D53:H55)>0,OR(AND(D50<>"",D53=""),AND(D51<>"",D54=""),AND(E49<>"",OR(AND(E50<>"",E53=""),AND(E51<>"",E54=""))),AND(F49<>"",OR(AND(F50<>"",F53=""),AND(F51<>"",F54=""))),AND(G49<>"",OR(AND(G50<>"",G53=""),AND(G51<>"",G54=""))),AND(H50<>"",H53=""),AND(H51<>"",H54=""))),"NOTE: If reliability )standard deviations) are entered, there must be a corresponding standard deviation entry for each peak period travel time/delay entry","") -> 
B54: PM peak | C54: seconds/veh | D54: 0 | H54: 0
B55: Weekend peak | C55: seconds/veh | D55: 0 | H55: 0
A56: Average bicycle travel time or delay | B56: All time periods | C56: seconds/bike | D56: 0 | H56: 0
A57: Average pedestrian travel time or delay | B57: All time periods | C57: seconds/ped | D57: 0 | H57: 0
A59: Safety | B59: Crash type | C59: Units
A60: =IF(IsChecked_CrashCategories_KABCO,CrashCategoryLabel_KABCO,IF(IsChecked_CrashCategories_FatalityInjuryPDO,CrashCategoryLabel_FatalInjuryPDO,IF(IsChecked_CrashCategories_TotalCrashes,CrashCategoryLabel_TotalCrashes,CrashCategoryLabel_UserDefined))) -> Fatality, injury, PDO | B60: =IF(IsChecked_CrashCategories_KABCO,INDEX(CostParameters!$C$9:$C$13,CELL("row",J60)-CELL("row",$J$59)),IF(IsChecked_CrashCategories_FatalityInjuryPDO,IF(ISERROR(INDEX(CostParameters!$C$14:$C$16,CELL("row",J60)-CELL("row",$J$59))),"",INDEX(CostParameters!$C$14:$C$16,CELL("row",J60)-CELL("row",$J$59))),IF(IsChecked_CrashCategories_TotalCrashes,IF(ISERROR(INDEX(CostParameters!$C$17,CELL("row",J60)-CELL("row",$J$59))),"",INDEX(CostParameters!$C$17,CELL("row",J60)-CELL("row",$J$59))),IF(IsChecked_CrashCategories_UserDefined,IF(INDEX(CostParameters!$C$18:$C$22,CELL("row",J60)-CELL("row",$J$59))="","",INDEX(CostParameters!$C$18:$C$22,CELL("row",J60)-CELL("row",$J$59))),"Error!")))) -> Fatality crashes | C60: crashes/year | D60: 0 | H60: 0
B61: =IF(IsChecked_CrashCategories_KABCO,INDEX(CostParameters!$C$9:$C$13,CELL("row",J61)-CELL("row",$J$59)),IF(IsChecked_CrashCategories_FatalityInjuryPDO,IF(ISERROR(INDEX(CostParameters!$C$14:$C$16,CELL("row",J61)-CELL("row",$J$59))),"",INDEX(CostParameters!$C$14:$C$16,CELL("row",J61)-CELL("row",$J$59))),IF(IsChecked_CrashCategories_TotalCrashes,IF(ISERROR(INDEX(CostParameters!$C$17,CELL("row",J61)-CELL("row",$J$59))),"",INDEX(CostParameters!$C$17,CELL("row",J61)-CELL("row",$J$59))),IF(IsChecked_CrashCategories_UserDefined,IF(INDEX(CostParameters!$C$18:$C$22,CELL("row",J61)-CELL("row",$J$59))="","",INDEX(CostParameters!$C$18:$C$22,CELL("row",J61)-CELL("row",$J$59))),"Error!")))) -> Injury crashes | C61: =IF(LEN(TRIM(B61))>0,"crashes/year","") -> crashes/year | D61: 1 | H61: 1
B62: =IF(IsChecked_CrashCategories_KABCO,INDEX(CostParameters!$C$9:$C$13,CELL("row",J62)-CELL("row",$J$59)),IF(IsChecked_CrashCategories_FatalityInjuryPDO,IF(ISERROR(INDEX(CostParameters!$C$14:$C$16,CELL("row",J62)-CELL("row",$J$59))),"",INDEX(CostParameters!$C$14:$C$16,CELL("row",J62)-CELL("row",$J$59))),IF(IsChecked_CrashCategories_TotalCrashes,IF(ISERROR(INDEX(CostParameters!$C$17,CELL("row",J62)-CELL("row",$J$59))),"",INDEX(CostParameters!$C$17,CELL("row",J62)-CELL("row",$J$59))),IF(IsChecked_CrashCategories_UserDefined,IF(INDEX(CostParameters!$C$18:$C$22,CELL("row",J62)-CELL("row",$J$59))="","",INDEX(CostParameters!$C$18:$C$22,CELL("row",J62)-CELL("row",$J$59))),"Error!")))) -> Property damage only crashes | C62: =IF(LEN(TRIM(B62))>0,"crashes/year","") -> crashes/year | D62: 7 | H62: 11
B63: =IF(IsChecked_CrashCategories_KABCO,INDEX(CostParameters!$C$9:$C$13,CELL("row",J63)-CELL("row",$J$59)),IF(IsChecked_CrashCategories_FatalityInjuryPDO,IF(ISERROR(INDEX(CostParameters!$C$14:$C$16,CELL("row",J63)-CELL("row",$J$59))),"",INDEX(CostParameters!$C$14:$C$16,CELL("row",J63)-CELL("row",$J$59))),IF(IsChecked_CrashCategories_TotalCrashes,IF(ISERROR(INDEX(CostParameters!$C$17,CELL("row",J63)-CELL("row",$J$59))),"",INDEX(CostParameters!$C$17,CELL("row",J63)-CELL("row",$J$59))),IF(IsChecked_CrashCategories_UserDefined,IF(INDEX(CostParameters!$C$18:$C$22,CELL("row",J63)-CELL("row",$J$59))="","",INDEX(CostParameters!$C$18:$C$22,CELL("row",J63)-CELL("row",$J$59))),"Error!")))) ->  | C63: =IF(LEN(TRIM(B63))>0,"crashes/year","") -> 
B64: =IF(IsChecked_CrashCategories_KABCO,INDEX(CostParameters!$C$9:$C$13,CELL("row",J64)-CELL("row",$J$59)),IF(IsChecked_CrashCategories_FatalityInjuryPDO,IF(ISERROR(INDEX(CostParameters!$C$14:$C$16,CELL("row",J64)-CELL("row",$J$59))),"",INDEX(CostParameters!$C$14:$C$16,CELL("row",J64)-CELL("row",$J$59))),IF(IsChecked_CrashCategories_TotalCrashes,IF(ISERROR(INDEX(CostParameters!$C$17,CELL("row",J64)-CELL("row",$J$59))),"",INDEX(CostParameters!$C$17,CELL("row",J64)-CELL("row",$J$59))),IF(IsChecked_CrashCategories_UserDefined,IF(INDEX(CostParameters!$C$18:$C$22,CELL("row",J64)-CELL("row",$J$59))="","",INDEX(CostParameters!$C$18:$C$22,CELL("row",J64)-CELL("row",$J$59))),"Error!")))) ->  | C64: =IF(LEN(TRIM(B64))>0,"crashes/year","") -> 
A66: Emissions | B66: Type | C66: Units
A67: ="Greenhouse gases -- "&IF(IsChecked_GHG_Values_FederalMethod,"Federal method (Exec. Order 12866)","user defined costs") -> Greenhouse gases -- Federal method (Exec. Order 12866) | B67: CO2 equivalent | C67: =IF(LEN(TRIM(B67))>0,"metric tons/year","") -> metric tons/year
A68: ="Criteria pollutants -- " & IF(IsChecked_CriteriaPollutantCategories_ByType,"by type","user defined categories") -> Criteria pollutants -- by type | B68: =IF(IsChecked_CriteriaPollutantCategories_ByType,CostParameters!C25,IF(CostParameters!C29="","",CostParameters!C29)) -> CO | C68: metric tons/year
B69: =IF(IsChecked_CriteriaPollutantCategories_ByType,CostParameters!C26,IF(CostParameters!C30="","",CostParameters!C30)) -> NOx | C69: metric tons/year
B70: =IF(IsChecked_CriteriaPollutantCategories_ByType,CostParameters!C27,IF(CostParameters!C31="","",CostParameters!C31)) -> HC | C70: metric tons/year
B71: =IF(IsChecked_CriteriaPollutantCategories_ByType,CostParameters!C28,IF(CostParameters!C32="","",CostParameters!C32)) -> PM 2.5 | C71: metric tons/year
A74: Calculations
A77: This section contains the formulas that carry out the detailed cost calculations. Modifications to this section will affect the program code.
A80: Delay model
D81: logs of vehicle volumes and travel times/delays
A82: Travel time/delay | B82: Average travel time/delay | D82: Opening Year | E82: Interim Year(s) | H82: End year
B83: Time period | C83: Units | D83: =$C$6 -> 2014 | E83: =IF($C$7="","",$C$7) ->  | F83: =IF($C$8="","",$C$8) ->  | G83: =IF($C$9="","",$C$9) ->  | H83: =$C$10 -> 2035
A84: Log total entering vehicles | B84: AM peak hour | C84: log(vehicles/hr) | D84: 7.347943823 | H84: 7.890208213 | J84: =LN(DemandParameters!C31) -> 7.347943823 | K84: =LN(DemandParameters!D31) -> 7.890208213 | L84: =LN(DemandParameters!E31) ->  | M84: =LN(DemandParameters!F31) ->  | N84: =LN(DemandParameters!G31) -> 
B85: PM peak hour | C85: log(vehicles/hr) | D85: 7.657755271 | H85: 8.170468578 | J85: =LN(DemandParameters!C32) -> 7.657755271 | K85: =LN(DemandParameters!D32) -> 8.170468578
B86: Average offpeak hourly | C86: log(vehicles/hr) | D86: 7.67971364 | H86: 8.155936338
A87: Log average vehicle travel time / delay | B87: =B84 -> AM peak hour | C87: log(seconds/veh) | D87: =IF(D50="","",IF(ISNUMBER(D50),IF(D50>0,LN(D50),""),"")) -> 1.609437912 | E87: =IF(E50="","",IF(ISNUMBER(E50),IF(E50>0,LN(E50),""),"")) ->  | H87: 2.397895273
B88: =B85 -> PM peak hour | C88: log(seconds/veh) | D88: =IF(D51="","",IF(ISNUMBER(D51),IF(D51>0,LN(D51),""),"")) -> 3.401197382 | H88: 3.891820298
B89: Average offpeak hourly | C89: log(seconds/veh) | D89: 3.33220451 | H89: 3.80666249
A91: Travel time / delay mode; | G91: predicted delay
A92: X'X | C92: (X'X)^-1 | E92: Delay model coeff | G92: =$C$6 -> 2014 | H92: =IF($C$7="","",$C$7) ->  | I92: =IF($C$8="","",$C$8) ->  | J92: =IF($C$9="","",$C$9) ->  | K92: =$C$10 -> 2035
A93: =COUNT(D84:H86) -> 6 | B93: =A94 -> 46.90202586 | C93: =MINVERSE(A93:B94) -> 120.1232095 | D93: -15.34558995 | E93: const | F93: =MMULT(C93:D94,B95:B96) -> -13.61225338 | G93: =IF(D84="","",EXP($F$93+$F$94*D84)) -> 7.94060705 | K93: 25.2659408
A94: =SUM(D84:H86) -> 46.90202586 | B94: =SUMSQ(D84:H86) -> 367.1427358 | C94: -15.34558995 | D94: 1.963103683 | E94: exp | F94: 2.13450776 | G94: 15.38333325 | K94: 45.95557642
A95: X'y | B95: =SUM(D87:H89) -> 18.43921786 | C95: std err estimate | D95: =IF(COUNT(D84:H86)<2,"NA",SQRT(SUMXMY2(G93:K95,D50:H52)/(COUNT(D84:H86)-2))) -> 12.00394466 | E95: seconds | G95: 16.1215192 | K95: 44.55195428
B96: =SUMPRODUCT(D84:H86,D87:H89) -> 145.2267583
B99: Base year | C99: Planning and construction years
C100: Year 1 | D100: Year 2 | E100: Year 3 | F100: Year 4 | G100: Year 5
B101: =IF(BaseYear="",DefaultYearPrompt,BaseYear) -> 2014 | C101: =IF(ISNUMBER($C$5),$C$5,"") -> 2014 | D101: =IF(ISNUMBER(C101),C101+1,"") -> 2015 | E101: =IF(ISNUMBER(D101),D101+1,"") -> 2016 | F101: =IF(ISNUMBER(E101),E101+1,"") -> 2017 | G101: =IF(ISNUMBER(F101),F101+1,"") -> 2018
A104: Discount factor | B104: =1/((1+Discount_Rate)^(B$101-BaseYear)) -> 1 | C104: =IF(ISNUMBER(C101),1/((1+Discount_Rate)^(C$101-BaseYear)),0) -> 1 | D104: =IF(ISNUMBER(D101),1/((1+Discount_Rate)^(D$101-BaseYear)),0) -> 0.9708737864 | E104: =IF(ISNUMBER(E101),1/((1+Discount_Rate)^(E$101-BaseYear)),0) -> 0.9425959091 | F104: =IF(ISNUMBER(F101),1/((1+Discount_Rate)^(F$101-BaseYear)),0) -> 0.9151416594 | G104: =IF(ISNUMBER(G101),1/((1+Discount_Rate)^(G$101-BaseYear)),0) -> 0.8884870479
A106: Planning & Construction Costs
A109: =A14 -> Planning, design | C109: =C14 -> 622819 | D109: 0 | E109: 0 | F109: 0 | G109: 0
A110: Survey | C110: 0 | D110: 0 | E110: 0 | F110: 0 | G110: 0
A111: Right of way | C111: 881000 | D111: 0 | E111: 0 | F111: 0 | G111: 0
A112: Equipment, signs | C112: 0 | D112: 0 | E112: 0 | F112: 0 | G112: 0
A113: Utilities | C113: 0 | D113: 0 | E113: 0 | F113: 0 | G113: 0
A114: Construction | C114: 3111000 | D114: 0 | E114: 0 | F114: 0 | G114: 0
A115: Landscaping | C115: 0 | D115: 0 | E115: 0 | F115: 0 | G115: 0
A116: (Other planning & construction costs) | C116: 0 | D116: 0 | E116: 0 | F116: 0 | G116: 0
A117: (Other planning & construction costs) | C117: 0 | D117: 0 | E117: 0 | F117: 0 | G117: 0
A118: (Other planning & construction costs) | C118: 0 | D118: 0 | E118: 0 | F118: 0 | G118: 0
A119: (Other planning & construction costs) | C119: 0 | D119: 0 | E119: 0 | F119: 0 | G119: 0
A120: (Other planning & construction costs) | C120: 0 | D120: 0 | E120: 0 | F120: 0 | G120: 0
A121: (Other planning & construction costs) | C121: 0 | D121: 0 | E121: 0 | F121: 0 | G121: 0
A122: (Other planning & construction costs) | C122: 0 | D122: 0 | E122: 0 | F122: 0 | G122: 0
A123: (Other planning & construction costs) | C123: 0 | D123: 0 | E123: 0 | F123: 0 | G123: 0
A124: (Other planning & construction costs) | C124: 0 | D124: 0 | E124: 0 | F124: 0 | G124: 0
A125: (Other planning & construction costs) | C125: =C30 -> 0 | D125: 0 | E125: 0 | F125: 0 | G125: 0
A126: Sum - planning & construction | C126: =SUM(C109:C125) -> 4614819 | D126: =SUM(D109:D125) -> 0 | E126: =SUM(E109:E125) -> 0 | F126: =SUM(F109:F125) -> 0 | G126: =SUM(G109:G125) -> 0
A127: NPV - planning & construction | B127: =SUMPRODUCT($C$104:$G$104,C126:G126) -> 4614819
K128: Year ---> | L128: =$C$6 -> 2014 | M128: =IF(AND(L128+1<=$C$10,L128+1>$C$6),L128+1,0) -> 2015 | N128: =IF(AND(M128+1<=$C$10,M128+1>$C$6),M128+1,0) -> 2016 | O128: 2017 | P128: 2018 | Q128: 2019 | R128: 2020 | S128: 2021 | T128: 2022 | U128: 2023 | V128: 2024 | W128: 2025 | X128: 2026 | Y128: 2027 | Z128: 2028 | AA128: 2029 | AB128: 2030 | AC128: 2031 | AD128: 2032 | AE128: 2033 | AF128: 2034 | AG128: 2035 | AH128: 0 | AI128: 0 | AJ128: 0 | AK128: 0 | AL128: 0 | AM128: 0 | AN128: 0 | AO128: 0 | AP128: 0 | AQ128: 0 | AR128: 0 | AS128: 0 | AT128: 0 | AU128: 0 | AV128: 0 | AW128: 0 | AX128: 0 | AY128: 0 | AZ128: 0 | BA128: 0 | BB128: 0 | BC128: 0 | BD128: 0 | BE128: 0 | BF128: 0 | BG128: 0 | BH128: 0 | BI128: 0 | BJ128: 0 | BK128: 0 | BL128: 0 | BM128: 0 | BN128: 0 | BO128: 0 | BP128: 0 | BQ128: 0 | BR128: 0 | BS128: 0 | BT128: 0 | BU128: 0 | BV128: 0 | BW128: 0 | BX128: 0 | BY128: 0 | BZ128: =IF(AND(BY128+1<=$C$10,BY128+1>$C$6),BY128+1,0) -> 0 | CA128: 0 | CB128: 0 | CC128: 0 | CD128: 0 | CE128: 0 | CF128: 0 | CG128: 0 | CH128: 0 | CI128: 0 | CJ128: 0 | CK128: 0 | CL128: 0 | CM128: 0 | CN128: 0 | CO128: 0 | CP128: 0 | CQ128: 0 | CR128: 0 | CS128: 0 | CT128: 0 | CU128: 0 | CV128: 0 | CW128: 0 | CX128: 0 | CY128: 0 | CZ128: 0 | DA128: 0 | DB128: 0 | DC128: 0 | DD128: 0 | DE128: 0 | DF128: 0 | DG128: 0
K129: Discount factor ---> | L129: =IF(L$128>0,(1+Discount_Rate)^(-(L$128-BaseYear)),0) -> 1 | M129: 0.9708737864 | N129: 0.9425959091 | O129: 0.9151416594 | P129: 0.8884870479 | Q129: 0.8626087844 | R129: 0.8374842567 | S129: 0.8130915113 | T129: 0.7894092343 | U129: 0.7664167323 | V129: 0.7440939149 | W129: 0.7224212766 | X129: 0.7013798802 | Y129: 0.68095134 | Z129: 0.6611178058 | AA129: 0.6418619474 | AB129: 0.6231669392 | AC129: 0.6050164458 | AD129: 0.5873946076 | AE129: 0.5702860268 | AF129: 0.5536757542 | AG129: 0.5375492759 | AH129: 0 | AI129: 0 | AJ129: 0 | AK129: 0 | AL129: 0 | AM129: 0 | AN129: 0 | AO129: 0 | AP129: 0 | AQ129: 0 | AR129: 0 | AS129: 0 | AT129: 0 | AU129: 0 | AV129: 0 | AW129: 0 | AX129: 0 | AY129: 0 | AZ129: 0 | BA129: 0 | BB129: 0 | BC129: 0 | BD129: 0 | BE129: 0 | BF129: 0 | BG129: 0 | BH129: 0 | BI129: 0 | BJ129: 0 | BK129: 0 | BL129: 0 | BM129: 0 | BN129: 0 | BO129: 0 | BP129: 0 | BQ129: 0 | BR129: 0 | BS129: 0 | BT129: 0 | BU129: 0 | BV129: 0 | BW129: 0 | BX129: =IF(BX$128>0,(1+Discount_Rate)^(-(BX$128-BaseYear)),0) -> 0 | BY129: 0 | BZ129: 0 | CA129: 0 | CB129: 0 | CC129: 0 | CD129: 0 | CE129: 0 | CF129: 0 | CG129: 0 | CH129: 0 | CI129: 0 | CJ129: 0 | CK129: 0 | CL129: 0 | CM129: 0 | CN129: 0 | CO129: 0 | CP129: 0 | CQ129: 0 | CR129: 0 | CS129: 0 | CT129: 0 | CU129: 0 | CV129: 0 | CW129: 0 | CX129: 0 | CY129: 0 | CZ129: 0 | DA129: 0 | DB129: 0 | DC129: 0 | DD129: 0 | DE129: 0 | DF129: 0 | DG129: 0
A130: Post-Opening Costs | B130: Units | C130: Begin year | D130: Period (years) | E130: Cost | K130: Post-opening O&M
A131: Power | B131: Dollars | C131: =IF(C33="","",C33) -> 2014 | D131: 1 | E131: 4000 | K131: =A131 -> Power | L131: =IF(OR($C131="",$E131="",$C131<$C$6,L$128<$C131),0,IF(MOD(L$128-$C131,IF(OR($D131="",$D131=0),1000,$D131))=0,$E131,0)) -> 4000 | M131: 4000 | N131: 4000 | O131: 4000 | P131: 4000 | Q131: 4000 | R131: 4000 | S131: 4000 | T131: 4000 | U131: 4000 | V131: 4000 | W131: 4000 | X131: 4000 | Y131: 4000 | Z131: 4000 | AA131: 4000 | AB131: =IF(OR($C131="",$E131="",$C131<$C$6,AB$128<$C131),0,IF(MOD(AB$128-$C131,IF(OR($D131="",$D131=0),1000,$D131))=0,$E131,0)) -> 4000 | AC131: 4000 | AD131: 4000 | AE131: 4000 | AF131: 4000 | AG131: 4000 | AH131: 0 | AI131: 0 | AJ131: 0 | AK131: 0 | AL131: 0 | AM131: 0 | AN131: 0 | AO131: 0 | AP131: 0 | AQ131: 0 | AR131: =IF(OR($C131="",$E131="",$C131<$C$6,AR$128<$C131),0,IF(MOD(AR$128-$C131,IF(OR($D131="",$D131=0),1000,$D131))=0,$E131,0)) -> 0 | AS131: 0 | AT131: 0 | AU131: 0 | AV131: 0 | AW131: 0 | AX131: 0 | AY131: 0 | AZ131: 0 | BA131: 0 | BB131: 0 | BC131: 0 | BD131: 0 | BE131: 0 | BF131: 0 | BG131: 0 | BH131: =IF(OR($C131="",$E131="",$C131<$C$6,BH$128<$C131),0,IF(MOD(BH$128-$C131,IF(OR($D131="",$D131=0),1000,$D131))=0,$E131,0)) -> 0 | BI131: 0 | BJ131: 0 | BK131: 0 | BL131: 0 | BM131: 0 | BN131: 0 | BO131: 0 | BP131: 0 | BQ131: 0 | BR131: 0 | BS131: 0 | BT131: 0 | BU131: 0 | BV131: 0 | BW131: 0 | BX131: =IF(OR($C131="",$E131="",$C131<$C$6,BX$128<$C131),0,IF(MOD(BX$128-$C131,IF(OR($D131="",$D131=0),1000,$D131))=0,$E131,0)) -> 0 | BY131: 0 | BZ131: 0 | CA131: 0 | CB131: 0 | CC131: 0 | CD131: 0 | CE131: 0 | CF131: 0 | CG131: 0 | CH131: 0 | CI131: 0 | CJ131: 0 | CK131: 0 | CL131: 0 | CM131: 0 | CN131: =IF(OR($C131="",$E131="",$C131<$C$6,CN$128<$C131),0,IF(MOD(CN$128-$C131,IF(OR($D131="",$D131=0),1000,$D131))=0,$E131,0)) -> 0 | CO131: 0 | CP131: 0 | CQ131: 0 | CR131: 0 | CS131: 0 | CT131: 0 | CU131: 0 | CV131: 0 | CW131: 0 | CX131: 0 | CY131: 0 | CZ131: 0 | DA131: 0 | DB131: 0 | DC131: 0 | DD131: =IF(OR($C131="",$E131="",$C131<$C$6,DD$128<$C131),0,IF(MOD(DD$128-$C131,IF(OR($D131="",$D131=0),1000,$D131))=0,$E131,0)) -> 0 | DE131: 0 | DF131: 0 | DG131: 0
A132: Inspection | B132: Dollars | K132: Inspection | L132: 0 | M132: 0 | N132: 0 | O132: 0 | P132: 0 | Q132: 0 | R132: 0 | S132: 0 | T132: 0 | U132: 0 | V132: 0 | W132: 0 | X132: 0 | Y132: 0 | Z132: 0 | AA132: 0 | AB132: 0 | AC132: 0 | AD132: 0 | AE132: 0 | AF132: 0 | AG132: 0 | AH132: 0 | AI132: 0 | AJ132: 0 | AK132: 0 | AL132: 0 | AM132: 0 | AN132: 0 | AO132: 0 | AP132: 0 | AQ132: 0 | AR132: 0 | AS132: 0 | AT132: 0 | AU132: 0 | AV132: 0 | AW132: 0 | AX132: 0 | AY132: 0 | AZ132: 0 | BA132: 0 | BB132: 0 | BC132: 0 | BD132: 0 | BE132: 0 | BF132: 0 | BG132: 0 | BH132: 0 | BI132: 0 | BJ132: 0 | BK132: 0 | BL132: 0 | BM132: 0 | BN132: 0 | BO132: 0 | BP132: 0 | BQ132: 0 | BR132: 0 | BS132: 0 | BT132: 0 | BU132: 0 | BV132: 0 | BW132: 0 | BX132: 0 | BY132: 0 | BZ132: 0 | CA132: 0 | CB132: 0 | CC132: 0 | CD132: 0 | CE132: 0 | CF132: 0 | CG132: 0 | CH132: 0 | CI132: 0 | CJ132: 0 | CK132: 0 | CL132: 0 | CM132: 0 | CN132: 0 | CO132: 0 | CP132: 0 | CQ132: 0 | CR132: 0 | CS132: 0 | CT132: 0 | CU132: 0 | CV132: 0 | CW132: 0 | CX132: 0 | CY132: 0 | CZ132: 0 | DA132: 0 | DB132: 0 | DC132: 0 | DD132: 0 | DE132: 0 | DF132: 0 | DG132: 0
A133: Repaving | B133: Dollars | K133: Repaving | L133: 0 | M133: 0 | N133: 0 | O133: 0 | P133: 0 | Q133: 0 | R133: 0 | S133: 0 | T133: 0 | U133: 0 | V133: 0 | W133: 0 | X133: 0 | Y133: 0 | Z133: 0 | AA133: 0 | AB133: 0 | AC133: 0 | AD133: 0 | AE133: 0 | AF133: 0 | AG133: 0 | AH133: 0 | AI133: 0 | AJ133: 0 | AK133: 0 | AL133: 0 | AM133: 0 | AN133: 0 | AO133: 0 | AP133: 0 | AQ133: 0 | AR133: 0 | AS133: 0 | AT133: 0 | AU133: 0 | AV133: 0 | AW133: 0 | AX133: 0 | AY133: 0 | AZ133: 0 | BA133: 0 | BB133: 0 | BC133: 0 | BD133: 0 | BE133: 0 | BF133: 0 | BG133: 0 | BH133: 0 | BI133: 0 | BJ133: 0 | BK133: 0 | BL133: 0 | BM133: 0 | BN133: 0 | BO133: 0 | BP133: 0 | BQ133: 0 | BR133: 0 | BS133: 0 | BT133: 0 | BU133: 0 | BV133: 0 | BW133: 0 | BX133: 0 | BY133: 0 | BZ133: 0 | CA133: 0 | CB133: 0 | CC133: 0 | CD133: 0 | CE133: 0 | CF133: 0 | CG133: 0 | CH133: 0 | CI133: 0 | CJ133: 0 | CK133: 0 | CL133: 0 | CM133: 0 | CN133: 0 | CO133: 0 | CP133: 0 | CQ133: 0 | CR133: 0 | CS133: 0 | CT133: 0 | CU133: 0 | CV133: 0 | CW133: 0 | CX133: 0 | CY133: 0 | CZ133: 0 | DA133: 0 | DB133: 0 | DC133: 0 | DD133: 0 | DE133: 0 | DF133: 0 | DG133: 0
A134: Signing, striping | B134: Dollars | K134: Signing, striping | L134: 0 | M134: 0 | N134: 0 | O134: 0 | P134: 0 | Q134: 0 | R134: 0 | S134: 0 | T134: 0 | U134: 0 | V134: 0 | W134: 0 | X134: 0 | Y134: 0 | Z134: 0 | AA134: 0 | AB134: 0 | AC134: 0 | AD134: 0 | AE134: 0 | AF134: 0 | AG134: 0 | AH134: 0 | AI134: 0 | AJ134: 0 | AK134: 0 | AL134: 0 | AM134: 0 | AN134: 0 | AO134: 0 | AP134: 0 | AQ134: 0 | AR134: 0 | AS134: 0 | AT134: 0 | AU134: 0 | AV134: 0 | AW134: 0 | AX134: 0 | AY134: 0 | AZ134: 0 | BA134: 0 | BB134: 0 | BC134: 0 | BD134: 0 | BE134: 0 | BF134: 0 | BG134: 0 | BH134: 0 | BI134: 0 | BJ134: 0 | BK134: 0 | BL134: 0 | BM134: 0 | BN134: 0 | BO134: 0 | BP134: 0 | BQ134: 0 | BR134: 0 | BS134: 0 | BT134: 0 | BU134: 0 | BV134: 0 | BW134: 0 | BX134: 0 | BY134: 0 | BZ134: 0 | CA134: 0 | CB134: 0 | CC134: 0 | CD134: 0 | CE134: 0 | CF134: 0 | CG134: 0 | CH134: 0 | CI134: 0 | CJ134: 0 | CK134: 0 | CL134: 0 | CM134: 0 | CN134: 0 | CO134: 0 | CP134: 0 | CQ134: 0 | CR134: 0 | CS134: 0 | CT134: 0 | CU134: 0 | CV134: 0 | CW134: 0 | CX134: 0 | CY134: 0 | CZ134: 0 | DA134: 0 | DB134: 0 | DC134: 0 | DD134: 0 | DE134: 0 | DF134: 0 | DG134: 0
A135: [Other O&M costs] | B135: Dollars | K135: [Other O&M costs] | L135: 0 | M135: 0 | N135: 0 | O135: 0 | P135: 0 | Q135: 0 | R135: 0 | S135: 0 | T135: 0 | U135: 0 | V135: 0 | W135: 0 | X135: 0 | Y135: 0 | Z135: 0 | AA135: 0 | AB135: 0 | AC135: 0 | AD135: 0 | AE135: 0 | AF135: 0 | AG135: 0 | AH135: 0 | AI135: 0 | AJ135: 0 | AK135: 0 | AL135: 0 | AM135: 0 | AN135: 0 | AO135: 0 | AP135: 0 | AQ135: 0 | AR135: 0 | AS135: 0 | AT135: 0 | AU135: 0 | AV135: 0 | AW135: 0 | AX135: 0 | AY135: 0 | AZ135: 0 | BA135: 0 | BB135: 0 | BC135: 0 | BD135: 0 | BE135: 0 | BF135: 0 | BG135: 0 | BH135: 0 | BI135: 0 | BJ135: 0 | BK135: 0 | BL135: 0 | BM135: 0 | BN135: 0 | BO135: 0 | BP135: 0 | BQ135: 0 | BR135: 0 | BS135: 0 | BT135: 0 | BU135: 0 | BV135: 0 | BW135: 0 | BX135: 0 | BY135: 0 | BZ135: 0 | CA135: 0 | CB135: 0 | CC135: 0 | CD135: 0 | CE135: 0 | CF135: 0 | CG135: 0 | CH135: 0 | CI135: 0 | CJ135: 0 | CK135: 0 | CL135: 0 | CM135: 0 | CN135: 0 | CO135: 0 | CP135: 0 | CQ135: 0 | CR135: 0 | CS135: 0 | CT135: 0 | CU135: 0 | CV135: 0 | CW135: 0 | CX135: 0 | CY135: 0 | CZ135: 0 | DA135: 0 | DB135: 0 | DC135: 0 | DD135: 0 | DE135: 0 | DF135: 0 | DG135: 0
A136: [Other O&M costs] | B136: Dollars | K136: [Other O&M costs] | L136: 0 | M136: 0 | N136: 0 | O136: 0 | P136: 0 | Q136: 0 | R136: 0 | S136: 0 | T136: 0 | U136: 0 | V136: 0 | W136: 0 | X136: 0 | Y136: 0 | Z136: 0 | AA136: 0 | AB136: 0 | AC136: 0 | AD136: 0 | AE136: 0 | AF136: 0 | AG136: 0 | AH136: 0 | AI136: 0 | AJ136: 0 | AK136: 0 | AL136: 0 | AM136: 0 | AN136: 0 | AO136: 0 | AP136: 0 | AQ136: 0 | AR136: 0 | AS136: 0 | AT136: 0 | AU136: 0 | AV136: 0 | AW136: 0 | AX136: 0 | AY136: 0 | AZ136: 0 | BA136: 0 | BB136: 0 | BC136: 0 | BD136: 0 | BE136: 0 | BF136: 0 | BG136: 0 | BH136: 0 | BI136: 0 | BJ136: 0 | BK136: 0 | BL136: 0 | BM136: 0 | BN136: 0 | BO136: 0 | BP136: 0 | BQ136: 0 | BR136: 0 | BS136: 0 | BT136: 0 | BU136: 0 | BV136: 0 | BW136: 0 | BX136: 0 | BY136: 0 | BZ136: 0 | CA136: 0 | CB136: 0 | CC136: 0 | CD136: 0 | CE136: 0 | CF136: 0 | CG136: 0 | CH136: 0 | CI136: 0 | CJ136: 0 | CK136: 0 | CL136: 0 | CM136: 0 | CN136: 0 | CO136: 0 | CP136: 0 | CQ136: 0 | CR136: 0 | CS136: 0 | CT136: 0 | CU136: 0 | CV136: 0 | CW136: 0 | CX136: 0 | CY136: 0 | CZ136: 0 | DA136: 0 | DB136: 0 | DC136: 0 | DD136: 0 | DE136: 0 | DF136: 0 | DG136: 0
A137: [Other O&M costs] | B137: Dollars | K137: [Other O&M costs] | L137: 0 | M137: 0 | N137: 0 | O137: 0 | P137: 0 | Q137: 0 | R137: 0 | S137: 0 | T137: 0 | U137: 0 | V137: 0 | W137: 0 | X137: 0 | Y137: 0 | Z137: 0 | AA137: 0 | AB137: 0 | AC137: 0 | AD137: 0 | AE137: 0 | AF137: 0 | AG137: 0 | AH137: 0 | AI137: 0 | AJ137: 0 | AK137: 0 | AL137: 0 | AM137: 0 | AN137: 0 | AO137: 0 | AP137: 0 | AQ137: 0 | AR137: 0 | AS137: 0 | AT137: 0 | AU137: 0 | AV137: 0 | AW137: 0 | AX137: 0 | AY137: 0 | AZ137: 0 | BA137: 0 | BB137: 0 | BC137: 0 | BD137: 0 | BE137: 0 | BF137: 0 | BG137: 0 | BH137: 0 | BI137: 0 | BJ137: 0 | BK137: 0 | BL137: 0 | BM137: 0 | BN137: 0 | BO137: 0 | BP137: 0 | BQ137: 0 | BR137: 0 | BS137: 0 | BT137: 0 | BU137: 0 | BV137: 0 | BW137: 0 | BX137: 0 | BY137: 0 | BZ137: 0 | CA137: 0 | CB137: 0 | CC137: 0 | CD137: 0 | CE137: 0 | CF137: 0 | CG137: 0 | CH137: 0 | CI137: 0 | CJ137: 0 | CK137: 0 | CL137: 0 | CM137: 0 | CN137: 0 | CO137: 0 | CP137: 0 | CQ137: 0 | CR137: 0 | CS137: 0 | CT137: 0 | CU137: 0 | CV137: 0 | CW137: 0 | CX137: 0 | CY137: 0 | CZ137: 0 | DA137: 0 | DB137: 0 | DC137: 0 | DD137: 0 | DE137: 0 | DF137: 0 | DG137: 0
A138: [Other O&M costs] | B138: Dollars | K138: [Other O&M costs] | L138: 0 | M138: 0 | N138: 0 | O138: 0 | P138: 0 | Q138: 0 | R138: 0 | S138: 0 | T138: 0 | U138: 0 | V138: 0 | W138: 0 | X138: 0 | Y138: 0 | Z138: 0 | AA138: 0 | AB138: 0 | AC138: 0 | AD138: 0 | AE138: 0 | AF138: 0 | AG138: 0 | AH138: 0 | AI138: 0 | AJ138: 0 | AK138: 0 | AL138: 0 | AM138: 0 | AN138: 0 | AO138: 0 | AP138: 0 | AQ138: 0 | AR138: 0 | AS138: 0 | AT138: 0 | AU138: 0 | AV138: 0 | AW138: 0 | AX138: 0 | AY138: 0 | AZ138: 0 | BA138: 0 | BB138: 0 | BC138: 0 | BD138: 0 | BE138: 0 | BF138: 0 | BG138: 0 | BH138: 0 | BI138: 0 | BJ138: 0 | BK138: 0 | BL138: 0 | BM138: 0 | BN138: 0 | BO138: 0 | BP138: 0 | BQ138: 0 | BR138: 0 | BS138: 0 | BT138: 0 | BU138: 0 | BV138: 0 | BW138: 0 | BX138: 0 | BY138: 0 | BZ138: 0 | CA138: 0 | CB138: 0 | CC138: 0 | CD138: 0 | CE138: 0 | CF138: 0 | CG138: 0 | CH138: 0 | CI138: 0 | CJ138: 0 | CK138: 0 | CL138: 0 | CM138: 0 | CN138: 0 | CO138: 0 | CP138: 0 | CQ138: 0 | CR138: 0 | CS138: 0 | CT138: 0 | CU138: 0 | CV138: 0 | CW138: 0 | CX138: 0 | CY138: 0 | CZ138: 0 | DA138: 0 | DB138: 0 | DC138: 0 | DD138: 0 | DE138: 0 | DF138: 0 | DG138: 0
A139: [Other O&M costs] | B139: Dollars | K139: [Other O&M costs] | L139: 0 | M139: 0 | N139: 0 | O139: 0 | P139: 0 | Q139: 0 | R139: 0 | S139: 0 | T139: 0 | U139: 0 | V139: 0 | W139: 0 | X139: 0 | Y139: 0 | Z139: 0 | AA139: 0 | AB139: 0 | AC139: 0 | AD139: 0 | AE139: 0 | AF139: 0 | AG139: 0 | AH139: 0 | AI139: 0 | AJ139: 0 | AK139: 0 | AL139: 0 | AM139: 0 | AN139: 0 | AO139: 0 | AP139: 0 | AQ139: 0 | AR139: 0 | AS139: 0 | AT139: 0 | AU139: 0 | AV139: 0 | AW139: 0 | AX139: 0 | AY139: 0 | AZ139: 0 | BA139: 0 | BB139: 0 | BC139: 0 | BD139: 0 | BE139: 0 | BF139: 0 | BG139: 0 | BH139: 0 | BI139: 0 | BJ139: 0 | BK139: 0 | BL139: 0 | BM139: 0 | BN139: 0 | BO139: 0 | BP139: 0 | BQ139: 0 | BR139: 0 | BS139: 0 | BT139: 0 | BU139: 0 | BV139: 0 | BW139: 0 | BX139: 0 | BY139: 0 | BZ139: 0 | CA139: 0 | CB139: 0 | CC139: 0 | CD139: 0 | CE139: 0 | CF139: 0 | CG139: 0 | CH139: 0 | CI139: 0 | CJ139: 0 | CK139: 0 | CL139: 0 | CM139: 0 | CN139: 0 | CO139: 0 | CP139: 0 | CQ139: 0 | CR139: 0 | CS139: 0 | CT139: 0 | CU139: 0 | CV139: 0 | CW139: 0 | CX139: 0 | CY139: 0 | CZ139: 0 | DA139: 0 | DB139: 0 | DC139: 0 | DD139: 0 | DE139: 0 | DF139: 0 | DG139: 0
A140: [Other O&M costs] | B140: Dollars | K140: [Other O&M costs] | L140: 0 | M140: 0 | N140: 0 | O140: 0 | P140: 0 | Q140: 0 | R140: 0 | S140: 0 | T140: 0 | U140: 0 | V140: 0 | W140: 0 | X140: 0 | Y140: 0 | Z140: 0 | AA140: 0 | AB140: 0 | AC140: 0 | AD140: 0 | AE140: 0 | AF140: 0 | AG140: 0 | AH140: 0 | AI140: 0 | AJ140: 0 | AK140: 0 | AL140: 0 | AM140: 0 | AN140: 0 | AO140: 0 | AP140: 0 | AQ140: 0 | AR140: 0 | AS140: 0 | AT140: 0 | AU140: 0 | AV140: 0 | AW140: 0 | AX140: 0 | AY140: 0 | AZ140: 0 | BA140: 0 | BB140: 0 | BC140: 0 | BD140: 0 | BE140: 0 | BF140: 0 | BG140: 0 | BH140: 0 | BI140: 0 | BJ140: 0 | BK140: 0 | BL140: 0 | BM140: 0 | BN140: 0 | BO140: 0 | BP140: 0 | BQ140: 0 | BR140: 0 | BS140: 0 | BT140: 0 | BU140: 0 | BV140: 0 | BW140: 0 | BX140: 0 | BY140: 0 | BZ140: 0 | CA140: 0 | CB140: 0 | CC140: 0 | CD140: 0 | CE140: 0 | CF140: 0 | CG140: 0 | CH140: 0 | CI140: 0 | CJ140: 0 | CK140: 0 | CL140: 0 | CM140: 0 | CN140: 0 | CO140: 0 | CP140: 0 | CQ140: 0 | CR140: 0 | CS140: 0 | CT140: 0 | CU140: 0 | CV140: 0 | CW140: 0 | CX140: 0 | CY140: 0 | CZ140: 0 | DA140: 0 | DB140: 0 | DC140: 0 | DD140: 0 | DE140: 0 | DF140: 0 | DG140: 0
A141: [Other O&M costs] | B141: Dollars | K141: [Other O&M costs] | L141: 0 | M141: 0 | N141: 0 | O141: 0 | P141: 0 | Q141: 0 | R141: 0 | S141: 0 | T141: 0 | U141: 0 | V141: 0 | W141: 0 | X141: 0 | Y141: 0 | Z141: 0 | AA141: 0 | AB141: 0 | AC141: 0 | AD141: 0 | AE141: 0 | AF141: 0 | AG141: 0 | AH141: 0 | AI141: 0 | AJ141: 0 | AK141: 0 | AL141: 0 | AM141: 0 | AN141: 0 | AO141: 0 | AP141: 0 | AQ141: 0 | AR141: 0 | AS141: 0 | AT141: 0 | AU141: 0 | AV141: 0 | AW141: 0 | AX141: 0 | AY141: 0 | AZ141: 0 | BA141: 0 | BB141: 0 | BC141: 0 | BD141: 0 | BE141: 0 | BF141: 0 | BG141: 0 | BH141: 0 | BI141: 0 | BJ141: 0 | BK141: 0 | BL141: 0 | BM141: 0 | BN141: 0 | BO141: 0 | BP141: 0 | BQ141: 0 | BR141: 0 | BS141: 0 | BT141: 0 | BU141: 0 | BV141: 0 | BW141: 0 | BX141: 0 | BY141: 0 | BZ141: 0 | CA141: 0 | CB141: 0 | CC141: 0 | CD141: 0 | CE141: 0 | CF141: 0 | CG141: 0 | CH141: 0 | CI141: 0 | CJ141: 0 | CK141: 0 | CL141: 0 | CM141: 0 | CN141: 0 | CO141: 0 | CP141: 0 | CQ141: 0 | CR141: 0 | CS141: 0 | CT141: 0 | CU141: 0 | CV141: 0 | CW141: 0 | CX141: 0 | CY141: 0 | CZ141: 0 | DA141: 0 | DB141: 0 | DC141: 0 | DD141: 0 | DE141: 0 | DF141: 0 | DG141: 0
A142: [Other O&M costs] | B142: Dollars | K142: [Other O&M costs] | L142: 0 | M142: 0 | N142: 0 | O142: 0 | P142: 0 | Q142: 0 | R142: 0 | S142: 0 | T142: 0 | U142: 0 | V142: 0 | W142: 0 | X142: 0 | Y142: 0 | Z142: 0 | AA142: 0 | AB142: 0 | AC142: 0 | AD142: 0 | AE142: 0 | AF142: 0 | AG142: 0 | AH142: 0 | AI142: 0 | AJ142: 0 | AK142: 0 | AL142: 0 | AM142: 0 | AN142: 0 | AO142: 0 | AP142: 0 | AQ142: 0 | AR142: 0 | AS142: 0 | AT142: 0 | AU142: 0 | AV142: 0 | AW142: 0 | AX142: 0 | AY142: 0 | AZ142: 0 | BA142: 0 | BB142: 0 | BC142: 0 | BD142: 0 | BE142: 0 | BF142: 0 | BG142: 0 | BH142: 0 | BI142: 0 | BJ142: 0 | BK142: 0 | BL142: 0 | BM142: 0 | BN142: 0 | BO142: 0 | BP142: 0 | BQ142: 0 | BR142: 0 | BS142: 0 | BT142: 0 | BU142: 0 | BV142: 0 | BW142: 0 | BX142: 0 | BY142: 0 | BZ142: 0 | CA142: 0 | CB142: 0 | CC142: 0 | CD142: 0 | CE142: 0 | CF142: 0 | CG142: 0 | CH142: 0 | CI142: 0 | CJ142: 0 | CK142: 0 | CL142: 0 | CM142: 0 | CN142: 0 | CO142: 0 | CP142: 0 | CQ142: 0 | CR142: 0 | CS142: 0 | CT142: 0 | CU142: 0 | CV142: 0 | CW142: 0 | CX142: 0 | CY142: 0 | CZ142: 0 | DA142: 0 | DB142: 0 | DC142: 0 | DD142: 0 | DE142: 0 | DF142: 0 | DG142: 0
A143: [Other O&M costs] | B143: Dollars | K143: [Other O&M costs] | L143: 0 | M143: 0 | N143: 0 | O143: 0 | P143: 0 | Q143: 0 | R143: 0 | S143: 0 | T143: 0 | U143: 0 | V143: 0 | W143: 0 | X143: 0 | Y143: 0 | Z143: 0 | AA143: 0 | AB143: 0 | AC143: 0 | AD143: 0 | AE143: 0 | AF143: 0 | AG143: 0 | AH143: 0 | AI143: 0 | AJ143: 0 | AK143: 0 | AL143: 0 | AM143: 0 | AN143: 0 | AO143: 0 | AP143: 0 | AQ143: 0 | AR143: 0 | AS143: 0 | AT143: 0 | AU143: 0 | AV143: 0 | AW143: 0 | AX143: 0 | AY143: 0 | AZ143: 0 | BA143: 0 | BB143: 0 | BC143: 0 | BD143: 0 | BE143: 0 | BF143: 0 | BG143: 0 | BH143: 0 | BI143: 0 | BJ143: 0 | BK143: 0 | BL143: 0 | BM143: 0 | BN143: 0 | BO143: 0 | BP143: 0 | BQ143: 0 | BR143: 0 | BS143: 0 | BT143: 0 | BU143: 0 | BV143: 0 | BW143: 0 | BX143: 0 | BY143: 0 | BZ143: 0 | CA143: 0 | CB143: 0 | CC143: 0 | CD143: 0 | CE143: 0 | CF143: 0 | CG143: 0 | CH143: 0 | CI143: 0 | CJ143: 0 | CK143: 0 | CL143: 0 | CM143: 0 | CN143: 0 | CO143: 0 | CP143: 0 | CQ143: 0 | CR143: 0 | CS143: 0 | CT143: 0 | CU143: 0 | CV143: 0 | CW143: 0 | CX143: 0 | CY143: 0 | CZ143: 0 | DA143: 0 | DB143: 0 | DC143: 0 | DD143: 0 | DE143: 0 | DF143: 0 | DG143: 0
A144: [Other O&M costs] | B144: Dollars | K144: [Other O&M costs] | L144: 0 | M144: 0 | N144: 0 | O144: 0 | P144: 0 | Q144: 0 | R144: 0 | S144: 0 | T144: 0 | U144: 0 | V144: 0 | W144: 0 | X144: 0 | Y144: 0 | Z144: 0 | AA144: 0 | AB144: 0 | AC144: 0 | AD144: 0 | AE144: 0 | AF144: 0 | AG144: 0 | AH144: 0 | AI144: 0 | AJ144: 0 | AK144: 0 | AL144: 0 | AM144: 0 | AN144: 0 | AO144: 0 | AP144: 0 | AQ144: 0 | AR144: 0 | AS144: 0 | AT144: 0 | AU144: 0 | AV144: 0 | AW144: 0 | AX144: 0 | AY144: 0 | AZ144: 0 | BA144: 0 | BB144: 0 | BC144: 0 | BD144: 0 | BE144: 0 | BF144: 0 | BG144: 0 | BH144: 0 | BI144: 0 | BJ144: 0 | BK144: 0 | BL144: 0 | BM144: 0 | BN144: 0 | BO144: 0 | BP144: 0 | BQ144: 0 | BR144: 0 | BS144: 0 | BT144: 0 | BU144: 0 | BV144: 0 | BW144: 0 | BX144: 0 | BY144: 0 | BZ144: 0 | CA144: 0 | CB144: 0 | CC144: 0 | CD144: 0 | CE144: 0 | CF144: 0 | CG144: 0 | CH144: 0 | CI144: 0 | CJ144: 0 | CK144: 0 | CL144: 0 | CM144: 0 | CN144: 0 | CO144: 0 | CP144: 0 | CQ144: 0 | CR144: 0 | CS144: 0 | CT144: 0 | CU144: 0 | CV144: 0 | CW144: 0 | CX144: 0 | CY144: 0 | CZ144: 0 | DA144: 0 | DB144: 0 | DC144: 0 | DD144: 0 | DE144: 0 | DF144: 0 | DG144: 0
K145: Sum O&M (year) | L145: =SUM(L131:L144) -> 4000 | M145: =SUM(M131:M144) -> 4000 | N145: 4000 | O145: 4000 | P145: 4000 | Q145: 4000 | R145: 4000 | S145: 4000 | T145: 4000 | U145: 4000 | V145: 4000 | W145: 4000 | X145: 4000 | Y145: 4000 | Z145: 4000 | AA145: 4000 | AB145: 4000 | AC145: 4000 | AD145: 4000 | AE145: 4000 | AF145: 4000 | AG145: 4000 | AH145: 0 | AI145: 0 | AJ145: 0 | AK145: 0 | AL145: 0 | AM145: 0 | AN145: 0 | AO145: 0 | AP145: 0 | AQ145: 0 | AR145: 0 | AS145: 0 | AT145: 0 | AU145: 0 | AV145: 0 | AW145: 0 | AX145: 0 | AY145: 0 | AZ145: 0 | BA145: 0 | BB145: 0 | BC145: 0 | BD145: 0 | BE145: 0 | BF145: 0 | BG145: 0 | BH145: 0 | BI145: 0 | BJ145: 0 | BK145: 0 | BL145: 0 | BM145: 0 | BN145: 0 | BO145: 0 | BP145: 0 | BQ145: 0 | BR145: 0 | BS145: 0 | BT145: 0 | BU145: 0 | BV145: 0 | BW145: 0 | BX145: 0 | BY145: =SUM(BY131:BY144) -> 0 | BZ145: 0 | CA145: 0 | CB145: 0 | CC145: 0 | CD145: 0 | CE145: 0 | CF145: 0 | CG145: 0 | CH145: 0 | CI145: 0 | CJ145: 0 | CK145: 0 | CL145: 0 | CM145: 0 | CN145: 0 | CO145: 0 | CP145: 0 | CQ145: 0 | CR145: 0 | CS145: 0 | CT145: 0 | CU145: 0 | CV145: 0 | CW145: 0 | CX145: 0 | CY145: 0 | CZ145: 0 | DA145: 0 | DB145: 0 | DC145: 0 | DD145: 0 | DE145: 0 | DF145: 0 | DG145: 0
K146: NPV O&M | L146: =SUMPRODUCT($L$129:$DG$129,L145:DG145) -> 65660.09655
A149: Demand & travel time/delay | B149: Average travel time/delay | D149: Opening Year | E149: Interim Year(s) | H149: End year
B150: Time period | C150: Units | D150: =$C$6 -> 2014 | E150: =IF($C$7="","",$C$7) ->  | F150: =IF($C$8="","",$C$8) ->  | G150: =IF($C$9="","",$C$9) ->  | H150: =$C$10 -> 2035
A151: Standard deviation of vehicle travel time / delay | B151: AM peak | C151: seconds/veh | D151: =IF(ISNUMBER(D53),D53/SecondsPerHour,IF(ISNUMBER(D54),D54/SecondsPerHour,IF(ISNUMBER(D55),D55/SecondsPerHour,0))) -> 0 | E151: =IF(ISNUMBER(E53),E53/SecondsPerHour,IF(ISNUMBER(E54),E54/SecondsPerHour,IF(ISNUMBER(E55),E55/SecondsPerHour,0))) -> 0 | F151: =IF(ISNUMBER(F53),F53/SecondsPerHour,IF(ISNUMBER(F54),F54/SecondsPerHour,IF(ISNUMBER(F55),F55/SecondsPerHour,0))) -> 0 | G151: =IF(ISNUMBER(G53),G53/SecondsPerHour,IF(ISNUMBER(G54),G54/SecondsPerHour,IF(ISNUMBER(G55),G55/SecondsPerHour,0))) -> 0 | H151: =IF(ISNUMBER(H53),H53/SecondsPerHour,IF(ISNUMBER(H54),H54/SecondsPerHour,IF(ISNUMBER(H55),H55/SecondsPerHour,0))) -> 0
B152: PM peak | C152: seconds/veh | D152: =IF(ISNUMBER(D54),D54/SecondsPerHour,IF(ISNUMBER(D53/SecondsPerHour),D53,IF(ISNUMBER(D55),D55/SecondsPerHour,0))) -> 0 | E152: =IF(ISNUMBER(E54),E54/SecondsPerHour,IF(ISNUMBER(E53/SecondsPerHour),E53,IF(ISNUMBER(E55),E55/SecondsPerHour,0))) -> 0 | F152: =IF(ISNUMBER(F54),F54/SecondsPerHour,IF(ISNUMBER(F53/SecondsPerHour),F53,IF(ISNUMBER(F55),F55/SecondsPerHour,0))) -> 0 | G152: =IF(ISNUMBER(G54),G54/SecondsPerHour,IF(ISNUMBER(G53/SecondsPerHour),G53,IF(ISNUMBER(G55),G55/SecondsPerHour,0))) -> 0 | H152: =IF(ISNUMBER(H54),H54/SecondsPerHour,IF(ISNUMBER(H53/SecondsPerHour),H53,IF(ISNUMBER(H55),H55/SecondsPerHour,0))) -> 0
B153: Offpeak | C153: seconds/veh | D153: =IF(ISNUMBER(D55),D55/SecondsPerHour,0) -> 0 | E153: =IF(ISNUMBER(E55),E55/SecondsPerHour,0) -> 0 | F153: =IF(ISNUMBER(F55),F55/SecondsPerHour,0) -> 0 | G153: =IF(ISNUMBER(G55),G55/SecondsPerHour,0) -> 0 | H153: =IF(ISNUMBER(H55),H55/SecondsPerHour,0) -> 0
A154: Average bike travel time / delay | B154: All | C154: seconds/bike | D154: =D56 -> 0 | E154: 0 | F154: 0 | G154: 0 | H154: 0
A155: Average ped travel time / delay | B155: All | C155: seconds/ped | D155: 0 | E155: 0 | F155: 0 | G155: 0 | H155: 0
A157: User & nonuser costs | J157: DefinedAlternative_InterpolationFormulaTemplate | K157: =IF(NOT(AND(ISNUMBER(DummyCellReference_1),ISNUMBER(DummyCellReference_2))),0,IF(AND(DummyCellReference_1>0,DummyCellReference_2>0),DummyCellReference_1*(DummyCellReference_2/DummyCellReference_1)^((DummyCellReference_4-DummyCellReference_3)/(DummyCellReference_5-DummyCellReference_3)),0)) -> 0
D159: Summary costs for user specified years
A160: Cost category | D160: Opening Year | E160: Interim Year(s) | H160: End year | J160: NPV calculations | K160: Total NPV | L160: Spot values
D161: =$C$6 -> 2014 | E161: =IF($C$7="","",$C$7) ->  | F161: =IF($C$8="","",$C$8) ->  | G161: =IF($C$9="","",$C$9) ->  | H161: =$C$10 -> 2035
A162: Auto passenger time cost | D162: =IF(ISNUMBER(D$150),SUM(D$203:D$8962),"") -> 1035297.348 | E162: =IF(ISNUMBER(E$150),SUM(L$203:L$8962),0) -> 0 | F162: =IF(ISNUMBER(F$150),SUM(T$203:T$8962),0) -> 0 | G162: =IF(ISNUMBER(G$150),SUM(AB$203:AB$8962),"") ->  | H162: =IF(ISNUMBER(H$150),SUM(AJ$203:AJ$8962),"") -> 11998914.3 | J162: =A162 -> Auto passenger time cost | K162: =SUMPRODUCT(L162:DG162,$L$129:$DG$129) -> 65938605.01 | L162: =D162 -> 1035297.348 | M162: =IF(NOT(AND(ISNUMBER(L162),ISNUMBER(AG162))),0,IF(AND(L162>0,AG162>0),L162*(AG162/L162)^((M$128-L$128)/(AG$128-L$128)),0)) -> 1163417.06 | N162: =IF(NOT(AND(ISNUMBER(L162),ISNUMBER(AG162))),0,IF(AND(L162>0,AG162>0),L162*(AG162/L162)^((N$128-L$128)/(AG$128-L$128)),0)) -> 1307391.792 | O162: =IF(NOT(AND(ISNUMBER(L162),ISNUMBER(AG162))),0,IF(AND(L162>0,AG162>0),L162*(AG162/L162)^((O$128-L$128)/(AG$128-L$128)),0)) -> 1469183.628 | P162: =IF(NOT(AND(ISNUMBER(L162),ISNUMBER(AG162))),0,IF(AND(L162>0,AG162>0),L162*(AG162/L162)^((P$128-L$128)/(AG$128-L$128)),0)) -> 1650997.465 | Q162: =IF(NOT(AND(ISNUMBER(L162),ISNUMBER(AG162))),0,IF(AND(L162>0,AG162>0),L162*(AG162/L162)^((Q$128-L$128)/(AG$128-L$128)),0)) -> 1855311.056 | R162: =IF(NOT(AND(ISNUMBER(L162),ISNUMBER(AG162))),0,IF(AND(L162>0,AG162>0),L162*(AG162/L162)^((R$128-L$128)/(AG$128-L$128)),0)) -> 2084908.783 | S162: =IF(NOT(AND(ISNUMBER(L162),ISNUMBER(AG162))),0,IF(AND(L162>0,AG162>0),L162*(AG162/L162)^((S$128-L$128)/(AG$128-L$128)),0)) -> 2342919.597 | T162: =IF(NOT(AND(ISNUMBER(L162),ISNUMBER(AG162))),0,IF(AND(L162>0,AG162>0),L162*(AG162/L162)^((T$128-L$128)/(AG$128-L$128)),0)) -> 2632859.664 | U162: =IF(NOT(AND(ISNUMBER(L162),ISNUMBER(AG162))),0,IF(AND(L162>0,AG162>0),L162*(AG162/L162)^((U$128-L$128)/(AG$128-L$128)),0)) -> 2958680.281 | V162: =IF(NOT(AND(ISNUMBER(L162),ISNUMBER(AG162))),0,IF(AND(L162>0,AG162>0),L162*(AG162/L162)^((V$128-L$128)/(AG$128-L$128)),0)) -> 3324821.724 | W162: =IF(NOT(AND(ISNUMBER(L162),ISNUMBER(AG162))),0,IF(AND(L162>0,AG162>0),L162*(AG162/L162)^((W$128-L$128)/(AG$128-L$128)),0)) -> 3736273.758 | X162: =IF(NOT(AND(ISNUMBER(L162),ISNUMBER(AG162))),0,IF(AND(L162>0,AG162>0),L162*(AG162/L162)^((X$128-L$128)/(AG$128-L$128)),0)) -> 4198643.644 | Y162: =IF(NOT(AND(ISNUMBER(L162),ISNUMBER(AG162))),0,IF(AND(L162>0,AG162>0),L162*(AG162/L162)^((Y$128-L$128)/(AG$128-L$128)),0)) -> 4718232.546 | Z162: =IF(NOT(AND(ISNUMBER(L162),ISNUMBER(AG162))),0,IF(AND(L162>0,AG162>0),L162*(AG162/L162)^((Z$128-L$128)/(AG$128-L$128)),0)) -> 5302121.411 | AA162: =IF(NOT(AND(ISNUMBER(L162),ISNUMBER(AG162))),0,IF(AND(L162>0,AG162>0),L162*(AG162/L162)^((AA$128-L$128)/(AG$128-L$128)),0)) -> 5958267.461 | AB162: =IF(NOT(AND(ISNUMBER(L162),ISNUMBER(AG162))),0,IF(AND(L162>0,AG162>0),L162*(AG162/L162)^((AB$128-L$128)/(AG$128-L$128)),0)) -> 6695612.64 | AC162: =IF(NOT(AND(ISNUMBER(L162),ISNUMBER(AG162))),0,IF(AND(L162>0,AG162>0),L162*(AG162/L162)^((AC$128-L$128)/(AG$128-L$128)),0)) -> 7524205.471 | AD162: =IF(NOT(AND(ISNUMBER(L162),ISNUMBER(AG162))),0,IF(AND(L162>0,AG162>0),L162*(AG162/L162)^((AD$128-L$128)/(AG$128-L$128)),0)) -> 8455337.996 | AE162: =IF(NOT(AND(ISNUMBER(L162),ISNUMBER(AG162))),0,IF(AND(L162>0,AG162>0),L162*(AG162/L162)^((AE$128-L$128)/(AG$128-L$128)),0)) -> 9501699.67 | AF162: =IF(NOT(AND(ISNUMBER(L162),ISNUMBER(AG162))),0,IF(AND(L162>0,AG162>0),L162*(AG162/L162)^((AF$128-L$128)/(AG$128-L$128)),0)) -> 10677550.28 | AG162: =H162 -> 11998914.3
A163: Auto passenger reliability cost | D163: =IF(ISNUMBER(D$150),SUM(E$203:E$8962),"") -> 0 | E163: =IF(ISNUMBER(E$150),SUM(M$203:M$8962),"") ->  | F163: =IF(ISNUMBER(F$150),SUM(U$203:U$8962),0) -> 0 | G163: =IF(ISNUMBER(G$150),SUM(AC$203:AC$8962),"") ->  | H163: =IF(ISNUMBER(H$150),SUM(AK$203:AK$8962),"") -> 0 | J163: =A163 -> Auto passenger reliability cost | K163: =SUMPRODUCT(L163:DG163,$L$129:$DG$129) -> 0 | L163: =D163 -> 0 | M163: =IF(NOT(AND(ISNUMBER(L163),ISNUMBER(AG163))),0,IF(AND(L163>0,AG163>0),L163*(AG163/L163)^((M$128-L$128)/(AG$128-L$128)),0)) -> 0 | N163: =IF(NOT(AND(ISNUMBER(L163),ISNUMBER(AG163))),0,IF(AND(L163>0,AG163>0),L163*(AG163/L163)^((N$128-L$128)/(AG$128-L$128)),0)) -> 0 | O163: =IF(NOT(AND(ISNUMBER(L163),ISNUMBER(AG163))),0,IF(AND(L163>0,AG163>0),L163*(AG163/L163)^((O$128-L$128)/(AG$128-L$128)),0)) -> 0 | P163: =IF(NOT(AND(ISNUMBER(L163),ISNUMBER(AG163))),0,IF(AND(L163>0,AG163>0),L163*(AG163/L163)^((P$128-L$128)/(AG$128-L$128)),0)) -> 0 | Q163: =IF(NOT(AND(ISNUMBER(L163),ISNUMBER(AG163))),0,IF(AND(L163>0,AG163>0),L163*(AG163/L163)^((Q$128-L$128)/(AG$128-L$128)),0)) -> 0 | R163: =IF(NOT(AND(ISNUMBER(L163),ISNUMBER(AG163))),0,IF(AND(L163>0,AG163>0),L163*(AG163/L163)^((R$128-L$128)/(AG$128-L$128)),0)) -> 0 | S163: =IF(NOT(AND(ISNUMBER(L163),ISNUMBER(AG163))),0,IF(AND(L163>0,AG163>0),L163*(AG163/L163)^((S$128-L$128)/(AG$128-L$128)),0)) -> 0 | T163: =IF(NOT(AND(ISNUMBER(L163),ISNUMBER(AG163))),0,IF(AND(L163>0,AG163>0),L163*(AG163/L163)^((T$128-L$128)/(AG$128-L$128)),0)) -> 0 | U163: =IF(NOT(AND(ISNUMBER(L163),ISNUMBER(AG163))),0,IF(AND(L163>0,AG163>0),L163*(AG163/L163)^((U$128-L$128)/(AG$128-L$128)),0)) -> 0 | V163: =IF(NOT(AND(ISNUMBER(L163),ISNUMBER(AG163))),0,IF(AND(L163>0,AG163>0),L163*(AG163/L163)^((V$128-L$128)/(AG$128-L$128)),0)) -> 0 | W163: =IF(NOT(AND(ISNUMBER(L163),ISNUMBER(AG163))),0,IF(AND(L163>0,AG163>0),L163*(AG163/L163)^((W$128-L$128)/(AG$128-L$128)),0)) -> 0 | X163: =IF(NOT(AND(ISNUMBER(L163),ISNUMBER(AG163))),0,IF(AND(L163>0,AG163>0),L163*(AG163/L163)^((X$128-L$128)/(AG$128-L$128)),0)) -> 0 | Y163: =IF(NOT(AND(ISNUMBER(L163),ISNUMBER(AG163))),0,IF(AND(L163>0,AG163>0),L163*(AG163/L163)^((Y$128-L$128)/(AG$128-L$128)),0)) -> 0 | Z163: =IF(NOT(AND(ISNUMBER(L163),ISNUMBER(AG163))),0,IF(AND(L163>0,AG163>0),L163*(AG163/L163)^((Z$128-L$128)/(AG$128-L$128)),0)) -> 0 | AA163: =IF(NOT(AND(ISNUMBER(L163),ISNUMBER(AG163))),0,IF(AND(L163>0,AG163>0),L163*(AG163/L163)^((AA$128-L$128)/(AG$128-L$128)),0)) -> 0 | AB163: =IF(NOT(AND(ISNUMBER(L163),ISNUMBER(AG163))),0,IF(AND(L163>0,AG163>0),L163*(AG163/L163)^((AB$128-L$128)/(AG$128-L$128)),0)) -> 0 | AC163: =IF(NOT(AND(ISNUMBER(L163),ISNUMBER(AG163))),0,IF(AND(L163>0,AG163>0),L163*(AG163/L163)^((AC$128-L$128)/(AG$128-L$128)),0)) -> 0 | AD163: =IF(NOT(AND(ISNUMBER(L163),ISNUMBER(AG163))),0,IF(AND(L163>0,AG163>0),L163*(AG163/L163)^((AD$128-L$128)/(AG$128-L$128)),0)) -> 0 | AE163: =IF(NOT(AND(ISNUMBER(L163),ISNUMBER(AG163))),0,IF(AND(L163>0,AG163>0),L163*(AG163/L163)^((AE$128-L$128)/(AG$128-L$128)),0)) -> 0 | AF163: =IF(NOT(AND(ISNUMBER(L163),ISNUMBER(AG163))),0,IF(AND(L163>0,AG163>0),L163*(AG163/L163)^((AF$128-L$128)/(AG$128-L$128)),0)) -> 0 | AG163: =H163 -> 0
A164: Truck time cost | D164: =IF(ISNUMBER(D$150),SUM(F$203:F$8962),"") -> 32242.46301 | E164: =IF(ISNUMBER(E$150),SUM(N$203:N$8962),"") ->  | F164: =IF(ISNUMBER(F$150),SUM(V$203:V$8962),0) -> 0 | G164: =IF(ISNUMBER(G$150),SUM(AD$203:AD$8962),"") ->  | H164: =IF(ISNUMBER(H$150),SUM(AL$203:AL$8962),"") -> 381469.5725 | J164: Truck time cost | K164: 2081604.2 | L164: 32242.46301 | M164: 36268.11278 | N164: 40796.38718 | O164: 45890.04167 | P164: 51619.66709 | Q164: 58064.66792 | R164: 65314.36273 | S164: 73469.22203 | T164: 82642.26059 | U164: 92960.60374 | V164: 104567.2491 | W164: 117623.0482 | X164: 132308.9361 | Y164: 148828.4383 | Z164: 167410.4917 | AA164: 188312.6171 | AB164: 211824.4885 | AC164: 238271.947 | AD164: 268021.517 | AE164: 301485.4852 | AF164: 339127.6148 | AG164: 381469.5725
A165: Truck reliability cost | D165: =IF(ISNUMBER(D$150),SUM(G$203:G$8962),"") -> 0 | E165: =IF(ISNUMBER(E$150),SUM(O$203:O$8962),"") ->  | F165: =IF(ISNUMBER(F$150),SUM(W$203:W$8962),0) -> 0 | G165: =IF(ISNUMBER(G$150),SUM(AE$203:AE$8962),"") ->  | H165: =IF(ISNUMBER(H$150),SUM(AM$203:AM$8962),"") -> 0 | J165: Truck reliability cost | K165: 0 | L165: 0 | M165: 0 | N165: 0 | O165: 0 | P165: 0 | Q165: 0 | R165: 0 | S165: 0 | T165: 0 | U165: 0 | V165: 0 | W165: 0 | X165: 0 | Y165: 0 | Z165: 0 | AA165: 0 | AB165: 0 | AC165: 0 | AD165: 0 | AE165: 0 | AF165: 0 | AG165: 0
A166: Transit passenger time cost | D166: =IF(ISNUMBER(D$150),SUM(H$203:H$8962),"") -> 0 | E166: =IF(ISNUMBER(E$150),SUM(P$203:P$8962),"") ->  | F166: =IF(ISNUMBER(F$150),SUM(X$203:X$8962),0) -> 0 | G166: =IF(ISNUMBER(G$150),SUM(AF$203:AF$8962),"") ->  | H166: =IF(ISNUMBER(H$150),SUM(AN$203:AN$8962),"") -> 0 | J166: Transit passenger time cost | K166: 0 | L166: 0 | M166: 0 | N166: 0 | O166: 0 | P166: 0 | Q166: 0 | R166: 0 | S166: 0 | T166: 0 | U166: 0 | V166: 0 | W166: 0 | X166: 0 | Y166: 0 | Z166: 0 | AA166: 0 | AB166: 0 | AC166: 0 | AD166: 0 | AE166: 0 | AF166: 0 | AG166: 0
A167: Transit passenger reliability cost | D167: =IF(ISNUMBER(D$150),SUM(I$203:I$8962),"") -> 0 | E167: =IF(ISNUMBER(E$150),SUM(Q$203:Q$8962),"") ->  | F167: =IF(ISNUMBER(F$150),SUM(Y$203:Y$8962),0) -> 0 | G167: =IF(ISNUMBER(G$150),SUM(AG$203:AG$8962),"") ->  | H167: =IF(ISNUMBER(H$150),SUM(AO$203:AO$8962),"") -> 0 | J167: Transit passenger reliability cost | K167: 0 | L167: 0 | M167: 0 | N167: 0 | O167: 0 | P167: 0 | Q167: 0 | R167: 0 | S167: 0 | T167: 0 | U167: 0 | V167: 0 | W167: 0 | X167: 0 | Y167: 0 | Z167: 0 | AA167: 0 | AB167: 0 | AC167: 0 | AD167: 0 | AE167: 0 | AF167: 0 | AG167: 0
A168: Bicycle time cost | D168: =DemandParameters!C37*(D56/SecondsPerHour)*DaysPerYear*TimeValue_Person_Offpeak -> 0 | H168: =DemandParameters!D37*(H56/SecondsPerHour)*DaysPerYear*TimeValue_Person_Offpeak -> 0 | J168: Bicycle time cost | K168: 0 | L168: 0 | M168: 0 | N168: 0 | O168: 0 | P168: 0 | Q168: 0 | R168: 0 | S168: 0 | T168: 0 | U168: 0 | V168: 0 | W168: 0 | X168: 0 | Y168: 0 | Z168: 0 | AA168: 0 | AB168: 0 | AC168: 0 | AD168: 0 | AE168: 0 | AF168: 0 | AG168: 0
A169: Pedestrian time cost | D169: =DemandParameters!C38*(D57/SecondsPerHour)*DaysPerYear*TimeValue_Person_Offpeak -> 0 | H169: =DemandParameters!D38*(H57/SecondsPerHour)*DaysPerYear*TimeValue_Person_Offpeak -> 0 | J169: =A169 -> Pedestrian time cost | K169: 0 | L169: 0 | M169: 0 | N169: 0 | O169: 0 | P169: 0 | Q169: 0 | R169: 0 | S169: 0 | T169: 0 | U169: 0 | V169: 0 | W169: 0 | X169: 0 | Y169: 0 | Z169: 0 | AA169: 0 | AB169: 0 | AC169: 0 | AD169: 0 | AE169: 0 | AF169: 0 | AG169: 0
A170: Crash cost | D170: =IF(OR(NOT(ISNUMBER($C$177)),NOT(ISNUMBER(D$60))),0,SUMPRODUCT($C$177:$C$181,D$60:D$64)) -> 214402 | E170: =IF(OR(NOT(ISNUMBER($C$177)),NOT(ISNUMBER(E$60))),0,SUMPRODUCT($C$177:$C$181,E$60:E$64)) -> 0 | F170: =IF(OR(NOT(ISNUMBER($C$177)),NOT(ISNUMBER(F$60))),0,SUMPRODUCT($C$177:$C$181,F$60:F$64)) -> 0 | G170: =IF(OR(NOT(ISNUMBER($C$177)),NOT(ISNUMBER(G$60))),0,SUMPRODUCT($C$177:$C$181,G$60:G$64)) -> 0 | H170: =IF(OR(NOT(ISNUMBER($C$177)),NOT(ISNUMBER(H$60))),0,SUMPRODUCT($C$177:$C$181,H$60:H$64)) -> 241338 | J170: Crash cost | K170: =SUMPRODUCT(L170:DG170,$L$129:$DG$129) -> 3711502.732 | L170: 214402 | M170: 215613.6753 | N170: 216832.1984 | O170: 218057.6078 | P170: 219289.9425 | Q170: 220529.2416 | R170: 221775.5445 | S170: 223028.8909 | T170: 224289.3204 | U170: 225556.8731 | V170: 226831.5893 | W170: 228113.5094 | X170: 229402.6742 | Y170: 230699.1246 | Z170: 232002.9018 | AA170: 233314.0472 | AB170: 234632.6025 | AC170: 235958.6094 | AD170: 237292.1101 | AE170: 238633.1471 | AF170: 239981.7627 | AG170: 241338
A171: GHG cost | D171: =IF(D67="","",D67*IF(IsChecked_GHG_Values_FederalMethod,VLOOKUP(D49,GHG.Costs!$A$19:$G$155,6,7))) ->  | E171: =IF(E67="","",E67*IF(IsChecked_GHG_Values_FederalMethod,VLOOKUP(E49,GHG.Costs!$A$19:$G$155,6,7))) ->  | F171: =IF(F67="","",F67*IF(IsChecked_GHG_Values_FederalMethod,VLOOKUP(F49,GHG.Costs!$A$19:$G$155,6,7))) ->  | G171: =IF(G67="","",G67*IF(IsChecked_GHG_Values_FederalMethod,VLOOKUP(G49,GHG.Costs!$A$19:$G$155,6,7))) ->  | H171: =IF(H67="","",H67*IF(IsChecked_GHG_Values_FederalMethod,VLOOKUP(H49,GHG.Costs!$A$19:$G$155,6,7))) ->  | J171: GHG cost | K171: =SUM(L171:DG171) -> 0 | M171: 0 | N171: 0 | O171: 0 | P171: 0 | Q171: 0 | R171: 0 | S171: 0 | T171: 0 | U171: 0 | V171: 0 | W171: 0 | X171: 0 | Y171: 0 | Z171: 0 | AA171: 0 | AB171: 0 | AC171: 0 | AD171: 0 | AE171: 0 | AF171: 0
A172: Criteria pollutant cost | D172: =IF(IsChecked_CriteriaPollutantCategories_ByType,SUMPRODUCT(D68:D71,CostParameters!$G$25:$G$28),SUMPRODUCT(D68:D71,CostParameters!$G$29:$G$32)) -> 0 | E172: =IF(IsChecked_CriteriaPollutantCategories_ByType,SUMPRODUCT(E68:E71,CostParameters!$G$25:$G$28),SUMPRODUCT(E68:E71,CostParameters!$G$29:$G$32)) -> 0 | F172: =IF(IsChecked_CriteriaPollutantCategories_ByType,SUMPRODUCT(F68:F71,CostParameters!$G$25:$G$28),SUMPRODUCT(F68:F71,CostParameters!$G$29:$G$32)) -> 0 | G172: =IF(IsChecked_CriteriaPollutantCategories_ByType,SUMPRODUCT(G68:G71,CostParameters!$G$25:$G$28),SUMPRODUCT(G68:G71,CostParameters!$G$29:$G$32)) -> 0 | H172: =IF(IsChecked_CriteriaPollutantCategories_ByType,SUMPRODUCT(H68:H71,CostParameters!$G$25:$G$28),SUMPRODUCT(H68:H71,CostParameters!$G$29:$G$32)) -> 0 | J172: Criteria pollutant cost | K172: =SUMPRODUCT(L172:DG172,$L$129:$DG$129) -> 0 | L172: 0 | M172: 0 | N172: 0 | O172: 0 | P172: 0 | Q172: 0 | R172: 0 | S172: 0 | T172: 0 | U172: 0 | V172: 0 | W172: 0 | X172: 0 | Y172: 0 | Z172: 0 | AA172: 0 | AB172: 0 | AC172: 0 | AD172: 0 | AE172: 0 | AF172: 0 | AG172: 0
I174: index
A175: Safety | B175: Crash type | C175: Valuation | D175: Opening Year | E175: Interim Year(s) | H175: End year
D176: =$C$6 -> 2014 | E176: =IF($C$7="","",$C$7) ->  | F176: =IF($C$8="","",$C$8) ->  | G176: =IF($C$9="","",$C$9) ->  | H176: =$C$10 -> 2035
A177: =IF(IsChecked_CrashCategories_KABCO,CrashCategoryLabel_KABCO,IF(IsChecked_CrashCategories_FatalityInjuryPDO,CrashCategoryLabel_FatalInjuryPDO,IF(IsChecked_CrashCategories_TotalCrashes,CrashCategoryLabel_TotalCrashes,CrashCategoryLabel_UserDefined))) -> Fatality, injury, PDO | B177: =IF(B60="","",B60) -> Fatality crashes | C177: =IF(IsChecked_CrashCategories_KABCO,IF(ISERROR(INDEX(CrashValuations_KABCO,$I177)),"",INDEX(CrashValuations_KABCO,$I177)),IF(IsChecked_CrashCategories_FatalityInjuryPDO,IF(ISERROR(INDEX(CrashValuations_FatalityInjuryPDO,$I177)),"",INDEX(CrashValuations_FatalityInjuryPDO,$I177)),IF(IsChecked_CrashCategories_TotalCrashes,IF(ISERROR(INDEX(CrashValuations_TotalCrashes,$I177)),"",INDEX(CrashValuations_TotalCrashes,$I177)),IF(IsChecked_CrashCategories_UserDefined,IF(ISERROR(INDEX(CrashValuations_UserDefined,$I177)),"",IF(INDEX(CrashValuations_UserDefined,$I177)="","",INDEX(CrashValuations_UserDefined,$I177))),#N/A)))) -> 9200000 | I177: 1
B178: =IF(B61="","",B61) -> Injury crashes | C178: =IF(IsChecked_CrashCategories_KABCO,IF(ISERROR(INDEX(CrashValuations_KABCO,$I178)),"",INDEX(CrashValuations_KABCO,$I178)),IF(IsChecked_CrashCategories_FatalityInjuryPDO,IF(ISERROR(INDEX(CrashValuations_FatalityInjuryPDO,$I178)),"",INDEX(CrashValuations_FatalityInjuryPDO,$I178)),IF(IsChecked_CrashCategories_TotalCrashes,IF(ISERROR(INDEX(CrashValuations_TotalCrashes,$I178)),"",INDEX(CrashValuations_TotalCrashes,$I178)),IF(IsChecked_CrashCategories_UserDefined,IF(ISERROR(INDEX(CrashValuations_UserDefined,$I178)),"",IF(INDEX(CrashValuations_UserDefined,$I178)="","",INDEX(CrashValuations_UserDefined,$I178))),#N/A)))) -> 167264 | I178: 2
B179: =IF(B62="","",B62) -> Property damage only crashes | C179: =IF(IsChecked_CrashCategories_KABCO,IF(ISERROR(INDEX(CrashValuations_KABCO,$I179)),"",INDEX(CrashValuations_KABCO,$I179)),IF(IsChecked_CrashCategories_FatalityInjuryPDO,IF(ISERROR(INDEX(CrashValuations_FatalityInjuryPDO,$I179)),"",INDEX(CrashValuations_FatalityInjuryPDO,$I179)),IF(IsChecked_CrashCategories_TotalCrashes,IF(ISERROR(INDEX(CrashValuations_TotalCrashes,$I179)),"",INDEX(CrashValuations_TotalCrashes,$I179)),IF(IsChecked_CrashCategories_UserDefined,IF(ISERROR(INDEX(CrashValuations_UserDefined,$I179)),"",IF(INDEX(CrashValuations_UserDefined,$I179)="","",INDEX(CrashValuations_UserDefined,$I179))),#N/A)))) -> 6734 | I179: 3
B180: =IF(B63="","",B63) ->  | C180: =IF(IsChecked_CrashCategories_KABCO,IF(ISERROR(INDEX(CrashValuations_KABCO,$I180)),"",INDEX(CrashValuations_KABCO,$I180)),IF(IsChecked_CrashCategories_FatalityInjuryPDO,IF(ISERROR(INDEX(CrashValuations_FatalityInjuryPDO,$I180)),"",INDEX(CrashValuations_FatalityInjuryPDO,$I180)),IF(IsChecked_CrashCategories_TotalCrashes,IF(ISERROR(INDEX(CrashValuations_TotalCrashes,$I180)),"",INDEX(CrashValuations_TotalCrashes,$I180)),IF(IsChecked_CrashCategories_UserDefined,IF(ISERROR(INDEX(CrashValuations_UserDefined,$I180)),"",IF(INDEX(CrashValuations_UserDefined,$I180)="","",INDEX(CrashValuations_UserDefined,$I180))),#N/A)))) ->  | I180: 4
B181: =IF(B64="","",B64) ->  | C181: =IF(IsChecked_CrashCategories_KABCO,IF(ISERROR(INDEX(CrashValuations_KABCO,$I181)),"",INDEX(CrashValuations_KABCO,$I181)),IF(IsChecked_CrashCategories_FatalityInjuryPDO,IF(ISERROR(INDEX(CrashValuations_FatalityInjuryPDO,$I181)),"",INDEX(CrashValuations_FatalityInjuryPDO,$I181)),IF(IsChecked_CrashCategories_TotalCrashes,IF(ISERROR(INDEX(CrashValuations_TotalCrashes,$I181)),"",INDEX(CrashValuations_TotalCrashes,$I181)),IF(IsChecked_CrashCategories_UserDefined,IF(ISERROR(INDEX(CrashValuations_UserDefined,$I181)),"",IF(INDEX(CrashValuations_UserDefined,$I181)="","",INDEX(CrashValuations_UserDefined,$I181))),#N/A)))) ->  | I181: 5
A184: Emissions | B184: Type
A186: =A67 -> Greenhouse gases -- Federal method (Exec. Order 12866) | B186: =IF(B67="","",B67) -> CO2 equivalent | C186: (see next row)
A190: =A68 -> Criteria pollutants -- by type | B190: =IF(B68="","",B68) -> CO | C190: =IF(IsChecked_CriteriaPollutantCategories_ByType,CostParameters!G25,CostParameters!G29) -> 39600 | I190: 1
B191: =IF(B69="","",B69) -> NOx | C191: =IF(IsChecked_CriteriaPollutantCategories_ByType,CostParameters!G26,CostParameters!G30) -> 7887 | I191: 2
B192: HC | C192: =IF(IsChecked_CriteriaPollutantCategories_ByType,CostParameters!G27,CostParameters!G31) -> 1700 | I192: 3
B193: PM 2.5 | C193: =IF(IsChecked_CriteriaPollutantCategories_ByType,CostParameters!G28,CostParameters!G32) -> 306500 | I193: 6
A196: Year | C196: time per | D196: std dev | K196: time per | L196: std dev | S196: time per | T196: std dev | AA196: time per | AB196: std dev | AI196: time per | AJ196: std dev
A197: Year type ---> | B197: Opening year | C197: AM | D197: =D151 -> 0 | J197: Int yr 1 | K197: AM | L197: =E151 -> 0 | R197: Int yr 2 | S197: AM | T197: =F151 -> 0 | Z197: Int yr 3 | AA197: AM | AB197: =G151 -> 0 | AH197: End year | AI197: AM | AJ197: =H151 -> 0
A198: Year ------> | B198: =$C$6 -> 2014 | C198: PM | D198: =D152 -> 0 | J198: =IF($C$7="","",$C$7) ->  | K198: PM | L198: =E152 -> 0 | R198: =IF($C$8="","",$C$8) ->  | S198: PM | T198: =F152 -> 0 | Z198: =IF($C$9="","",$C$9) ->  | AA198: PM | AB198: =G152 -> 0 | AH198: =IF($C$10="","",$C$10) -> 2035 | AI198: PM | AJ198: =H152 -> 0
A199: Year col in demand sheet ---> | B199: 0 | C199: Offpk | D199: =D153 -> 0 | J199: 0 | K199: Offpk | L199: =E153 -> 0 | R199: 0 | S199: Offpk | T199: =F153 -> 0 | Z199: 0 | AA199: Offpk | AB199: =G153 -> 0 | AH199: 0 | AI199: Offpk | AJ199: =H153 -> 0
A200: Year number (1 = opening, 5 = end, etc) | B200: 1 | C200: 1 | D200: 1 | E200: 1 | F200: 1 | G200: 1 | H200: 1 | I200: 1 | J200: 2 | K200: 2 | L200: 2 | M200: 2 | N200: 2 | O200: 2 | P200: 2 | Q200: 2 | R200: 3 | S200: 3 | T200: 3 | U200: 3 | V200: 3 | W200: 3 | X200: 3 | Y200: 3 | Z200: 4 | AA200: 4 | AB200: 4 | AC200: 4 | AD200: 4 | AE200: 4 | AF200: 4 | AG200: 4 | AH200: 5 | AI200: 5 | AJ200: 5 | AK200: 5 | AL200: 5 | AM200: 5 | AN200: 5
A202: Date/time | B202: average travel time or delay per vehicle (hr) | C202: reliability "insurance" time | D202: auto passenger time cost | E202: auto passenger reliability cost | F202: truck time cost | G202: truck reliability cost | H202: transit passenger time cost | I202: transit passenger reliability cost | J202: average travel time or delay per vehicle (hr) | K202: reliability "insurance" time | L202: auto passenger time cost | M202: auto passenger reliability cost | N202: truck time cost | O202: truck reliability cost | P202: transit passenger time cost | Q202: transit passenger reliability cost | R202: average travel time or delay per vehicle (hr) | S202: reliability "insurance" time | T202: auto passenger time cost | U202: auto passenger reliability cost | V202: truck time cost | W202: truck reliability cost | X202: transit passenger time cost | Y202: transit passenger reliability cost | Z202: average travel time or delay per vehicle (hr) | AA202: reliability "insurance" time | AB202: auto passenger time cost | AC202: auto passenger reliability cost | AD202: truck time cost | AE202: truck reliability cost | AF202: transit passenger time cost | AG202: transit passenger reliability cost | AH202: average travel time or delay per vehicle (hr) | AI202: reliability "insurance" time | AJ202: auto passenger time cost | AK202: auto passenger reliability cost | AL202: truck time cost | AM202: truck reliability cost | AN202: transit passenger time cost | AO202: transit passenger reliability cost
A203: 2014-01-01 | B203: =IF(DemandParameters!G167>0,EXP(AverageTravelTimeModel_Constant+AverageTravelTimeModel_LogVolumeParameter*LN(DemandParameters!G167))/SecondsPerHour,0) -> 8.338534386e-05 | C203: =IF(INDEX(StandardDeviationTable,DemandParameters!C167,1)=0,0,ReliabilityInsuranceTime(0.99, B203, INDEX(StandardDeviationTable,DemandParameters!C167,1), Discount_Rate)) -> 0 | D203: =B203*DemandParameters!H167*IF(DemandParameters!C167=Code_Offpeak,TimeValue_Person_Offpeak,TimeValue_Person_Peak) -> 0.4616292824 | E203: =C203*DemandParameters!H167*IF(DemandParameters!C167=Code_Offpeak,TimeValue_Person_Offpeak,TimeValue_Person_Peak) -> 0 | F203: =B203*DemandParameters!I167*TimeValue_Truck -> 0.01437660889 | G203: =C203*DemandParameters!I167*TimeValue_Truck -> 0 | H203: =B203*DemandParameters!J167*IF(DemandParameters!C167=Code_Offpeak,TimeValue_Person_Offpeak,TimeValue_Person_Peak) -> 0 | I203: =C203*DemandParameters!J167*IF(DemandParameters!C167=Code_Offpeak,TimeValue_Person_Offpeak,TimeValue_Person_Peak) -> 0 | AH203: =IF(DemandParameters!K167>0,EXP(AverageTravelTimeModel_Constant+AverageTravelTimeModel_LogVolumeParameter*LN(DemandParameters!K167))/SecondsPerHour,0) -> 0.0002797694021 | AI203: =IF(INDEX(StandardDeviationTable,DemandParameters!C167,5)=0,0,ReliabilityInsuranceTime(0.99, AH203, INDEX(StandardDeviationTable,DemandParameters!C167,5), Discount_Rate)) -> 0 | AJ203: =AH203*DemandParameters!L167*IF(DemandParameters!C167=Code_Offpeak,TimeValue_Person_Offpeak,TimeValue_Person_Peak) -> 5.350202245 | AK203: =AI203*DemandParameters!L167*IF(DemandParameters!C167=Code_Offpeak,TimeValue_Person_Offpeak,TimeValue_Person_Peak) -> 0 | AL203: =AH203*DemandParameters!M167*TimeValue_Truck -> 0.1700936695 | AM203: =AI203*DemandParameters!M167*TimeValue_Truck -> 0 | AN203: =AH203*DemandParameters!N167*IF(DemandParameters!C167=Code_Offpeak,TimeValue_Person_Offpeak,TimeValue_Person_Peak) -> 0 | AO203: =AI203*DemandParameters!N167*IF(DemandParameters!C167=Code_Offpeak,TimeValue_Person_Offpeak,TimeValue_Person_Peak) -> 0
A204: 2014-01-01T01:00:00 | B204: =IF(DemandParameters!G168>0,EXP(AverageTravelTimeModel_Constant+AverageTravelTimeModel_LogVolumeParameter*LN(DemandParameters!G168))/SecondsPerHour,0) -> 2.802540171e-05 | C204: =IF(INDEX(StandardDeviationTable,DemandParameters!C168,1)=0,0,ReliabilityInsuranceTime(0.99, B204, INDEX(StandardDeviationTable,DemandParameters!C168,1), Discount_Rate)) -> 0 | D204: =B204*DemandParameters!H168*IF(DemandParameters!C168=Code_Offpeak,TimeValue_Person_Offpeak,TimeValue_Person_Peak) -> 0.09309079136 | E204: =C204*DemandParameters!H168*IF(DemandParameters!C168=Code_Offpeak,TimeValue_Person_Offpeak,TimeValue_Person_Peak) -> 0 | F204: =B204*DemandParameters!I168*TimeValue_Truck -> 0.002899144291 | G204: =C204*DemandParameters!I168*TimeValue_Truck -> 0 | H204: =B204*DemandParameters!J168*IF(DemandParameters!C168=Code_Offpeak,TimeValue_Person_Offpeak,TimeValue_Person_Peak) -> 0 | I204: =C204*DemandParameters!J168*IF(DemandParameters!C168=Code_Offpeak,TimeValue_Person_Offpeak,TimeValue_Person_Peak) -> 0 | AH204: =IF(DemandParameters!K168>0,EXP(AverageTravelTimeModel_Constant+AverageTravelTimeModel_LogVolumeParameter*LN(DemandParameters!K168))/SecondsPerHour,0) -> 9.40291125e-05 | AI204: =IF(INDEX(StandardDeviationTable,DemandParameters!C168,5)=0,0,ReliabilityInsuranceTime(0.99, AH204, INDEX(StandardDeviationTable,DemandParameters!C168,5), Discount_Rate)) -> 0 | AJ204: =AH204*DemandParameters!L168*IF(DemandParameters!C168=Code_Offpeak,TimeValue_Person_Offpeak,TimeValue_Person_Peak) -> 1.07890591 | AK204: =AI204*DemandParameters!L168*IF(DemandParameters!C168=Code_Offpeak,TimeValue_Person_Offpeak,TimeValue_Person_Peak) -> 0 | AL204: =AH204*DemandParameters!M168*TimeValue_Truck -> 0.0343005847 | AM204: =AI204*DemandParameters!M168*TimeValue_Truck -> 0 | AN204: =AH204*DemandParameters!N168*IF(DemandParameters!C168=Code_Offpeak,TimeValue_Person_Offpeak,TimeValue_Person_Peak) -> 0 | AO204: =AI204*DemandParameters!N168*IF(DemandParameters!C168=Code_Offpeak,TimeValue_Person_Offpeak,TimeValue_Person_Peak) -> 0
A205: 2014-01-01T02:00:00 | B205: =IF(DemandParameters!G169>0,EXP(AverageTravelTimeModel_Constant+AverageTravelTimeModel_LogVolumeParameter*LN(DemandParameters!G169))/SecondsPerHour,0) -> 1.179461278e-05 | C205: =IF(INDEX(StandardDeviationTable,DemandParameters!C169,1)=0,0,ReliabilityInsuranceTime(0.99, B205, INDEX(StandardDeviationTable,DemandParameters!C169,1), Discount_Rate)) -> 0 | D205: =B205*DemandParameters!H169*IF(DemandParameters!C169=Code_Offpeak,TimeValue_Person_Offpeak,TimeValue_Person_Peak) -> 0.02611844423 | E205: =C205*DemandParameters!H169*IF(DemandParameters!C169=Code_Offpeak,TimeValue_Person_Offpeak,TimeValue_Person_Peak) -> 0 | F205: =B205*DemandParameters!I169*TimeValue_Truck -> 0.000813411696 | G205: =C205*DemandParameters!I169*TimeValue_Truck -> 0 | H205: =B205*DemandParameters!J169*IF(DemandParameters!C169=Code_Offpeak,TimeValue_Person_Offpeak,TimeValue_Person_Peak) -> 0 | I205: =C205*DemandParameters!J169*IF(DemandParameters!C169=Code_Offpeak,TimeValue_Person_Offpeak,TimeValue_Person_Peak) -> 0 | AH205: =IF(DemandParameters!K169>0,EXP(AverageTravelTimeModel_Constant+AverageTravelTimeModel_LogVolumeParameter*LN(DemandParameters!K169))/SecondsPerHour,0) -> 3.95725629e-05 | AI205: =IF(INDEX(StandardDeviationTable,DemandParameters!C169,5)=0,0,ReliabilityInsuranceTime(0.99, AH205, INDEX(StandardDeviationTable,DemandParameters!C169,5), Discount_Rate)) -> 0 | AJ205: =AH205*DemandParameters!L169*IF(DemandParameters!C169=Code_Offpeak,TimeValue_Person_Offpeak,TimeValue_Person_Peak) -> 0.3027081779 | AK205: =AI205*DemandParameters!L169*IF(DemandParameters!C169=Code_Offpeak,TimeValue_Person_Offpeak,TimeValue_Person_Peak) -> 0 | AL205: =AH205*DemandParameters!M169*TimeValue_Truck -> 0.009623700642 | AM205: =AI205*DemandParameters!M169*TimeValue_Truck -> 0 | AN205: =AH205*DemandParameters!N169*IF(DemandParameters!C169=Code_Offpeak,TimeValue_Person_Offpeak,TimeValue_Person_Peak) -> 0 | AO205: =AI205*DemandParameters!N169*IF(DemandParameters!C169=Code_Offpeak,TimeValue_Person_Offpeak,TimeValue_Person_Peak) -> 0
A206: 2014-01-01T03:00:00 | B206: =IF(DemandParameters!G170>0,EXP(AverageTravelTimeModel_Constant+AverageTravelTimeModel_LogVolumeParameter*LN(DemandParameters!G170))/SecondsPerHour,0) -> 2.686165863e-06 | C206: =IF(INDEX(StandardDeviationTable,DemandParameters!C170,1)=0,0,ReliabilityInsuranceTime(0.99, B206, INDEX(StandardDeviationTable,DemandParameters!C170,1), Discount_Rate)) -> 0 | D206: =B206*DemandParameters!H170*IF(DemandParameters!C170=Code_Offpeak,TimeValue_Person_Offpeak,TimeValue_Person_Peak) -> 0.002974174507 | E206: =C206*DemandParameters!H170*IF(DemandParameters!C170=Code_Offpeak,TimeValue_Person_Offpeak,TimeValue_Person_Peak) -> 0 | F206: =B206*DemandParameters!I170*TimeValue_Truck -> 9.26252846e-05 | G206: =C206*DemandParameters!I170*TimeValue_Truck -> 0 | H206: =B206*DemandParameters!J170*IF(DemandParameters!C170=Code_Offpeak,TimeValue_Person_Offpeak,TimeValue_Person_Peak) -> 0 | I206: =C206*DemandParameters!J170*IF(DemandParameters!C170=Code_Offpeak,TimeValue_Person_Offpeak,TimeValue_Person_Peak) -> 0 | AH206: =IF(DemandParameters!K170>0,EXP(AverageTravelTimeModel_Constant+AverageTravelTimeModel_LogVolumeParameter*LN(DemandParameters!K170))/SecondsPerHour,0) -> 9.012459296e-06 | AI206: =IF(INDEX(StandardDeviationTable,DemandParameters!C170,5)=0,0,ReliabilityInsuranceTime(0.99, AH206, INDEX(StandardDeviationTable,DemandParameters!C170,5), Discount_Rate)) -> 0 | AJ206: =AH206*DemandParameters!L170*IF(DemandParameters!C170=Code_Offpeak,TimeValue_Person_Offpeak,TimeValue_Person_Peak) -> 0.03447015978 | AK206: =AI206*DemandParameters!L170*IF(DemandParameters!C170=Code_Offpeak,TimeValue_Person_Offpeak,TimeValue_Person_Peak) -> 0 | AL206: =AH206*DemandParameters!M170*TimeValue_Truck -> 0.001095875576 | AM206: =AI206*DemandParameters!M170*TimeValue_Truck -> 0 | AN206: =AH206*DemandParameters!N170*IF(DemandParameters!C170=Code_Offpeak,TimeValue_Person_Offpeak,TimeValue_Person_Peak) -> 0 | AO206: =AI206*DemandParameters!N170*IF(DemandParameters!C170=Code_Offpeak,TimeValue_Person_Offpeak,TimeValue_Person_Peak) -> 0
A207: 2014-01-01T04:00:00 | B207: =IF(DemandParameters!G171>0,EXP(AverageTravelTimeModel_Constant+AverageTravelTimeModel_LogVolumeParameter*LN(DemandParameters!G171))/SecondsPerHour,0) -> 2.686165863e-06 | C207: =IF(INDEX(StandardDeviationTable,DemandParameters!C171,1)=0,0,ReliabilityInsuranceTime(0.99, B207, INDEX(StandardDeviationTable,DemandParameters!C171,1), Discount_Rate)) -> 0 | D207: =B207*DemandParameters!H171*IF(DemandParameters!C171=Code_Offpeak,TimeValue_Person_Offpeak,TimeValue_Person_Peak) -> 0.002974174507 | E207: =C207*DemandParameters!H171*IF(DemandParameters!C171=Code_Offpeak,TimeValue_Person_Offpeak,TimeValue_Person_Peak) -> 0 | F207: =B207*DemandParameters!I171*TimeValue_Truck -> 9.26252846e-05 | G207: =C207*DemandParameters!I171*TimeValue_Truck -> 0 | H207: =B207*DemandParameters!J171*IF(DemandParameters!C171=Code_Offpeak,TimeValue_Person_Offpeak,TimeValue_Person_Peak) -> 0 | I207: =C207*DemandParameters!J171*IF(DemandParameters!C171=Code_Offpeak,TimeValue_Person_Offpeak,TimeValue_Person_Peak) -> 0 | AH207: =IF(DemandParameters!K171>0,EXP(AverageTravelTimeModel_Constant+AverageTravelTimeModel_LogVolumeParameter*LN(DemandParameters!K171))/SecondsPerHour,0) -> 9.012459296e-06 | AI207: =IF(INDEX(StandardDeviationTable,DemandParameters!C171,5)=0,0,ReliabilityInsuranceTime(0.99, AH207, INDEX(StandardDeviationTable,DemandParameters!C171,5), Discount_Rate)) -> 0 | AJ207: =AH207*DemandParameters!L171*IF(DemandParameters!C171=Code_Offpeak,TimeValue_Person_Offpeak,TimeValue_Person_Peak) -> 0.03447015978 | AK207: =AI207*DemandParameters!L171*IF(DemandParameters!C171=Code_Offpeak,TimeValue_Person_Offpeak,TimeValue_Person_Peak) -> 0 | AL207: =AH207*DemandParameters!M171*TimeValue_Truck -> 0.001095875576 | AM207: =AI207*DemandParameters!M171*TimeValue_Truck -> 0 | AN207: =AH207*DemandParameters!N171*IF(DemandParameters!C171=Code_Offpeak,TimeValue_Person_Offpeak,TimeValue_Person_Peak) -> 0 | AO207: =AI207*DemandParameters!N171*IF(DemandParameters!C171=Code_Offpeak,TimeValue_Person_Offpeak,TimeValue_Person_Peak) -> 0
A208: 2014-01-01T05:00:00 | B208: =IF(DemandParameters!G172>0,EXP(AverageTravelTimeModel_Constant+AverageTravelTimeModel_LogVolumeParameter*LN(DemandParameters!G172))/SecondsPerHour,0) -> 3.894487268e-05 | C208: =IF(INDEX(StandardDeviationTable,DemandParameters!C172,1)=0,0,ReliabilityInsuranceTime(0.99, B208, INDEX(StandardDeviationTable,DemandParameters!C172,1), Discount_Rate)) -> 0 | D208: =B208*DemandParameters!H172*IF(DemandParameters!C172=Code_Offpeak,TimeValue_Person_Offpeak,TimeValue_Person_Peak) -> 0.1509217922 | E208: =C208*DemandParameters!H172*IF(DemandParameters!C172=Code_Offpeak,TimeValue_Person_Offpeak,TimeValue_Person_Peak) -> 0 | F208: =B208*DemandParameters!I172*TimeValue_Truck -> 0.004700186193 | G208: =C208*DemandParameters!I172*TimeValue_Truck -> 0 | H208: =B208*DemandParameters!J172*IF(DemandParameters!C172=Code_Offpeak,TimeValue_Person_Offpeak,TimeValue_Person_Peak) -> 0 | I208: =C208*DemandParameters!J172*IF(DemandParameters!C172=Code_Offpeak,TimeValue_Person_Offpeak,TimeValue_Person_Peak) -> 0 | AH208: =IF(DemandParameters!K172>0,EXP(AverageTravelTimeModel_Constant+AverageTravelTimeModel_LogVolumeParameter*LN(DemandParameters!K172))/SecondsPerHour,0) -> 0.0001306654532 | AI208: =IF(INDEX(StandardDeviationTable,DemandParameters!C172,5)=0,0,ReliabilityInsuranceTime(0.99, AH208, INDEX(StandardDeviationTable,DemandParameters!C172,5), Discount_Rate)) -> 0 | AJ208: =AH208*DemandParameters!L172*IF(DemandParameters!C172=Code_Offpeak,TimeValue_Person_Offpeak,TimeValue_Person_Peak) -> 1.749157045 | AK208: =AI208*DemandParameters!L172*IF(DemandParameters!C172=Code_Offpeak,TimeValue_Person_Offpeak,TimeValue_Person_Peak) -> 0 | AL208: =AH208*DemandParameters!M172*TimeValue_Truck -> 0.05560921377 | AM208: =AI208*DemandParameters!M172*TimeValue_Truck -> 0 | AN208: =AH208*DemandParameters!N172*IF(DemandParameters!C172=Code_Offpeak,TimeValue_Person_Offpeak,TimeValue_Person_Peak) -> 0 | AO208: =AI208*DemandParameters!N172*IF(DemandParameters!C172=Code_Offpeak,TimeValue_Person_Offpeak,TimeValue_Person_Peak) -> 0
A209: 2014-01-01T06:00:00 | B209: =IF(DemandParameters!G173>0,EXP(AverageTravelTimeModel_Constant+AverageTravelTimeModel_LogVolumeParameter*LN(DemandParameters!G173))/SecondsPerHour,0) -> 0.0004934016495 | C209: =IF(INDEX(StandardDeviationTable,DemandParameters!C173,1)=0,0,ReliabilityInsuranceTime(0.99, B209, INDEX(StandardDeviationTable,DemandParameters!C173,1), Discount_Rate)) -> 0 | D209: =B209*DemandParameters!H173*IF(DemandParameters!C173=Code_Offpeak,TimeValue_Person_Offpeak,TimeValue_Person_Peak) -> 6.282493654 | E209: =C209*DemandParameters!H173*IF(DemandParameters!C173=Code_Offpeak,TimeValue_Person_Offpeak,TimeValue_Person_Peak) -> 0 | F209: =B209*DemandParameters!I173*TimeValue_Truck -> 0.1956568995 | G209: =C209*DemandParameters!I173*TimeValue_Truck -> 0 | H209: =B209*DemandParameters!J173*IF(DemandParameters!C173=Code_Offpeak,TimeValue_Person_Offpeak,TimeValue_Person_Peak) -> 0 | I209: =C209*DemandParameters!J173*IF(DemandParameters!C173=Code_Offpeak,TimeValue_Person_Offpeak,TimeValue_Person_Peak) -> 0 | AH209: =IF(DemandParameters!K173>0,EXP(AverageTravelTimeModel_Constant+AverageTravelTimeModel_LogVolumeParameter*LN(DemandParameters!K173))/SecondsPerHour,0) -> 0.001655431015 | AI209: =IF(INDEX(StandardDeviationTable,DemandParameters!C173,5)=0,0,ReliabilityInsuranceTime(0.99, AH209, INDEX(StandardDeviationTable,DemandParameters!C173,5), Discount_Rate)) -> 0 | AJ209: =AH209*DemandParameters!L173*IF(DemandParameters!C173=Code_Offpeak,TimeValue_Person_Offpeak,TimeValue_Person_Peak) -> 72.8129972 | AK209: =AI209*DemandParameters!L173*IF(DemandParameters!C173=Code_Offpeak,TimeValue_Person_Offpeak,TimeValue_Person_Peak) -> 0 | AL209: =AH209*DemandParameters!M173*TimeValue_Truck -> 2.314871348 | AM209: =AI209*DemandParameters!M173*TimeValue_Truck -> 0 | AN209: =AH209*DemandParameters!N173*IF(DemandParameters!C173=Code_Offpeak,TimeValue_Person_Offpeak,TimeValue_Person_Peak) -> 0 | AO209: =AI209*DemandParameters!N173*IF(DemandParameters!C173=Code_Offpeak,TimeValue_Person_Offpeak,TimeValue_Person_Peak) -> 0
A210: 2014-01-01T07:00:00 | B210: =IF(DemandParameters!G174>0,EXP(AverageTravelTimeModel_Constant+AverageTravelTimeModel_LogVolumeParameter*LN(DemandParameters!G174))/SecondsPerHour,0) -> 0.00168306874 | C210: =IF(INDEX(StandardDeviationTable,DemandParameters!C174,1)=0,0,ReliabilityInsuranceTime(0.99, B210, INDEX(StandardDeviationTable,DemandParameters!C174,1), Discount_Rate)) -> 0 | D210: =B210*DemandParameters!H174*IF(DemandParameters!C174=Code_Offpeak,TimeValue_Person_Offpeak,TimeValue_Person_Peak) -> 38.07968423 | E210: =C210*DemandParameters!H174*IF(DemandParameters!C174=Code_Offpeak,TimeValue_Person_Offpeak,TimeValue_Person_Peak) -> 0 | F210: =B210*DemandParameters!I174*TimeValue_Truck -> 1.185922877 | G210: =C210*DemandParameters!I174*TimeValue_Truck -> 0 | H210: =B210*DemandParameters!J174*IF(DemandParameters!C174=Code_Offpeak,TimeValue_Person_Offpeak,TimeValue_Person_Peak) -> 0 | I210: =C210*DemandParameters!J174*IF(DemandParameters!C174=Code_Offpeak,TimeValue_Person_Offpeak,TimeValue_Person_Peak) -> 0 | AH210: =IF(DemandParameters!K174>0,EXP(AverageTravelTimeModel_Constant+AverageTravelTimeModel_LogVolumeParameter*LN(DemandParameters!K174))/SecondsPerHour,0) -> 0.005646929222 | AI210: =IF(INDEX(StandardDeviationTable,DemandParameters!C174,5)=0,0,ReliabilityInsuranceTime(0.99, AH210, INDEX(StandardDeviationTable,DemandParameters!C174,5), Discount_Rate)) -> 0 | AJ210: =AH210*DemandParameters!L174*IF(DemandParameters!C174=Code_Offpeak,TimeValue_Person_Offpeak,TimeValue_Person_Peak) -> 441.3368471 | AK210: =AI210*DemandParameters!L174*IF(DemandParameters!C174=Code_Offpeak,TimeValue_Person_Offpeak,TimeValue_Person_Peak) -> 0 | AL210: =AH210*DemandParameters!M174*TimeValue_Truck -> 14.03098432 | AM210: =AI210*DemandParameters!M174*TimeValue_Truck -> 0 | AN210: =AH210*DemandParameters!N174*IF(DemandParameters!C174=Code_Offpeak,TimeValue_Person_Offpeak,TimeValue_Person_Peak) -> 0 | AO210: =AI210*DemandParameters!N174*IF(DemandParameters!C174=Code_Offpeak,TimeValue_Person_Offpeak,TimeValue_Person_Peak) -> 0
A211: 2014-01-01T08:00:00 | B211: =IF(DemandParameters!G175>0,EXP(AverageTravelTimeModel_Constant+AverageTravelTimeModel_LogVolumeParameter*LN(DemandParameters!G175))/SecondsPerHour,0) -> 0.004681797379 | C211: =IF(INDEX(StandardDeviationTable,DemandParameters!C175,1)=0,0,ReliabilityInsuranceTime(0.99, B211, INDEX(StandardDeviationTable,DemandParameters!C175,1), Discount_Rate)) -> 0 | D211: =B211*DemandParameters!H175*IF(DemandParameters!C175=Code_Offpeak,TimeValue_Person_Offpeak,TimeValue_Person_Peak) -> 171.0646114 | E211: =C211*DemandParameters!H175*IF(DemandParameters!C175=Code_Offpeak,TimeValue_Person_Offpeak,TimeValue_Person_Peak) -> 0 | F211: =B211*DemandParameters!I175*TimeValue_Truck -> 5.327497859 | G211: =C211*DemandParameters!I175*TimeValue_Truck -> 0 | H211: =B211*DemandParameters!J175*IF(DemandParameters!C175=Code_Offpeak,TimeValue_Person_Offpeak,TimeValue_Person_Peak) -> 0 | I211: =C211*DemandParameters!J175*IF(DemandParameters!C175=Code_Offpeak,TimeValue_Person_Offpeak,TimeValue_Person_Peak) -> 0 | AH211: =IF(DemandParameters!K175>0,EXP(AverageTravelTimeModel_Constant+AverageTravelTimeModel_LogVolumeParameter*LN(DemandParameters!K175))/SecondsPerHour,0) -> 0.01570808002 | AI211: =IF(INDEX(StandardDeviationTable,DemandParameters!C175,5)=0,0,ReliabilityInsuranceTime(0.99, AH211, INDEX(StandardDeviationTable,DemandParameters!C175,5), Discount_Rate)) -> 0 | AJ211: =AH211*DemandParameters!L175*IF(DemandParameters!C175=Code_Offpeak,TimeValue_Person_Offpeak,TimeValue_Person_Peak) -> 1982.608779 | AK211: =AI211*DemandParameters!L175*IF(DemandParameters!C175=Code_Offpeak,TimeValue_Person_Offpeak,TimeValue_Person_Peak) -> 0 | AL211: =AH211*DemandParameters!M175*TimeValue_Truck -> 63.03111304 | AM211: =AI211*DemandParameters!M175*TimeValue_Truck -> 0 | AN211: =AH211*DemandParameters!N175*IF(DemandParameters!C175=Code_Offpeak,TimeValue_Person_Offpeak,TimeValue_Person_Peak) -> 0 | AO211: =AI211*DemandParameters!N175*IF(DemandParameters!C175=Code_Offpeak,TimeValue_Person_Offpeak,TimeValue_Person_Peak) -> 0
A212: 2014-01-01T09:00:00 | B212: =IF(DemandParameters!G176>0,EXP(AverageTravelTimeModel_Constant+AverageTravelTimeModel_LogVolumeParameter*LN(DemandParameters!G176))/SecondsPerHour,0) -> 0.003050632466 | C212: =IF(INDEX(StandardDeviationTable,DemandParameters!C176,1)=0,0,ReliabilityInsuranceTime(0.99, B212, INDEX(StandardDeviationTable,DemandParameters!C176,1), Discount_Rate)) -> 0 | D212: =B212*DemandParameters!H176*IF(DemandParameters!C176=Code_Offpeak,TimeValue_Person_Offpeak,TimeValue_Person_Peak) -> 91.19841136 | E212: =C212*DemandParameters!H176*IF(DemandParameters!C176=Code_Offpeak,TimeValue_Person_Offpeak,TimeValue_Person_Peak) -> 0 | F212: =B212*DemandParameters!I176*TimeValue_Truck -> 2.840209539 | G212: =C212*DemandParameters!I176*TimeValue_Truck -> 0 | H212: =B212*DemandParameters!J176*IF(DemandParameters!C176=Code_Offpeak,TimeValue_Person_Offpeak,TimeValue_Person_Peak) -> 0 | I212: =C212*DemandParameters!J176*IF(DemandParameters!C176=Code_Offpeak,TimeValue_Person_Offpeak,TimeValue_Person_Peak) -> 0 | AH212: =IF(DemandParameters!K176>0,EXP(AverageTravelTimeModel_Constant+AverageTravelTimeModel_LogVolumeParameter*LN(DemandParameters!K176))/SecondsPerHour,0) -> 0.01023529533 | AI212: =IF(INDEX(StandardDeviationTable,DemandParameters!C176,5)=0,0,ReliabilityInsuranceTime(0.99, AH212, INDEX(StandardDeviationTable,DemandParameters!C176,5), Discount_Rate)) -> 0 | AJ212: =AH212*DemandParameters!L176*IF(DemandParameters!C176=Code_Offpeak,TimeValue_Person_Offpeak,TimeValue_Person_Peak) -> 1056.973558 | AK212: =AI212*DemandParameters!L176*IF(DemandParameters!C176=Code_Offpeak,TimeValue_Person_Offpeak,TimeValue_Person_Peak) -> 0 | AL212: =AH212*DemandParameters!M176*TimeValue_Truck -> 33.60331121 | AM212: =AI212*DemandParameters!M176*TimeValue_Truck -> 0 | AN212: =AH212*DemandParameters!N176*IF(DemandParameters!C176=Code_Offpeak,TimeValue_Person_Offpeak,TimeValue_Person_Peak) -> 0 | AO212: =AI212*DemandParameters!N176*IF(DemandParameters!C176=Code_Offpeak,TimeValue_Person_Offpeak,TimeValue_Person_Peak) -> 0
A213: 2014-01-01T10:00:00 | B213: =IF(DemandParameters!G177>0,EXP(AverageTravelTimeModel_Constant+AverageTravelTimeModel_LogVolumeParameter*LN(DemandParameters!G177))/SecondsPerHour,0) -> 0.002700248638 | C213: =IF(INDEX(StandardDeviationTable,DemandParameters!C177,1)=0,0,ReliabilityInsuranceTime(0.99, B213, INDEX(StandardDeviationTable,DemandParameters!C177,1), Discount_Rate)) -> 0 | D213: =B213*DemandParameters!H177*IF(DemandParameters!C177=Code_Offpeak,TimeValue_Person_Offpeak,TimeValue_Person_Peak) -> 76.23906428 | E213: =C213*DemandParameters!H177*IF(DemandParameters!C177=Code_Offpeak,TimeValue_Person_Offpeak,TimeValue_Person_Peak) -> 0 | F213: =B213*DemandParameters!I177*TimeValue_Truck -> 2.374327737 | G213: =C213*DemandParameters!I177*TimeValue_Truck -> 0 | H213: =B213*DemandParameters!J177*IF(DemandParameters!C177=Code_Offpeak,TimeValue_Person_Offpeak,TimeValue_Person_Peak) -> 0 | I213: =C213*DemandParameters!J177*IF(DemandParameters!C177=Code_Offpeak,TimeValue_Person_Offpeak,TimeValue_Person_Peak) -> 0 | AH213: =IF(DemandParameters!K177>0,EXP(AverageTravelTimeModel_Constant+AverageTravelTimeModel_LogVolumeParameter*LN(DemandParameters!K177))/SecondsPerHour,0) -> 0.009059708961 | AI213: =IF(INDEX(StandardDeviationTable,DemandParameters!C177,5)=0,0,ReliabilityInsuranceTime(0.99, AH213, INDEX(StandardDeviationTable,DemandParameters!C177,5), Discount_Rate)) -> 0 | AJ213: =AH213*DemandParameters!L177*IF(DemandParameters!C177=Code_Offpeak,TimeValue_Person_Offpeak,TimeValue_Person_Peak) -> 883.5973548 | AK213: =AI213*DemandParameters!L177*IF(DemandParameters!C177=Code_Offpeak,TimeValue_Person_Offpeak,TimeValue_Person_Peak) -> 0 | AL213: =AH213*DemandParameters!M177*TimeValue_Truck -> 28.09133367 | AM213: =AI213*DemandParameters!M177*TimeValue_Truck -> 0 | AN213: =AH213*DemandParameters!N177*IF(DemandParameters!C177=Code_Offpeak,TimeValue_Person_Offpeak,TimeValue_Person_Peak) -> 0 | AO213: =AI213*DemandParameters!N177*IF(DemandParameters!C177=Code_Offpeak,TimeValue_Person_Offpeak,TimeValue_Person_Peak) -> 0
A214: 2014-01-01T11:00:00 | B214: =IF(DemandParameters!G178>0,EXP(AverageTravelTimeModel_Constant+AverageTravelTimeModel_LogVolumeParameter*LN(DemandParameters!G178))/SecondsPerHour,0) -> 0.003296877979 | C214: =IF(INDEX(StandardDeviationTable,DemandParameters!C178,1)=0,0,ReliabilityInsuranceTime(0.99, B214, INDEX(StandardDeviationTable,DemandParameters!C178,1), Discount_Rate)) -> 0 | D214: =B214*DemandParameters!H178*IF(DemandParameters!C178=Code_Offpeak,TimeValue_Person_Offpeak,TimeValue_Person_Peak) -> 102.2102678 | E214: =C214*DemandParameters!H178*IF(DemandParameters!C178=Code_Offpeak,TimeValue_Person_Offpeak,TimeValue_Person_Peak) -> 0 | F214: =B214*DemandParameters!I178*TimeValue_Truck -> 3.183153887 | G214: =C214*DemandParameters!I178*TimeValue_Truck -> 0 | H214: =B214*DemandParameters!J178*IF(DemandParameters!C178=Code_Offpeak,TimeValue_Person_Offpeak,TimeValue_Person_Peak) -> 0 | I214: =C214*DemandParameters!J178*IF(DemandParameters!C178=Code_Offpeak,TimeValue_Person_Offpeak,TimeValue_Person_Peak) -> 0 | AH214: =IF(DemandParameters!K178>0,EXP(AverageTravelTimeModel_Constant+AverageTravelTimeModel_LogVolumeParameter*LN(DemandParameters!K178))/SecondsPerHour,0) -> 0.01106148321 | AI214: =IF(INDEX(StandardDeviationTable,DemandParameters!C178,5)=0,0,ReliabilityInsuranceTime(0.99, AH214, INDEX(StandardDeviationTable,DemandParameters!C178,5), Discount_Rate)) -> 0 | AJ214: =AH214*DemandParameters!L178*IF(DemandParameters!C178=Code_Offpeak,TimeValue_Person_Offpeak,TimeValue_Person_Peak) -> 1184.599039 | AK214: =AI214*DemandParameters!L178*IF(DemandParameters!C178=Code_Offpeak,TimeValue_Person_Offpeak,TimeValue_Person_Peak) -> 0 | AL214: =AH214*DemandParameters!M178*TimeValue_Truck -> 37.66078144 | AM214: =AI214*DemandParameters!M178*TimeValue_Truck -> 0 | AN214: =AH214*DemandParameters!N178*IF(DemandParameters!C178=Code_Offpeak,TimeValue_Person_Offpeak,TimeValue_Person_Peak) -> 0 | AO214: =AI214*DemandParameters!N178*IF(DemandParameters!C178=Code_Offpeak,TimeValue_Person_Offpeak,TimeValue_Person_Peak) -> 0
A215: 2014-01-01T12:00:00 | B215: =IF(DemandParameters!G179>0,EXP(AverageTravelTimeModel_Constant+AverageTravelTimeModel_LogVolumeParameter*LN(DemandParameters!G179))/SecondsPerHour,0) -> 0.005471510982 | C215: =IF(INDEX(StandardDeviationTable,DemandParameters!C179,1)=0,0,ReliabilityInsuranceTime(0.99, B215, INDEX(StandardDeviationTable,DemandParameters!C179,1), Discount_Rate)) -> 0 | D215: =B215*DemandParameters!H179*IF(DemandParameters!C179=Code_Offpeak,TimeValue_Person_Offpeak,TimeValue_Person_Peak) -> 215.0647579 | E215: =C215*DemandParameters!H179*IF(DemandParameters!C179=Code_Offpeak,TimeValue_Person_Offpeak,TimeValue_Person_Peak) -> 0 | F215: =B215*DemandParameters!I179*TimeValue_Truck -> 6.697802821 | G215: =C215*DemandParameters!I179*TimeValue_Truck -> 0 | H215: =B215*DemandParameters!J179*IF(DemandParameters!C179=Code_Offpeak,TimeValue_Person_Offpeak,TimeValue_Person_Peak) -> 0 | I215: =C215*DemandParameters!J179*IF(DemandParameters!C179=Code_Offpeak,TimeValue_Person_Offpeak,TimeValue_Person_Peak) -> 0 | AH215: =IF(DemandParameters!K179>0,EXP(AverageTravelTimeModel_Constant+AverageTravelTimeModel_LogVolumeParameter*LN(DemandParameters!K179))/SecondsPerHour,0) -> 0.01835767876 | AI215: =IF(INDEX(StandardDeviationTable,DemandParameters!C179,5)=0,0,ReliabilityInsuranceTime(0.99, AH215, INDEX(StandardDeviationTable,DemandParameters!C179,5), Discount_Rate)) -> 0 | AJ215: =AH215*DemandParameters!L179*IF(DemandParameters!C179=Code_Offpeak,TimeValue_Person_Offpeak,TimeValue_Person_Peak) -> 2492.562743 | AK215: =AI215*DemandParameters!L179*IF(DemandParameters!C179=Code_Offpeak,TimeValue_Person_Offpeak,TimeValue_Person_Peak) -> 0 | AL215: =AH215*DemandParameters!M179*TimeValue_Truck -> 79.24357324 | AM215: =AI215*DemandParameters!M179*TimeValue_Truck -> 0 | AN215: =AH215*DemandParameters!N179*IF(DemandParameters!C179=Code_Offpeak,TimeValue_Person_Offpeak,TimeValue_Person_Peak) -> 0 | AO215: =AI215*DemandParameters!N179*IF(DemandParameters!C179=Code_Offpeak,TimeValue_Person_Offpeak,TimeValue_Person_Peak) -> 0
A216: 2014-01-01T13:00:00 | B216: =IF(DemandParameters!G180>0,EXP(AverageTravelTimeModel_Constant+AverageTravelTimeModel_LogVolumeParameter*LN(DemandParameters!G180))/SecondsPerHour,0) -> 0.004681797379 | C216: =IF(INDEX(StandardDeviationTable,DemandParameters!C180,1)=0,0,ReliabilityInsuranceTime(0.99, B216, INDEX(StandardDeviationTable,DemandParameters!C180,1), Discount_Rate)) -> 0 | D216: =B216*DemandParameters!H180*IF(DemandParameters!C180=Code_Offpeak,TimeValue_Person_Offpeak,TimeValue_Person_Peak) -> 171.0646114 | E216: =C216*DemandParameters!H180*IF(DemandParameters!C180=Code_Offpeak,TimeValue_Person_Offpeak,TimeValue_Person_Peak) -> 0 | F216: =B216*DemandParameters!I180*TimeValue_Truck -> 5.327497859 | G216: =C216*DemandParameters!I180*TimeValue_Truck -> 0 | H216: =B216*DemandParameters!J180*IF(DemandParameters!C180=Code_Offpeak,TimeValue_Person_Offpeak,TimeValue_Person_Peak) -> 0 | I216: =C216*DemandParameters!J180*IF(DemandParameters!C180=Code_Offpeak,TimeValue_Person_Offpeak,TimeValue_Person_Peak) -> 0 | AH216: =IF(DemandParameters!K180>0,EXP(AverageTravelTimeModel_Constant+AverageTravelTimeModel_LogVolumeParameter*LN(DemandParameters!K180))/SecondsPerHour,0) -> 0.01570808002 | AI216: =IF(INDEX(StandardDeviationTable,DemandParameters!C180,5)=0,0,ReliabilityInsuranceTime(0.99, AH216, INDEX(StandardDeviationTable,DemandParameters!C180,5), Discount_Rate)) -> 0 | AJ216: =AH216*DemandParameters!L180*IF(DemandParameters!C180=Code_Offpeak,TimeValue_Person_Offpeak,TimeValue_Person_Peak) -> 1982.608779 | AK216: =AI216*DemandParameters!L180*IF(DemandParameters!C180=Code_Offpeak,TimeValue_Person_Offpeak,TimeValue_Person_Peak) -> 0 | AL216: =AH216*DemandParameters!M180*TimeValue_Truck -> 63.03111304 | AM216: =AI216*DemandParameters!M180*TimeValue_Truck -> 0 | AN216: =AH216*DemandParameters!N180*IF(DemandParameters!C180=Code_Offpeak,TimeValue_Person_Offpeak,TimeValue_Person_Peak) -> 0 | AO216: =AI216*DemandParameters!N180*IF(DemandParameters!C180=Code_Offpeak,TimeValue_Person_Offpeak,TimeValue_Person_Peak) -> 0
A217: 2014-01-01T14:00:00 | B217: =IF(DemandParameters!G181>0,EXP(AverageTravelTimeModel_Constant+AverageTravelTimeModel_LogVolumeParameter*LN(DemandParameters!G181))/SecondsPerHour,0) -> 0.003819966959 | C217: =IF(INDEX(StandardDeviationTable,DemandParameters!C181,1)=0,0,ReliabilityInsuranceTime(0.99, B217, INDEX(StandardDeviationTable,DemandParameters!C181,1), Discount_Rate)) -> 0 | D217: =B217*DemandParameters!H181*IF(DemandParameters!C181=Code_Offpeak,TimeValue_Person_Offpeak,TimeValue_Person_Peak) -> 126.8862266 | E217: =C217*DemandParameters!H181*IF(DemandParameters!C181=Code_Offpeak,TimeValue_Person_Offpeak,TimeValue_Person_Peak) -> 0 | F217: =B217*DemandParameters!I181*TimeValue_Truck -> 3.951641985 | G217: =C217*DemandParameters!I181*TimeValue_Truck -> 0 | H217: =B217*DemandParameters!J181*IF(DemandParameters!C181=Code_Offpeak,TimeValue_Person_Offpeak,TimeValue_Person_Peak) -> 0 | I217: =C217*DemandParameters!J181*IF(DemandParameters!C181=Code_Offpeak,TimeValue_Person_Offpeak,TimeValue_Person_Peak) -> 0 | AH217: =IF(DemandParameters!K181>0,EXP(AverageTravelTimeModel_Constant+AverageTravelTimeModel_LogVolumeParameter*LN(DemandParameters!K181))/SecondsPerHour,0) -> 0.01281651934 | AI217: =IF(INDEX(StandardDeviationTable,DemandParameters!C181,5)=0,0,ReliabilityInsuranceTime(0.99, AH217, INDEX(StandardDeviationTable,DemandParameters!C181,5), Discount_Rate)) -> 0 | AJ217: =AH217*DemandParameters!L181*IF(DemandParameters!C181=Code_Offpeak,TimeValue_Person_Offpeak,TimeValue_Person_Peak) -> 1470.589064 | AK217: =AI217*DemandParameters!L181*IF(DemandParameters!C181=Code_Offpeak,TimeValue_Person_Offpeak,TimeValue_Person_Peak) -> 0 | AL217: =AH217*DemandParameters!M181*TimeValue_Truck -> 46.75297846 | AM217: =AI217*DemandParameters!M181*TimeValue_Truck -> 0 | AN217: =AH217*DemandParameters!N181*IF(DemandParameters!C181=Code_Offpeak,TimeValue_Person_Offpeak,TimeValue_Person_Peak) -> 0 | AO217: =AI217*DemandParameters!N181*IF(DemandParameters!C181=Code_Offpeak,TimeValue_Person_Offpeak,TimeValue_Person_Peak) -> 0
A218: 2014-01-01T15:00:00 | B218: =IF(DemandParameters!G182>0,EXP(AverageTravelTimeModel_Constant+AverageTravelTimeModel_LogVolumeParameter*LN(DemandParameters!G182))/SecondsPerHour,0) -> 0.004096905385 | C218: =IF(INDEX(StandardDeviationTable,DemandParameters!C182,1)=0,0,ReliabilityInsuranceTime(0.99, B218, INDEX(StandardDeviationTable,DemandParameters!C182,1), Discount_Rate)) -> 0 | D218: =B218*DemandParameters!H182*IF(DemandParameters!C182=Code_Offpeak,TimeValue_Person_Offpeak,TimeValue_Person_Peak) -> 140.6213456 | E218: =C218*DemandParameters!H182*IF(DemandParameters!C182=Code_Offpeak,TimeValue_Person_Offpeak,TimeValue_Person_Peak) -> 0 | F218: =B218*DemandParameters!I182*TimeValue_Truck -> 4.379397417 | G218: =C218*DemandParameters!I182*TimeValue_Truck -> 0 | H218: =B218*DemandParameters!J182*IF(DemandParameters!C182=Code_Offpeak,TimeValue_Person_Offpeak,TimeValue_Person_Peak) -> 0 | I218: =C218*DemandParameters!J182*IF(DemandParameters!C182=Code_Offpeak,TimeValue_Person_Offpeak,TimeValue_Person_Peak) -> 0 | AH218: =IF(DemandParameters!K182>0,EXP(AverageTravelTimeModel_Constant+AverageTravelTimeModel_LogVolumeParameter*LN(DemandParameters!K182))/SecondsPerHour,0) -> 0.01374568619 | AI218: =IF(INDEX(StandardDeviationTable,DemandParameters!C182,5)=0,0,ReliabilityInsuranceTime(0.99, AH218, INDEX(StandardDeviationTable,DemandParameters!C182,5), Discount_Rate)) -> 0 | AJ218: =AH218*DemandParameters!L182*IF(DemandParameters!C182=Code_Offpeak,TimeValue_Person_Offpeak,TimeValue_Person_Peak) -> 1629.776679 | AK218: =AI218*DemandParameters!L182*IF(DemandParameters!C182=Code_Offpeak,TimeValue_Person_Offpeak,TimeValue_Person_Peak) -> 0 | AL218: =AH218*DemandParameters!M182*TimeValue_Truck -> 51.81387228 | AM218: =AI218*DemandParameters!M182*TimeValue_Truck -> 0 | AN218: =AH218*DemandParameters!N182*IF(DemandParameters!C182=Code_Offpeak,TimeValue_Person_Offpeak,TimeValue_Person_Peak) -> 0 | AO218: =AI218*DemandParameters!N182*IF(DemandParameters!C182=Code_Offpeak,TimeValue_Person_Offpeak,TimeValue_Person_Peak) -> 0
A219: 2014-01-01T16:00:00 | B219: =IF(DemandParameters!G183>0,EXP(AverageTravelTimeModel_Constant+AverageTravelTimeModel_LogVolumeParameter*LN(DemandParameters!G183))/SecondsPerHour,0) -> 0.004239243177 | C219: =IF(INDEX(StandardDeviationTable,DemandParameters!C183,1)=0,0,ReliabilityInsuranceTime(0.99, B219, INDEX(StandardDeviationTable,DemandParameters!C183,1), Discount_Rate)) -> 0 | D219: =B219*DemandParameters!H183*IF(DemandParameters!C183=Code_Offpeak,TimeValue_Person_Offpeak,TimeValue_Person_Peak) -> 147.8538047 | E219: =C219*DemandParameters!H183*IF(DemandParameters!C183=Code_Offpeak,TimeValue_Person_Offpeak,TimeValue_Person_Peak) -> 0 | F219: =B219*DemandParameters!I183*TimeValue_Truck -> 4.604639274 | G219: =C219*DemandParameters!I183*TimeValue_Truck -> 0 | H219: =B219*DemandParameters!J183*IF(DemandParameters!C183=Code_Offpeak,TimeValue_Person_Offpeak,TimeValue_Person_Peak) -> 0 | I219: =C219*DemandParameters!J183*IF(DemandParameters!C183=Code_Offpeak,TimeValue_Person_Offpeak,TimeValue_Person_Peak) -> 0 | AH219: =IF(DemandParameters!K183>0,EXP(AverageTravelTimeModel_Constant+AverageTravelTimeModel_LogVolumeParameter*LN(DemandParameters!K183))/SecondsPerHour,0) -> 0.01422324924 | AI219: =IF(INDEX(StandardDeviationTable,DemandParameters!C183,5)=0,0,ReliabilityInsuranceTime(0.99, AH219, INDEX(StandardDeviationTable,DemandParameters!C183,5), Discount_Rate)) -> 0 | AJ219: =AH219*DemandParameters!L183*IF(DemandParameters!C183=Code_Offpeak,TimeValue_Person_Offpeak,TimeValue_Person_Peak) -> 1713.599609 | AK219: =AI219*DemandParameters!L183*IF(DemandParameters!C183=Code_Offpeak,TimeValue_Person_Offpeak,TimeValue_Person_Peak) -> 0 | AL219: =AH219*DemandParameters!M183*TimeValue_Truck -> 54.47877151 | AM219: =AI219*DemandParameters!M183*TimeValue_Truck -> 0 | AN219: =AH219*DemandParameters!N183*IF(DemandParameters!C183=Code_Offpeak,TimeValue_Person_Offpeak,TimeValue_Person_Peak) -> 0 | AO219: =AI219*DemandParameters!N183*IF(DemandParameters!C183=Code_Offpeak,TimeValue_Person_Offpeak,TimeValue_Person_Peak) -> 0
A220: 2014-01-01T17:00:00 | B220: =IF(DemandParameters!G184>0,EXP(AverageTravelTimeModel_Constant+AverageTravelTimeModel_LogVolumeParameter*LN(DemandParameters!G184))/SecondsPerHour,0) -> 0.003260608055 | C220: =IF(INDEX(StandardDeviationTable,DemandParameters!C184,1)=0,0,ReliabilityInsuranceTime(0.99, B220, INDEX(StandardDeviationTable,DemandParameters!C184,1), Discount_Rate)) -> 0 | D220: =B220*DemandParameters!H184*IF(DemandParameters!C184=Code_Offpeak,TimeValue_Person_Offpeak,TimeValue_Person_Peak) -> 100.5632925 | E220: =C220*DemandParameters!H184*IF(DemandParameters!C184=Code_Offpeak,TimeValue_Person_Offpeak,TimeValue_Person_Peak) -> 0 | F220: =B220*DemandParameters!I184*TimeValue_Truck -> 3.131861821 | G220: =C220*DemandParameters!I184*TimeValue_Truck -> 0 | H220: =B220*DemandParameters!J184*IF(DemandParameters!C184=Code_Offpeak,TimeValue_Person_Offpeak,TimeValue_Person_Peak) -> 0 | I220: =C220*DemandParameters!J184*IF(DemandParameters!C184=Code_Offpeak,TimeValue_Person_Offpeak,TimeValue_Person_Peak) -> 0 | AH220: =IF(DemandParameters!K184>0,EXP(AverageTravelTimeModel_Constant+AverageTravelTimeModel_LogVolumeParameter*LN(DemandParameters!K184))/SecondsPerHour,0) -> 0.01093979258 | AI220: =IF(INDEX(StandardDeviationTable,DemandParameters!C184,5)=0,0,ReliabilityInsuranceTime(0.99, AH220, INDEX(StandardDeviationTable,DemandParameters!C184,5), Discount_Rate)) -> 0 | AJ220: =AH220*DemandParameters!L184*IF(DemandParameters!C184=Code_Offpeak,TimeValue_Person_Offpeak,TimeValue_Person_Peak) -> 1165.510885 | AK220: =AI220*DemandParameters!L184*IF(DemandParameters!C184=Code_Offpeak,TimeValue_Person_Offpeak,TimeValue_Person_Peak) -> 0 | AL220: =AH220*DemandParameters!M184*TimeValue_Truck -> 37.0539307 | AM220: =AI220*DemandParameters!M184*TimeValue_Truck -> 0 | AN220: =AH220*DemandParameters!N184*IF(DemandParameters!C184=Code_Offpeak,TimeValue_Person_Offpeak,TimeValue_Person_Peak) -> 0 | AO220: =AI220*DemandParameters!N184*IF(DemandParameters!C184=Code_Offpeak,TimeValue_Person_Offpeak,TimeValue_Person_Peak) -> 0
A221: 2014-01-01T18:00:00 | B221: =IF(DemandParameters!G185>0,EXP(AverageTravelTimeModel_Constant+AverageTravelTimeModel_LogVolumeParameter*LN(DemandParameters!G185))/SecondsPerHour,0) -> 0.005308331649 | C221: =IF(INDEX(StandardDeviationTable,DemandParameters!C185,1)=0,0,ReliabilityInsuranceTime(0.99, B221, INDEX(StandardDeviationTable,DemandParameters!C185,1), Discount_Rate)) -> 0 | D221: =B221*DemandParameters!H185*IF(DemandParameters!C185=Code_Offpeak,TimeValue_Person_Offpeak,TimeValue_Person_Peak) -> 205.7120414 | E221: =C221*DemandParameters!H185*IF(DemandParameters!C185=Code_Offpeak,TimeValue_Person_Offpeak,TimeValue_Person_Peak) -> 0 | F221: =B221*DemandParameters!I185*TimeValue_Truck -> 6.406529387 | G221: =C221*DemandParameters!I185*TimeValue_Truck -> 0 | H221: =B221*DemandParameters!J185*IF(DemandParameters!C185=Code_Offpeak,TimeValue_Person_Offpeak,TimeValue_Person_Peak) -> 0 | I221: =C221*DemandParameters!J185*IF(DemandParameters!C185=Code_Offpeak,TimeValue_Person_Offpeak,TimeValue_Person_Peak) -> 0 | AH221: =IF(DemandParameters!K185>0,EXP(AverageTravelTimeModel_Constant+AverageTravelTimeModel_LogVolumeParameter*LN(DemandParameters!K185))/SecondsPerHour,0) -> 0.01781018945 | AI221: =IF(INDEX(StandardDeviationTable,DemandParameters!C185,5)=0,0,ReliabilityInsuranceTime(0.99, AH221, INDEX(StandardDeviationTable,DemandParameters!C185,5), Discount_Rate)) -> 0 | AJ221: =AH221*DemandParameters!L185*IF(DemandParameters!C185=Code_Offpeak,TimeValue_Person_Offpeak,TimeValue_Person_Peak) -> 2384.166403 | AK221: =AI221*DemandParameters!L185*IF(DemandParameters!C185=Code_Offpeak,TimeValue_Person_Offpeak,TimeValue_Person_Peak) -> 0 | AL221: =AH221*DemandParameters!M185*TimeValue_Truck -> 75.797436 | AM221: =AI221*DemandParameters!M185*TimeValue_Truck -> 0 | AN221: =AH221*DemandParameters!N185*IF(DemandParameters!C185=Code_Offpeak,TimeValue_Person_Offpeak,TimeValue_Person_Peak) -> 0 | AO221: =AI221*DemandParameters!N185*IF(DemandParameters!C185=Code_Offpeak,TimeValue_Person_Offpeak,TimeValue_Person_Peak) -> 0
A222: 2014-01-01T19:00:00 | B222: =IF(DemandParameters!G186>0,EXP(AverageTravelTimeModel_Constant+AverageTravelTimeModel_LogVolumeParameter*LN(DemandParameters!G186))/SecondsPerHour,0) -> 0.00293131296 | C222: =IF(INDEX(StandardDeviationTable,DemandParameters!C186,1)=0,0,ReliabilityInsuranceTime(0.99, B222, INDEX(StandardDeviationTable,DemandParameters!C186,1), Discount_Rate)) -> 0 | D222: =B222*DemandParameters!H186*IF(DemandParameters!C186=Code_Offpeak,TimeValue_Person_Offpeak,TimeValue_Person_Peak) -> 86.00856133 | E222: =C222*DemandParameters!H186*IF(DemandParameters!C186=Code_Offpeak,TimeValue_Person_Offpeak,TimeValue_Person_Peak) -> 0 | F222: =B222*DemandParameters!I186*TimeValue_Truck -> 2.678581049 | G222: =C222*DemandParameters!I186*TimeValue_Truck -> 0 | H222: =B222*DemandParameters!J186*IF(DemandParameters!C186=Code_Offpeak,TimeValue_Person_Offpeak,TimeValue_Person_Peak) -> 0 | I222: =C222*DemandParameters!J186*IF(DemandParameters!C186=Code_Offpeak,TimeValue_Person_Offpeak,TimeValue_Person_Peak) -> 0 | AH222: =IF(DemandParameters!K186>0,EXP(AverageTravelTimeModel_Constant+AverageTravelTimeModel_LogVolumeParameter*LN(DemandParameters!K186))/SecondsPerHour,0) -> 0.009834961832 | AI222: =IF(INDEX(StandardDeviationTable,DemandParameters!C186,5)=0,0,ReliabilityInsuranceTime(0.99, AH222, INDEX(StandardDeviationTable,DemandParameters!C186,5), Discount_Rate)) -> 0 | AJ222: =AH222*DemandParameters!L186*IF(DemandParameters!C186=Code_Offpeak,TimeValue_Person_Offpeak,TimeValue_Person_Peak) -> 996.8241085 | AK222: =AI222*DemandParameters!L186*IF(DemandParameters!C186=Code_Offpeak,TimeValue_Person_Offpeak,TimeValue_Person_Peak) -> 0 | AL222: =AH222*DemandParameters!M186*TimeValue_Truck -> 31.69103946 | AM222: =AI222*DemandParameters!M186*TimeValue_Truck -> 0 | AN222: =AH222*DemandParameters!N186*IF(DemandParameters!C186=Code_Offpeak,TimeValue_Person_Offpeak,TimeValue_Person_Peak) -> 0 | AO222: =AI222*DemandParameters!N186*IF(DemandParameters!C186=Code_Offpeak,TimeValue_Person_Offpeak,TimeValue_Person_Peak) -> 0
A223: 2014-01-01T20:00:00 | B223: =IF(DemandParameters!G187>0,EXP(AverageTravelTimeModel_Constant+AverageTravelTimeModel_LogVolumeParameter*LN(DemandParameters!G187))/SecondsPerHour,0) -> 0.001970354886 | C223: =IF(INDEX(StandardDeviationTable,DemandParameters!C187,1)=0,0,ReliabilityInsuranceTime(0.99, B223, INDEX(StandardDeviationTable,DemandParameters!C187,1), Discount_Rate)) -> 0 | D223: =B223*DemandParameters!H187*IF(DemandParameters!C187=Code_Offpeak,TimeValue_Person_Offpeak,TimeValue_Person_Peak) -> 47.99552618 | E223: =C223*DemandParameters!H187*IF(DemandParameters!C187=Code_Offpeak,TimeValue_Person_Offpeak,TimeValue_Person_Peak) -> 0 | F223: =B223*DemandParameters!I187*TimeValue_Truck -> 1.494733837 | G223: =C223*DemandParameters!I187*TimeValue_Truck -> 0 | H223: =B223*DemandParameters!J187*IF(DemandParameters!C187=Code_Offpeak,TimeValue_Person_Offpeak,TimeValue_Person_Peak) -> 0 | I223: =C223*DemandParameters!J187*IF(DemandParameters!C187=Code_Offpeak,TimeValue_Person_Offpeak,TimeValue_Person_Peak) -> 0 | AH223: =IF(DemandParameters!K187>0,EXP(AverageTravelTimeModel_Constant+AverageTravelTimeModel_LogVolumeParameter*LN(DemandParameters!K187))/SecondsPerHour,0) -> 0.006610814118 | AI223: =IF(INDEX(StandardDeviationTable,DemandParameters!C187,5)=0,0,ReliabilityInsuranceTime(0.99, AH223, INDEX(StandardDeviationTable,DemandParameters!C187,5), Discount_Rate)) -> 0 | AJ223: =AH223*DemandParameters!L187*IF(DemandParameters!C187=Code_Offpeak,TimeValue_Person_Offpeak,TimeValue_Person_Peak) -> 556.2597125 | AK223: =AI223*DemandParameters!L187*IF(DemandParameters!C187=Code_Offpeak,TimeValue_Person_Offpeak,TimeValue_Person_Peak) -> 0 | AL223: =AH223*DemandParameters!M187*TimeValue_Truck -> 17.68461291 | AM223: =AI223*DemandParameters!M187*TimeValue_Truck -> 0 | AN223: =AH223*DemandParameters!N187*IF(DemandParameters!C187=Code_Offpeak,TimeValue_Person_Offpeak,TimeValue_Person_Peak) -> 0 | AO223: =AI223*DemandParameters!N187*IF(DemandParameters!C187=Code_Offpeak,TimeValue_Person_Offpeak,TimeValue_Person_Peak) -> 0
A224: 2014-01-01T21:00:00 | B224: =IF(DemandParameters!G188>0,EXP(AverageTravelTimeModel_Constant+AverageTravelTimeModel_LogVolumeParameter*LN(DemandParameters!G188))/SecondsPerHour,0) -> 0.001208946791 | C224: =IF(INDEX(StandardDeviationTable,DemandParameters!C188,1)=0,0,ReliabilityInsuranceTime(0.99, B224, INDEX(StandardDeviationTable,DemandParameters!C188,1), Discount_Rate)) -> 0 | D224: =B224*DemandParameters!H188*IF(DemandParameters!C188=Code_Offpeak,TimeValue_Person_Offpeak,TimeValue_Person_Peak) -> 23.42495992 | E224: =C224*DemandParameters!H188*IF(DemandParameters!C188=Code_Offpeak,TimeValue_Person_Offpeak,TimeValue_Person_Peak) -> 0 | F224: =B224*DemandParameters!I188*TimeValue_Truck -> 0.7295279999 | G224: =C224*DemandParameters!I188*TimeValue_Truck -> 0 | H224: =B224*DemandParameters!J188*IF(DemandParameters!C188=Code_Offpeak,TimeValue_Person_Offpeak,TimeValue_Person_Peak) -> 0 | I224: =C224*DemandParameters!J188*IF(DemandParameters!C188=Code_Offpeak,TimeValue_Person_Offpeak,TimeValue_Person_Peak) -> 0 | AH224: =IF(DemandParameters!K188>0,EXP(AverageTravelTimeModel_Constant+AverageTravelTimeModel_LogVolumeParameter*LN(DemandParameters!K188))/SecondsPerHour,0) -> 0.004056184278 | AI224: =IF(INDEX(StandardDeviationTable,DemandParameters!C188,5)=0,0,ReliabilityInsuranceTime(0.99, AH224, INDEX(StandardDeviationTable,DemandParameters!C188,5), Discount_Rate)) -> 0 | AJ224: =AH224*DemandParameters!L188*IF(DemandParameters!C188=Code_Offpeak,TimeValue_Person_Offpeak,TimeValue_Person_Peak) -> 271.4911682 | AK224: =AI224*DemandParameters!L188*IF(DemandParameters!C188=Code_Offpeak,TimeValue_Person_Offpeak,TimeValue_Person_Peak) -> 0 | AL224: =AH224*DemandParameters!M188*TimeValue_Truck -> 8.631249237 | AM224: =AI224*DemandParameters!M188*TimeValue_Truck -> 0 | AN224: =AH224*DemandParameters!N188*IF(DemandParameters!C188=Code_Offpeak,TimeValue_Person_Offpeak,TimeValue_Person_Peak) -> 0 | AO224: =AI224*DemandParameters!N188*IF(DemandParameters!C188=Code_Offpeak,TimeValue_Person_Offpeak,TimeValue_Person_Peak) -> 0
A225: 2014-01-01T22:00:00 | B225: =IF(DemandParameters!G189>0,EXP(AverageTravelTimeModel_Constant+AverageTravelTimeModel_LogVolumeParameter*LN(DemandParameters!G189))/SecondsPerHour,0) -> 0.001066256649 | C225: =IF(INDEX(StandardDeviationTable,DemandParameters!C189,1)=0,0,ReliabilityInsuranceTime(0.99, B225, INDEX(StandardDeviationTable,DemandParameters!C189,1), Discount_Rate)) -> 0 | D225: =B225*DemandParameters!H189*IF(DemandParameters!C189=Code_Offpeak,TimeValue_Person_Offpeak,TimeValue_Person_Peak) -> 19.47956784 | E225: =C225*DemandParameters!H189*IF(DemandParameters!C189=Code_Offpeak,TimeValue_Person_Offpeak,TimeValue_Person_Peak) -> 0 | F225: =B225*DemandParameters!I189*TimeValue_Truck -> 0.606655901 | G225: =C225*DemandParameters!I189*TimeValue_Truck -> 0 | H225: =B225*DemandParameters!J189*IF(DemandParameters!C189=Code_Offpeak,TimeValue_Person_Offpeak,TimeValue_Person_Peak) -> 0 | I225: =C225*DemandParameters!J189*IF(DemandParameters!C189=Code_Offpeak,TimeValue_Person_Offpeak,TimeValue_Person_Peak) -> 0 | AH225: =IF(DemandParameters!K189>0,EXP(AverageTravelTimeModel_Constant+AverageTravelTimeModel_LogVolumeParameter*LN(DemandParameters!K189))/SecondsPerHour,0) -> 0.003577439048 | AI225: =IF(INDEX(StandardDeviationTable,DemandParameters!C189,5)=0,0,ReliabilityInsuranceTime(0.99, AH225, INDEX(StandardDeviationTable,DemandParameters!C189,5), Discount_Rate)) -> 0 | AJ225: =AH225*DemandParameters!L189*IF(DemandParameters!C189=Code_Offpeak,TimeValue_Person_Offpeak,TimeValue_Person_Peak) -> 225.7647675 | AK225: =AI225*DemandParameters!L189*IF(DemandParameters!C189=Code_Offpeak,TimeValue_Person_Offpeak,TimeValue_Person_Peak) -> 0 | AL225: =AH225*DemandParameters!M189*TimeValue_Truck -> 7.177515165 | AM225: =AI225*DemandParameters!M189*TimeValue_Truck -> 0 | AN225: =AH225*DemandParameters!N189*IF(DemandParameters!C189=Code_Offpeak,TimeValue_Person_Offpeak,TimeValue_Person_Peak) -> 0 | AO225: =AI225*DemandParameters!N189*IF(DemandParameters!C189=Code_Offpeak,TimeValue_Person_Offpeak,TimeValue_Person_Peak) -> 0
A226: 2014-01-01T23:00:00 | B226: =IF(DemandParameters!G190>0,EXP(AverageTravelTimeModel_Constant+AverageTravelTimeModel_LogVolumeParameter*LN(DemandParameters!G190))/SecondsPerHour,0) -> 0.0003281643867 | C226: =IF(INDEX(StandardDeviationTable,DemandParameters!C190,1)=0,0,ReliabilityInsuranceTime(0.99, B226, INDEX(StandardDeviationTable,DemandParameters!C190,1), Discount_Rate)) -> 0 | D226: =B226*DemandParameters!H190*IF(DemandParameters!C190=Code_Offpeak,TimeValue_Person_Offpeak,TimeValue_Person_Peak) -> 3.451824245 | E226: =C226*DemandParameters!H190*IF(DemandParameters!C190=Code_Offpeak,TimeValue_Person_Offpeak,TimeValue_Person_Peak) -> 0 | F226: =B226*DemandParameters!I190*TimeValue_Truck -> 0.1075008216 | G226: =C226*DemandParameters!I190*TimeValue_Truck -> 0 | H226: =B226*DemandParameters!J190*IF(DemandParameters!C190=Code_Offpeak,TimeValue_Person_Offpeak,TimeValue_Person_Peak) -> 0 | I226: =C226*DemandParameters!J190*IF(DemandParameters!C190=Code_Offpeak,TimeValue_Person_Offpeak,TimeValue_Person_Peak) -> 0 | AH226: =IF(DemandParameters!K190>0,EXP(AverageTravelTimeModel_Constant+AverageTravelTimeModel_LogVolumeParameter*LN(DemandParameters!K190))/SecondsPerHour,0) -> 0.001101037065 | AI226: =IF(INDEX(StandardDeviationTable,DemandParameters!C190,5)=0,0,ReliabilityInsuranceTime(0.99, AH226, INDEX(StandardDeviationTable,DemandParameters!C190,5), Discount_Rate)) -> 0 | AJ226: =AH226*DemandParameters!L190*IF(DemandParameters!C190=Code_Offpeak,TimeValue_Person_Offpeak,TimeValue_Person_Peak) -> 40.00603629 | AK226: =AI226*DemandParameters!L190*IF(DemandParameters!C190=Code_Offpeak,TimeValue_Person_Offpeak,TimeValue_Person_Peak) -> 0 | AL226: =AH226*DemandParameters!M190*TimeValue_Truck -> 1.271872203 | AM226: =AI226*DemandParameters!M190*TimeValue_Truck -> 0 | AN226: =AH226*DemandParameters!N190*IF(DemandParameters!C190=Code_Offpeak,TimeValue_Person_Offpeak,TimeValue_Person_Peak) -> 0 | AO226: =AI226*DemandParameters!N190*IF(DemandParameters!C190=Code_Offpeak,TimeValue_Person_Offpeak,TimeValue_Person_Peak) -> 0
A227: 2014-01-02 | B227: =IF(DemandParameters!G191>0,EXP(AverageTravelTimeModel_Constant+AverageTravelTimeModel_LogVolumeParameter*LN(DemandParameters!G191))/SecondsPerHour,0) -> 8.881593247e-05 | C227: =IF(INDEX(StandardDeviationTable,DemandParameters!C191,1)=0,0,ReliabilityInsuranceTime(0.99, B227, INDEX(StandardDeviationTable,DemandParameters!C191,1), Discount_Rate)) -> 0 | D227: =B227*DemandParameters!H191*IF(DemandParameters!C191=Code_Offpeak,TimeValue_Person_Offpeak,TimeValue_Person_Peak) -> 0.5064443495 | E227: =C227*DemandParameters!H191*IF(DemandParameters!C191=Code_Offpeak,TimeValue_Person_Offpeak,TimeValue_Person_Peak) -> 0 | F227: =B227*DemandParameters!I191*TimeValue_Truck -> 0.01577229308 | G227: =C227*DemandParameters!I191*TimeValue_Truck -> 0 | H227: =B227*DemandParameters!J191*IF(DemandParameters!C191=Code_Offpeak,TimeValue_Person_Offpeak,TimeValue_Person_Peak) -> 0 | I227: =C227*DemandParameters!J191*IF(DemandParameters!C191=Code_Offpeak,TimeValue_Person_Offpeak,TimeValue_Person_Peak) -> 0 | AH227: =IF(DemandParameters!K191>0,EXP(AverageTravelTimeModel_Constant+AverageTravelTimeModel_LogVolumeParameter*LN(DemandParameters!K191))/SecondsPerHour,0) -> 0.0002979897806 | AI227: =IF(INDEX(StandardDeviationTable,DemandParameters!C191,5)=0,0,ReliabilityInsuranceTime(0.99, AH227, INDEX(StandardDeviationTable,DemandParameters!C191,5), Discount_Rate)) -> 0 | AJ227: =AH227*DemandParameters!L191*IF(DemandParameters!C191=Code_Offpeak,TimeValue_Person_Offpeak,TimeValue_Person_Peak) -> 5.869600995 | AK227: =AI227*DemandParameters!L191*IF(DemandParameters!C191=Code_Offpeak,TimeValue_Person_Offpeak,TimeValue_Person_Peak) -> 0 | AL227: =AH227*DemandParameters!M191*TimeValue_Truck -> 0.1866063984 | AM227: =AI227*DemandParameters!M191*TimeValue_Truck -> 0 | AN227: =AH227*DemandParameters!N191*IF(DemandParameters!C191=Code_Offpeak,TimeValue_Person_Offpeak,TimeValue_Person_Peak) -> 0 | AO227: =AI227*DemandParameters!N191*IF(DemandParameters!C191=Code_Offpeak,TimeValue_Person_Offpeak,TimeValue_Person_Peak) -> 0
A228: 2014-01-02T01:00:00 | B228: =IF(DemandParameters!G192>0,EXP(AverageTravelTimeModel_Constant+AverageTravelTimeModel_LogVolumeParameter*LN(DemandParameters!G192))/SecondsPerHour,0) -> 2.985059568e-05 | C228: =IF(INDEX(StandardDeviationTable,DemandParameters!C192,1)=0,0,ReliabilityInsuranceTime(0.99, B228, INDEX(StandardDeviationTable,DemandParameters!C192,1), Discount_Rate)) -> 0 | D228: =B228*DemandParameters!H192*IF(DemandParameters!C192=Code_Offpeak,TimeValue_Person_Offpeak,TimeValue_Person_Peak) -> 0.1021280648 | E228: =C228*DemandParameters!H192*IF(DemandParameters!C192=Code_Offpeak,TimeValue_Person_Offpeak,TimeValue_Person_Peak) -> 0 | F228: =B228*DemandParameters!I192*TimeValue_Truck -> 0.003180593824 | G228: =C228*DemandParameters!I192*TimeValue_Truck -> 0 | H228: =B228*DemandParameters!J192*IF(DemandParameters!C192=Code_Offpeak,TimeValue_Person_Offpeak,TimeValue_Person_Peak) -> 0 | I228: =C228*DemandParameters!J192*IF(DemandParameters!C192=Code_Offpeak,TimeValue_Person_Offpeak,TimeValue_Person_Peak) -> 0 | AH228: =IF(DemandParameters!K192>0,EXP(AverageTravelTimeModel_Constant+AverageTravelTimeModel_LogVolumeParameter*LN(DemandParameters!K192))/SecondsPerHour,0) -> 0.0001001528916 | AI228: =IF(INDEX(StandardDeviationTable,DemandParameters!C192,5)=0,0,ReliabilityInsuranceTime(0.99, AH228, INDEX(StandardDeviationTable,DemandParameters!C192,5), Discount_Rate)) -> 0 | AJ228: =AH228*DemandParameters!L192*IF(DemandParameters!C192=Code_Offpeak,TimeValue_Person_Offpeak,TimeValue_Person_Peak) -> 1.183646321 | AK228: =AI228*DemandParameters!L192*IF(DemandParameters!C192=Code_Offpeak,TimeValue_Person_Offpeak,TimeValue_Person_Peak) -> 0 | AL228: =AH228*DemandParameters!M192*TimeValue_Truck -> 0.03763049262 | AM228: =AI228*DemandParameters!M192*TimeValue_Truck -> 0 | AN228: =AH228*DemandParameters!N192*IF(DemandParameters!C192=Code_Offpeak,TimeValue_Person_Offpeak,TimeValue_Person_Peak) -> 0 | AO228: =AI228*DemandParameters!N192*IF(DemandParameters!C192=Code_Offpeak,TimeValue_Person_Offpeak,TimeValue_Person_Peak) -> 0
A229: 2014-01-02T02:00:00 | B229: =IF(DemandParameters!G193>0,EXP(AverageTravelTimeModel_Constant+AverageTravelTimeModel_LogVolumeParameter*LN(DemandParameters!G193))/SecondsPerHour,0) -> 1.256275364e-05 | C229: =IF(INDEX(StandardDeviationTable,DemandParameters!C193,1)=0,0,ReliabilityInsuranceTime(0.99, B229, INDEX(StandardDeviationTable,DemandParameters!C193,1), Discount_Rate)) -> 0 | D229: =B229*DemandParameters!H193*IF(DemandParameters!C193=Code_Offpeak,TimeValue_Person_Offpeak,TimeValue_Person_Peak) -> 0.02865402825 | E229: =C229*DemandParameters!H193*IF(DemandParameters!C193=Code_Offpeak,TimeValue_Person_Offpeak,TimeValue_Person_Peak) -> 0 | F229: =B229*DemandParameters!I193*TimeValue_Truck -> 0.0008923778732 | G229: =C229*DemandParameters!I193*TimeValue_Truck -> 0 | H229: =B229*DemandParameters!J193*IF(DemandParameters!C193=Code_Offpeak,TimeValue_Person_Offpeak,TimeValue_Person_Peak) -> 0 | I229: =C229*DemandParameters!J193*IF(DemandParameters!C193=Code_Offpeak,TimeValue_Person_Offpeak,TimeValue_Person_Peak) -> 0 | AH229: =IF(DemandParameters!K193>0,EXP(AverageTravelTimeModel_Constant+AverageTravelTimeModel_LogVolumeParameter*LN(DemandParameters!K193))/SecondsPerHour,0) -> 4.21497821e-05 | AI229: =IF(INDEX(StandardDeviationTable,DemandParameters!C193,5)=0,0,ReliabilityInsuranceTime(0.99, AH229, INDEX(StandardDeviationTable,DemandParameters!C193,5), Discount_Rate)) -> 0 | AJ229: =AH229*DemandParameters!L193*IF(DemandParameters!C193=Code_Offpeak,TimeValue_Person_Offpeak,TimeValue_Person_Peak) -> 0.332095151 | AK229: =AI229*DemandParameters!L193*IF(DemandParameters!C193=Code_Offpeak,TimeValue_Person_Offpeak,TimeValue_Person_Peak) -> 0 | AL229: =AH229*DemandParameters!M193*TimeValue_Truck -> 0.01055797151 | AM229: =AI229*DemandParameters!M193*TimeValue_Truck -> 0 | AN229: =AH229*DemandParameters!N193*IF(DemandParameters!C193=Code_Offpeak,TimeValue_Person_Offpeak,TimeValue_Person_Peak) -> 0 | AO229: =AI229*DemandParameters!N193*IF(DemandParameters!C193=Code_Offpeak,TimeValue_Person_Offpeak,TimeValue_Person_Peak) -> 0
A230: 2014-01-02T03:00:00 | B230: =IF(DemandParameters!G194>0,EXP(AverageTravelTimeModel_Constant+AverageTravelTimeModel_LogVolumeParameter*LN(DemandParameters!G194))/SecondsPerHour,0) -> 2.861106219e-06 | C230: =IF(INDEX(StandardDeviationTable,DemandParameters!C194,1)=0,0,ReliabilityInsuranceTime(0.99, B230, INDEX(StandardDeviationTable,DemandParameters!C194,1), Discount_Rate)) -> 0 | D230: =B230*DemandParameters!H194*IF(DemandParameters!C194=Code_Offpeak,TimeValue_Person_Offpeak,TimeValue_Person_Peak) -> 0.003262907989 | E230: =C230*DemandParameters!H194*IF(DemandParameters!C194=Code_Offpeak,TimeValue_Person_Offpeak,TimeValue_Person_Peak) -> 0 | F230: =B230*DemandParameters!I194*TimeValue_Truck -> 0.0001016173666 | G230: =C230*DemandParameters!I194*TimeValue_Truck -> 0 | H230: =B230*DemandParameters!J194*IF(DemandParameters!C194=Code_Offpeak,TimeValue_Person_Offpeak,TimeValue_Person_Peak) -> 0 | I230: =C230*DemandParameters!J194*IF(DemandParameters!C194=Code_Offpeak,TimeValue_Person_Offpeak,TimeValue_Person_Peak) -> 0 | AH230: =IF(DemandParameters!K194>0,EXP(AverageTravelTimeModel_Constant+AverageTravelTimeModel_LogVolumeParameter*LN(DemandParameters!K194))/SecondsPerHour,0) -> 9.599408471e-06 | AI230: =IF(INDEX(StandardDeviationTable,DemandParameters!C194,5)=0,0,ReliabilityInsuranceTime(0.99, AH230, INDEX(StandardDeviationTable,DemandParameters!C194,5), Discount_Rate)) -> 0 | AJ230: =AH230*DemandParameters!L194*IF(DemandParameters!C194=Code_Offpeak,TimeValue_Person_Offpeak,TimeValue_Person_Peak) -> 0.03781653009 | AK230: =AI230*DemandParameters!L194*IF(DemandParameters!C194=Code_Offpeak,TimeValue_Person_Offpeak,TimeValue_Person_Peak) -> 0 | AL230: =AH230*DemandParameters!M194*TimeValue_Truck -> 0.001202263405 | AM230: =AI230*DemandParameters!M194*TimeValue_Truck -> 0 | AN230: =AH230*DemandParameters!N194*IF(DemandParameters!C194=Code_Offpeak,TimeValue_Person_Offpeak,TimeValue_Person_Peak) -> 0 | AO230: =AI230*DemandParameters!N194*IF(DemandParameters!C194=Code_Offpeak,TimeValue_Person_Offpeak,TimeValue_Person_Peak) -> 0
A231: 2014-01-02T04:00:00 | B231: =IF(DemandParameters!G195>0,EXP(AverageTravelTimeModel_Constant+AverageTravelTimeModel_LogVolumeParameter*LN(DemandParameters!G195))/SecondsPerHour,0) -> 2.861106219e-06 | C231: =IF(INDEX(StandardDeviationTable,DemandParameters!C195,1)=0,0,ReliabilityInsuranceTime(0.99, B231, INDEX(StandardDeviationTable,DemandParameters!C195,1), Discount_Rate)) -> 0 | D231: =B231*DemandParameters!H195*IF(DemandParameters!C195=Code_Offpeak,TimeValue_Person_Offpeak,TimeValue_Person_Peak) -> 0.003262907989 | E231: =C231*DemandParameters!H195*IF(DemandParameters!C195=Code_Offpeak,TimeValue_Person_Offpeak,TimeValue_Person_Peak) -> 0 | F231: =B231*DemandParameters!I195*TimeValue_Truck -> 0.0001016173666 | G231: =C231*DemandParameters!I195*TimeValue_Truck -> 0 | H231: =B231*DemandParameters!J195*IF(DemandParameters!C195=Code_Offpeak,TimeValue_Person_Offpeak,TimeValue_Person_Peak) -> 0 | I231: =C231*DemandParameters!J195*IF(DemandParameters!C195=Code_Offpeak,TimeValue_Person_Offpeak,TimeValue_Person_Peak) -> 0 | AH231: =IF(DemandParameters!K195>0,EXP(AverageTravelTimeModel_Constant+AverageTravelTimeModel_LogVolumeParameter*LN(DemandParameters!K195))/SecondsPerHour,0) -> 9.599408471e-06 | AI231: =IF(INDEX(StandardDeviationTable,DemandParameters!C195,5)=0,0,ReliabilityInsuranceTime(0.99, AH231, INDEX(StandardDeviationTable,DemandParameters!C195,5), Discount_Rate)) -> 0 | AJ231: =AH231*DemandParameters!L195*IF(DemandParameters!C195=Code_Offpeak,TimeValue_Person_Offpeak,TimeValue_Person_Peak) -> 0.03781653009 | AK231: =AI231*DemandParameters!L195*IF(DemandParameters!C195=Code_Offpeak,TimeValue_Person_Offpeak,TimeValue_Person_Peak) -> 0 | AL231: =AH231*DemandParameters!M195*TimeValue_Truck -> 0.001202263405 | AM231: =AI231*DemandParameters!M195*TimeValue_Truck -> 0 | AN231: =AH231*DemandParameters!N195*IF(DemandParameters!C195=Code_Offpeak,TimeValue_Person_Offpeak,TimeValue_Person_Peak) -> 0 | AO231: =AI231*DemandParameters!N195*IF(DemandParameters!C195=Code_Offpeak,TimeValue_Person_Offpeak,TimeValue_Person_Peak) -> 0
A232: 2014-01-02T05:00:00 | B232: =IF(DemandParameters!G196>0,EXP(AverageTravelTimeModel_Constant+AverageTravelTimeModel_LogVolumeParameter*LN(DemandParameters!G196))/SecondsPerHour,0) -> 4.148121267e-05 | C232: =IF(INDEX(StandardDeviationTable,DemandParameters!C196,1)=0,0,ReliabilityInsuranceTime(0.99, B232, INDEX(StandardDeviationTable,DemandParameters!C196,1), Discount_Rate)) -> 0 | D232: =B232*DemandParameters!H196*IF(DemandParameters!C196=Code_Offpeak,TimeValue_Person_Offpeak,TimeValue_Person_Peak) -> 0.1655733113 | E232: =C232*DemandParameters!H196*IF(DemandParameters!C196=Code_Offpeak,TimeValue_Person_Offpeak,TimeValue_Person_Peak) -> 0 | F232: =B232*DemandParameters!I196*TimeValue_Truck -> 0.00515648125 | G232: =C232*DemandParameters!I196*TimeValue_Truck -> 0 | H232: =B232*DemandParameters!J196*IF(DemandParameters!C196=Code_Offpeak,TimeValue_Person_Offpeak,TimeValue_Person_Peak) -> 0 | I232: =C232*DemandParameters!J196*IF(DemandParameters!C196=Code_Offpeak,TimeValue_Person_Offpeak,TimeValue_Person_Peak) -> 0 | AH232: =IF(DemandParameters!K196>0,EXP(AverageTravelTimeModel_Constant+AverageTravelTimeModel_LogVolumeParameter*LN(DemandParameters!K196))/SecondsPerHour,0) -> 0.0001391752259 | AI232: =IF(INDEX(StandardDeviationTable,DemandParameters!C196,5)=0,0,ReliabilityInsuranceTime(0.99, AH232, INDEX(StandardDeviationTable,DemandParameters!C196,5), Discount_Rate)) -> 0 | AJ232: =AH232*DemandParameters!L196*IF(DemandParameters!C196=Code_Offpeak,TimeValue_Person_Offpeak,TimeValue_Person_Peak) -> 1.918965576 | AK232: =AI232*DemandParameters!L196*IF(DemandParameters!C196=Code_Offpeak,TimeValue_Person_Offpeak,TimeValue_Person_Peak) -> 0 | AL232: =AH232*DemandParameters!M196*TimeValue_Truck -> 0.06100776784 | AM232: =AI232*DemandParameters!M196*TimeValue_Truck -> 0 | AN232: =AH232*DemandParameters!N196*IF(DemandParameters!C196=Code_Offpeak,TimeValue_Person_Offpeak,TimeValue_Person_Peak) -> 0 | AO232: =AI232*DemandParameters!N196*IF(DemandParameters!C196=Code_Offpeak,TimeValue_Person_Offpeak,TimeValue_Person_Peak) -> 0
A233: 2014-01-02T06:00:00 | B233: =IF(DemandParameters!G197>0,EXP(AverageTravelTimeModel_Constant+AverageTravelTimeModel_LogVolumeParameter*LN(DemandParameters!G197))/SecondsPerHour,0) -> 0.0005255351307 | C233: =IF(INDEX(StandardDeviationTable,DemandParameters!C197,1)=0,0,ReliabilityInsuranceTime(0.99, B233, INDEX(StandardDeviationTable,DemandParameters!C197,1), Discount_Rate)) -> 0 | D233: =B233*DemandParameters!H197*IF(DemandParameters!C197=Code_Offpeak,TimeValue_Person_Offpeak,TimeValue_Person_Peak) -> 6.892399449 | E233: =C233*DemandParameters!H197*IF(DemandParameters!C197=Code_Offpeak,TimeValue_Person_Offpeak,TimeValue_Person_Peak) -> 0 | F233: =B233*DemandParameters!I197*TimeValue_Truck -> 0.2146513121 | G233: =C233*DemandParameters!I197*TimeValue_Truck -> 0 | H233: =B233*DemandParameters!J197*IF(DemandParameters!C197=Code_Offpeak,TimeValue_Person_Offpeak,TimeValue_Person_Peak) -> 0 | I233: =C233*DemandParameters!J197*IF(DemandParameters!C197=Code_Offpeak,TimeValue_Person_Offpeak,TimeValue_Person_Peak) -> 0 | AH233: =IF(DemandParameters!K197>0,EXP(AverageTravelTimeModel_Constant+AverageTravelTimeModel_LogVolumeParameter*LN(DemandParameters!K197))/SecondsPerHour,0) -> 0.001763243305 | AI233: =IF(INDEX(StandardDeviationTable,DemandParameters!C197,5)=0,0,ReliabilityInsuranceTime(0.99, AH233, INDEX(StandardDeviationTable,DemandParameters!C197,5), Discount_Rate)) -> 0 | AJ233: =AH233*DemandParameters!L197*IF(DemandParameters!C197=Code_Offpeak,TimeValue_Person_Offpeak,TimeValue_Person_Peak) -> 79.88169817 | AK233: =AI233*DemandParameters!L197*IF(DemandParameters!C197=Code_Offpeak,TimeValue_Person_Offpeak,TimeValue_Person_Peak) -> 0 | AL233: =AH233*DemandParameters!M197*TimeValue_Truck -> 2.539599541 | AM233: =AI233*DemandParameters!M197*TimeValue_Truck -> 0 | AN233: =AH233*DemandParameters!N197*IF(DemandParameters!C197=Code_Offpeak,TimeValue_Person_Offpeak,TimeValue_Person_Peak) -> 0 | AO233: =AI233*DemandParameters!N197*IF(DemandParameters!C197=Code_Offpeak,TimeValue_Person_Offpeak,TimeValue_Person_Peak) -> 0
... 2017 more rows

Sheet Alternative_2
A1: =Alternatives_MasterList!A11&" - "&IF(OR(Alternatives_MasterList!B11="",Alternatives_MasterList!B11=Alternatives_DefaultAlternativeShortName),DefinedAlternative_Prompt_AlternativeShortName,Alternatives_MasterList!B11) -> Alternative 2 - Expanded Signalized Intersection
A3: Description: | B3: =IF(OR(Alternatives_MasterList!C11="",Alternatives_MasterList!C11=Alternatives_DefaultAlternativeDescription),DefinedAlternative_Prompt_AlternativeDescription,Alternatives_MasterList!C11) -> Retain Signalized Intersection - Expand Intersction Size
A4: A summary of the net present value for this alternative is shown to the right in Column "J"
A5: Planning & construction period | B5: Begin planning & construction | C5: 2014 | D5: First year of planning & construction
A6: Operating period | B6: Opening year | C6: 2014 | D6: Travel time/delay and demand forecasts for the opening year must be provided. | J6: Net Present Value Summary
B7: Interim year 1 | D7: Travel time/delay and demand forecasts for up to three years between the opening year and the end year may be provided. | H7: =IF(OR(AND(C7="",OR(ISNUMBER(C8),ISNUMBER(C9))),AND(C8="",ISNUMBER(C9))),"Please enter interim years in increasing order beginning with Interim year 1","") -> 
B8: Interim year 2 | J8: Planning & Construction Costs | K8: =B127 -> 4600840
B9: Interim year 3 | J9: Operating & Maintenance Costs | K9: =L146 -> 82075.12068
